Workbook

Sheet Instructions
A1: Affordability Ratio Calculator (ARC)
A2: Version Release Date: July 8, 2022
A3: Base Analysis Year: 2020
A4: Introduction This tool allows users to calculate values of the affordability ratio (AR) metric for representative households at the 20th and 50th percentiles of the income distribution,1 referred to as AR20 and AR50, respectively. The tool outputs results at several different levels of geographic specficity, depending on the specific type of AR metric that is of interest. AR can be calculated for a specific industry (electricity, gas, water, or communications), in which case only the essential utility bills associated with that industry are measured as a percentage of the representative households' income net of housing costs and other essential utility bills, or it can be measured for the entire bundle of essential utility bills, in which case the sum of the essential utility bills is expressed as a percentage of households' income net of housing costs. For more information on the methodology and data sources used to calculate this metric, please refer to the Affordability Metrics Framework Revised Staff Proposal.2 This tool identifies the essential service providers associated with each census tract in the state of California, as well as the PUMA that the census tract is associated with. Based on the essential usage bills (pre-populated for a base scenario and several other scenarios, but can be overwritten by the user), as well as the income and housing costs for the representative household based on the PUMA that the census tract belongs to, AR values are calculated for each census tract. For census tracts where multiple service providers are present, the tool calculates AR values for each combination of possible providers. These census tract-level results are then aggregated up to larger geographic areas and weighted average results are computed. 1 The AR metric is calculated for a representative household at a given point in the income distribution for a geographic area known as a Public Use Microdata Area (PUMA). This distribution of incomes is particular to each PUMA and is measured in the Census Bureau’s American Community Survey (ACS). PUMAs are “non-overlapping, statistical geographic areas that partition each state or equivalent entity into geographic areas containing no fewer than 100,000 people each.” There are currently 265 PUMAs in the state of California. By looking at a common income percentile across the different PUMAs in California, the AR metric characterizes the relative wealth of each PUMA to the others. More information on PUMAs can be found on the Census Bureau’s website:
A30: https://www.census.gov/programs-surveys/geography/guidance/geo-areas/pumas.html
A31: 2 https://docs.cpuc.ca.gov/PublishedDocs/Efile/G000/M325/K620/325620620.PDF
A33: Important Note: Do not add, delete, or move any rows or columns in this tool. This will break the macros.
A35: Recommendation for Optimizing Tool Performance This tool contains quite a bit of data and performs a large number of calculations. As such, it can sometimes take a few minutes to perform a task. Please be patient, particularly when running multi-year analyses. To minimize the number of times the tool needs to recalculate all of the formulas, it is highly recommended that users change the calculation settings in Microsoft Excel to "Manual". To do this, click on the "Formulas" menu and select the "Calculation Options" dropdown menu near the right hand side of the menu. If it is not already selected, change this setting to "Manual". Selecting this option means that cell formulas will not automatically re-calculate (for instance, if the essential usage bill is calculated based on an inflation formula and a prior year's value, changing the prior year's value will not automatically update the calculated value). However, the tool will recalculate all cells in the tool when either the single or multi-year analysis is run.
A50: Essential Usage Bill Input The main user-defined input to the ARC is the monthly amount households need to pay for an essential level of usage of electricity, natural gas, water, and communication services. Inputs can be specified for each year in the analysis period (base analysis year plus seven forecast years). The tool comes pre-populated with historical values for the base analysis year, and applies forecasted values of the US average of CPI-U to estimate essential usage bills during the forecast period. Users may overwrite the pre-populated values for any essential service provider for whatever portion of the analysis period that is desired.
A61: Essential Usage Bill Input Geographic Scale by Industry:
A62: Industry | B62: Geographic Scale of Input
A63: Electricity | B63: Utility/Climate Zone
A64: Gas | B64: Utility/Climate Zone
A65: Water | B65: Water System/Ratemaking Area
A66: Communications | B66: Area defined by combination of ILEC Voice and Lowest Cost Broadband
A68: Essential Usage Bill Input Instructions To overwrite the pre-populated essential usage bills, enter the values in the orange colored input tabs: "Electric Input", "Gas Input", "Water Input", and "Comm Input." For the "Electric Input" tab, users will need to specify the essential usage bills for basic service (columns D through K) and all-electric service (columns L through S) separately if any portion of the customers for that climate zone are on an all-electric rate (all-electric rate participation can be specified in column C). The tool will automatically turn the essential usage bill input cells blue if a formula is present, allowing for easy identification of cells that contain hard coded values (unshaded cells) as opposed to cells that contain an inflation calculation using a previous year's input as the basis (blue shaded cells). The tool comes pre-populated with 2020 values hard coded based on historical values, while forecast years use an inflation calculation. Tip: Do not override any cells shaded in gray. Please refer to Input Tabs Cell Color Legend below.
A84: Essential Usage Bill Input Tabs Cell Color Legend
B85: User Input (currently hard coded value, can be overwritten)
B86: User Input (currently calculated value, can be overwritten)
B87: Calculated or Static Cell (do not alter)
A89: Scenario Input This tool allows users to save and load scenarios once essential usage bills have been input. After inputting the desired essential usage bills in the industry-specific input tabs, select the "Scenario Input" tab and enter the desired name for the new scenario in cell C5. Then click on the "Save New Scenario" macro button. The essential usage bills associated with this scenario will be saved to a hidden tab and the name of the new scenario will be added to the list of scenarios saved in this workbook.
A103: The list of saved scenarios can be seen by selecting the dropdown menu in cell C6 of the same tab. The pre-populated values associated with the historical 2020 essential usage bills are saved to the tool as the scenario "2020 Base." Once additional scenarios are saved, they will be added to this dropdown list. Please note that users will still need to save the spreadsheet before closing the file in order to maintain the changes. Scenarios that have been saved previously can be loaded by selecting them from the dropdown menu in cell C6 and clicking on the "Load Selected Scenario" macro button. Doing this will overwrite any essential usage bills currently entered in the industry-specific input tabs.
A117: Scenario Calculation Once the user has finished entering the essential usage bill inputs (and saving the scenario, if so desired), the AR results can be calculated in two different ways: single year or multi-year analysis.
A121: Single Year Analysis To perform a single year analysis, select the year of interest in cell B2 of the "Scenario Input" tab and click on the "Calculate AR for Selected Year" macro button. The calculation may take a few minutes. Single year analysis will output the AR results in the output tabs (blue colored tabs) in the blue shaded cells on the left side. These results will reflect only the selected analysis year (which is displayed at the top of the output tabs for convenience).
A133: Multi-Year Analysis Multi-year analysis is performed by clicking on the "Calculate AR Results for All Years" macro button at the top of the "Scenario Input" tab. This macro runs the AR analysis for each year in the analysis period starting with the base year followed by each subsequent year. After the calculations are complete for each year, the AR values are copied over to the orange shaded cells on the right side of the blue output tabs and the next year's calculations begin. Because the tool is doing eight sets of AR calculations, it can take quite a bit of time to run. Please be patient. When the calculations are complete, the full set of results will be in the orange cells on the right side of each output tab.
A147: Please note that the multi-year analysis outputs (orange shaded cells in the outputs tabs) are only updated when the multi-year analysis is run. If a single year analysis is performed, those results will only be in the blue shaded cells on the left side of the output tabs, while the orange shaded cells will reflect the most recent multi-year analysis that was run. Tip: Please refer to Output Tabs Cell Color Legend below.
A154: Output Tabs Cell Color Legend
B155: AR results for single year analysis (based on analysis year selected in "Scenario Input")
B156: AR results for multi-year analysis
A158: Geographic Scale of Outputs The tool outputs the AR results in the blue output tabs at several different geographic scales depending on the given industry. For each industry, the more granular set of results also includes the estimated number of residential households that are located in each reporting area. These estimates are based on GIS analysis of Census data. They are intended to help the user understand how many customers would be affected by a change in affordability when evaluating results at this more granular level.
A165: Industry | B165: Geographic Scale of Output
A166: Electricity | B166: • Climate Zones broken down by PUMA (Electric PUMA-CZ Results) • Climate Zone (Electric CZ Results)
A167: Gas | B167: • Climate Zones broken down by PUMA (Gas PUMA-CZ Results) • Climate Zone (Gas CZ Results)
A168: Water | B168: • Water System/Ratemaking Area (Water Results)
A169: Communications | B169: • Area defined by combination of ILEC Voice and Lowest Broadband broken down by PUMA (Comm PUMA-Provider Results) • PUMA (Comm PUMA Results)
A170: Bundled (All Services Combined) | B170: • PUMA (PUMA Bundled AR Results)

Sheet Scenario Input
A1: Analysis Year | B1: 2020
A4: Scenario Selector
B5: Name for New Scenario:
B6: Load Existing Scenario: | C6: 2020 Base
A8: Escalators applied to base year inputs (base year = 2020) | Z8: Percentage point changes versus prior year
C9: 2021 | F9: 2022 | I9: 2023 | L9: 2024 | O9: 2025 | R9: 2026 | U9: 2027 | AA9: 2021 | AD9: 2022 | AG9: 2023 | AJ9: 2024 | AM9: 2025 | AP9: 2026 | AS9: 2027
A10: County ID | B10: MSA | C10: CPI-U | D10: CPI-W | E10: Shelter Escalator | F10: CPI-U | G10: CPI-W | H10: Shelter Escalator | I10: CPI-U | J10: CPI-W | K10: Shelter Escalator | L10: CPI-U | M10: CPI-W | N10: Shelter Escalator | O10: CPI-U | P10: CPI-W | Q10: Shelter Escalator | R10: CPI-U | S10: CPI-W | T10: Shelter Escalator | U10: CPI-U | V10: CPI-W | W10: Shelter Escalator | Z10: MSA | AA10: CPI-U | AB10: CPI-W | AC10: Shelter Escalator | AD10: CPI-U | AE10: CPI-W | AF10: Shelter Escalator | AG10: CPI-U | AH10: CPI-W | AI10: Shelter Escalator | AJ10: CPI-U | AK10: CPI-W | AL10: Shelter Escalator | AM10: CPI-U | AN10: CPI-W | AO10: Shelter Escalator | AP10: CPI-U | AQ10: CPI-W | AR10: Shelter Escalator | AS10: CPI-U | AT10: CPI-W | AU10: Shelter Escalator
A11: 037 | B11: LA | C11: =1+VLOOKUP($B11,$Z$11:$AU$15,2,FALSE)/100 -> 1.037191322 | D11: =1+VLOOKUP($B11,$Z$11:$AU$15,3,FALSE)/100 -> 1.040895563 | E11: =1+VLOOKUP($B11,$Z$11:$AU$15,4,FALSE)/100 -> 1.014819547 | F11: =C11*(1+VLOOKUP($B11,$Z$11:$AU$15,5,FALSE)/100) -> 1.077666169 | G11: =D11*(1+VLOOKUP($B11,$Z$11:$AU$15,6,FALSE)/100) -> 1.077930422 | H11: =E11*(1+VLOOKUP($B11,$Z$11:$AU$15,7,FALSE)/100) -> 1.059094241 | I11: =F11*(1+VLOOKUP($B11,$Z$11:$AU$15,8,FALSE)/100) -> 1.110818589 | J11: =G11*(1+VLOOKUP($B11,$Z$11:$AU$15,9,FALSE)/100) -> 1.111377938 | K11: =H11*(1+VLOOKUP($B11,$Z$11:$AU$15,10,FALSE)/100) -> 1.108161232 | L11: =I11*(1+VLOOKUP($B11,$Z$11:$AU$15,11,FALSE)/100) -> 1.146510304 | M11: =J11*(1+VLOOKUP($B11,$Z$11:$AU$15,12,FALSE)/100) -> 1.147698686 | N11: =K11*(1+VLOOKUP($B11,$Z$11:$AU$15,13,FALSE)/100) -> 1.160352814 | O11: =L11*(1+VLOOKUP($B11,$Z$11:$AU$15,14,FALSE)/100) -> 1.18466872 | P11: =M11*(1+VLOOKUP($B11,$Z$11:$AU$15,15,FALSE)/100) -> 1.186631725 | Q11: =N11*(1+VLOOKUP($B11,$Z$11:$AU$15,16,FALSE)/100) -> 1.217033905 | R11: =O11*(1+VLOOKUP($B11,$Z$11:$AU$15,17,FALSE)/100) -> 1.225514019 | S11: =P11*(1+VLOOKUP($B11,$Z$11:$AU$15,18,FALSE)/100) -> 1.227952206 | T11: =Q11*(1+VLOOKUP($B11,$Z$11:$AU$15,19,FALSE)/100) -> 1.265891125 | U11: =R11*(1+VLOOKUP($B11,$Z$11:$AU$15,20,FALSE)/100) -> 1.267767591 | V11: =S11*(1+VLOOKUP($B11,$Z$11:$AU$15,21,FALSE)/100) -> 1.270711534 | W11: =T11*(1+VLOOKUP($B11,$Z$11:$AU$15,22,FALSE)/100) -> 1.316709694 | Z11: LA | AA11: 3.719132221 | AB11: 4.089556291 | AC11: 1.481954663 | AD11: 3.902351096 | AE11: 3.557980307 | AF11: 4.362814478 | AG11: 3.076316307 | AH11: 3.102938288 | AI11: 4.632920233 | AJ11: 3.21310025 | AK11: 3.268082567 | AL11: 4.709746197 | AM11: 3.328222688 | AN11: 3.392270068 | AO11: 4.884815309 | AP11: =AVERAGE(AA11,AD11,AG11,AJ11,AM11) -> 3.447824512 | AQ11: =AVERAGE(AB11,AE11,AH11,AK11,AN11) -> 3.482165504 | AR11: 4.014450176 | AS11: =AP11 -> 3.447824512 | AT11: =AQ11 -> 3.482165504 | AU11: 4.014450176
A12: 059 | B12: LA | C12: =1+VLOOKUP($B12,$Z$11:$AU$15,2,FALSE)/100 -> 1.037191322 | D12: =1+VLOOKUP($B12,$Z$11:$AU$15,3,FALSE)/100 -> 1.040895563 | E12: =1+VLOOKUP($B12,$Z$11:$AU$15,4,FALSE)/100 -> 1.014819547 | F12: =C12*(1+VLOOKUP($B12,$Z$11:$AU$15,5,FALSE)/100) -> 1.077666169 | G12: =D12*(1+VLOOKUP($B12,$Z$11:$AU$15,6,FALSE)/100) -> 1.077930422 | H12: =E12*(1+VLOOKUP($B12,$Z$11:$AU$15,7,FALSE)/100) -> 1.059094241 | I12: =F12*(1+VLOOKUP($B12,$Z$11:$AU$15,8,FALSE)/100) -> 1.110818589 | J12: =G12*(1+VLOOKUP($B12,$Z$11:$AU$15,9,FALSE)/100) -> 1.111377938 | K12: =H12*(1+VLOOKUP($B12,$Z$11:$AU$15,10,FALSE)/100) -> 1.108161232 | L12: =I12*(1+VLOOKUP($B12,$Z$11:$AU$15,11,FALSE)/100) -> 1.146510304 | M12: =J12*(1+VLOOKUP($B12,$Z$11:$AU$15,12,FALSE)/100) -> 1.147698686 | N12: =K12*(1+VLOOKUP($B12,$Z$11:$AU$15,13,FALSE)/100) -> 1.160352814 | O12: =L12*(1+VLOOKUP($B12,$Z$11:$AU$15,14,FALSE)/100) -> 1.18466872 | P12: =M12*(1+VLOOKUP($B12,$Z$11:$AU$15,15,FALSE)/100) -> 1.186631725 | Q12: =N12*(1+VLOOKUP($B12,$Z$11:$AU$15,16,FALSE)/100) -> 1.217033905 | R12: =O12*(1+VLOOKUP($B12,$Z$11:$AU$15,17,FALSE)/100) -> 1.225514019 | S12: =P12*(1+VLOOKUP($B12,$Z$11:$AU$15,18,FALSE)/100) -> 1.227952206 | T12: =Q12*(1+VLOOKUP($B12,$Z$11:$AU$15,19,FALSE)/100) -> 1.265891125 | U12: =R12*(1+VLOOKUP($B12,$Z$11:$AU$15,20,FALSE)/100) -> 1.267767591 | V12: =S12*(1+VLOOKUP($B12,$Z$11:$AU$15,21,FALSE)/100) -> 1.270711534 | W12: =T12*(1+VLOOKUP($B12,$Z$11:$AU$15,22,FALSE)/100) -> 1.316709694 | Z12: Riverside | AA12: 5.720337553 | AB12: 5.76431617 | AC12: 3.185599502 | AD12: 4.696486912 | AE12: 4.219481617 | AF12: 4.948659095 | AG12: 2.895090516 | AH12: 2.922038963 | AI12: 3.662781685 | AJ12: 3.008778936 | AK12: 3.043636151 | AL12: 3.790223242 | AM12: 3.257708179 | AN12: 3.296212051 | AO12: 4.332638441 | AP12: =AVERAGE(AA12,AD12,AG12,AJ12,AM12) -> 3.915680419 | AQ12: =AVERAGE(AB12,AE12,AH12,AK12,AN12) -> 3.849136991 | AR12: =AVERAGE(AC12,AF12,AI12,AL12,AO12) -> 3.983980393 | AS12: =AP12 -> 3.915680419 | AT12: =AQ12 -> 3.849136991 | AU12: =AR12 -> 3.983980393
A13: 065 | B13: Riverside | C13: 1.057203376 | D13: 1.057643162 | E13: 1.031855995 | F13: 1.106854794 | G13: 1.10227022 | H13: 1.082919031 | I13: 1.138899242 | J13: 1.134478986 | K13: 1.12258399 | L13: 1.173166202 | M13: 1.169008398 | N13: 1.16513243 | O13: 1.211384534 | P13: 1.207541394 | Q13: 1.215613405 | R13: 1.258818481 | S13: 1.254021317 | T13: 1.264043205 | U13: 1.308109789 | V13: 1.302290315 | W13: 1.314402439 | Z13: SD | AA13: 5.210015753 | AB13: 5.564489326 | AC13: 2.637795049 | AD13: 3.59831333 | AE13: 3.204357965 | AF13: 4.242021196 | AG13: 2.432742705 | AH13: 2.390506328 | AI13: 4.103459481 | AJ13: 2.580465602 | AK13: 2.570326679 | AL13: 4.092878817 | AM13: 2.835966109 | AN13: 2.829283481 | AO13: 4.392876877 | AP13: 3.3315007 | AQ13: 3.311792756 | AR13: 3.893806284 | AS13: 3.3315007 | AT13: 3.311792756 | AU13: 3.893806284
A14: 071 | B14: Riverside | C14: 1.057203376 | D14: 1.057643162 | E14: 1.031855995 | F14: 1.106854794 | G14: 1.10227022 | H14: 1.082919031 | I14: 1.138899242 | J14: 1.134478986 | K14: 1.12258399 | L14: 1.173166202 | M14: 1.169008398 | N14: 1.16513243 | O14: 1.211384534 | P14: 1.207541394 | Q14: 1.215613405 | R14: 1.258818481 | S14: 1.254021317 | T14: 1.264043205 | U14: 1.308109789 | V14: 1.302290315 | W14: 1.314402439 | Z14: SF | AA14: 3.242983867 | AB14: 4.074947212 | AC14: 0.881847657 | AD14: 2.947066411 | AE14: 3.089007175 | AF14: 2.650885892 | AG14: 3.095720431 | AH14: 3.030037968 | AI14: 3.947186974 | AJ14: 3.320581239 | AK14: 3.313942064 | AL14: 4.11200854 | AM14: 3.438737582 | AN14: 3.437038488 | AO14: 4.317922986 | AP14: 3.209017906 | AQ14: 3.388994581 | AR14: 3.18197041 | AS14: 3.209017906 | AT14: 3.388994581 | AU14: 3.18197041
A15: 073 | B15: SD | C15: 1.052100158 | D15: 1.055644893 | E15: 1.02637795 | F15: 1.089958018 | G15: 1.089471534 | H15: 1.069917121 | I15: 1.116473892 | J15: 1.11551542 | K15: 1.113820736 | L15: 1.145284117 | M15: 1.144187811 | N15: 1.159408069 | O15: 1.177763986 | P15: 1.176560128 | Q15: 1.210339438 | R15: 1.217001201 | S15: 1.215525361 | T15: 1.257467711 | U15: 1.257545605 | V15: 1.255781042 | W15: 1.306431068 | Y15: US Avg. | Z15: Other | AA15: 4.575198238 | AB15: 5.104022014 | AC15: 2.607444994 | AD15: 3.493755897 | AE15: 3.586785497 | AF15: 3.990432129 | AG15: 2.118160808 | AH15: 2.087398732 | AI15: 3.50615436 | AJ15: 2.179190856 | AK15: 2.166093648 | AL15: 3.380093958 | AM15: 2.236238393 | AN15: 2.224407026 | AO15: 3.392094073 | AP15: 2.920508838 | AQ15: 3.033741383 | AR15: 3.375243903 | AS15: 2.920508838 | AT15: 3.033741383 | AU15: 3.375243903
A16: 001 | B16: SF | C16: 1.032429839 | D16: 1.040749472 | E16: 1.008818477 | F16: 1.062856232 | G16: 1.072898298 | H16: 1.035561103 | I16: 1.095759289 | J16: 1.105407524 | K16: 1.076436636 | L16: 1.132144867 | M16: 1.142040089 | N16: 1.120699803 | O16: 1.171076358 | P16: 1.181292446 | Q16: 1.169090757 | R16: 1.208656408 | S16: 1.221326383 | T16: 1.206290879 | U16: 1.247442408 | V16: 1.262717068 | W16: 1.244674698
A17: 013 | B17: SF | C17: 1.032429839 | D17: 1.040749472 | E17: 1.008818477 | F17: 1.062856232 | G17: 1.072898298 | H17: 1.035561103 | I17: 1.095759289 | J17: 1.105407524 | K17: 1.076436636 | L17: 1.132144867 | M17: 1.142040089 | N17: 1.120699803 | O17: 1.171076358 | P17: 1.181292446 | Q17: 1.169090757 | R17: 1.208656408 | S17: 1.221326383 | T17: 1.206290879 | U17: 1.247442408 | V17: 1.262717068 | W17: 1.244674698
A18: 041 | B18: SF | C18: 1.032429839 | D18: 1.040749472 | E18: 1.008818477 | F18: 1.062856232 | G18: 1.072898298 | H18: 1.035561103 | I18: 1.095759289 | J18: 1.105407524 | K18: 1.076436636 | L18: 1.132144867 | M18: 1.142040089 | N18: 1.120699803 | O18: 1.171076358 | P18: 1.181292446 | Q18: 1.169090757 | R18: 1.208656408 | S18: 1.221326383 | T18: 1.206290879 | U18: 1.247442408 | V18: 1.262717068 | W18: 1.244674698
A19: 075 | B19: SF | C19: 1.032429839 | D19: 1.040749472 | E19: 1.008818477 | F19: 1.062856232 | G19: 1.072898298 | H19: 1.035561103 | I19: 1.095759289 | J19: 1.105407524 | K19: 1.076436636 | L19: 1.132144867 | M19: 1.142040089 | N19: 1.120699803 | O19: 1.171076358 | P19: 1.181292446 | Q19: 1.169090757 | R19: 1.208656408 | S19: 1.221326383 | T19: 1.206290879 | U19: 1.247442408 | V19: 1.262717068 | W19: 1.244674698
A20: 081 | B20: SF | C20: 1.032429839 | D20: 1.040749472 | E20: 1.008818477 | F20: 1.062856232 | G20: 1.072898298 | H20: 1.035561103 | I20: 1.095759289 | J20: 1.105407524 | K20: 1.076436636 | L20: 1.132144867 | M20: 1.142040089 | N20: 1.120699803 | O20: 1.171076358 | P20: 1.181292446 | Q20: 1.169090757 | R20: 1.208656408 | S20: 1.221326383 | T20: 1.206290879 | U20: 1.247442408 | V20: 1.262717068 | W20: 1.244674698
A21: Other | B21: Other | C21: 1.045751982 | D21: 1.05104022 | E21: 1.02607445 | F21: 1.082288004 | G21: 1.088738778 | H21: 1.067019254 | I21: 1.105212604 | J21: 1.111465098 | K21: 1.104430597 | L21: 1.129297296 | M21: 1.135540473 | N21: 1.141761388 | O21: 1.154551076 | P21: 1.160799515 | Q21: 1.180491009 | R21: 1.188269842 | S21: 1.19601517 | T21: 1.22033546 | U21: 1.222973368 | V21: 1.232299177 | W21: 1.261524758
A24: Effective Escalators (based on selected analysis year)
A25: County ID | B25: MSA | C25: CPI-U | D25: CPI-W | E25: Shelter Escalator
A26: 037 | B26: LA | C26: =IF(selected_forecast_year=2020,1,IF(selected_forecast_year=2021,C11,IF(selected_forecast_year=2022,F11,IF(selected_forecast_year=2023,I11,IF(selected_forecast_year=2024,L11,IF(selected_forecast_year=2025,O11,IF(selected_forecast_year=2026,R11,U11))))))) -> 1 | D26: =IF(selected_forecast_year=2020,1,IF(selected_forecast_year=2021,D11,IF(selected_forecast_year=2022,G11,IF(selected_forecast_year=2023,J11,IF(selected_forecast_year=2024,M11,IF(selected_forecast_year=2025,P11,IF(selected_forecast_year=2026,S11,V11))))))) -> 1 | E26: =IF(selected_forecast_year=2020,1,IF(selected_forecast_year=2021,E11,IF(selected_forecast_year=2022,H11,IF(selected_forecast_year=2023,K11,IF(selected_forecast_year=2024,N11,IF(selected_forecast_year=2025,Q11,IF(selected_forecast_year=2026,T11,W11))))))) -> 1
A27: 059 | B27: LA | C27: 1 | D27: 1 | E27: 1
A28: 065 | B28: Riverside | C28: 1 | D28: 1 | E28: 1
A29: 071 | B29: Riverside | C29: 1 | D29: 1 | E29: 1
A30: 073 | B30: SD | C30: 1 | D30: 1 | E30: 1
A31: 001 | B31: SF | C31: 1 | D31: 1 | E31: 1
A32: 013 | B32: SF | C32: 1 | D32: 1 | E32: 1
A33: 041 | B33: SF | C33: 1 | D33: 1 | E33: 1
A34: 075 | B34: SF | C34: 1 | D34: 1 | E34: 1
A35: 081 | B35: SF | C35: 1 | D35: 1 | E35: 1
A36: Other | B36: Other | C36: 1 | D36: 1 | E36: 1

Sheet Electric Input
D1: Basic Service | L1: All-Electric Service | T1: Weighted Average
A2: Electric Provider and Climate Zone | B2: Regulated | C2: Percentage of Customers on All-Electric Rate | D2: 2020 Essential Usage Bill ($/month) | E2: 2021 Essential Usage Bill ($/month) | F2: 2022 Essential Usage Bill ($/month) | G2: 2023 Essential Usage Bill ($/month) | H2: 2024 Essential Usage Bill ($/month) | I2: 2025 Essential Usage Bill ($/month) | J2: 2026 Essential Usage Bill ($/month) | K2: 2027 Essential Usage Bill ($/month) | L2: 2020 Essential Usage Bill ($/month) | M2: 2021 Essential Usage Bill ($/month) | N2: 2022 Essential Usage Bill ($/month) | O2: 2023 Essential Usage Bill ($/month) | P2: 2024 Essential Usage Bill ($/month) | Q2: 2025 Essential Usage Bill ($/month) | R2: 2026 Essential Usage Bill ($/month) | S2: 2027 Essential Usage Bill ($/month) | T2: 2020 Essential Usage Bill ($/month) | U2: 2021 Essential Usage Bill ($/month) | V2: 2022 Essential Usage Bill ($/month) | W2: 2023 Essential Usage Bill ($/month) | X2: 2024 Essential Usage Bill ($/month) | Y2: 2025 Essential Usage Bill ($/month) | Z2: 2026 Essential Usage Bill ($/month) | AA2: 2027 Essential Usage Bill ($/month)
A3: Aha Macav Power Service | C3: 0 | D3: 60.43433434 | E3: =D3*(1+('Scenario Input'!$AA$15/100)) -> 63.19932494 | F3: =E3*(1+('Scenario Input'!$AD$15/100)) -> 65.40735509 | G3: =F3*(1+('Scenario Input'!$AG$15/100)) -> 66.79278805 | H3: =G3*(1+('Scenario Input'!$AJ$15/100)) -> 68.24833038 | I3: =H3*(1+('Scenario Input'!$AM$15/100)) -> 69.77452574 | J3: =I3*(1+('Scenario Input'!$AP$15/100)) -> 71.81229694 | K3: =J3*(1+('Scenario Input'!$AS$15/100)) -> 73.90958141 | L3: 60.43433434 | M3: =L3*(1+('Scenario Input'!$AA$15/100)) -> 63.19932494 | N3: =M3*(1+('Scenario Input'!$AD$15/100)) -> 65.40735509 | O3: =N3*(1+('Scenario Input'!$AG$15/100)) -> 66.79278805 | P3: =O3*(1+('Scenario Input'!$AJ$15/100)) -> 68.24833038 | Q3: =P3*(1+('Scenario Input'!$AM$15/100)) -> 69.77452574 | R3: =Q3*(1+('Scenario Input'!$AP$15/100)) -> 71.81229694 | S3: =R3*(1+('Scenario Input'!$AS$15/100)) -> 73.90958141 | T3: =(D3*(1-$C3))+(L3*$C3) -> 60.43433434 | U3: =(E3*(1-$C3))+(M3*$C3) -> 63.19932494 | V3: 65.40735509 | W3: 66.79278805 | X3: 68.24833038 | Y3: 69.77452574 | Z3: 71.81229694 | AA3: 73.90958141
A4: Anza Electric Coop Inc | C4: 0 | D4: 76 | E4: =D4*(1+('Scenario Input'!$AA$15/100)) -> 79.47715066 | F4: =E4*(1+('Scenario Input'!$AD$15/100)) -> 82.2538883 | G4: =F4*(1+('Scenario Input'!$AG$15/100)) -> 83.99615792 | H4: =G4*(1+('Scenario Input'!$AJ$15/100)) -> 85.82659452 | I4: =H4*(1+('Scenario Input'!$AM$15/100)) -> 87.74588177 | J4: =I4*(1+('Scenario Input'!$AP$15/100)) -> 90.30850801 | K4: =J4*(1+('Scenario Input'!$AS$15/100)) -> 92.94597597 | L4: 76 | M4: =L4*(1+('Scenario Input'!$AA$15/100)) -> 79.47715066 | N4: =M4*(1+('Scenario Input'!$AD$15/100)) -> 82.2538883 | O4: =N4*(1+('Scenario Input'!$AG$15/100)) -> 83.99615792 | P4: =O4*(1+('Scenario Input'!$AJ$15/100)) -> 85.82659452 | Q4: =P4*(1+('Scenario Input'!$AM$15/100)) -> 87.74588177 | R4: =Q4*(1+('Scenario Input'!$AP$15/100)) -> 90.30850801 | S4: =R4*(1+('Scenario Input'!$AS$15/100)) -> 92.94597597 | T4: =(D4*(1-$C4))+(L4*$C4) -> 76 | U4: =(E4*(1-$C4))+(M4*$C4) -> 79.47715066 | V4: =(F4*(1-$C4))+(N4*$C4) -> 82.2538883 | W4: =(G4*(1-$C4))+(O4*$C4) -> 83.99615792 | X4: =(H4*(1-$C4))+(P4*$C4) -> 85.82659452 | Y4: =(I4*(1-$C4))+(Q4*$C4) -> 87.74588177 | Z4: =(J4*(1-$C4))+(R4*$C4) -> 90.30850801 | AA4: =(K4*(1-$C4))+(S4*$C4) -> 92.94597597
A5: BVES 16 | B5: X | C5: 0.0006070416835 | D5: 44.98 | E5: =D5*(1+('Scenario Input'!$AA$15/100)) -> 47.03792417 | F5: =E5*(1+('Scenario Input'!$AD$15/100)) -> 48.68131442 | G5: =F5*(1+('Scenario Input'!$AG$15/100)) -> 49.71246294 | H5: =G5*(1+('Scenario Input'!$AJ$15/100)) -> 50.79579239 | I5: =H5*(1+('Scenario Input'!$AM$15/100)) -> 51.9317074 | J5: =I5*(1+('Scenario Input'!$AP$15/100)) -> 53.4483775 | K5: =J5*(1+('Scenario Input'!$AS$15/100)) -> 55.00934209 | L5: 79.10814595 | M5: =L5*(1+('Scenario Input'!$AA$15/100)) -> 82.72750045 | N5: =M5*(1+('Scenario Input'!$AD$15/100)) -> 85.61779737 | O5: =N5*(1+('Scenario Input'!$AG$15/100)) -> 87.43132 | P5: =O5*(1+('Scenario Input'!$AJ$15/100)) -> 89.33661533 | Q5: =P5*(1+('Scenario Input'!$AM$15/100)) -> 91.33439502 | R5: =Q5*(1+('Scenario Input'!$AP$15/100)) -> 94.0018241 | S5: =R5*(1+('Scenario Input'!$AS$15/100)) -> 96.74715568 | T5: 45.00071721 | U5: 47.05958923 | V5: 48.7037364 | W5: 49.73535986 | X5: 50.81918827 | Y5: 51.95562647 | Z5: 53.47299513 | AA5: 55.03467868
A6: City & County of San Francisco | C6: 0 | D6: 43.5439 | E6: =D6*(1+('Scenario Input'!$AA$15/100)) -> 45.53611975 | F6: =E6*(1+('Scenario Input'!$AD$15/100)) -> 47.12704061 | G6: =F6*(1+('Scenario Input'!$AG$15/100)) -> 48.12526712 | H6: =G6*(1+('Scenario Input'!$AJ$15/100)) -> 49.17400854 | I6: =H6*(1+('Scenario Input'!$AM$15/100)) -> 50.2736566 | J6: =I6*(1+('Scenario Input'!$AP$15/100)) -> 51.74190318 | K6: =J6*(1+('Scenario Input'!$AS$15/100)) -> 53.25303004 | L6: 43.5439 | M6: =L6*(1+('Scenario Input'!$AA$15/100)) -> 45.53611975 | N6: =M6*(1+('Scenario Input'!$AD$15/100)) -> 47.12704061 | O6: =N6*(1+('Scenario Input'!$AG$15/100)) -> 48.12526712 | P6: =O6*(1+('Scenario Input'!$AJ$15/100)) -> 49.17400854 | Q6: =P6*(1+('Scenario Input'!$AM$15/100)) -> 50.2736566 | R6: =Q6*(1+('Scenario Input'!$AP$15/100)) -> 51.74190318 | S6: =R6*(1+('Scenario Input'!$AS$15/100)) -> 53.25303004 | T6: 43.5439 | U6: 45.53611975 | V6: 47.12704061 | W6: 48.12526712 | X6: 49.17400854 | Y6: 50.2736566 | Z6: 51.74190318 | AA6: 53.25303004
A7: City of Alameda | C7: 0 | D7: 49.07865 | E7: =D7*(1+('Scenario Input'!$AA$15/100)) -> 51.32409553 | F7: =E7*(1+('Scenario Input'!$AD$15/100)) -> 53.11723414 | G7: =F7*(1+('Scenario Input'!$AG$15/100)) -> 54.24234258 | H7: =G7*(1+('Scenario Input'!$AJ$15/100)) -> 55.42438675 | I7: =H7*(1+('Scenario Input'!$AM$15/100)) -> 56.66380817 | J7: =I7*(1+('Scenario Input'!$AP$15/100)) -> 58.31867969 | K7: =J7*(1+('Scenario Input'!$AS$15/100)) -> 60.02188189 | L7: 49.07865 | M7: =L7*(1+('Scenario Input'!$AA$15/100)) -> 51.32409553 | N7: =M7*(1+('Scenario Input'!$AD$15/100)) -> 53.11723414 | O7: =N7*(1+('Scenario Input'!$AG$15/100)) -> 54.24234258 | P7: =O7*(1+('Scenario Input'!$AJ$15/100)) -> 55.42438675 | Q7: =P7*(1+('Scenario Input'!$AM$15/100)) -> 56.66380817 | R7: =Q7*(1+('Scenario Input'!$AP$15/100)) -> 58.31867969 | S7: =R7*(1+('Scenario Input'!$AS$15/100)) -> 60.02188189 | T7: 49.07865 | U7: 51.32409553 | V7: 53.11723414 | W7: 54.24234258 | X7: 55.42438675 | Y7: 56.66380817 | Z7: 58.31867969 | AA7: 60.02188189
A8: City of Anaheim - (CA) | C8: 0 | D8: 41.504 | E8: =D8*(1+('Scenario Input'!$AA$15/100)) -> 43.40289028 | F8: =E8*(1+('Scenario Input'!$AD$15/100)) -> 44.91928132 | G8: =F8*(1+('Scenario Input'!$AG$15/100)) -> 45.87074393 | H8: =G8*(1+('Scenario Input'!$AJ$15/100)) -> 46.87035498 | I8: =H8*(1+('Scenario Input'!$AM$15/100)) -> 47.91848786 | J8: =I8*(1+('Scenario Input'!$AP$15/100)) -> 49.31795153 | K8: =J8*(1+('Scenario Input'!$AS$15/100)) -> 50.75828666 | L8: 41.504 | M8: =L8*(1+('Scenario Input'!$AA$15/100)) -> 43.40289028 | N8: =M8*(1+('Scenario Input'!$AD$15/100)) -> 44.91928132 | O8: =N8*(1+('Scenario Input'!$AG$15/100)) -> 45.87074393 | P8: =O8*(1+('Scenario Input'!$AJ$15/100)) -> 46.87035498 | Q8: =P8*(1+('Scenario Input'!$AM$15/100)) -> 47.91848786 | R8: =Q8*(1+('Scenario Input'!$AP$15/100)) -> 49.31795153 | S8: =R8*(1+('Scenario Input'!$AS$15/100)) -> 50.75828666 | T8: 41.504 | U8: 43.40289028 | V8: 44.91928132 | W8: 45.87074393 | X8: 46.87035498 | Y8: 47.91848786 | Z8: 49.31795153 | AA8: 50.75828666
A9: City of Azusa | C9: 0 | D9: 33.075 | E9: =D9*(1+('Scenario Input'!$AA$15/100)) -> 34.58824682 | F9: =E9*(1+('Scenario Input'!$AD$15/100)) -> 35.79667573 | G9: =F9*(1+('Scenario Input'!$AG$15/100)) -> 36.55490689 | H9: =G9*(1+('Scenario Input'!$AJ$15/100)) -> 37.35150807 | I9: =H9*(1+('Scenario Input'!$AM$15/100)) -> 38.18677684 | J9: =I9*(1+('Scenario Input'!$AP$15/100)) -> 39.30202503 | K9: =J9*(1+('Scenario Input'!$AS$15/100)) -> 40.44984415 | L9: 33.075 | M9: =L9*(1+('Scenario Input'!$AA$15/100)) -> 34.58824682 | N9: =M9*(1+('Scenario Input'!$AD$15/100)) -> 35.79667573 | O9: =N9*(1+('Scenario Input'!$AG$15/100)) -> 36.55490689 | P9: =O9*(1+('Scenario Input'!$AJ$15/100)) -> 37.35150807 | Q9: =P9*(1+('Scenario Input'!$AM$15/100)) -> 38.18677684 | R9: =Q9*(1+('Scenario Input'!$AP$15/100)) -> 39.30202503 | S9: =R9*(1+('Scenario Input'!$AS$15/100)) -> 40.44984415 | T9: 33.075 | U9: 34.58824682 | V9: 35.79667573 | W9: 36.55490689 | X9: 37.35150807 | Y9: 38.18677684 | Z9: 39.30202503 | AA9: 40.44984415
A10: City of Banning - (CA) | C10: 0 | D10: 119.11197 | E10: =D10*(1+('Scenario Input'!$AA$15/100)) -> 124.5615788 | F10: =E10*(1+('Scenario Input'!$AD$15/100)) -> 128.9134563 | G10: =F10*(1+('Scenario Input'!$AG$15/100)) -> 131.6440506 | H10: =G10*(1+('Scenario Input'!$AJ$15/100)) -> 134.5128257 | I10: =H10*(1+('Scenario Input'!$AM$15/100)) -> 137.5208531 | J10: =I10*(1+('Scenario Input'!$AP$15/100)) -> 141.5371618 | K10: =J10*(1+('Scenario Input'!$AS$15/100)) -> 145.6707671 | L10: 119.11197 | M10: =L10*(1+('Scenario Input'!$AA$15/100)) -> 124.5615788 | N10: =M10*(1+('Scenario Input'!$AD$15/100)) -> 128.9134563 | O10: =N10*(1+('Scenario Input'!$AG$15/100)) -> 131.6440506 | P10: =O10*(1+('Scenario Input'!$AJ$15/100)) -> 134.5128257 | Q10: =P10*(1+('Scenario Input'!$AM$15/100)) -> 137.5208531 | R10: =Q10*(1+('Scenario Input'!$AP$15/100)) -> 141.5371618 | S10: =R10*(1+('Scenario Input'!$AS$15/100)) -> 145.6707671 | T10: 119.11197 | U10: 124.5615788 | V10: 128.9134563 | W10: 131.6440506 | X10: 134.5128257 | Y10: 137.5208531 | Z10: 141.5371618 | AA10: 145.6707671
A11: City of Biggs | C11: 0 | D11: 67.57 | E11: =D11*(1+('Scenario Input'!$AA$15/100)) -> 70.66146145 | F11: =E11*(1+('Scenario Input'!$AD$15/100)) -> 73.13020043 | G11: =F11*(1+('Scenario Input'!$AG$15/100)) -> 74.67921567 | H11: =G11*(1+('Scenario Input'!$AJ$15/100)) -> 76.30661831 | I11: =H11*(1+('Scenario Input'!$AM$15/100)) -> 78.0130162 | J11: =I11*(1+('Scenario Input'!$AP$15/100)) -> 80.29139324 | K11: =J11*(1+('Scenario Input'!$AS$15/100)) -> 82.63631047 | L11: 67.57 | M11: =L11*(1+('Scenario Input'!$AA$15/100)) -> 70.66146145 | N11: =M11*(1+('Scenario Input'!$AD$15/100)) -> 73.13020043 | O11: =N11*(1+('Scenario Input'!$AG$15/100)) -> 74.67921567 | P11: =O11*(1+('Scenario Input'!$AJ$15/100)) -> 76.30661831 | Q11: =P11*(1+('Scenario Input'!$AM$15/100)) -> 78.0130162 | R11: =Q11*(1+('Scenario Input'!$AP$15/100)) -> 80.29139324 | S11: =R11*(1+('Scenario Input'!$AS$15/100)) -> 82.63631047 | T11: 67.57 | U11: 70.66146145 | V11: 73.13020043 | W11: 74.67921567 | X11: 76.30661831 | Y11: 78.0130162 | Z11: 80.29139324 | AA11: 82.63631047
A12: City of Burbank Water and Power | C12: 0 | D12: 45.65 | E12: =D12*(1+('Scenario Input'!$AA$15/100)) -> 47.738578 | F12: =E12*(1+('Scenario Input'!$AD$15/100)) -> 49.40644738 | G12: =F12*(1+('Scenario Input'!$AG$15/100)) -> 50.45295538 | H12: =G12*(1+('Scenario Input'!$AJ$15/100)) -> 51.55242157 | I12: =H12*(1+('Scenario Input'!$AM$15/100)) -> 52.70525662 | J12: =I12*(1+('Scenario Input'!$AP$15/100)) -> 54.2445183 | K12: =J12*(1+('Scenario Input'!$AS$15/100)) -> 55.82873425 | L12: 45.65 | M12: =L12*(1+('Scenario Input'!$AA$15/100)) -> 47.738578 | N12: =M12*(1+('Scenario Input'!$AD$15/100)) -> 49.40644738 | O12: =N12*(1+('Scenario Input'!$AG$15/100)) -> 50.45295538 | P12: =O12*(1+('Scenario Input'!$AJ$15/100)) -> 51.55242157 | Q12: =P12*(1+('Scenario Input'!$AM$15/100)) -> 52.70525662 | R12: =Q12*(1+('Scenario Input'!$AP$15/100)) -> 54.2445183 | S12: =R12*(1+('Scenario Input'!$AS$15/100)) -> 55.82873425 | T12: 45.65 | U12: 47.738578 | V12: 49.40644738 | W12: 50.45295538 | X12: 51.55242157 | Y12: 52.70525662 | Z12: 54.2445183 | AA12: 55.82873425
A13: City of Colton - (CA) | C13: 0 | D13: 23.075 | E13: =D13*(1+('Scenario Input'!$AA$15/100)) -> 24.13072699 | F13: =E13*(1+('Scenario Input'!$AD$15/100)) -> 24.97379569 | G13: =F13*(1+('Scenario Input'!$AG$15/100)) -> 25.50278084 | H13: =G13*(1+('Scenario Input'!$AJ$15/100)) -> 26.05853511 | I13: =H13*(1+('Scenario Input'!$AM$15/100)) -> 26.64126608 | J13: =I13*(1+('Scenario Input'!$AP$15/100)) -> 27.41932661 | K13: =J13*(1+('Scenario Input'!$AS$15/100)) -> 28.22011047 | L13: 23.075 | M13: =L13*(1+('Scenario Input'!$AA$15/100)) -> 24.13072699 | N13: =M13*(1+('Scenario Input'!$AD$15/100)) -> 24.97379569 | O13: =N13*(1+('Scenario Input'!$AG$15/100)) -> 25.50278084 | P13: =O13*(1+('Scenario Input'!$AJ$15/100)) -> 26.05853511 | Q13: =P13*(1+('Scenario Input'!$AM$15/100)) -> 26.64126608 | R13: =Q13*(1+('Scenario Input'!$AP$15/100)) -> 27.41932661 | S13: =R13*(1+('Scenario Input'!$AS$15/100)) -> 28.22011047 | T13: 23.075 | U13: 24.13072699 | V13: 24.97379569 | W13: 25.50278084 | X13: 26.05853511 | Y13: 26.64126608 | Z13: 27.41932661 | AA13: 28.22011047
A14: City of Corona - (CA) | C14: 0 | D14: 47.34054 | E14: =D14*(1+('Scenario Input'!$AA$15/100)) -> 49.50646355 | F14: =E14*(1+('Scenario Input'!$AD$15/100)) -> 51.23609854 | G14: =F14*(1+('Scenario Input'!$AG$15/100)) -> 52.3213615 | H14: =G14*(1+('Scenario Input'!$AJ$15/100)) -> 53.46154383 | I14: =H14*(1+('Scenario Input'!$AM$15/100)) -> 54.65707139 | J14: =I14*(1+('Scenario Input'!$AP$15/100)) -> 56.253336 | K14: =J14*(1+('Scenario Input'!$AS$15/100)) -> 57.89621965 | L14: 47.34054 | M14: =L14*(1+('Scenario Input'!$AA$15/100)) -> 49.50646355 | N14: =M14*(1+('Scenario Input'!$AD$15/100)) -> 51.23609854 | O14: =N14*(1+('Scenario Input'!$AG$15/100)) -> 52.3213615 | P14: =O14*(1+('Scenario Input'!$AJ$15/100)) -> 53.46154383 | Q14: =P14*(1+('Scenario Input'!$AM$15/100)) -> 54.65707139 | R14: =Q14*(1+('Scenario Input'!$AP$15/100)) -> 56.253336 | S14: =R14*(1+('Scenario Input'!$AS$15/100)) -> 57.89621965 | T14: 47.34054 | U14: 49.50646355 | V14: 51.23609854 | W14: 52.3213615 | X14: 53.46154383 | Y14: 54.65707139 | Z14: 56.253336 | AA14: 57.89621965
A15: City of Glendale - (CA) | C15: 0 | D15: 57.3369 | E15: =D15*(1+('Scenario Input'!$AA$15/100)) -> 59.96017684 | F15: =E15*(1+('Scenario Input'!$AD$15/100)) -> 62.05503905 | G15: =F15*(1+('Scenario Input'!$AG$15/100)) -> 63.36946457 | H15: =G15*(1+('Scenario Input'!$AJ$15/100)) -> 64.75040615 | I15: =H15*(1+('Scenario Input'!$AM$15/100)) -> 66.19837959 | J15: =I15*(1+('Scenario Input'!$AP$15/100)) -> 68.13170912 | K15: =J15*(1+('Scenario Input'!$AS$15/100)) -> 70.1215017 | L15: 57.3369 | M15: =L15*(1+('Scenario Input'!$AA$15/100)) -> 59.96017684 | N15: =M15*(1+('Scenario Input'!$AD$15/100)) -> 62.05503905 | O15: =N15*(1+('Scenario Input'!$AG$15/100)) -> 63.36946457 | P15: =O15*(1+('Scenario Input'!$AJ$15/100)) -> 64.75040615 | Q15: =P15*(1+('Scenario Input'!$AM$15/100)) -> 66.19837959 | R15: =Q15*(1+('Scenario Input'!$AP$15/100)) -> 68.13170912 | S15: =R15*(1+('Scenario Input'!$AS$15/100)) -> 70.1215017 | T15: 57.3369 | U15: 59.96017684 | V15: 62.05503905 | W15: 63.36946457 | X15: 64.75040615 | Y15: 66.19837959 | Z15: 68.13170912 | AA15: 70.1215017
A16: City of Gridley | C16: 0 | D16: 94.143075 | E16: =D16*(1+('Scenario Input'!$AA$15/100)) -> 98.45030731 | F16: =E16*(1+('Scenario Input'!$AD$15/100)) -> 101.8899207 | G16: =F16*(1+('Scenario Input'!$AG$15/100)) -> 104.0481131 | H16: =G16*(1+('Scenario Input'!$AJ$15/100)) -> 106.3155201 | I16: =H16*(1+('Scenario Input'!$AM$15/100)) -> 108.6929885 | J16: =I16*(1+('Scenario Input'!$AP$15/100)) -> 111.8673769 | K16: =J16*(1+('Scenario Input'!$AS$15/100)) -> 115.1344735 | L16: 94.143075 | M16: =L16*(1+('Scenario Input'!$AA$15/100)) -> 98.45030731 | N16: =M16*(1+('Scenario Input'!$AD$15/100)) -> 101.8899207 | O16: =N16*(1+('Scenario Input'!$AG$15/100)) -> 104.0481131 | P16: =O16*(1+('Scenario Input'!$AJ$15/100)) -> 106.3155201 | Q16: =P16*(1+('Scenario Input'!$AM$15/100)) -> 108.6929885 | R16: =Q16*(1+('Scenario Input'!$AP$15/100)) -> 111.8673769 | S16: =R16*(1+('Scenario Input'!$AS$15/100)) -> 115.1344735 | T16: 94.143075 | U16: 98.45030731 | V16: 101.8899207 | W16: 104.0481131 | X16: 106.3155201 | Y16: 108.6929885 | Z16: 111.8673769 | AA16: 115.1344735
A17: City of Healdsburg - (CA) | C17: 0 | D17: 49.8184 | E17: =D17*(1+('Scenario Input'!$AA$15/100)) -> 52.09769056 | F17: =E17*(1+('Scenario Input'!$AD$15/100)) -> 53.9178567 | G17: =F17*(1+('Scenario Input'!$AG$15/100)) -> 55.0599236 | H17: =G17*(1+('Scenario Input'!$AJ$15/100)) -> 56.25978442 | I17: =H17*(1+('Scenario Input'!$AM$15/100)) -> 57.51788732 | J17: =I17*(1+('Scenario Input'!$AP$15/100)) -> 59.19770231 | K17: =J17*(1+('Scenario Input'!$AS$15/100)) -> 60.92657643 | L17: 49.8184 | M17: =L17*(1+('Scenario Input'!$AA$15/100)) -> 52.09769056 | N17: =M17*(1+('Scenario Input'!$AD$15/100)) -> 53.9178567 | O17: =N17*(1+('Scenario Input'!$AG$15/100)) -> 55.0599236 | P17: =O17*(1+('Scenario Input'!$AJ$15/100)) -> 56.25978442 | Q17: =P17*(1+('Scenario Input'!$AM$15/100)) -> 57.51788732 | R17: =Q17*(1+('Scenario Input'!$AP$15/100)) -> 59.19770231 | S17: =R17*(1+('Scenario Input'!$AS$15/100)) -> 60.92657643 | T17: 49.8184 | U17: 52.09769056 | V17: 53.9178567 | W17: 55.0599236 | X17: 56.25978442 | Y17: 57.51788732 | Z17: 59.19770231 | AA17: 60.92657643
A18: City of Industry | C18: 0 | D18: 39.4424 | E18: =D18*(1+('Scenario Input'!$AA$15/100)) -> 41.24696799 | F18: =E18*(1+('Scenario Input'!$AD$15/100)) -> 42.68803637 | G18: =F18*(1+('Scenario Input'!$AG$15/100)) -> 43.59223762 | H18: =G18*(1+('Scenario Input'!$AJ$15/100)) -> 44.54219568 | I18: =H18*(1+('Scenario Input'!$AM$15/100)) -> 45.53826536 | J18: =I18*(1+('Scenario Input'!$AP$15/100)) -> 46.86821442 | K18: =J18*(1+('Scenario Input'!$AS$15/100)) -> 48.23700477 | L18: 39.4424 | M18: =L18*(1+('Scenario Input'!$AA$15/100)) -> 41.24696799 | N18: =M18*(1+('Scenario Input'!$AD$15/100)) -> 42.68803637 | O18: =N18*(1+('Scenario Input'!$AG$15/100)) -> 43.59223762 | P18: =O18*(1+('Scenario Input'!$AJ$15/100)) -> 44.54219568 | Q18: =P18*(1+('Scenario Input'!$AM$15/100)) -> 45.53826536 | R18: =Q18*(1+('Scenario Input'!$AP$15/100)) -> 46.86821442 | S18: =R18*(1+('Scenario Input'!$AS$15/100)) -> 48.23700477 | T18: 39.4424 | U18: 41.24696799 | V18: 42.68803637 | W18: 43.59223762 | X18: 44.54219568 | Y18: 45.53826536 | Z18: 46.86821442 | AA18: 48.23700477
A19: City of Lodi - (CA) | C19: 0 | D19: 72.4608 | E19: =D19*(1+('Scenario Input'!$AA$15/100)) -> 75.77602525 | F19: =E19*(1+('Scenario Input'!$AD$15/100)) -> 78.4234546 | G19: =F19*(1+('Scenario Input'!$AG$15/100)) -> 80.08458947 | H19: =G19*(1+('Scenario Input'!$AJ$15/100)) -> 81.82978553 | I19: =H19*(1+('Scenario Input'!$AM$15/100)) -> 83.65969461 | J19: =I19*(1+('Scenario Input'!$AP$15/100)) -> 86.10298338 | K19: =J19*(1+('Scenario Input'!$AS$15/100)) -> 88.61762862 | L19: 72.4608 | M19: =L19*(1+('Scenario Input'!$AA$15/100)) -> 75.77602525 | N19: =M19*(1+('Scenario Input'!$AD$15/100)) -> 78.4234546 | O19: =N19*(1+('Scenario Input'!$AG$15/100)) -> 80.08458947 | P19: =O19*(1+('Scenario Input'!$AJ$15/100)) -> 81.82978553 | Q19: =P19*(1+('Scenario Input'!$AM$15/100)) -> 83.65969461 | R19: =Q19*(1+('Scenario Input'!$AP$15/100)) -> 86.10298338 | S19: =R19*(1+('Scenario Input'!$AS$15/100)) -> 88.61762862 | T19: 72.4608 | U19: 75.77602525 | V19: 78.4234546 | W19: 80.08458947 | X19: 81.82978553 | Y19: 83.65969461 | Z19: 86.10298338 | AA19: 88.61762862
A20: City of Lompoc - (CA) | C20: 0 | D20: 52.6225 | E20: =D20*(1+('Scenario Input'!$AA$15/100)) -> 55.03008369 | F20: =E20*(1+('Scenario Input'!$AD$15/100)) -> 56.95270049 | G20: =F20*(1+('Scenario Input'!$AG$15/100)) -> 58.15905027 | H20: =G20*(1+('Scenario Input'!$AJ$15/100)) -> 59.42644697 | I20: =H20*(1+('Scenario Input'!$AM$15/100)) -> 60.755364 | J20: =I20*(1+('Scenario Input'!$AP$15/100)) -> 62.52972977 | K20: =J20*(1+('Scenario Input'!$AS$15/100)) -> 64.35591606 | L20: 52.6225 | M20: =L20*(1+('Scenario Input'!$AA$15/100)) -> 55.03008369 | N20: =M20*(1+('Scenario Input'!$AD$15/100)) -> 56.95270049 | O20: =N20*(1+('Scenario Input'!$AG$15/100)) -> 58.15905027 | P20: =O20*(1+('Scenario Input'!$AJ$15/100)) -> 59.42644697 | Q20: =P20*(1+('Scenario Input'!$AM$15/100)) -> 60.755364 | R20: =Q20*(1+('Scenario Input'!$AP$15/100)) -> 62.52972977 | S20: =R20*(1+('Scenario Input'!$AS$15/100)) -> 64.35591606 | T20: 52.6225 | U20: 55.03008369 | V20: 56.95270049 | W20: 58.15905027 | X20: 59.42644697 | Y20: 60.755364 | Z20: 62.52972977 | AA20: 64.35591606
A21: City of Moreno Valley - (CA) | C21: 0 | D21: 84.08468 | E21: =D21*(1+('Scenario Input'!$AA$15/100)) -> 87.9317208 | F21: =E21*(1+('Scenario Input'!$AD$15/100)) -> 91.00384048 | G21: =F21*(1+('Scenario Input'!$AG$15/100)) -> 92.93144816 | H21: =G21*(1+('Scenario Input'!$AJ$15/100)) -> 94.95660178 | I21: =H21*(1+('Scenario Input'!$AM$15/100)) -> 97.08005777 | J21: =I21*(1+('Scenario Input'!$AP$15/100)) -> 99.91528943 | K21: =J21*(1+('Scenario Input'!$AS$15/100)) -> 102.8333243 | L21: 84.08468 | M21: =L21*(1+('Scenario Input'!$AA$15/100)) -> 87.9317208 | N21: =M21*(1+('Scenario Input'!$AD$15/100)) -> 91.00384048 | O21: =N21*(1+('Scenario Input'!$AG$15/100)) -> 92.93144816 | P21: =O21*(1+('Scenario Input'!$AJ$15/100)) -> 94.95660178 | Q21: =P21*(1+('Scenario Input'!$AM$15/100)) -> 97.08005777 | R21: =Q21*(1+('Scenario Input'!$AP$15/100)) -> 99.91528943 | S21: =R21*(1+('Scenario Input'!$AS$15/100)) -> 102.8333243 | T21: 84.08468 | U21: 87.9317208 | V21: 91.00384048 | W21: 92.93144816 | X21: 94.95660178 | Y21: 97.08005777 | Z21: 99.91528943 | AA21: 102.8333243
A22: City of Needles | C22: 0 | D22: 72.56407747 | E22: =D22*(1+('Scenario Input'!$AA$15/100)) -> 75.88402786 | F22: =E22*(1+('Scenario Input'!$AD$15/100)) -> 78.53523056 | G22: =F22*(1+('Scenario Input'!$AG$15/100)) -> 80.19873304 | H22: =G22*(1+('Scenario Input'!$AJ$15/100)) -> 81.94641649 | I22: =H22*(1+('Scenario Input'!$AM$15/100)) -> 83.77893372 | J22: =I22*(1+('Scenario Input'!$AP$15/100)) -> 86.22570488 | K22: =J22*(1+('Scenario Input'!$AS$15/100)) -> 88.74393422 | L22: 72.56407747 | M22: =L22*(1+('Scenario Input'!$AA$15/100)) -> 75.88402786 | N22: =M22*(1+('Scenario Input'!$AD$15/100)) -> 78.53523056 | O22: =N22*(1+('Scenario Input'!$AG$15/100)) -> 80.19873304 | P22: =O22*(1+('Scenario Input'!$AJ$15/100)) -> 81.94641649 | Q22: =P22*(1+('Scenario Input'!$AM$15/100)) -> 83.77893372 | R22: =Q22*(1+('Scenario Input'!$AP$15/100)) -> 86.22570488 | S22: =R22*(1+('Scenario Input'!$AS$15/100)) -> 88.74393422 | T22: 72.56407747 | U22: 75.88402786 | V22: 78.53523056 | W22: 80.19873304 | X22: 81.94641649 | Y22: 83.77893372 | Z22: 86.22570488 | AA22: 88.74393422
A23: City of Palo Alto - (CA) | C23: 0 | D23: 56.03096 | E23: =D23*(1+('Scenario Input'!$AA$15/100)) -> 58.59448749 | F23: =E23*(1+('Scenario Input'!$AD$15/100)) -> 60.64163586 | G23: =F23*(1+('Scenario Input'!$AG$15/100)) -> 61.92612322 | H23: =G23*(1+('Scenario Input'!$AJ$15/100)) -> 63.27561164 | I23: =H23*(1+('Scenario Input'!$AM$15/100)) -> 64.69060516 | J23: =I23*(1+('Scenario Input'!$AP$15/100)) -> 66.5799 | K23: =J23*(1+('Scenario Input'!$AS$15/100)) -> 68.52437186 | L23: 56.03096 | M23: =L23*(1+('Scenario Input'!$AA$15/100)) -> 58.59448749 | N23: =M23*(1+('Scenario Input'!$AD$15/100)) -> 60.64163586 | O23: =N23*(1+('Scenario Input'!$AG$15/100)) -> 61.92612322 | P23: =O23*(1+('Scenario Input'!$AJ$15/100)) -> 63.27561164 | Q23: =P23*(1+('Scenario Input'!$AM$15/100)) -> 64.69060516 | R23: =Q23*(1+('Scenario Input'!$AP$15/100)) -> 66.5799 | S23: =R23*(1+('Scenario Input'!$AS$15/100)) -> 68.52437186 | T23: 56.03096 | U23: 58.59448749 | V23: 60.64163586 | W23: 61.92612322 | X23: 63.27561164 | Y23: 64.69060516 | Z23: 66.5799 | AA23: 68.52437186
A24: City of Pasadena - (CA) | C24: 0 | D24: 57.77 | E24: =D24*(1+('Scenario Input'!$AA$15/100)) -> 60.41309202 | F24: =E24*(1+('Scenario Input'!$AD$15/100)) -> 62.52377799 | G24: =F24*(1+('Scenario Input'!$AG$15/100)) -> 63.84813215 | H24: =G24*(1+('Scenario Input'!$AJ$15/100)) -> 65.23950481 | I24: =H24*(1+('Scenario Input'!$AM$15/100)) -> 66.69841566 | J24: =I24*(1+('Scenario Input'!$AP$15/100)) -> 68.64634878 | K24: =J24*(1+('Scenario Input'!$AS$15/100)) -> 70.65117147 | L24: 57.77 | M24: =L24*(1+('Scenario Input'!$AA$15/100)) -> 60.41309202 | N24: =M24*(1+('Scenario Input'!$AD$15/100)) -> 62.52377799 | O24: =N24*(1+('Scenario Input'!$AG$15/100)) -> 63.84813215 | P24: =O24*(1+('Scenario Input'!$AJ$15/100)) -> 65.23950481 | Q24: =P24*(1+('Scenario Input'!$AM$15/100)) -> 66.69841566 | R24: =Q24*(1+('Scenario Input'!$AP$15/100)) -> 68.64634878 | S24: =R24*(1+('Scenario Input'!$AS$15/100)) -> 70.65117147 | T24: 57.77 | U24: 60.41309202 | V24: 62.52377799 | W24: 63.84813215 | X24: 65.23950481 | Y24: 66.69841566 | Z24: 68.64634878 | AA24: 70.65117147
A25: City of Rancho Cucamonga | C25: 0 | D25: 55.76500074 | E25: =D25*(1+('Scenario Input'!$AA$15/100)) -> 58.31636007 | F25: =E25*(1+('Scenario Input'!$AD$15/100)) -> 60.35379133 | G25: =F25*(1+('Scenario Input'!$AG$15/100)) -> 61.63218169 | H25: =G25*(1+('Scenario Input'!$AJ$15/100)) -> 62.97526456 | I25: =H25*(1+('Scenario Input'!$AM$15/100)) -> 64.3835416 | J25: =I25*(1+('Scenario Input'!$AP$15/100)) -> 66.26386862 | K25: =J25*(1+('Scenario Input'!$AS$15/100)) -> 68.19911076 | L25: 55.76500074 | M25: =L25*(1+('Scenario Input'!$AA$15/100)) -> 58.31636007 | N25: =M25*(1+('Scenario Input'!$AD$15/100)) -> 60.35379133 | O25: =N25*(1+('Scenario Input'!$AG$15/100)) -> 61.63218169 | P25: =O25*(1+('Scenario Input'!$AJ$15/100)) -> 62.97526456 | Q25: =P25*(1+('Scenario Input'!$AM$15/100)) -> 64.3835416 | R25: =Q25*(1+('Scenario Input'!$AP$15/100)) -> 66.26386862 | S25: =R25*(1+('Scenario Input'!$AS$15/100)) -> 68.19911076 | T25: 55.76500074 | U25: 58.31636007 | V25: 60.35379133 | W25: 61.63218169 | X25: 62.97526456 | Y25: 64.3835416 | Z25: 66.26386862 | AA25: 68.19911076
A26: City of Redding - (CA) | C26: 0 | D26: 77.28128 | E26: =D26*(1+('Scenario Input'!$AA$15/100)) -> 80.81705176 | F26: =E26*(1+('Scenario Input'!$AD$15/100)) -> 83.64060227 | G26: =F26*(1+('Scenario Input'!$AG$15/100)) -> 85.41224473 | H26: =G26*(1+('Scenario Input'!$AJ$15/100)) -> 87.27354056 | I26: =H26*(1+('Scenario Input'!$AM$15/100)) -> 89.22518498 | J26: =I26*(1+('Scenario Input'!$AP$15/100)) -> 91.83101439 | K26: =J26*(1+('Scenario Input'!$AS$15/100)) -> 94.51294728 | L26: 77.28128 | M26: =L26*(1+('Scenario Input'!$AA$15/100)) -> 80.81705176 | N26: =M26*(1+('Scenario Input'!$AD$15/100)) -> 83.64060227 | O26: =N26*(1+('Scenario Input'!$AG$15/100)) -> 85.41224473 | P26: =O26*(1+('Scenario Input'!$AJ$15/100)) -> 87.27354056 | Q26: =P26*(1+('Scenario Input'!$AM$15/100)) -> 89.22518498 | R26: =Q26*(1+('Scenario Input'!$AP$15/100)) -> 91.83101439 | S26: =R26*(1+('Scenario Input'!$AS$15/100)) -> 94.51294728 | T26: 77.28128 | U26: 80.81705176 | V26: 83.64060227 | W26: 85.41224473 | X26: 87.27354056 | Y26: 89.22518498 | Z26: 91.83101439 | AA26: 94.51294728
A27: City of Riverside - (CA) | C27: 0 | D27: 80.01151 | E27: =D27*(1+('Scenario Input'!$AA$15/100)) -> 83.6721952 | F27: =E27*(1+('Scenario Input'!$AD$15/100)) -> 86.59549745 | G27: =F27*(1+('Scenario Input'!$AG$15/100)) -> 88.42972934 | H27: =G27*(1+('Scenario Input'!$AJ$15/100)) -> 90.35678191 | I27: =H27*(1+('Scenario Input'!$AM$15/100)) -> 92.37737496 | J27: =I27*(1+('Scenario Input'!$AP$15/100)) -> 95.07526436 | K27: =J27*(1+('Scenario Input'!$AS$15/100)) -> 97.85194586 | L27: 80.01151 | M27: =L27*(1+('Scenario Input'!$AA$15/100)) -> 83.6721952 | N27: =M27*(1+('Scenario Input'!$AD$15/100)) -> 86.59549745 | O27: =N27*(1+('Scenario Input'!$AG$15/100)) -> 88.42972934 | P27: =O27*(1+('Scenario Input'!$AJ$15/100)) -> 90.35678191 | Q27: =P27*(1+('Scenario Input'!$AM$15/100)) -> 92.37737496 | R27: =Q27*(1+('Scenario Input'!$AP$15/100)) -> 95.07526436 | S27: =R27*(1+('Scenario Input'!$AS$15/100)) -> 97.85194586 | T27: 80.01151 | U27: 83.6721952 | V27: 86.59549745 | W27: 88.42972934 | X27: 90.35678191 | Y27: 92.37737496 | Z27: 95.07526436 | AA27: 97.85194586
A28: City of Roseville - (CA) | C28: 0 | D28: 72.55 | E28: =D28*(1+('Scenario Input'!$AA$15/100)) -> 75.86930632 | F28: =E28*(1+('Scenario Input'!$AD$15/100)) -> 78.51999469 | G28: =F28*(1+('Scenario Input'!$AG$15/100)) -> 80.18317444 | H28: =G28*(1+('Scenario Input'!$AJ$15/100)) -> 81.93051884 | I28: =H28*(1+('Scenario Input'!$AM$15/100)) -> 83.76268056 | J28: =I28*(1+('Scenario Input'!$AP$15/100)) -> 86.20897705 | K28: =J28*(1+('Scenario Input'!$AS$15/100)) -> 88.72671785 | L28: 72.55 | M28: =L28*(1+('Scenario Input'!$AA$15/100)) -> 75.86930632 | N28: =M28*(1+('Scenario Input'!$AD$15/100)) -> 78.51999469 | O28: =N28*(1+('Scenario Input'!$AG$15/100)) -> 80.18317444 | P28: =O28*(1+('Scenario Input'!$AJ$15/100)) -> 81.93051884 | Q28: =P28*(1+('Scenario Input'!$AM$15/100)) -> 83.76268056 | R28: =Q28*(1+('Scenario Input'!$AP$15/100)) -> 86.20897705 | S28: =R28*(1+('Scenario Input'!$AS$15/100)) -> 88.72671785 | T28: 72.55 | U28: 75.86930632 | V28: 78.51999469 | W28: 80.18317444 | X28: 81.93051884 | Y28: 83.76268056 | Z28: 86.20897705 | AA28: 88.72671785
A29: City of Santa Clara - (CA) | C29: 0 | D29: 36.96 | E29: =D29*(1+('Scenario Input'!$AA$15/100)) -> 38.65099327 | F29: =E29*(1+('Scenario Input'!$AD$15/100)) -> 40.00136463 | G29: =F29*(1+('Scenario Input'!$AG$15/100)) -> 40.84865785 | H29: =G29*(1+('Scenario Input'!$AJ$15/100)) -> 41.73882807 | I29: =H29*(1+('Scenario Input'!$AM$15/100)) -> 42.67220777 | J29: =I29*(1+('Scenario Input'!$AP$15/100)) -> 43.91845337 | K29: =J29*(1+('Scenario Input'!$AS$15/100)) -> 45.20109568 | L29: 36.96 | M29: =L29*(1+('Scenario Input'!$AA$15/100)) -> 38.65099327 | N29: =M29*(1+('Scenario Input'!$AD$15/100)) -> 40.00136463 | O29: =N29*(1+('Scenario Input'!$AG$15/100)) -> 40.84865785 | P29: =O29*(1+('Scenario Input'!$AJ$15/100)) -> 41.73882807 | Q29: =P29*(1+('Scenario Input'!$AM$15/100)) -> 42.67220777 | R29: =Q29*(1+('Scenario Input'!$AP$15/100)) -> 43.91845337 | S29: =R29*(1+('Scenario Input'!$AS$15/100)) -> 45.20109568 | T29: 36.96 | U29: 38.65099327 | V29: 40.00136463 | W29: 40.84865785 | X29: 41.73882807 | Y29: 42.67220777 | Z29: 43.91845337 | AA29: 45.20109568
A30: City of Shasta Lake - (CA) | C30: 0 | D30: 87.0692 | E30: =D30*(1+('Scenario Input'!$AA$15/100)) -> 91.0527885 | F30: =E30*(1+('Scenario Input'!$AD$15/100)) -> 94.23395067 | G30: =F30*(1+('Scenario Input'!$AG$15/100)) -> 96.22997728 | H30: =G30*(1+('Scenario Input'!$AJ$15/100)) -> 98.32701215 | I30: =H30*(1+('Scenario Input'!$AM$15/100)) -> 100.5258385 | J30: =I30*(1+('Scenario Input'!$AP$15/100)) -> 103.4617045 | K30: =J30*(1+('Scenario Input'!$AS$15/100)) -> 106.4833128 | L30: 87.0692 | M30: =L30*(1+('Scenario Input'!$AA$15/100)) -> 91.0527885 | N30: =M30*(1+('Scenario Input'!$AD$15/100)) -> 94.23395067 | O30: =N30*(1+('Scenario Input'!$AG$15/100)) -> 96.22997728 | P30: =O30*(1+('Scenario Input'!$AJ$15/100)) -> 98.32701215 | Q30: =P30*(1+('Scenario Input'!$AM$15/100)) -> 100.5258385 | R30: =Q30*(1+('Scenario Input'!$AP$15/100)) -> 103.4617045 | S30: =R30*(1+('Scenario Input'!$AS$15/100)) -> 106.4833128 | T30: 87.0692 | U30: 91.0527885 | V30: 94.23395067 | W30: 96.22997728 | X30: 98.32701215 | Y30: 100.5258385 | Z30: 103.4617045 | AA30: 106.4833128
A31: City of Ukiah - (CA) | C31: 0 | D31: 48.558 | E31: =D31*(1+('Scenario Input'!$AA$15/100)) -> 50.77962476 | F31: =E31*(1+('Scenario Input'!$AD$15/100)) -> 52.5537409 | G31: =F31*(1+('Scenario Input'!$AG$15/100)) -> 53.66691364 | H31: =G31*(1+('Scenario Input'!$AJ$15/100)) -> 54.83641811 | I31: =H31*(1+('Scenario Input'!$AM$15/100)) -> 56.06269115 | J31: =I31*(1+('Scenario Input'!$AP$15/100)) -> 57.700007 | K31: =J31*(1+('Scenario Input'!$AS$15/100)) -> 59.3851408 | L31: 48.558 | M31: =L31*(1+('Scenario Input'!$AA$15/100)) -> 50.77962476 | N31: =M31*(1+('Scenario Input'!$AD$15/100)) -> 52.5537409 | O31: =N31*(1+('Scenario Input'!$AG$15/100)) -> 53.66691364 | P31: =O31*(1+('Scenario Input'!$AJ$15/100)) -> 54.83641811 | Q31: =P31*(1+('Scenario Input'!$AM$15/100)) -> 56.06269115 | R31: =Q31*(1+('Scenario Input'!$AP$15/100)) -> 57.700007 | S31: =R31*(1+('Scenario Input'!$AS$15/100)) -> 59.3851408 | T31: 48.558 | U31: 50.77962476 | V31: 52.5537409 | W31: 53.66691364 | X31: 54.83641811 | Y31: 56.06269115 | Z31: 57.700007 | AA31: 59.3851408
A32: City of Vernon | C32: 0 | D32: 36.47318 | E32: =D32*(1+('Scenario Input'!$AA$15/100)) -> 38.14190029 | F32: =E32*(1+('Scenario Input'!$AD$15/100)) -> 39.47448518 | G32: =F32*(1+('Scenario Input'!$AG$15/100)) -> 40.31061825 | H32: =G32*(1+('Scenario Input'!$AJ$15/100)) -> 41.18906356 | I32: =H32*(1+('Scenario Input'!$AM$15/100)) -> 42.11014921 | J32: =I32*(1+('Scenario Input'!$AP$15/100)) -> 43.33997984 | K32: =J32*(1+('Scenario Input'!$AS$15/100)) -> 44.60572778 | L32: 36.47318 | M32: =L32*(1+('Scenario Input'!$AA$15/100)) -> 38.14190029 | N32: =M32*(1+('Scenario Input'!$AD$15/100)) -> 39.47448518 | O32: =N32*(1+('Scenario Input'!$AG$15/100)) -> 40.31061825 | P32: =O32*(1+('Scenario Input'!$AJ$15/100)) -> 41.18906356 | Q32: =P32*(1+('Scenario Input'!$AM$15/100)) -> 42.11014921 | R32: =Q32*(1+('Scenario Input'!$AP$15/100)) -> 43.33997984 | S32: =R32*(1+('Scenario Input'!$AS$15/100)) -> 44.60572778 | T32: 36.47318 | U32: 38.14190029 | V32: 39.47448518 | W32: 40.31061825 | X32: 41.18906356 | Y32: 42.11014921 | Z32: 43.33997984 | AA32: 44.60572778
A33: Imperial Irrigation District | C33: 0 | D33: 55.76545245 | E33: =D33*(1+('Scenario Input'!$AA$15/100)) -> 58.31683244 | F33: =E33*(1+('Scenario Input'!$AD$15/100)) -> 60.35428022 | G33: =F33*(1+('Scenario Input'!$AG$15/100)) -> 61.63268092 | H33: =G33*(1+('Scenario Input'!$AJ$15/100)) -> 62.97577467 | I33: =H33*(1+('Scenario Input'!$AM$15/100)) -> 64.38406312 | J33: =I33*(1+('Scenario Input'!$AP$15/100)) -> 66.26440538 | K33: =J33*(1+('Scenario Input'!$AS$15/100)) -> 68.19966319 | L33: 55.76545245 | M33: =L33*(1+('Scenario Input'!$AA$15/100)) -> 58.31683244 | N33: =M33*(1+('Scenario Input'!$AD$15/100)) -> 60.35428022 | O33: =N33*(1+('Scenario Input'!$AG$15/100)) -> 61.63268092 | P33: =O33*(1+('Scenario Input'!$AJ$15/100)) -> 62.97577467 | Q33: =P33*(1+('Scenario Input'!$AM$15/100)) -> 64.38406312 | R33: =Q33*(1+('Scenario Input'!$AP$15/100)) -> 66.26440538 | S33: =R33*(1+('Scenario Input'!$AS$15/100)) -> 68.19966319 | T33: 55.76545245 | U33: 58.31683244 | V33: 60.35428022 | W33: 61.63268092 | X33: 62.97577467 | Y33: 64.38406312 | Z33: 66.26440538 | AA33: 68.19966319
A34: Kirkwood Meadows Public Utility District | C34: 0 | D34: 169.9815 | E34: =D34*(1+('Scenario Input'!$AA$15/100)) -> 177.7584906 | F34: =E34*(1+('Scenario Input'!$AD$15/100)) -> 183.9689383 | G34: =F34*(1+('Scenario Input'!$AG$15/100)) -> 187.8656963 | H34: =G34*(1+('Scenario Input'!$AJ$15/100)) -> 191.9596484 | I34: =H34*(1+('Scenario Input'!$AM$15/100)) -> 196.2523237 | J34: =I34*(1+('Scenario Input'!$AP$15/100)) -> 201.9838902 | K34: =J34*(1+('Scenario Input'!$AS$15/100)) -> 207.8828475 | L34: 169.9815 | M34: =L34*(1+('Scenario Input'!$AA$15/100)) -> 177.7584906 | N34: =M34*(1+('Scenario Input'!$AD$15/100)) -> 183.9689383 | O34: =N34*(1+('Scenario Input'!$AG$15/100)) -> 187.8656963 | P34: =O34*(1+('Scenario Input'!$AJ$15/100)) -> 191.9596484 | Q34: =P34*(1+('Scenario Input'!$AM$15/100)) -> 196.2523237 | R34: =Q34*(1+('Scenario Input'!$AP$15/100)) -> 201.9838902 | S34: =R34*(1+('Scenario Input'!$AS$15/100)) -> 207.8828475 | T34: 169.9815 | U34: 177.7584906 | V34: 183.9689383 | W34: 187.8656963 | X34: 191.9596484 | Y34: 196.2523237 | Z34: 201.9838902 | AA34: 207.8828475
A35: Lassen Municipal Utility District | C35: 0 | D35: 73.114 | E35: =D35*(1+('Scenario Input'!$AA$15/100)) -> 76.45911044 | F35: =E35*(1+('Scenario Input'!$AD$15/100)) -> 79.13040512 | G35: =F35*(1+('Scenario Input'!$AG$15/100)) -> 80.80651435 | H35: =G35*(1+('Scenario Input'!$AJ$15/100)) -> 82.56744252 | I35: =H35*(1+('Scenario Input'!$AM$15/100)) -> 84.41384737 | J35: =I35*(1+('Scenario Input'!$AP$15/100)) -> 86.87916124 | K35: =J35*(1+('Scenario Input'!$AS$15/100)) -> 89.41647483 | L35: 73.114 | M35: =L35*(1+('Scenario Input'!$AA$15/100)) -> 76.45911044 | N35: =M35*(1+('Scenario Input'!$AD$15/100)) -> 79.13040512 | O35: =N35*(1+('Scenario Input'!$AG$15/100)) -> 80.80651435 | P35: =O35*(1+('Scenario Input'!$AJ$15/100)) -> 82.56744252 | Q35: =P35*(1+('Scenario Input'!$AM$15/100)) -> 84.41384737 | R35: =Q35*(1+('Scenario Input'!$AP$15/100)) -> 86.87916124 | S35: =R35*(1+('Scenario Input'!$AS$15/100)) -> 89.41647483 | T35: 73.114 | U35: 76.45911044 | V35: 79.13040512 | W35: 80.80651435 | X35: 82.56744252 | Y35: 84.41384737 | Z35: 86.87916124 | AA35: 89.41647483
A36: Lathrop Irrigation District | C36: 0 | D36: 82.9 | E36: =D36*(1+('Scenario Input'!$AA$15/100)) -> 86.69283934 | F36: =E36*(1+('Scenario Input'!$AD$15/100)) -> 89.72167553 | G36: =F36*(1+('Scenario Input'!$AG$15/100)) -> 91.62212489 | H36: =G36*(1+('Scenario Input'!$AJ$15/100)) -> 93.61874586 | I36: =H36*(1+('Scenario Input'!$AM$15/100)) -> 95.7122842 | J36: =I36*(1+('Scenario Input'!$AP$15/100)) -> 98.50756992 | K36: =J36*(1+('Scenario Input'!$AS$15/100)) -> 101.3844922 | L36: 82.9 | M36: =L36*(1+('Scenario Input'!$AA$15/100)) -> 86.69283934 | N36: =M36*(1+('Scenario Input'!$AD$15/100)) -> 89.72167553 | O36: =N36*(1+('Scenario Input'!$AG$15/100)) -> 91.62212489 | P36: =O36*(1+('Scenario Input'!$AJ$15/100)) -> 93.61874586 | Q36: =P36*(1+('Scenario Input'!$AM$15/100)) -> 95.7122842 | R36: =Q36*(1+('Scenario Input'!$AP$15/100)) -> 98.50756992 | S36: =R36*(1+('Scenario Input'!$AS$15/100)) -> 101.3844922 | T36: 82.9 | U36: 86.69283934 | V36: 89.72167553 | W36: 91.62212489 | X36: 93.61874586 | Y36: 95.7122842 | Z36: 98.50756992 | AA36: 101.3844922
A37: Liberty 16 | B37: X | C37: 0.0444844747 | D37: 78.17 | E37: =D37*(1+('Scenario Input'!$AA$15/100)) -> 81.74643246 | F37: =E37*(1+('Scenario Input'!$AD$15/100)) -> 84.60245327 | G37: =F37*(1+('Scenario Input'!$AG$15/100)) -> 86.39446927 | H37: =G37*(1+('Scenario Input'!$AJ$15/100)) -> 88.27716965 | I37: =H37*(1+('Scenario Input'!$AM$15/100)) -> 90.25125761 | J37: =I37*(1+('Scenario Input'!$AP$15/100)) -> 92.88705356 | K37: =J37*(1+('Scenario Input'!$AS$15/100)) -> 95.59982817 | L37: 107.6389555 | M37: =L37*(1+('Scenario Input'!$AA$15/100)) -> 112.5636511 | N37: =M37*(1+('Scenario Input'!$AD$15/100)) -> 116.4963503 | O37: =N37*(1+('Scenario Input'!$AG$15/100)) -> 118.9639304 | P37: =O37*(1+('Scenario Input'!$AJ$15/100)) -> 121.5563815 | Q37: =P37*(1+('Scenario Input'!$AM$15/100)) -> 124.2746719 | R37: =Q37*(1+('Scenario Input'!$AP$15/100)) -> 127.9041247 | S37: =R37*(1+('Scenario Input'!$AS$15/100)) -> 131.639576 | T37: 79.48091101 | U37: 83.11732025 | V37: 86.02123652 | W37: 87.84330464 | X37: 89.75757791 | Y37: 91.76477132 | Z37: 94.44476958 | AA37: 97.20303742
A38: Los Angeles Dep of Water & Power | C38: 0 | D38: 89.47 | E38: =D38*(1+('Scenario Input'!$AA$15/100)) -> 93.56342986 | F38: =E38*(1+('Scenario Input'!$AD$15/100)) -> 96.83230771 | G38: =F38*(1+('Scenario Input'!$AG$15/100)) -> 98.8833717 | H38: =G38*(1+('Scenario Input'!$AJ$15/100)) -> 101.0382291 | I38: =H38*(1+('Scenario Input'!$AM$15/100)) -> 103.2976848 | J38: =I38*(1+('Scenario Input'!$AP$15/100)) -> 106.3145028 | K38: =J38*(1+('Scenario Input'!$AS$15/100)) -> 109.4194272 | L38: 89.47 | M38: =L38*(1+('Scenario Input'!$AA$15/100)) -> 93.56342986 | N38: =M38*(1+('Scenario Input'!$AD$15/100)) -> 96.83230771 | O38: =N38*(1+('Scenario Input'!$AG$15/100)) -> 98.8833717 | P38: =O38*(1+('Scenario Input'!$AJ$15/100)) -> 101.0382291 | Q38: =P38*(1+('Scenario Input'!$AM$15/100)) -> 103.2976848 | R38: =Q38*(1+('Scenario Input'!$AP$15/100)) -> 106.3145028 | S38: =R38*(1+('Scenario Input'!$AS$15/100)) -> 109.4194272 | T38: 89.47 | U38: 93.56342986 | V38: 96.83230771 | W38: 98.8833717 | X38: 101.0382291 | Y38: 103.2976848 | Z38: 106.3145028 | AA38: 109.4194272
A39: Merced Irrigation District | C39: 0 | D39: 55.355 | E39: =D39*(1+('Scenario Input'!$AA$15/100)) -> 57.88760098 | F39: =E39*(1+('Scenario Input'!$AD$15/100)) -> 59.91005246 | G39: =F39*(1+('Scenario Input'!$AG$15/100)) -> 61.17904371 | H39: =G39*(1+('Scenario Input'!$AJ$15/100)) -> 62.51225184 | I39: =H39*(1+('Scenario Input'!$AM$15/100)) -> 63.91017481 | J39: =I39*(1+('Scenario Input'!$AP$15/100)) -> 65.77667711 | K39: =J39*(1+('Scenario Input'!$AS$15/100)) -> 67.69769078 | L39: 55.355 | M39: =L39*(1+('Scenario Input'!$AA$15/100)) -> 57.88760098 | N39: =M39*(1+('Scenario Input'!$AD$15/100)) -> 59.91005246 | O39: =N39*(1+('Scenario Input'!$AG$15/100)) -> 61.17904371 | P39: =O39*(1+('Scenario Input'!$AJ$15/100)) -> 62.51225184 | Q39: =P39*(1+('Scenario Input'!$AM$15/100)) -> 63.91017481 | R39: =Q39*(1+('Scenario Input'!$AP$15/100)) -> 65.77667711 | S39: =R39*(1+('Scenario Input'!$AS$15/100)) -> 67.69769078 | T39: 55.355 | U39: 57.88760098 | V39: 59.91005246 | W39: 61.17904371 | X39: 62.51225184 | Y39: 63.91017481 | Z39: 65.77667711 | AA39: 67.69769078
A40: Modesto Irrigation District | C40: 0 | D40: 86.25 | E40: =D40*(1+('Scenario Input'!$AA$15/100)) -> 90.19610848 | F40: =E40*(1+('Scenario Input'!$AD$15/100)) -> 93.34734034 | G40: =F40*(1+('Scenario Input'!$AG$15/100)) -> 95.32458712 | H40: =G40*(1+('Scenario Input'!$AJ$15/100)) -> 97.4018918 | I40: =H40*(1+('Scenario Input'!$AM$15/100)) -> 99.5800303 | J40: =I40*(1+('Scenario Input'!$AP$15/100)) -> 102.4882739 | K40: =J40*(1+('Scenario Input'!$AS$15/100)) -> 105.481453 | L40: 86.25 | M40: =L40*(1+('Scenario Input'!$AA$15/100)) -> 90.19610848 | N40: =M40*(1+('Scenario Input'!$AD$15/100)) -> 93.34734034 | O40: =N40*(1+('Scenario Input'!$AG$15/100)) -> 95.32458712 | P40: =O40*(1+('Scenario Input'!$AJ$15/100)) -> 97.4018918 | Q40: =P40*(1+('Scenario Input'!$AM$15/100)) -> 99.5800303 | R40: =Q40*(1+('Scenario Input'!$AP$15/100)) -> 102.4882739 | S40: =R40*(1+('Scenario Input'!$AS$15/100)) -> 105.481453 | T40: 86.25 | U40: 90.19610848 | V40: 93.34734034 | W40: 95.32458712 | X40: 97.4018918 | Y40: 99.5800303 | Z40: 102.4882739 | AA40: 105.481453
A41: PacCorp DEL NORTE | B41: X | C41: 0.7762004573 | D41: 100.23 | E41: =D41*(1+('Scenario Input'!$AA$15/100)) -> 104.8157212 | F41: =E41*(1+('Scenario Input'!$AD$15/100)) -> 108.4777266 | G41: =F41*(1+('Scenario Input'!$AG$15/100)) -> 110.7754593 | H41: =G41*(1+('Scenario Input'!$AJ$15/100)) -> 113.189468 | I41: =H41*(1+('Scenario Input'!$AM$15/100)) -> 115.7206543 | J41: =I41*(1+('Scenario Input'!$AP$15/100)) -> 119.1002863 | K41: =J41*(1+('Scenario Input'!$AS$15/100)) -> 122.5786207 | L41: 125.847425 | M41: =L41*(1+('Scenario Input'!$AA$15/100)) -> 131.6051942 | N41: =M41*(1+('Scenario Input'!$AD$15/100)) -> 136.2031584 | O41: =N41*(1+('Scenario Input'!$AG$15/100)) -> 139.0881603 | P41: =O41*(1+('Scenario Input'!$AJ$15/100)) -> 142.1191568 | Q41: =P41*(1+('Scenario Input'!$AM$15/100)) -> 145.29728 | R41: =Q41*(1+('Scenario Input'!$AP$15/100)) -> 149.5406999 | S41: =R41*(1+('Scenario Input'!$AS$15/100)) -> 153.9080492 | T41: 120.114257 | U41: 125.6097224 | V41: 129.9982195 | W41: 132.7517908 | X41: 135.6447057 | Y41: 138.6780447 | Z41: 142.7281492 | AA41: 146.8965374
A42: PacCorp NON-DEL NORTE | B42: X | C42: 0.5552011204 | D42: 90.4 | E42: =D42*(1+('Scenario Input'!$AA$15/100)) -> 94.53597921 | F42: =E42*(1+('Scenario Input'!$AD$15/100)) -> 97.83883556 | G42: =F42*(1+('Scenario Input'!$AG$15/100)) -> 99.91121942 | H42: =G42*(1+('Scenario Input'!$AJ$15/100)) -> 102.0884756 | I42: =H42*(1+('Scenario Input'!$AM$15/100)) -> 104.3714173 | J42: =I42*(1+('Scenario Input'!$AP$15/100)) -> 107.4195937 | K42: =J42*(1+('Scenario Input'!$AS$15/100)) -> 110.5567925 | L42: 119.063154 | M42: =L42*(1+('Scenario Input'!$AA$15/100)) -> 124.5105293 | N42: =M42*(1+('Scenario Input'!$AD$15/100)) -> 128.8606233 | O42: =N42*(1+('Scenario Input'!$AG$15/100)) -> 131.5900985 | P42: =O42*(1+('Scenario Input'!$AJ$15/100)) -> 134.4576979 | Q42: =P42*(1+('Scenario Input'!$AM$15/100)) -> 137.4644925 | R42: =Q42*(1+('Scenario Input'!$AP$15/100)) -> 141.4791552 | S42: =R42*(1+('Scenario Input'!$AS$15/100)) -> 145.6110664 | T42: 106.3138152 | U42: 111.177883 | V42: 115.0621668 | W42: 117.4993686 | X42: 120.0599041 | Y42: 122.7447297 | Z42: 126.3295004 | AA42: 130.0189646
A43: PG&E P | B43: X | C43: 0.5391417149 | D43: 93.451528 | E43: =D43*(1+('Scenario Input'!$AA$15/100)) -> 97.72712067 | F43: =E43*(1+('Scenario Input'!$AD$15/100)) -> 101.1414677 | G43: =F43*(1+('Scenario Input'!$AG$15/100)) -> 103.2838066 | H43: =G43*(1+('Scenario Input'!$AJ$15/100)) -> 105.5345579 | I43: =H43*(1+('Scenario Input'!$AM$15/100)) -> 107.8945622 | J43: =I43*(1+('Scenario Input'!$AP$15/100)) -> 111.0456324 | K43: =J43*(1+('Scenario Input'!$AS$15/100)) -> 114.2887299 | L43: 172.7960012 | M43: =L43*(1+('Scenario Input'!$AA$15/100)) -> 180.7017608 | N43: =M43*(1+('Scenario Input'!$AD$15/100)) -> 187.0150392 | O43: =N43*(1+('Scenario Input'!$AG$15/100)) -> 190.9763185 | P43: =O43*(1+('Scenario Input'!$AJ$15/100)) -> 195.138057 | Q43: =P43*(1+('Scenario Input'!$AM$15/100)) -> 199.5018091 | R43: =Q43*(1+('Scenario Input'!$AP$15/100)) -> 205.3282771 | S43: =R43*(1+('Scenario Input'!$AS$15/100)) -> 211.3249076 | T43: 136.2294434 | U43: 142.4622104 | V43: 147.4394923 | W43: 150.5624979 | X43: 153.8435421 | Y43: 157.2838504 | Z43: 161.8773392 | AA43: 166.6049812
A44: PG&E Q | B44: X | C44: 0.331254374 | D44: 83.81393197 | E44: =D44*(1+('Scenario Input'!$AA$15/100)) -> 87.64858551 | F44: =E44*(1+('Scenario Input'!$AD$15/100)) -> 90.71081313 | G44: =F44*(1+('Scenario Input'!$AG$15/100)) -> 92.63221403 | H44: =G44*(1+('Scenario Input'!$AJ$15/100)) -> 94.65084676 | I44: =H44*(1+('Scenario Input'!$AM$15/100)) -> 96.76746534 | J44: =I44*(1+('Scenario Input'!$AP$15/100)) -> 99.59356772 | K44: =J44*(1+('Scenario Input'!$AS$15/100)) -> 102.5022067 | L44: 155.2506341 | M44: =L44*(1+('Scenario Input'!$AA$15/100)) -> 162.3536583 | N44: =M44*(1+('Scenario Input'!$AD$15/100)) -> 168.0258989 | O44: =N44*(1+('Scenario Input'!$AG$15/100)) -> 171.5849576 | P44: =O44*(1+('Scenario Input'!$AJ$15/100)) -> 175.3241213 | Q44: =P44*(1+('Scenario Input'!$AM$15/100)) -> 179.2447866 | R44: =Q44*(1+('Scenario Input'!$AP$15/100)) -> 184.4796464 | S44: =R44*(1+('Scenario Input'!$AS$15/100)) -> 189.8673908 | T44: 107.477652 | U44: 112.3949676 | V44: 116.3217735 | W44: 118.7856557 | X44: 121.3742218 | Y44: 124.0884388 | Z44: 127.7124526 | AA44: 131.4423061
A45: PG&E R | B45: X | C45: 0.132527428 | D45: 100.9203336 | E45: =D45*(1+('Scenario Input'!$AA$15/100)) -> 105.537639 | F45: =E45*(1+('Scenario Input'!$AD$15/100)) -> 109.2248664 | G45: =F45*(1+('Scenario Input'!$AG$15/100)) -> 111.5384248 | H45: =G45*(1+('Scenario Input'!$AJ$15/100)) -> 113.9690599 | I45: =H45*(1+('Scenario Input'!$AM$15/100)) -> 116.5176798 | J45: =I45*(1+('Scenario Input'!$AP$15/100)) -> 119.9205889 | K45: =J45*(1+('Scenario Input'!$AS$15/100)) -> 123.4228803 | L45: 188.3091553 | M45: =L45*(1+('Scenario Input'!$AA$15/100)) -> 196.9246725 | N45: =M45*(1+('Scenario Input'!$AD$15/100)) -> 203.8047399 | O45: =N45*(1+('Scenario Input'!$AG$15/100)) -> 208.121652 | P45: =O45*(1+('Scenario Input'!$AJ$15/100)) -> 212.65702 | Q45: =P45*(1+('Scenario Input'!$AM$15/100)) -> 217.4125379 | R45: =Q45*(1+('Scenario Input'!$AP$15/100)) -> 223.7620903 | S45: =R45*(1+('Scenario Input'!$AS$15/100)) -> 230.2970819 | T45: 112.5017494 | U45: 117.6489275 | V45: 121.7592938 | W45: 124.3383515 | X45: 127.0479214 | Y45: 129.8890158 | Z45: 133.682436 | AA45: 137.5866434
A46: PG&E S | B46: X | C46: 0.1200620233 | D46: 93.02835403 | E46: =D46*(1+('Scenario Input'!$AA$15/100)) -> 97.28458564 | F46: =E46*(1+('Scenario Input'!$AD$15/100)) -> 100.6834716 | G46: =F46*(1+('Scenario Input'!$AG$15/100)) -> 102.8161094 | H46: =G46*(1+('Scenario Input'!$AJ$15/100)) -> 105.0566687 | I46: =H46*(1+('Scenario Input'!$AM$15/100)) -> 107.4059862 | J46: =I46*(1+('Scenario Input'!$AP$15/100)) -> 110.5427876 | K46: =J46*(1+('Scenario Input'!$AS$15/100)) -> 113.7711994 | L46: 167.3096844 | M46: =L46*(1+('Scenario Input'!$AA$15/100)) -> 174.9644341 | N46: =M46*(1+('Scenario Input'!$AD$15/100)) -> 181.0772643 | O46: =N46*(1+('Scenario Input'!$AG$15/100)) -> 184.912772 | P46: =O46*(1+('Scenario Input'!$AJ$15/100)) -> 188.9423742 | Q46: =P46*(1+('Scenario Input'!$AM$15/100)) -> 193.1675761 | R46: =Q46*(1+('Scenario Input'!$AP$15/100)) -> 198.8090523 | S46: =R46*(1+('Scenario Input'!$AS$15/100)) -> 204.6152882 | T46: 101.9467208 | U46: 106.6109854 | V46: 110.335713 | W46: 112.6728008 | X46: 115.1281562 | Y46: 117.7026962 | Z46: 121.1402139 | AA46: 124.6781245
A47: PG&E T | B47: X | C47: 0.1643932987 | D47: 56.68388931 | E47: =D47*(1+('Scenario Input'!$AA$15/100)) -> 59.27728962 | F47: =E47*(1+('Scenario Input'!$AD$15/100)) -> 61.34829342 | G47: =F47*(1+('Scenario Input'!$AG$15/100)) -> 62.64774893 | H47: =G47*(1+('Scenario Input'!$AJ$15/100)) -> 64.01296294 | I47: =H47*(1+('Scenario Input'!$AM$15/100)) -> 65.4444454 | J47: =I47*(1+('Scenario Input'!$AP$15/100)) -> 67.35575621 | K47: =J47*(1+('Scenario Input'!$AS$15/100)) -> 69.32288702 | L47: 84.67607142 | M47: =L47*(1+('Scenario Input'!$AA$15/100)) -> 88.55016955 | N47: =M47*(1+('Scenario Input'!$AD$15/100)) -> 91.64389632 | O47: =N47*(1+('Scenario Input'!$AG$15/100)) -> 93.58506141 | P47: =O47*(1+('Scenario Input'!$AJ$15/100)) -> 95.62445851 | Q47: =P47*(1+('Scenario Input'!$AM$15/100)) -> 97.76284937 | R47: =Q47*(1+('Scenario Input'!$AP$15/100)) -> 100.618022 | S47: =R47*(1+('Scenario Input'!$AS$15/100)) -> 103.5565802 | T47: 61.28561647 | U47: 64.08955491 | V47: 66.32868752 | W47: 67.73363578 | X47: 69.20968098 | Y47: 70.75737443 | Z47: 72.82384981 | AA47: 74.95067678
A48: PG&E V | B48: X | C48: 0.1533652262 | D48: 61.33175393 | E48: =D48*(1+('Scenario Input'!$AA$15/100)) -> 64.13780325 | F48: =E48*(1+('Scenario Input'!$AD$15/100)) -> 66.37862154 | G48: =F48*(1+('Scenario Input'!$AG$15/100)) -> 67.78462748 | H48: =G48*(1+('Scenario Input'!$AJ$15/100)) -> 69.26178389 | I48: =H48*(1+('Scenario Input'!$AM$15/100)) -> 70.81064249 | J48: =I48*(1+('Scenario Input'!$AP$15/100)) -> 72.87867356 | K48: =J48*(1+('Scenario Input'!$AS$15/100)) -> 75.00710166 | L48: 109.1272965 | M48: =L48*(1+('Scenario Input'!$AA$15/100)) -> 114.1200866 | N48: =M48*(1+('Scenario Input'!$AD$15/100)) -> 118.1071639 | O48: =N48*(1+('Scenario Input'!$AG$15/100)) -> 120.6088636 | P48: =O48*(1+('Scenario Input'!$AJ$15/100)) -> 123.2371609 | Q48: =P48*(1+('Scenario Input'!$AM$15/100)) -> 125.9930376 | R48: =Q48*(1+('Scenario Input'!$AP$15/100)) -> 129.6726754 | S48: =R48*(1+('Scenario Input'!$AS$15/100)) -> 133.4597773 | T48: 68.66192812 | U48: 71.80334745 | V48: 74.31198113 | W48: 75.88602839 | X48: 77.53972979 | Y48: 79.27370299 | Z48: 81.58889849 | AA48: 83.97170949
A49: PG&E W | B49: X | C49: 0.07386238601 | D49: 101.9561795 | E49: =D49*(1+('Scenario Input'!$AA$15/100)) -> 106.6208768 | F49: =E49*(1+('Scenario Input'!$AD$15/100)) -> 110.34595 | G49: =F49*(1+('Scenario Input'!$AG$15/100)) -> 112.6832547 | H49: =G49*(1+('Scenario Input'!$AJ$15/100)) -> 115.1388379 | I49: =H49*(1+('Scenario Input'!$AM$15/100)) -> 117.7136167 | J49: =I49*(1+('Scenario Input'!$AP$15/100)) -> 121.1514533 | K49: =J49*(1+('Scenario Input'!$AS$15/100)) -> 124.6896922 | L49: 155.5878014 | M49: =L49*(1+('Scenario Input'!$AA$15/100)) -> 162.7062518 | N49: =M49*(1+('Scenario Input'!$AD$15/100)) -> 168.3908111 | O49: =N49*(1+('Scenario Input'!$AG$15/100)) -> 171.9575992 | P49: =O49*(1+('Scenario Input'!$AJ$15/100)) -> 175.7048835 | Q49: =P49*(1+('Scenario Input'!$AM$15/100)) -> 179.6340636 | R49: =Q49*(1+('Scenario Input'!$AP$15/100)) -> 184.8802923 | S49: =R49*(1+('Scenario Input'!$AS$15/100)) -> 190.2797375 | T49: 105.9175391 | U49: 110.7634764 | V49: 114.6332819 | W49: 117.0613992 | X49: 119.6123905 | Y49: 122.2872087 | Z49: 125.8586174 | AA49: 129.5343295
A50: PG&E X | B50: X | C50: 0.1459121747 | D50: 76.51883275 | E50: =D50*(1+('Scenario Input'!$AA$15/100)) -> 80.01972104 | F50: =E50*(1+('Scenario Input'!$AD$15/100)) -> 82.81541477 | G50: =F50*(1+('Scenario Input'!$AG$15/100)) -> 84.56957842 | H50: =G50*(1+('Scenario Input'!$AJ$15/100)) -> 86.41251094 | I50: =H50*(1+('Scenario Input'!$AM$15/100)) -> 88.34490069 | J50: =I50*(1+('Scenario Input'!$AP$15/100)) -> 90.92502132 | K50: =J50*(1+('Scenario Input'!$AS$15/100)) -> 93.58049461 | L50: 96.88984034 | M50: =L50*(1+('Scenario Input'!$AA$15/100)) -> 101.3227426 | N50: =M50*(1+('Scenario Input'!$AD$15/100)) -> 104.8627119 | O50: =N50*(1+('Scenario Input'!$AG$15/100)) -> 107.0838728 | P50: =O50*(1+('Scenario Input'!$AJ$15/100)) -> 109.4174347 | Q50: =P50*(1+('Scenario Input'!$AM$15/100)) -> 111.8642694 | R50: =Q50*(1+('Scenario Input'!$AP$15/100)) -> 115.1312753 | S50: =R50*(1+('Scenario Input'!$AS$15/100)) -> 118.4936944 | T50: 79.49121077 | U50: 83.12809125 | V50: 86.03238384 | W50: 87.85468807 | X50: 89.7692094 | Y50: 91.77666293 | Z50: 94.45700848 | AA50: 97.21563376
A51: PG&E Y | B51: X | C51: 0.6022329247 | D51: 86.03009685 | E51: =D51*(1+('Scenario Input'!$AA$15/100)) -> 89.96614432 | F51: =E51*(1+('Scenario Input'!$AD$15/100)) -> 93.1093418 | G51: =F51*(1+('Scenario Input'!$AG$15/100)) -> 95.08154738 | H51: =G51*(1+('Scenario Input'!$AJ$15/100)) -> 97.15355577 | I51: =H51*(1+('Scenario Input'!$AM$15/100)) -> 99.32614088 | J51: =I51*(1+('Scenario Input'!$AP$15/100)) -> 102.2269696 | K51: =J51*(1+('Scenario Input'!$AS$15/100)) -> 105.2125173 | L51: 154.1808555 | M51: =L51*(1+('Scenario Input'!$AA$15/100)) -> 161.2349353 | N51: =M51*(1+('Scenario Input'!$AD$15/100)) -> 166.8680903 | O51: =N51*(1+('Scenario Input'!$AG$15/100)) -> 170.4026248 | P51: =O51*(1+('Scenario Input'!$AJ$15/100)) -> 174.1160233 | Q51: =P51*(1+('Scenario Input'!$AM$15/100)) -> 178.0096726 | R51: =Q51*(1+('Scenario Input'!$AP$15/100)) -> 183.2084608 | S51: =R51*(1+('Scenario Input'!$AS$15/100)) -> 188.5590801 | T51: 127.0727276 | U51: 132.8865567 | V51: 137.5292887 | W51: 140.4423801 | X51: 143.5028877 | Y51: 146.7119543 | Z51: 150.9966899 | AA51: 155.4065616
A52: PG&E Z | B52: X | C52: 0.6617307539 | D52: 54.71484228 | E52: =D52*(1+('Scenario Input'!$AA$15/100)) -> 57.21815478 | F52: =E52*(1+('Scenario Input'!$AD$15/100)) -> 59.21721744 | G52: =F52*(1+('Scenario Input'!$AG$15/100)) -> 60.47153333 | H52: =G52*(1+('Scenario Input'!$AJ$15/100)) -> 61.78932345 | I52: =H52*(1+('Scenario Input'!$AM$15/100)) -> 63.17108003 | J52: =I52*(1+('Scenario Input'!$AP$15/100)) -> 65.015997 | K52: =J52*(1+('Scenario Input'!$AS$15/100)) -> 66.91479494 | L52: 97.54434067 | M52: =L52*(1+('Scenario Input'!$AA$15/100)) -> 102.0071876 | N52: =M52*(1+('Scenario Input'!$AD$15/100)) -> 105.5710698 | O52: =N52*(1+('Scenario Input'!$AG$15/100)) -> 107.8072348 | P52: =O52*(1+('Scenario Input'!$AJ$15/100)) -> 110.1565602 | Q52: =P52*(1+('Scenario Input'!$AM$15/100)) -> 112.6199235 | R52: =Q52*(1+('Scenario Input'!$AP$15/100)) -> 115.9089983 | S52: =R52*(1+('Scenario Input'!$AS$15/100)) -> 119.2941308 | T52: 83.05643854 | U52: 86.85643525 | V52: 89.89098708 | W52: 91.79502274 | X52: 93.79541148 | Y52: 95.89290048 | Z52: 98.69346112 | AA52: 101.5758124
A53: Pittsburg Power Company | C53: 0 | D53: 88.47211043 | E53: =D53*(1+('Scenario Input'!$AA$15/100)) -> 92.51988486 | F53: =E53*(1+('Scenario Input'!$AD$15/100)) -> 95.7523038 | G53: =F53*(1+('Scenario Input'!$AG$15/100)) -> 97.78049157 | H53: =G53*(1+('Scenario Input'!$AJ$15/100)) -> 99.9113151 | I53: =H53*(1+('Scenario Input'!$AM$15/100)) -> 102.1455703 | J53: =I53*(1+('Scenario Input'!$AP$15/100)) -> 105.1287407 | K53: =J53*(1+('Scenario Input'!$AS$15/100)) -> 108.1990349 | L53: 88.47211043 | M53: =L53*(1+('Scenario Input'!$AA$15/100)) -> 92.51988486 | N53: =M53*(1+('Scenario Input'!$AD$15/100)) -> 95.7523038 | O53: =N53*(1+('Scenario Input'!$AG$15/100)) -> 97.78049157 | P53: =O53*(1+('Scenario Input'!$AJ$15/100)) -> 99.9113151 | Q53: =P53*(1+('Scenario Input'!$AM$15/100)) -> 102.1455703 | R53: =Q53*(1+('Scenario Input'!$AP$15/100)) -> 105.1287407 | S53: =R53*(1+('Scenario Input'!$AS$15/100)) -> 108.1990349 | T53: 88.47211043 | U53: 92.51988486 | V53: 95.7523038 | W53: 97.78049157 | X53: 99.9113151 | Y53: 102.1455703 | Z53: 105.1287407 | AA53: 108.1990349
A54: Plumas-Sierra Rural Elec Coop | C54: 0 | D54: 71.53976 | E54: =D54*(1+('Scenario Input'!$AA$15/100)) -> 74.81284584 | F54: =E54*(1+('Scenario Input'!$AD$15/100)) -> 77.42662405 | G54: =F54*(1+('Scenario Input'!$AG$15/100)) -> 79.06664446 | H54: =G54*(1+('Scenario Input'!$AJ$15/100)) -> 80.78965754 | I54: =H54*(1+('Scenario Input'!$AM$15/100)) -> 82.59630688 | J54: =I54*(1+('Scenario Input'!$AP$15/100)) -> 85.00853933 | K54: =J54*(1+('Scenario Input'!$AS$15/100)) -> 87.49122123 | L54: 71.53976 | M54: =L54*(1+('Scenario Input'!$AA$15/100)) -> 74.81284584 | N54: =M54*(1+('Scenario Input'!$AD$15/100)) -> 77.42662405 | O54: =N54*(1+('Scenario Input'!$AG$15/100)) -> 79.06664446 | P54: =O54*(1+('Scenario Input'!$AJ$15/100)) -> 80.78965754 | Q54: =P54*(1+('Scenario Input'!$AM$15/100)) -> 82.59630688 | R54: =Q54*(1+('Scenario Input'!$AP$15/100)) -> 85.00853933 | S54: =R54*(1+('Scenario Input'!$AS$15/100)) -> 87.49122123 | T54: 71.53976 | U54: 74.81284584 | V54: 77.42662405 | W54: 79.06664446 | X54: 80.78965754 | Y54: 82.59630688 | Z54: 85.00853933 | AA54: 87.49122123
A55: Sacramento Municipal Util Dist | C55: 0 | D55: 70.23 | E55: =D55*(1+('Scenario Input'!$AA$15/100)) -> 73.44316172 | F55: =E55*(1+('Scenario Input'!$AD$15/100)) -> 76.00908652 | G55: =F55*(1+('Scenario Input'!$AG$15/100)) -> 77.6190812 | H55: =G55*(1+('Scenario Input'!$AJ$15/100)) -> 79.31054912 | I55: =H55*(1+('Scenario Input'!$AM$15/100)) -> 81.08412207 | J55: =I55*(1+('Scenario Input'!$AP$15/100)) -> 83.45219102 | K55: =J55*(1+('Scenario Input'!$AS$15/100)) -> 85.88941963 | L55: 70.23 | M55: =L55*(1+('Scenario Input'!$AA$15/100)) -> 73.44316172 | N55: =M55*(1+('Scenario Input'!$AD$15/100)) -> 76.00908652 | O55: =N55*(1+('Scenario Input'!$AG$15/100)) -> 77.6190812 | P55: =O55*(1+('Scenario Input'!$AJ$15/100)) -> 79.31054912 | Q55: =P55*(1+('Scenario Input'!$AM$15/100)) -> 81.08412207 | R55: =Q55*(1+('Scenario Input'!$AP$15/100)) -> 83.45219102 | S55: =R55*(1+('Scenario Input'!$AS$15/100)) -> 85.88941963 | T55: 70.23 | U55: 73.44316172 | V55: 76.00908652 | W55: 77.6190812 | X55: 79.31054912 | Y55: 81.08412207 | Z55: 83.45219102 | AA55: 85.88941963
A56: SCE 10 | B56: X | C56: 0.09245903518 | D56: 92.59 | E56: =D56*(1+('Scenario Input'!$AA$15/100)) -> 96.82617605 | F56: =E56*(1+('Scenario Input'!$AD$15/100)) -> 100.2090463 | G56: =F56*(1+('Scenario Input'!$AG$15/100)) -> 102.331635 | H56: =G56*(1+('Scenario Input'!$AJ$15/100)) -> 104.5616367 | I56: =H56*(1+('Scenario Input'!$AM$15/100)) -> 106.8998841 | J56: =I56*(1+('Scenario Input'!$AP$15/100)) -> 110.0219047 | K56: =J56*(1+('Scenario Input'!$AS$15/100)) -> 113.2351041 | L56: 104.6991193 | M56: =L56*(1+('Scenario Input'!$AA$15/100)) -> 109.4893115 | N56: =M56*(1+('Scenario Input'!$AD$15/100)) -> 113.3146008 | O56: =N56*(1+('Scenario Input'!$AG$15/100)) -> 115.7147863 | P56: =O56*(1+('Scenario Input'!$AJ$15/100)) -> 118.2364323 | Q56: =P56*(1+('Scenario Input'!$AM$15/100)) -> 120.8804808 | R56: =Q56*(1+('Scenario Input'!$AP$15/100)) -> 124.4108059 | S56: =R56*(1+('Scenario Input'!$AS$15/100)) -> 128.0442345 | T56: 93.70959748 | U56: 97.99699734 | V56: 101.4207732 | W56: 103.5690283 | X56: 105.8259951 | Y56: 108.1925166 | Z56: 111.3522886 | AA56: 114.604342
A57: SCE 13 | B57: X | C57: 0.07548205048 | D57: 99.55 | E57: =D57*(1+('Scenario Input'!$AA$15/100)) -> 104.1046098 | F57: =E57*(1+('Scenario Input'!$AD$15/100)) -> 107.7417708 | G57: =F57*(1+('Scenario Input'!$AG$15/100)) -> 110.0239148 | H57: =G57*(1+('Scenario Input'!$AJ$15/100)) -> 112.4215458 | I57: =H57*(1+('Scenario Input'!$AM$15/100)) -> 114.9355596 | J57: =I57*(1+('Scenario Input'!$AP$15/100)) -> 118.2922628 | K57: =J57*(1+('Scenario Input'!$AS$15/100)) -> 121.7469988 | L57: 153.5037399 | M57: =L57*(1+('Scenario Input'!$AA$15/100)) -> 160.5268403 | N57: =M57*(1+('Scenario Input'!$AD$15/100)) -> 166.1352563 | O57: =N57*(1+('Scenario Input'!$AG$15/100)) -> 169.6542682 | P57: =O57*(1+('Scenario Input'!$AJ$15/100)) -> 173.3513585 | Q57: =P57*(1+('Scenario Input'!$AM$15/100)) -> 177.2279081 | R57: =Q57*(1+('Scenario Input'!$AP$15/100)) -> 182.4038648 | S57: =R57*(1+('Scenario Input'!$AS$15/100)) -> 187.7309858 | T57: 103.6225389 | U57: 108.3634755 | V57: 112.1494308 | W57: 114.5249361 | X57: 117.020653 | Y57: 119.6375138 | Z57: 123.131538 | AA57: 126.7276054
A58: SCE 14 | B58: X | C58: 0.086785298 | D58: 90.1 | E58: =D58*(1+('Scenario Input'!$AA$15/100)) -> 94.22225361 | F58: =E58*(1+('Scenario Input'!$AD$15/100)) -> 97.51414915 | G58: =F58*(1+('Scenario Input'!$AG$15/100)) -> 99.57965564 | H58: =G58*(1+('Scenario Input'!$AJ$15/100)) -> 101.7496864 | I58: =H58*(1+('Scenario Input'!$AM$15/100)) -> 104.0250519 | J58: =I58*(1+('Scenario Input'!$AP$15/100)) -> 107.0631128 | K58: =J58*(1+('Scenario Input'!$AS$15/100)) -> 110.1899005 | L58: 127.787107 | M58: =L58*(1+('Scenario Input'!$AA$15/100)) -> 133.6336205 | N58: =M58*(1+('Scenario Input'!$AD$15/100)) -> 138.3024529 | O58: =N58*(1+('Scenario Input'!$AG$15/100)) -> 141.2319213 | P58: =O58*(1+('Scenario Input'!$AJ$15/100)) -> 144.3096344 | Q58: =P58*(1+('Scenario Input'!$AM$15/100)) -> 147.5367419 | R58: =Q58*(1+('Scenario Input'!$AP$15/100)) -> 151.8455655 | S58: =R58*(1+('Scenario Input'!$AS$15/100)) -> 156.2802286 | T58: 93.37068681 | U58: 97.64258083 | V58: 101.0539743 | W58: 103.1944599 | X58: 105.4432642 | Y58: 107.8012269 | Z58: 110.9495713 | AA58: 114.1898633
A59: SCE 15 | B59: X | C59: 0.1428380048 | D59: 139.82 | E59: =D59*(1+('Scenario Input'!$AA$15/100)) -> 146.2170422 | F59: =E59*(1+('Scenario Input'!$AD$15/100)) -> 151.3255087 | G59: =F59*(1+('Scenario Input'!$AG$15/100)) -> 154.5308263 | H59: =G59*(1+('Scenario Input'!$AJ$15/100)) -> 157.898348 | I59: =H59*(1+('Scenario Input'!$AM$15/100)) -> 161.4293314 | J59: =I59*(1+('Scenario Input'!$AP$15/100)) -> 166.1438893 | K59: =J59*(1+('Scenario Input'!$AS$15/100)) -> 170.9961363 | L59: 127.1764559 | M59: =L59*(1+('Scenario Input'!$AA$15/100)) -> 132.9950308 | N59: =M59*(1+('Scenario Input'!$AD$15/100)) -> 137.6415526 | O59: =N59*(1+('Scenario Input'!$AG$15/100)) -> 140.557022 | P59: =O59*(1+('Scenario Input'!$AJ$15/100)) -> 143.6200278 | Q59: =P59*(1+('Scenario Input'!$AM$15/100)) -> 146.831714 | R59: =Q59*(1+('Scenario Input'!$AP$15/100)) -> 151.1199472 | S59: =R59*(1+('Scenario Input'!$AS$15/100)) -> 155.5334186 | T59: 138.0140214 | U59: 144.3284365 | V59: 149.3709197 | W59: 152.534836 | X59: 155.8588612 | Y59: 159.3442369 | Z59: 163.9978994 | AA59: 168.7874726
A60: SCE 16 | B60: X | C60: 0.1819220604 | D60: 83.52 | E60: =D60*(1+('Scenario Input'!$AA$15/100)) -> 87.34120557 | F60: =E60*(1+('Scenario Input'!$AD$15/100)) -> 90.39269409 | G60: =F60*(1+('Scenario Input'!$AG$15/100)) -> 92.30735671 | H60: =G60*(1+('Scenario Input'!$AJ$15/100)) -> 94.31891018 | I60: =H60*(1+('Scenario Input'!$AM$15/100)) -> 96.42810587 | J60: =I60*(1+('Scenario Input'!$AP$15/100)) -> 99.24429722 | K60: =J60*(1+('Scenario Input'!$AS$15/100)) -> 102.1427357 | L60: 125.1208819 | M60: =L60*(1+('Scenario Input'!$AA$15/100)) -> 130.8454103 | N60: =M60*(1+('Scenario Input'!$AD$15/100)) -> 135.4168296 | O60: =N60*(1+('Scenario Input'!$AG$15/100)) -> 138.2851758 | P60: =O60*(1+('Scenario Input'!$AJ$15/100)) -> 141.2986737 | Q60: =P60*(1+('Scenario Input'!$AM$15/100)) -> 144.4584489 | R60: =Q60*(1+('Scenario Input'!$AP$15/100)) -> 148.6773706 | S60: =R60*(1+('Scenario Input'!$AS$15/100)) -> 153.0195064 | T60: 91.08811816 | U60: 95.25558013 | V60: 98.58357758 | W60: 100.6717363 | X60: 102.8655656 | Y60: 105.1658848 | Z60: 108.2372638 | AA60: 111.3983426
A61: SCE 5 | B61: X | C61: 0.3495440729 | D61: 114.7 | E61: =D61*(1+('Scenario Input'!$AA$15/100)) -> 119.9477524 | F61: =E61*(1+('Scenario Input'!$AD$15/100)) -> 124.1384341 | G61: =F61*(1+('Scenario Input'!$AG$15/100)) -> 126.7678857 | H61: =G61*(1+('Scenario Input'!$AJ$15/100)) -> 129.5303999 | I61: =H61*(1+('Scenario Input'!$AM$15/100)) -> 132.4270084 | J61: =I61*(1+('Scenario Input'!$AP$15/100)) -> 136.2945509 | K61: =J61*(1+('Scenario Input'!$AS$15/100)) -> 140.2750453 | L61: 159.2594067 | M61: =L61*(1+('Scenario Input'!$AA$15/100)) -> 166.5458402 | N61: =M61*(1+('Scenario Input'!$AD$15/100)) -> 172.3645453 | O61: =N61*(1+('Scenario Input'!$AG$15/100)) -> 176.0155036 | P61: =O61*(1+('Scenario Input'!$AJ$15/100)) -> 179.8512173 | Q61: =P61*(1+('Scenario Input'!$AM$15/100)) -> 183.8731193 | R61: =Q61*(1+('Scenario Input'!$AP$15/100)) -> 189.24315 | S61: =R61*(1+('Scenario Input'!$AS$15/100)) -> 194.7700129 | T61: 130.2754765 | U61: 136.2358378 | V61: 140.9955854 | W61: 143.9820986 | X61: 147.1197434 | Y61: 150.4096916 | Z61: 154.8024199 | AA61: 159.3234382
A62: SCE 6 | B62: X | C62: 0.1691273077 | D62: 71.8 | E62: =D62*(1+('Scenario Input'!$AA$15/100)) -> 75.08499234 | F62: =E62*(1+('Scenario Input'!$AD$15/100)) -> 77.70827868 | G62: =F62*(1+('Scenario Input'!$AG$15/100)) -> 79.35426499 | H62: =G62*(1+('Scenario Input'!$AJ$15/100)) -> 81.08354587 | I62: =H62*(1+('Scenario Input'!$AM$15/100)) -> 82.89676726 | J62: =I62*(1+('Scenario Input'!$AP$15/100)) -> 85.31777467 | K62: =J62*(1+('Scenario Input'!$AS$15/100)) -> 87.80948782 | L62: 73.36303603 | M62: =L62*(1+('Scenario Input'!$AA$15/100)) -> 76.71954036 | N62: =M62*(1+('Scenario Input'!$AD$15/100)) -> 79.39993382 | O62: =N62*(1+('Scenario Input'!$AG$15/100)) -> 81.0817521 | P62: =O62*(1+('Scenario Input'!$AJ$15/100)) -> 82.84867823 | Q62: =P62*(1+('Scenario Input'!$AM$15/100)) -> 84.70137218 | R62: =Q62*(1+('Scenario Input'!$AP$15/100)) -> 87.17508324 | S62: =R62*(1+('Scenario Input'!$AS$15/100)) -> 89.72103925 | T62: 72.06435207 | U62: 75.36143904 | V62: 77.99438376 | W62: 79.64643023 | X62: 81.38207796 | Y62: 83.20197523 | Z62: 85.63189627 | AA62: 88.13278337
A63: SCE 8 | B63: X | C63: 0.1091814068 | D63: 71.43 | E63: =D63*(1+('Scenario Input'!$AA$15/100)) -> 74.6980641 | F63: =E63*(1+('Scenario Input'!$AD$15/100)) -> 77.30783212 | G63: =F63*(1+('Scenario Input'!$AG$15/100)) -> 78.94533632 | H63: =G63*(1+('Scenario Input'!$AJ$15/100)) -> 80.66570587 | I63: =H63*(1+('Scenario Input'!$AM$15/100)) -> 82.46958336 | J63: =I63*(1+('Scenario Input'!$AP$15/100)) -> 84.87811483 | K63: =J63*(1+('Scenario Input'!$AS$15/100)) -> 87.35698767 | L63: 74.22922982 | M63: =L63*(1+('Scenario Input'!$AA$15/100)) -> 77.62536424 | N63: =M63*(1+('Scenario Input'!$AD$15/100)) -> 80.33740498 | O63: =N63*(1+('Scenario Input'!$AG$15/100)) -> 82.0390804 | P63: =O63*(1+('Scenario Input'!$AJ$15/100)) -> 83.82686854 | Q63: =P63*(1+('Scenario Input'!$AM$15/100)) -> 85.70143716 | R63: =Q63*(1+('Scenario Input'!$AP$15/100)) -> 88.20435521 | S63: =R63*(1+('Scenario Input'!$AS$15/100)) -> 90.7803712 | T63: 71.73562385 | U63: 75.01767085 | V63: 77.63860515 | W63: 79.28311565 | X63: 81.01084606 | Y63: 82.8224417 | Z63: 85.24127843 | AA63: 87.7307575
A64: SCE 9 | B64: X | C64: 0.0862911531 | D64: 86.7 | E64: =D64*(1+('Scenario Input'!$AA$15/100)) -> 90.66669687 | F64: =E64*(1+('Scenario Input'!$AD$15/100)) -> 93.83436994 | G64: =F64*(1+('Scenario Input'!$AG$15/100)) -> 95.82193279 | H64: =G64*(1+('Scenario Input'!$AJ$15/100)) -> 97.91007559 | I64: =H64*(1+('Scenario Input'!$AM$15/100)) -> 100.0995783 | J64: =I64*(1+('Scenario Input'!$AP$15/100)) -> 103.0229953 | K64: =J64*(1+('Scenario Input'!$AS$15/100)) -> 106.031791 | L64: 86.34184016 | M64: =L64*(1+('Scenario Input'!$AA$15/100)) -> 90.29215051 | N64: =M64*(1+('Scenario Input'!$AD$15/100)) -> 93.44673785 | O64: =N64*(1+('Scenario Input'!$AG$15/100)) -> 95.42609002 | P64: =O64*(1+('Scenario Input'!$AJ$15/100)) -> 97.50560665 | Q64: =P64*(1+('Scenario Input'!$AM$15/100)) -> 99.68606446 | R64: =Q64*(1+('Scenario Input'!$AP$15/100)) -> 102.5974048 | S64: =R64*(1+('Scenario Input'!$AS$15/100)) -> 105.5937711 | T64: 86.66909397 | U64: 90.63437684 | V64: 93.80092072 | W64: 95.78777506 | X64: 97.8751735 | Y64: 100.0638957 | Z64: 102.9862706 | AA64: 105.9939938
A65: SDG&E COASTAL | B65: X | C65: 0.2061571993 | D65: 75.56 | E65: =D65*(1+('Scenario Input'!$AA$15/100)) -> 79.01701979 | F65: =E65*(1+('Scenario Input'!$AD$15/100)) -> 81.77768158 | G65: =F65*(1+('Scenario Input'!$AG$15/100)) -> 83.50986438 | H65: =G65*(1+('Scenario Input'!$AJ$15/100)) -> 85.32970371 | I65: =H65*(1+('Scenario Input'!$AM$15/100)) -> 87.2378793 | J65: =I65*(1+('Scenario Input'!$AP$15/100)) -> 89.78566928 | K65: =J65*(1+('Scenario Input'!$AS$15/100)) -> 92.40786768 | L65: 63.16677547 | M65: =L65*(1+('Scenario Input'!$AA$15/100)) -> 66.05678067 | N65: =M65*(1+('Scenario Input'!$AD$15/100)) -> 68.36464334 | O65: =N65*(1+('Scenario Input'!$AG$15/100)) -> 69.81271642 | P65: =O65*(1+('Scenario Input'!$AJ$15/100)) -> 71.33406875 | Q65: =P65*(1+('Scenario Input'!$AM$15/100)) -> 72.92926858 | R65: =Q65*(1+('Scenario Input'!$AP$15/100)) -> 75.05917432 | S65: =R65*(1+('Scenario Input'!$AS$15/100)) -> 77.25128414 | T65: 73.00504754 | U65: 76.34517319 | V65: 79.01248718 | W65: 80.68609872 | X65: 82.4444028 | Y65: 84.28805619 | Z65: 86.74969632 | AA65: 89.28322887
A66: SDG&E DESERT | B66: X | C66: 0.5367697595 | D66: 107.8 | E66: =D66*(1+('Scenario Input'!$AA$15/100)) -> 112.7320637 | F66: =E66*(1+('Scenario Input'!$AD$15/100)) -> 116.6706468 | G66: =F66*(1+('Scenario Input'!$AG$15/100)) -> 119.1419187 | H66: =G66*(1+('Scenario Input'!$AJ$15/100)) -> 121.7382485 | I66: =H66*(1+('Scenario Input'!$AM$15/100)) -> 124.460606 | J66: =I66*(1+('Scenario Input'!$AP$15/100)) -> 128.095489 | K66: =J66*(1+('Scenario Input'!$AS$15/100)) -> 131.8365291 | L66: 141.3857528 | M66: =L66*(1+('Scenario Input'!$AA$15/100)) -> 147.8544312 | N66: =M66*(1+('Scenario Input'!$AD$15/100)) -> 153.0201041 | O66: =N66*(1+('Scenario Input'!$AG$15/100)) -> 156.261316 | P66: =O66*(1+('Scenario Input'!$AJ$15/100)) -> 159.6665483 | Q66: =P66*(1+('Scenario Input'!$AM$15/100)) -> 163.237073 | R66: =Q66*(1+('Scenario Input'!$AP$15/100)) -> 168.0044261 | S66: =R66*(1+('Scenario Input'!$AS$15/100)) -> 172.9110102 | T66: 125.8278164 | U66: 131.5846885 | V66: 136.1819363 | W66: 139.0664887 | X66: 142.0970129 | Y66: 145.2746409 | Z66: 149.5173996 | AA66: 153.8840684
A67: SDG&E INLAND | B67: X | C67: 0.2305036486 | D67: 82.36 | E67: =D67*(1+('Scenario Input'!$AA$15/100)) -> 86.12813327 | F67: =E67*(1+('Scenario Input'!$AD$15/100)) -> 89.13724 | G67: =F67*(1+('Scenario Input'!$AG$15/100)) -> 91.02531009 | H67: =G67*(1+('Scenario Input'!$AJ$15/100)) -> 93.00892532 | I67: =H67*(1+('Scenario Input'!$AM$15/100)) -> 95.08882662 | J67: =I67*(1+('Scenario Input'!$AP$15/100)) -> 97.8659042 | K67: =J67*(1+('Scenario Input'!$AS$15/100)) -> 100.7240866 | L67: 88.90476968 | M67: =L67*(1+('Scenario Input'!$AA$15/100)) -> 92.97233914 | N67: =M67*(1+('Scenario Input'!$AD$15/100)) -> 96.22056572 | O67: =N67*(1+('Scenario Input'!$AG$15/100)) -> 98.25867203 | P67: =O67*(1+('Scenario Input'!$AJ$15/100)) -> 100.399916 | Q67: =P67*(1+('Scenario Input'!$AM$15/100)) -> 102.6450975 | R67: =Q67*(1+('Scenario Input'!$AP$15/100)) -> 105.6428566 | S67: =R67*(1+('Scenario Input'!$AS$15/100)) -> 108.7281656 | T67: 83.86859329 | U67: 87.70574769 | V67: 90.76997243 | W67: 92.69262641 | X67: 94.71257565 | Y67: 96.83057463 | Z67: 99.65852012 | AA67: 102.569056
A68: SDG&E MOUNTAIN | B68: X | C68: 0.3930789707 | D68: 109.37 | E68: =D68*(1+('Scenario Input'!$AA$15/100)) -> 114.3738943 | F68: =E68*(1+('Scenario Input'!$AD$15/100)) -> 118.369839 | G68: =F68*(1+('Scenario Input'!$AG$15/100)) -> 120.8771025 | H68: =G68*(1+('Scenario Input'!$AJ$15/100)) -> 123.5112453 | I68: =H68*(1+('Scenario Input'!$AM$15/100)) -> 126.2732512 | J68: =I68*(1+('Scenario Input'!$AP$15/100)) -> 129.9610726 | K68: =J68*(1+('Scenario Input'!$AS$15/100)) -> 133.7565973 | L68: 159.0948242 | M68: =L68*(1+('Scenario Input'!$AA$15/100)) -> 166.3737278 | N68: =M68*(1+('Scenario Input'!$AD$15/100)) -> 172.1864197 | O68: =N68*(1+('Scenario Input'!$AG$15/100)) -> 175.833605 | P68: =O68*(1+('Scenario Input'!$AJ$15/100)) -> 179.6653548 | Q68: =P68*(1+('Scenario Input'!$AM$15/100)) -> 183.6831005 | R68: =Q68*(1+('Scenario Input'!$AP$15/100)) -> 189.0475816 | S68: =R68*(1+('Scenario Input'!$AS$15/100)) -> 194.568733 | T68: =(D68*(1-$C68))+(L68*$C68) -> 128.9157827 | U68: =(E68*(1-$C68))+(M68*$C68) -> 134.8139353 | V68: =(F68*(1-$C68))+(N68*$C68) -> 139.5240051 | W68: =(G68*(1-$C68))+(O68*$C68) -> 142.4793479 | X68: =(H68*(1-$C68))+(P68*$C68) -> 145.5842449 | Y68: =(I68*(1-$C68))+(Q68*$C68) -> 148.8398556 | Z68: =(J68*(1-$C68))+(R68*$C68) -> 153.1867368 | AA68: =(K68*(1-$C68))+(S68*$C68) -> 157.660569
A69: Shelter Cove Resort Improvement District | C69: 0 | D69: 251.82 | E69: =D69*(1+('Scenario Input'!$AA$15/100)) -> 263.3412642 | F69: =E69*(1+('Scenario Input'!$AD$15/100)) -> 272.5417652 | G69: =F69*(1+('Scenario Input'!$AG$15/100)) -> 278.314638 | H69: =G69*(1+('Scenario Input'!$AJ$15/100)) -> 284.3796451 | I69: =H69*(1+('Scenario Input'!$AM$15/100)) -> 290.739052 | J69: =I69*(1+('Scenario Input'!$AP$15/100)) -> 299.2301117 | K69: =J69*(1+('Scenario Input'!$AS$15/100)) -> 307.9691535 | L69: 251.82 | M69: =L69*(1+('Scenario Input'!$AA$15/100)) -> 263.3412642 | N69: =M69*(1+('Scenario Input'!$AD$15/100)) -> 272.5417652 | O69: =N69*(1+('Scenario Input'!$AG$15/100)) -> 278.314638 | P69: =O69*(1+('Scenario Input'!$AJ$15/100)) -> 284.3796451 | Q69: =P69*(1+('Scenario Input'!$AM$15/100)) -> 290.739052 | R69: =Q69*(1+('Scenario Input'!$AP$15/100)) -> 299.2301117 | S69: =R69*(1+('Scenario Input'!$AS$15/100)) -> 307.9691535 | T69: 251.82 | U69: 263.3412642 | V69: 272.5417652 | W69: 278.314638 | X69: 284.3796451 | Y69: 290.739052 | Z69: 299.2301117 | AA69: 307.9691535
A70: Surprise Valley Electrification | C70: 0 | D70: 31.9534 | E70: =D70*(1+('Scenario Input'!$AA$15/100)) -> 33.41533139 | F70: =E70*(1+('Scenario Input'!$AD$15/100)) -> 34.5827815 | G70: =F70*(1+('Scenario Input'!$AG$15/100)) -> 35.31530043 | H70: =G70*(1+('Scenario Input'!$AJ$15/100)) -> 36.08488823 | I70: =H70*(1+('Scenario Input'!$AM$15/100)) -> 36.89183235 | J70: =I70*(1+('Scenario Input'!$AP$15/100)) -> 37.96926158 | K70: =J70*(1+('Scenario Input'!$AS$15/100)) -> 39.07815722 | L70: 31.9534 | M70: =L70*(1+('Scenario Input'!$AA$15/100)) -> 33.41533139 | N70: =M70*(1+('Scenario Input'!$AD$15/100)) -> 34.5827815 | O70: =N70*(1+('Scenario Input'!$AG$15/100)) -> 35.31530043 | P70: =O70*(1+('Scenario Input'!$AJ$15/100)) -> 36.08488823 | Q70: =P70*(1+('Scenario Input'!$AM$15/100)) -> 36.89183235 | R70: =Q70*(1+('Scenario Input'!$AP$15/100)) -> 37.96926158 | S70: =R70*(1+('Scenario Input'!$AS$15/100)) -> 39.07815722 | T70: 31.9534 | U70: 33.41533139 | V70: 34.5827815 | W70: 35.31530043 | X70: 36.08488823 | Y70: 36.89183235 | Z70: 37.96926158 | AA70: 39.07815722
A71: Trinity Public Utility District | C71: 0 | D71: 44.35044 | E71: =D71*(1+('Scenario Input'!$AA$15/100)) -> 46.37956055 | F71: =E71*(1+('Scenario Input'!$AD$15/100)) -> 47.99994918 | G71: =F71*(1+('Scenario Input'!$AG$15/100)) -> 49.01666529 | H71: =G71*(1+('Scenario Input'!$AJ$15/100)) -> 50.08483198 | I71: =H71*(1+('Scenario Input'!$AM$15/100)) -> 51.20484822 | J71: =I71*(1+('Scenario Input'!$AP$15/100)) -> 52.70029034 | K71: =J71*(1+('Scenario Input'!$AS$15/100)) -> 54.23940698 | L71: 44.35044 | M71: =L71*(1+('Scenario Input'!$AA$15/100)) -> 46.37956055 | N71: =M71*(1+('Scenario Input'!$AD$15/100)) -> 47.99994918 | O71: =N71*(1+('Scenario Input'!$AG$15/100)) -> 49.01666529 | P71: =O71*(1+('Scenario Input'!$AJ$15/100)) -> 50.08483198 | Q71: =P71*(1+('Scenario Input'!$AM$15/100)) -> 51.20484822 | R71: =Q71*(1+('Scenario Input'!$AP$15/100)) -> 52.70029034 | S71: =R71*(1+('Scenario Input'!$AS$15/100)) -> 54.23940698 | T71: 44.35044 | U71: 46.37956055 | V71: 47.99994918 | W71: 49.01666529 | X71: 50.08483198 | Y71: 51.20484822 | Z71: 52.70029034 | AA71: 54.23940698
A72: Truckee Donner P U D | C72: 0 | D72: 46.4212 | E72: =D72*(1+('Scenario Input'!$AA$15/100)) -> 48.54506192 | F72: =E72*(1+('Scenario Input'!$AD$15/100)) -> 50.24110789 | G72: =F72*(1+('Scenario Input'!$AG$15/100)) -> 51.30529534 | H72: =G72*(1+('Scenario Input'!$AJ$15/100)) -> 52.42333565 | I72: =H72*(1+('Scenario Input'!$AM$15/100)) -> 53.59564641 | J72: =I72*(1+('Scenario Input'!$AP$15/100)) -> 55.160912 | K72: =J72*(1+('Scenario Input'!$AS$15/100)) -> 56.77189131 | L72: 46.4212 | M72: =L72*(1+('Scenario Input'!$AA$15/100)) -> 48.54506192 | N72: =M72*(1+('Scenario Input'!$AD$15/100)) -> 50.24110789 | O72: =N72*(1+('Scenario Input'!$AG$15/100)) -> 51.30529534 | P72: =O72*(1+('Scenario Input'!$AJ$15/100)) -> 52.42333565 | Q72: =P72*(1+('Scenario Input'!$AM$15/100)) -> 53.59564641 | R72: =Q72*(1+('Scenario Input'!$AP$15/100)) -> 55.160912 | S72: =R72*(1+('Scenario Input'!$AS$15/100)) -> 56.77189131 | T72: 46.4212 | U72: 48.54506192 | V72: 50.24110789 | W72: 51.30529534 | X72: 52.42333565 | Y72: 53.59564641 | Z72: 55.160912 | AA72: 56.77189131
A73: Turlock Irrigation District | C73: 0 | D73: 90.01 | E73: =D73*(1+('Scenario Input'!$AA$15/100)) -> 94.12813593 | F73: =E73*(1+('Scenario Input'!$AD$15/100)) -> 97.41674323 | G73: =F73*(1+('Scenario Input'!$AG$15/100)) -> 99.48018651 | H73: =G73*(1+('Scenario Input'!$AJ$15/100)) -> 101.6480496 | I73: =H73*(1+('Scenario Input'!$AM$15/100)) -> 103.9211423 | J73: =I73*(1+('Scenario Input'!$AP$15/100)) -> 106.9561685 | K73: =J73*(1+('Scenario Input'!$AS$15/100)) -> 110.0798329 | L73: 90.01 | M73: =L73*(1+('Scenario Input'!$AA$15/100)) -> 94.12813593 | N73: =M73*(1+('Scenario Input'!$AD$15/100)) -> 97.41674323 | O73: =N73*(1+('Scenario Input'!$AG$15/100)) -> 99.48018651 | P73: =O73*(1+('Scenario Input'!$AJ$15/100)) -> 101.6480496 | Q73: =P73*(1+('Scenario Input'!$AM$15/100)) -> 103.9211423 | R73: =Q73*(1+('Scenario Input'!$AP$15/100)) -> 106.9561685 | S73: =R73*(1+('Scenario Input'!$AS$15/100)) -> 110.0798329 | T73: 90.01 | U73: 94.12813593 | V73: 97.41674323 | W73: 99.48018651 | X73: 101.6480496 | Y73: 103.9211423 | Z73: 106.9561685 | AA73: 110.0798329
A74: Valley Electric Assn, Inc | C74: 0 | D74: 66.96692 | E74: =D74*(1+('Scenario Input'!$AA$15/100)) -> 70.03078934 | F74: =E74*(1+('Scenario Input'!$AD$15/100)) -> 72.47749418 | G74: =F74*(1+('Scenario Input'!$AG$15/100)) -> 74.01268405 | H74: =G74*(1+('Scenario Input'!$AJ$15/100)) -> 75.6255617 | I74: =H74*(1+('Scenario Input'!$AM$15/100)) -> 77.31672954 | J74: =I74*(1+('Scenario Input'!$AP$15/100)) -> 79.57477146 | K74: =J74*(1+('Scenario Input'!$AS$15/100)) -> 81.89875969 | L74: 66.96692 | M74: =L74*(1+('Scenario Input'!$AA$15/100)) -> 70.03078934 | N74: =M74*(1+('Scenario Input'!$AD$15/100)) -> 72.47749418 | O74: =N74*(1+('Scenario Input'!$AG$15/100)) -> 74.01268405 | P74: =O74*(1+('Scenario Input'!$AJ$15/100)) -> 75.6255617 | Q74: =P74*(1+('Scenario Input'!$AM$15/100)) -> 77.31672954 | R74: =Q74*(1+('Scenario Input'!$AP$15/100)) -> 79.57477146 | S74: =R74*(1+('Scenario Input'!$AS$15/100)) -> 81.89875969 | T74: 66.96692 | U74: 70.03078934 | V74: 72.47749418 | W74: 74.01268405 | X74: 75.6255617 | Y74: 77.31672954 | Z74: 79.57477146 | AA74: 81.89875969

Sheet Gas Input
A1: Gas Provider and Climate Zone | B1: 2020 Essential Usage Bill ($/month) | C1: 2021 Essential Usage Bill ($/month) | D1: 2022 Essential Usage Bill ($/month) | E1: 2023 Essential Usage Bill ($/month) | F1: 2024 Essential Usage Bill ($/month) | G1: 2025 Essential Usage Bill ($/month) | H1: 2026 Essential Usage Bill ($/month) | I1: 2027 Essential Usage Bill ($/month)
A2: City of Coalinga | B2: 40.07 | C2: =B2*(1+('Scenario Input'!$AA$15/100)) -> 41.90328193 | D2: =C2*(1+('Scenario Input'!$AD$15/100)) -> 43.36728032 | E2: =D2*(1+('Scenario Input'!$AG$15/100)) -> 44.28586905 | F2: =E2*(1+('Scenario Input'!$AJ$15/100)) -> 45.25094266 | G2: =F2*(1+('Scenario Input'!$AM$15/100)) -> 46.26286161 | H2: =G2*(1+('Scenario Input'!$AP$15/100)) -> 47.61397258 | I2: =H2*(1+('Scenario Input'!$AS$15/100)) -> 49.00454285
A3: City of Palo Alto Ultilities | B3: 48.13 | C3: =B3*(1+('Scenario Input'!$AA$15/100)) -> 50.33204291 | D3: =C3*(1+('Scenario Input'!$AD$15/100)) -> 52.09052163 | E3: =D3*(1+('Scenario Input'!$AG$15/100)) -> 53.19388264 | F3: =E3*(1+('Scenario Input'!$AJ$15/100)) -> 54.35307887 | G3: =F3*(1+('Scenario Input'!$AM$15/100)) -> 55.56854329 | H3: =G3*(1+('Scenario Input'!$AP$15/100)) -> 57.19142751 | I3: =H3*(1+('Scenario Input'!$AS$15/100)) -> 58.8617082
A4: City of Susanville | B4: 64.26 | C4: =B4*(1+('Scenario Input'!$AA$15/100)) -> 67.20002239 | D4: =C4*(1+('Scenario Input'!$AD$15/100)) -> 69.54782713 | E4: =D4*(1+('Scenario Input'!$AG$15/100)) -> 71.02096195 | F4: =E4*(1+('Scenario Input'!$AJ$15/100)) -> 72.56864426 | G4: =F4*(1+('Scenario Input'!$AM$15/100)) -> 74.19145214 | H4: =G4*(1+('Scenario Input'!$AP$15/100)) -> 76.35822006 | I4: =H4*(1+('Scenario Input'!$AS$15/100)) -> 78.58826863
A5: City of Vernon Gas System | B5: 34.77 | C5: =B5*(1+('Scenario Input'!$AA$15/100)) -> 36.36079643 | D5: =C5*(1+('Scenario Input'!$AD$15/100)) -> 37.6311539 | E5: =D5*(1+('Scenario Input'!$AG$15/100)) -> 38.42824225 | F5: =E5*(1+('Scenario Input'!$AJ$15/100)) -> 39.26566699 | G5: =F5*(1+('Scenario Input'!$AM$15/100)) -> 40.14374091 | H5: =G5*(1+('Scenario Input'!$AP$15/100)) -> 41.31614241 | I5: =H5*(1+('Scenario Input'!$AS$15/100)) -> 42.522784
A6: Island Energy | B6: 48.13 | C6: =B6*(1+('Scenario Input'!$AA$15/100)) -> 50.33204291 | D6: =C6*(1+('Scenario Input'!$AD$15/100)) -> 52.09052163 | E6: =D6*(1+('Scenario Input'!$AG$15/100)) -> 53.19388264 | F6: =E6*(1+('Scenario Input'!$AJ$15/100)) -> 54.35307887 | G6: =F6*(1+('Scenario Input'!$AM$15/100)) -> 55.56854329 | H6: =G6*(1+('Scenario Input'!$AP$15/100)) -> 57.19142751 | I6: =H6*(1+('Scenario Input'!$AS$15/100)) -> 58.8617082
A7: Long Beach Gas & Oil | B7: 34.77 | C7: =B7*(1+('Scenario Input'!$AA$15/100)) -> 36.36079643 | D7: =C7*(1+('Scenario Input'!$AD$15/100)) -> 37.6311539 | E7: =D7*(1+('Scenario Input'!$AG$15/100)) -> 38.42824225 | F7: =E7*(1+('Scenario Input'!$AJ$15/100)) -> 39.26566699 | G7: =F7*(1+('Scenario Input'!$AM$15/100)) -> 40.14374091 | H7: =G7*(1+('Scenario Input'!$AP$15/100)) -> 41.31614241 | I7: =H7*(1+('Scenario Input'!$AS$15/100)) -> 42.522784
A8: PG&E P | B8: 49.42 | C8: =B8*(1+('Scenario Input'!$AA$15/100)) -> 51.68106297 | D8: =C8*(1+('Scenario Input'!$AD$15/100)) -> 53.48667315 | E8: =D8*(1+('Scenario Input'!$AG$15/100)) -> 54.6196069 | F8: =E8*(1+('Scenario Input'!$AJ$15/100)) -> 55.80987238 | G8: =F8*(1+('Scenario Input'!$AM$15/100)) -> 57.05791418 | H8: =G8*(1+('Scenario Input'!$AP$15/100)) -> 58.7242956 | I8: =H8*(1+('Scenario Input'!$AS$15/100)) -> 60.43934384
A9: PG&E Q | B9: 50.71 | C9: =B9*(1+('Scenario Input'!$AA$15/100)) -> 53.03008303 | D9: =C9*(1+('Scenario Input'!$AD$15/100)) -> 54.88282468 | E9: =D9*(1+('Scenario Input'!$AG$15/100)) -> 56.04533116 | F9: =E9*(1+('Scenario Input'!$AJ$15/100)) -> 57.26666589 | G9: =F9*(1+('Scenario Input'!$AM$15/100)) -> 58.54728506 | H9: =G9*(1+('Scenario Input'!$AP$15/100)) -> 60.2571637 | I9: =H9*(1+('Scenario Input'!$AS$15/100)) -> 62.01697949
A10: PG&E R | B10: 40.07 | C10: =B10*(1+('Scenario Input'!$AA$15/100)) -> 41.90328193 | D10: =C10*(1+('Scenario Input'!$AD$15/100)) -> 43.36728032 | E10: =D10*(1+('Scenario Input'!$AG$15/100)) -> 44.28586905 | F10: =E10*(1+('Scenario Input'!$AJ$15/100)) -> 45.25094266 | G10: =F10*(1+('Scenario Input'!$AM$15/100)) -> 46.26286161 | H10: =G10*(1+('Scenario Input'!$AP$15/100)) -> 47.61397258 | I10: =H10*(1+('Scenario Input'!$AS$15/100)) -> 49.00454285
A11: PG&E S | B11: 42.74 | C11: =B11*(1+('Scenario Input'!$AA$15/100)) -> 44.69543973 | D11: =C11*(1+('Scenario Input'!$AD$15/100)) -> 46.25698929 | E11: =D11*(1+('Scenario Input'!$AG$15/100)) -> 47.23678671 | F11: =E11*(1+('Scenario Input'!$AJ$15/100)) -> 48.26616644 | G11: =F11*(1+('Scenario Input'!$AM$15/100)) -> 49.34551299 | H11: =G11*(1+('Scenario Input'!$AP$15/100)) -> 50.78665306 | I11: =H11*(1+('Scenario Input'!$AS$15/100)) -> 52.26988175
A12: PG&E T | B12: 45.93 | C12: =B12*(1+('Scenario Input'!$AA$15/100)) -> 48.03138855 | D12: =C12*(1+('Scenario Input'!$AD$15/100)) -> 49.70948802 | E12: =D12*(1+('Scenario Input'!$AG$15/100)) -> 50.76241491 | F12: =E12*(1+('Scenario Input'!$AJ$15/100)) -> 51.86862482 | G12: =F12*(1+('Scenario Input'!$AM$15/100)) -> 53.02853092 | H12: =G12*(1+('Scenario Input'!$AP$15/100)) -> 54.57723385 | I12: =H12*(1+('Scenario Input'!$AS$15/100)) -> 56.17116679
A13: PG&E V | B13: 48.47 | C13: =B13*(1+('Scenario Input'!$AA$15/100)) -> 50.68759859 | D13: =C13*(1+('Scenario Input'!$AD$15/100)) -> 52.45849955 | E13: =D13*(1+('Scenario Input'!$AG$15/100)) -> 53.56965493 | F13: =E13*(1+('Scenario Input'!$AJ$15/100)) -> 54.73703995 | G13: =F13*(1+('Scenario Input'!$AM$15/100)) -> 55.96109065 | H13: =G13*(1+('Scenario Input'!$AP$15/100)) -> 57.59543925 | I13: =H13*(1+('Scenario Input'!$AS$15/100)) -> 59.27751915
A14: PG&E W | B14: 38.64 | C14: =B14*(1+('Scenario Input'!$AA$15/100)) -> 40.4078566 | D14: =C14*(1+('Scenario Input'!$AD$15/100)) -> 41.81960847 | E14: =D14*(1+('Scenario Input'!$AG$15/100)) -> 42.70541503 | F14: =E14*(1+('Scenario Input'!$AJ$15/100)) -> 43.63604753 | G14: =F14*(1+('Scenario Input'!$AM$15/100)) -> 44.61185358 | H14: =G14*(1+('Scenario Input'!$AP$15/100)) -> 45.9147467 | I14: =H14*(1+('Scenario Input'!$AS$15/100)) -> 47.25569094
A15: PG&E X | B15: 48.13 | C15: =B15*(1+('Scenario Input'!$AA$15/100)) -> 50.33204291 | D15: =C15*(1+('Scenario Input'!$AD$15/100)) -> 52.09052163 | E15: =D15*(1+('Scenario Input'!$AG$15/100)) -> 53.19388264 | F15: =E15*(1+('Scenario Input'!$AJ$15/100)) -> 54.35307887 | G15: =F15*(1+('Scenario Input'!$AM$15/100)) -> 55.56854329 | H15: =G15*(1+('Scenario Input'!$AP$15/100)) -> 57.19142751 | I15: =H15*(1+('Scenario Input'!$AS$15/100)) -> 58.8617082
A16: PG&E Y | B16: 64.26 | C16: =B16*(1+('Scenario Input'!$AA$15/100)) -> 67.20002239 | D16: =C16*(1+('Scenario Input'!$AD$15/100)) -> 69.54782713 | E16: =D16*(1+('Scenario Input'!$AG$15/100)) -> 71.02096195 | F16: =E16*(1+('Scenario Input'!$AJ$15/100)) -> 72.56864426 | G16: =F16*(1+('Scenario Input'!$AM$15/100)) -> 74.19145214 | H16: =G16*(1+('Scenario Input'!$AP$15/100)) -> 76.35822006 | I16: =H16*(1+('Scenario Input'!$AS$15/100)) -> 78.58826863
A17: SCG 1 | B17: 45.78 | C17: =B17*(1+('Scenario Input'!$AA$15/100)) -> 47.87452575 | D17: =C17*(1+('Scenario Input'!$AD$15/100)) -> 49.54714482 | E17: =D17*(1+('Scenario Input'!$AG$15/100)) -> 50.59663302 | F17: =E17*(1+('Scenario Input'!$AJ$15/100)) -> 51.69923022 | G17: =F17*(1+('Scenario Input'!$AM$15/100)) -> 52.85534826 | H17: =G17*(1+('Scenario Input'!$AP$15/100)) -> 54.39899338 | I17: =H17*(1+('Scenario Input'!$AS$15/100)) -> 55.98772079
A18: SCG 2 | B18: 48.32 | C18: =B18*(1+('Scenario Input'!$AA$15/100)) -> 50.53073579 | D18: =C18*(1+('Scenario Input'!$AD$15/100)) -> 52.29615635 | E18: =D18*(1+('Scenario Input'!$AG$15/100)) -> 53.40387304 | F18: =E18*(1+('Scenario Input'!$AJ$15/100)) -> 54.56764536 | G18: =F18*(1+('Scenario Input'!$AM$15/100)) -> 55.78790799 | H18: =G18*(1+('Scenario Input'!$AP$15/100)) -> 57.41719878 | I18: =H18*(1+('Scenario Input'!$AS$15/100)) -> 59.09407314
A19: SCG 3 | B19: 70.01 | C19: =B19*(1+('Scenario Input'!$AA$15/100)) -> 73.21309629 | D19: =C19*(1+('Scenario Input'!$AD$15/100)) -> 75.77098316 | E19: =D19*(1+('Scenario Input'!$AG$15/100)) -> 77.37593442 | F19: =E19*(1+('Scenario Input'!$AJ$15/100)) -> 79.06210371 | G19: =F19*(1+('Scenario Input'!$AM$15/100)) -> 80.83012083 | H19: =G19*(1+('Scenario Input'!$AP$15/100)) -> 83.19077165 | I19: =H19*(1+('Scenario Input'!$AS$15/100)) -> 85.62036549
A20: SDG&E COASTAL | B20: 53.88 | C20: =B20*(1+('Scenario Input'!$AA$15/100)) -> 56.34511681 | D20: =C20*(1+('Scenario Input'!$AD$15/100)) -> 58.31367765 | E20: =D20*(1+('Scenario Input'!$AG$15/100)) -> 59.54885512 | F20: =E20*(1+('Scenario Input'!$AJ$15/100)) -> 60.84653832 | G20: =F20*(1+('Scenario Input'!$AM$15/100)) -> 62.20721197 | H20: =G20*(1+('Scenario Input'!$AP$15/100)) -> 64.0239791 | I20: =H20*(1+('Scenario Input'!$AS$15/100)) -> 65.89380507
A21: SDG&E DESERT | B21: 53.88 | C21: =B21*(1+('Scenario Input'!$AA$15/100)) -> 56.34511681 | D21: =C21*(1+('Scenario Input'!$AD$15/100)) -> 58.31367765 | E21: =D21*(1+('Scenario Input'!$AG$15/100)) -> 59.54885512 | F21: =E21*(1+('Scenario Input'!$AJ$15/100)) -> 60.84653832 | G21: =F21*(1+('Scenario Input'!$AM$15/100)) -> 62.20721197 | H21: =G21*(1+('Scenario Input'!$AP$15/100)) -> 64.0239791 | I21: =H21*(1+('Scenario Input'!$AS$15/100)) -> 65.89380507
A22: SDG&E INLAND | B22: 53.88 | C22: =B22*(1+('Scenario Input'!$AA$15/100)) -> 56.34511681 | D22: =C22*(1+('Scenario Input'!$AD$15/100)) -> 58.31367765 | E22: =D22*(1+('Scenario Input'!$AG$15/100)) -> 59.54885512 | F22: =E22*(1+('Scenario Input'!$AJ$15/100)) -> 60.84653832 | G22: =F22*(1+('Scenario Input'!$AM$15/100)) -> 62.20721197 | H22: =G22*(1+('Scenario Input'!$AP$15/100)) -> 64.0239791 | I22: =H22*(1+('Scenario Input'!$AS$15/100)) -> 65.89380507
A23: SDG&E MOUNTAIN | B23: 53.88 | C23: =B23*(1+('Scenario Input'!$AA$15/100)) -> 56.34511681 | D23: =C23*(1+('Scenario Input'!$AD$15/100)) -> 58.31367765 | E23: =D23*(1+('Scenario Input'!$AG$15/100)) -> 59.54885512 | F23: =E23*(1+('Scenario Input'!$AJ$15/100)) -> 60.84653832 | G23: =F23*(1+('Scenario Input'!$AM$15/100)) -> 62.20721197 | H23: =G23*(1+('Scenario Input'!$AP$15/100)) -> 64.0239791 | I23: =H23*(1+('Scenario Input'!$AS$15/100)) -> 65.89380507
A24: SWG_Barstow | B24: 48.32 | C24: =B24*(1+('Scenario Input'!$AA$15/100)) -> 50.53073579 | D24: =C24*(1+('Scenario Input'!$AD$15/100)) -> 52.29615635 | E24: =D24*(1+('Scenario Input'!$AG$15/100)) -> 53.40387304 | F24: =E24*(1+('Scenario Input'!$AJ$15/100)) -> 54.56764536 | G24: =F24*(1+('Scenario Input'!$AM$15/100)) -> 55.78790799 | H24: =G24*(1+('Scenario Input'!$AP$15/100)) -> 57.41719878 | I24: =H24*(1+('Scenario Input'!$AS$15/100)) -> 59.09407314
A25: SWG_Victorville | B25: 51.14 | C25: =B25*(1+('Scenario Input'!$AA$15/100)) -> 53.47975638 | D25: =C25*(1+('Scenario Input'!$AD$15/100)) -> 55.34820852 | E25: =D25*(1+('Scenario Input'!$AG$15/100)) -> 56.52057258 | F25: =E25*(1+('Scenario Input'!$AJ$15/100)) -> 57.75226373 | G25: =F25*(1+('Scenario Input'!$AM$15/100)) -> 59.04374203 | H25: =G25*(1+('Scenario Input'!$AP$15/100)) -> 60.76811973 | I25: =H25*(1+('Scenario Input'!$AS$15/100)) -> 62.54285804
A26: SWG_Big_Bear | B26: 64.84 | C26: =B26*(1+('Scenario Input'!$AA$15/100)) -> 67.80655854 | D26: =C26*(1+('Scenario Input'!$AD$15/100)) -> 70.17555418 | E26: =D26*(1+('Scenario Input'!$AG$15/100)) -> 71.66198526 | F26: =E26*(1+('Scenario Input'!$AJ$15/100)) -> 73.22363669 | G26: =F26*(1+('Scenario Input'!$AM$15/100)) -> 74.86109177 | H26: =G26*(1+('Scenario Input'!$AP$15/100)) -> 77.04741657 | I26: =H26*(1+('Scenario Input'!$AS$15/100)) -> 79.29759318
A27: SWG_NLT | B27: 80.45 | C27: =B27*(1+('Scenario Input'!$AA$15/100)) -> 84.13074698 | D27: =C27*(1+('Scenario Input'!$AD$15/100)) -> 87.07006992 | E27: =D27*(1+('Scenario Input'!$AG$15/100)) -> 88.91435401 | F27: =E27*(1+('Scenario Input'!$AJ$15/100)) -> 90.85196749 | G27: =F27*(1+('Scenario Input'!$AM$15/100)) -> 92.88363406 | H27: =G27*(1+('Scenario Input'!$AP$15/100)) -> 95.5963088 | I27: =H27*(1+('Scenario Input'!$AS$15/100)) -> 98.38820745
A28: SWG_Truckee | B28: 82.25 | C28: =B28*(1+('Scenario Input'!$AA$15/100)) -> 86.01310055 | D28: =C28*(1+('Scenario Input'!$AD$15/100)) -> 89.01818832 | E28: =D28*(1+('Scenario Input'!$AG$15/100)) -> 90.9037367 | F28: =E28*(1+('Scenario Input'!$AJ$15/100)) -> 92.88470262 | G28: =F28*(1+('Scenario Input'!$AM$15/100)) -> 94.961826 | H28: =G28*(1+('Scenario Input'!$AP$15/100)) -> 97.73519452 | I28: =H28*(1+('Scenario Input'!$AS$15/100)) -> 100.5895595
A29: SWG_SLT | B29: 63.11 | C29: =B29*(1+('Scenario Input'!$AA$15/100)) -> 65.99740761 | D29: =C29*(1+('Scenario Input'!$AD$15/100)) -> 68.30319593 | E29: =D29*(1+('Scenario Input'!$AG$15/100)) -> 69.74996745 | F29: =E29*(1+('Scenario Input'!$AJ$15/100)) -> 71.26995237 | G29: =F29*(1+('Scenario Input'!$AM$15/100)) -> 72.86371841 | H29: =G29*(1+('Scenario Input'!$AP$15/100)) -> 74.99170974 | I29: =H29*(1+('Scenario Input'!$AS$15/100)) -> 77.18184925
A30: SWG_Needles | B30: 26.55 | C30: =B30*(1+('Scenario Input'!$AA$15/100)) -> 27.76471513 | D30: =C30*(1+('Scenario Input'!$AD$15/100)) -> 28.7347465 | E30: =D30*(1+('Scenario Input'!$AG$15/100)) -> 29.34339464 | F30: =E30*(1+('Scenario Input'!$AJ$15/100)) -> 29.98284322 | G30: =F30*(1+('Scenario Input'!$AM$15/100)) -> 30.65333107 | H30: =G30*(1+('Scenario Input'!$AP$15/100)) -> 31.54856431 | I30: =H30*(1+('Scenario Input'!$AS$15/100)) -> 32.46994292

Sheet Water Input
A1: PWSID | B1: Name | C1: 2020 Essential Usage Bill ($/month) | D1: 2021 Essential Usage Bill ($/month) | E1: 2022 Essential Usage Bill ($/month) | F1: 2023 Essential Usage Bill ($/month) | G1: 2024 Essential Usage Bill ($/month) | H1: 2025 Essential Usage Bill ($/month) | I1: 2026 Essential Usage Bill ($/month) | J1: 2027 Essential Usage Bill ($/month)
A2: CWS_Bakersfield | C2: 31.85 | D2: =C2*(1+('Scenario Input'!$AA$15/100)) -> 33.30720064 | E2: =D2*(1+('Scenario Input'!$AD$15/100)) -> 34.47087293 | F2: =E2*(1+('Scenario Input'!$AG$15/100)) -> 35.20102145 | G2: =F2*(1+('Scenario Input'!$AJ$15/100)) -> 35.96811889 | H2: =G2*(1+('Scenario Input'!$AM$15/100)) -> 36.77245177 | I2: =H2*(1+('Scenario Input'!$AP$15/100)) -> 37.84639447 | J2: =I2*(1+('Scenario Input'!$AS$15/100)) -> 38.95170177
A3: CWS_Bay_Area | C3: 56.45 | D3: =C3*(1+('Scenario Input'!$AA$15/100)) -> 59.03269941 | E3: =D3*(1+('Scenario Input'!$AD$15/100)) -> 61.09515782 | F3: =E3*(1+('Scenario Input'!$AG$15/100)) -> 62.38925151 | G3: =F3*(1+('Scenario Input'!$AJ$15/100)) -> 63.74883237 | H3: =G3*(1+('Scenario Input'!$AM$15/100)) -> 65.17440824 | I3: =H3*(1+('Scenario Input'!$AP$15/100)) -> 67.07783259 | J3: =I3*(1+('Scenario Input'!$AS$15/100)) -> 69.03684662
A4: CWS_BearGulch | C4: 66.71 | D4: =C4*(1+('Scenario Input'!$AA$15/100)) -> 69.76211474 | E4: =D4*(1+('Scenario Input'!$AD$15/100)) -> 72.19943274 | F4: =E4*(1+('Scenario Input'!$AG$15/100)) -> 73.72873283 | G4: =F4*(1+('Scenario Input'!$AJ$15/100)) -> 75.33542263 | H4: =G4*(1+('Scenario Input'!$AM$15/100)) -> 77.02010228 | I4: =H4*(1+('Scenario Input'!$AP$15/100)) -> 79.26948117 | J4: =I4*(1+('Scenario Input'!$AS$15/100)) -> 81.58455338
A5: CWS_Chico | C5: 26.94 | D5: =C5*(1+('Scenario Input'!$AA$15/100)) -> 28.17255841 | E5: =D5*(1+('Scenario Input'!$AD$15/100)) -> 29.15683883 | F5: =E5*(1+('Scenario Input'!$AG$15/100)) -> 29.77442756 | G5: =F5*(1+('Scenario Input'!$AJ$15/100)) -> 30.42326916 | H5: =G5*(1+('Scenario Input'!$AM$15/100)) -> 31.10360599 | I5: =H5*(1+('Scenario Input'!$AP$15/100)) -> 32.01198955 | J5: =I5*(1+('Scenario Input'!$AS$15/100)) -> 32.94690253
A6: CWS_Dixon | C6: 53.61 | D6: =C6*(1+('Scenario Input'!$AA$15/100)) -> 56.06276378 | E6: =D6*(1+('Scenario Input'!$AD$15/100)) -> 58.02145989 | F6: =E6*(1+('Scenario Input'!$AG$15/100)) -> 59.25044771 | G6: =F6*(1+('Scenario Input'!$AJ$15/100)) -> 60.54162805 | H6: =G6*(1+('Scenario Input'!$AM$15/100)) -> 61.89548318 | I6: =H6*(1+('Scenario Input'!$AP$15/100)) -> 63.70314624 | J6: =I6*(1+('Scenario Input'!$AS$15/100)) -> 65.56360226
A7: CWS_Dominguez | C7: 41.52 | D7: =C7*(1+('Scenario Input'!$AA$15/100)) -> 43.41962231 | E7: =D7*(1+('Scenario Input'!$AD$15/100)) -> 44.93659792 | F7: =E7*(1+('Scenario Input'!$AG$15/100)) -> 45.88842733 | G7: =F7*(1+('Scenario Input'!$AJ$15/100)) -> 46.88842374 | H7: =G7*(1+('Scenario Input'!$AM$15/100)) -> 47.93696067 | I7: =H7*(1+('Scenario Input'!$AP$15/100)) -> 49.33696385 | J7: =I7*(1+('Scenario Input'!$AS$15/100)) -> 50.77785424
A8: CWS_EastLA | C8: 64.56 | D8: =C8*(1+('Scenario Input'!$AA$15/100)) -> 67.51374798 | E8: =D8*(1+('Scenario Input'!$AD$15/100)) -> 69.87251353 | F8: =E8*(1+('Scenario Input'!$AG$15/100)) -> 71.35252573 | G8: =F8*(1+('Scenario Input'!$AJ$15/100)) -> 72.90743345 | H8: =G8*(1+('Scenario Input'!$AM$15/100)) -> 74.53781747 | I8: =H8*(1+('Scenario Input'!$AP$15/100)) -> 76.71470101 | J8: =I8*(1+('Scenario Input'!$AS$15/100)) -> 78.95516064
A9: CWS_HermosaRedondo | C9: 42.08 | D9: =C9*(1+('Scenario Input'!$AA$15/100)) -> 44.00524342 | E9: =D9*(1+('Scenario Input'!$AD$15/100)) -> 45.54267921 | F9: =E9*(1+('Scenario Input'!$AG$15/100)) -> 46.50734639 | G9: =F9*(1+('Scenario Input'!$AJ$15/100)) -> 47.52083023 | H9: =G9*(1+('Scenario Input'!$AM$15/100)) -> 48.58350928 | I9: =H9*(1+('Scenario Input'!$AP$15/100)) -> 50.00239496 | J9: =I9*(1+('Scenario Input'!$AS$15/100)) -> 51.46271932
A10: CWS_KernValley | C10: 100.18 | D10: =C10*(1+('Scenario Input'!$AA$15/100)) -> 104.7634336 | E10: =D10*(1+('Scenario Input'!$AD$15/100)) -> 108.4236122 | F10: =E10*(1+('Scenario Input'!$AG$15/100)) -> 110.7201987 | G10: =F10*(1+('Scenario Input'!$AJ$15/100)) -> 113.1330031 | H10: =G10*(1+('Scenario Input'!$AM$15/100)) -> 115.6629268 | I10: =H10*(1+('Scenario Input'!$AP$15/100)) -> 119.0408728 | J10: =I10*(1+('Scenario Input'!$AS$15/100)) -> 122.517472
A11: CWS_LA_Valley | C11: 50.66 | D11: =C11*(1+('Scenario Input'!$AA$15/100)) -> 52.97779543 | E11: =D11*(1+('Scenario Input'!$AD$15/100)) -> 54.82871028 | F11: =E11*(1+('Scenario Input'!$AG$15/100)) -> 55.99007053 | G11: =F11*(1+('Scenario Input'!$AJ$15/100)) -> 57.21020103 | H11: =G11*(1+('Scenario Input'!$AM$15/100)) -> 58.48955751 | I11: =H11*(1+('Scenario Input'!$AP$15/100)) -> 60.19775021 | J11: =I11*(1+('Scenario Input'!$AS$15/100)) -> 61.95583082
A12: CWS_Livermore | C12: 44.57 | D12: =C12*(1+('Scenario Input'!$AA$15/100)) -> 46.60916585 | E12: =D12*(1+('Scenario Input'!$AD$15/100)) -> 48.23757634 | F12: =E12*(1+('Scenario Input'!$AG$15/100)) -> 49.25932577 | G12: =F12*(1+('Scenario Input'!$AJ$15/100)) -> 50.33278049 | H12: =G12*(1+('Scenario Input'!$AM$15/100)) -> 51.45834146 | I12: =H12*(1+('Scenario Input'!$AP$15/100)) -> 52.96118687 | J12: =I12*(1+('Scenario Input'!$AS$15/100)) -> 54.50792301
A13: CWS_LosAltos | C13: 53.93 | D13: =C13*(1+('Scenario Input'!$AA$15/100)) -> 56.39740441 | E13: =D13*(1+('Scenario Input'!$AD$15/100)) -> 58.36779205 | F13: =E13*(1+('Scenario Input'!$AG$15/100)) -> 59.60411575 | G13: =F13*(1+('Scenario Input'!$AJ$15/100)) -> 60.90300319 | H13: =G13*(1+('Scenario Input'!$AM$15/100)) -> 62.26493953 | I13: =H13*(1+('Scenario Input'!$AP$15/100)) -> 64.08339259 | J13: =I13*(1+('Scenario Input'!$AS$15/100)) -> 65.95495373
A14: CWS_Marysville | C14: 43.16 | D14: =C14*(1+('Scenario Input'!$AA$15/100)) -> 45.13465556 | E14: =D14*(1+('Scenario Input'!$AD$15/100)) -> 46.71155025 | F14: =E14*(1+('Scenario Input'!$AG$15/100)) -> 47.700976 | G14: =F14*(1+('Scenario Input'!$AJ$15/100)) -> 48.74047131 | H14: =G14*(1+('Scenario Input'!$AM$15/100)) -> 49.83042444 | I14: =H14*(1+('Scenario Input'!$AP$15/100)) -> 51.28572639 | J14: =I14*(1+('Scenario Input'!$AS$15/100)) -> 52.78353056
A15: CWS_Monterey | C15: 40.66 | D15: =C15*(1+('Scenario Input'!$AA$15/100)) -> 42.5202756 | E15: =D15*(1+('Scenario Input'!$AD$15/100)) -> 44.00583024 | F15: =E15*(1+('Scenario Input'!$AG$15/100)) -> 44.93794449 | G15: =F15*(1+('Scenario Input'!$AJ$15/100)) -> 45.91722807 | H15: =G15*(1+('Scenario Input'!$AM$15/100)) -> 46.94404675 | I15: =H15*(1+('Scenario Input'!$AP$15/100)) -> 48.31505178 | J15: =I15*(1+('Scenario Input'!$AS$15/100)) -> 49.72609714
A16: CWS_Oroville | C16: 52.33 | D16: =C16*(1+('Scenario Input'!$AA$15/100)) -> 54.72420124 | E16: =D16*(1+('Scenario Input'!$AD$15/100)) -> 56.63613125 | F16: =E16*(1+('Scenario Input'!$AG$15/100)) -> 57.83577558 | G16: =F16*(1+('Scenario Input'!$AJ$15/100)) -> 59.09612751 | H16: =G16*(1+('Scenario Input'!$AM$15/100)) -> 60.41765781 | I16: =H16*(1+('Scenario Input'!$AP$15/100)) -> 62.18216084 | J16: =I16*(1+('Scenario Input'!$AS$15/100)) -> 63.99819635
A17: CWS_Selma | C17: 36.69 | D17: =C17*(1+('Scenario Input'!$AA$15/100)) -> 38.36864023 | E17: =D17*(1+('Scenario Input'!$AD$15/100)) -> 39.70914686 | F17: =E17*(1+('Scenario Input'!$AG$15/100)) -> 40.55025045 | G17: =F17*(1+('Scenario Input'!$AJ$15/100)) -> 41.4339178 | H17: =G17*(1+('Scenario Input'!$AM$15/100)) -> 42.36047898 | I17: =H17*(1+('Scenario Input'!$AP$15/100)) -> 43.59762051 | J17: =I17*(1+('Scenario Input'!$AS$15/100)) -> 44.87089287
A18: CWS_Stockton | C18: 41.69 | D18: =C18*(1+('Scenario Input'!$AA$15/100)) -> 43.59740015 | E18: =D18*(1+('Scenario Input'!$AD$15/100)) -> 45.12058688 | F18: =E18*(1+('Scenario Input'!$AG$15/100)) -> 46.07631347 | G18: =F18*(1+('Scenario Input'!$AJ$15/100)) -> 47.08040428 | H18: =G18*(1+('Scenario Input'!$AM$15/100)) -> 48.13323436 | I18: =H18*(1+('Scenario Input'!$AP$15/100)) -> 49.53896972 | J18: =I18*(1+('Scenario Input'!$AS$15/100)) -> 50.98575971
A19: CWS_Visalia | C19: 20.15 | D19: =C19*(1+('Scenario Input'!$AA$15/100)) -> 21.07190245 | E19: =D19*(1+('Scenario Input'!$AD$15/100)) -> 21.80810328 | F19: =E19*(1+('Scenario Input'!$AG$15/100)) -> 22.27003398 | G19: =F19*(1+('Scenario Input'!$AJ$15/100)) -> 22.75534052 | H19: =G19*(1+('Scenario Input'!$AM$15/100)) -> 23.26420418 | I19: =H19*(1+('Scenario Input'!$AP$15/100)) -> 23.94363732 | J19: =I19*(1+('Scenario Input'!$AS$15/100)) -> 24.64291336
A20: CWS_Westlake | C20: 54.46 | D20: =C20*(1+('Scenario Input'!$AA$15/100)) -> 56.95165296 | E20: =D20*(1+('Scenario Input'!$AD$15/100)) -> 58.94140469 | F20: =E20*(1+('Scenario Input'!$AG$15/100)) -> 60.18987843 | G20: =F20*(1+('Scenario Input'!$AJ$15/100)) -> 61.50153076 | H20: =G20*(1+('Scenario Input'!$AM$15/100)) -> 62.8768516 | I20: =H20*(1+('Scenario Input'!$AP$15/100)) -> 64.71317561 | J20: =I20*(1+('Scenario Input'!$AS$15/100)) -> 66.60312962
A21: CWS_Willows | C21: 54.18 | D21: =C21*(1+('Scenario Input'!$AA$15/100)) -> 56.65884241 | E21: =D21*(1+('Scenario Input'!$AD$15/100)) -> 58.63836405 | F21: =E21*(1+('Scenario Input'!$AG$15/100)) -> 59.8804189 | G21: =F21*(1+('Scenario Input'!$AJ$15/100)) -> 61.18532751 | H21: =G21*(1+('Scenario Input'!$AM$15/100)) -> 62.5535773 | I21: =H21*(1+('Scenario Input'!$AP$15/100)) -> 64.38046005 | J21: =I21*(1+('Scenario Input'!$AS$15/100)) -> 66.26069708
A22: CalAm_BH | C22: 45.04 | D22: =C22*(1+('Scenario Input'!$AA$15/100)) -> 47.10066929 | E22: =D22*(1+('Scenario Input'!$AD$15/100)) -> 48.7462517 | F22: =E22*(1+('Scenario Input'!$AG$15/100)) -> 49.7787757 | G22: =F22*(1+('Scenario Input'!$AJ$15/100)) -> 50.86355022 | H22: =G22*(1+('Scenario Input'!$AM$15/100)) -> 52.00098046 | I22: =H22*(1+('Scenario Input'!$AP$15/100)) -> 53.51967369 | J22: =I22*(1+('Scenario Input'!$AS$15/100)) -> 55.08272049
A23: CalAm_CS | C23: 59.64 | D23: =C23*(1+('Scenario Input'!$AA$15/100)) -> 62.36864823 | E23: =D23*(1+('Scenario Input'!$AD$15/100)) -> 64.54765655 | F23: =E23*(1+('Scenario Input'!$AG$15/100)) -> 65.91487972 | G23: =F23*(1+('Scenario Input'!$AJ$15/100)) -> 67.35129075 | H23: =G23*(1+('Scenario Input'!$AM$15/100)) -> 68.85742617 | I23: =H23*(1+('Scenario Input'!$AP$15/100)) -> 70.86841339 | J23: =I23*(1+('Scenario Input'!$AS$15/100)) -> 72.93813167
A24: CalAm_DT | C24: 38.22 | D24: =C24*(1+('Scenario Input'!$AA$15/100)) -> 39.96864077 | E24: =D24*(1+('Scenario Input'!$AD$15/100)) -> 41.36504751 | F24: =E24*(1+('Scenario Input'!$AG$15/100)) -> 42.24122573 | G24: =F24*(1+('Scenario Input'!$AJ$15/100)) -> 43.16174266 | H24: =G24*(1+('Scenario Input'!$AM$15/100)) -> 44.12694212 | I24: =H24*(1+('Scenario Input'!$AP$15/100)) -> 45.41567337 | J24: =I24*(1+('Scenario Input'!$AS$15/100)) -> 46.74204212
A25: CalAm_FRV | C25: 42.42 | D25: =C25*(1+('Scenario Input'!$AA$15/100)) -> 44.36079909 | E25: =D25*(1+('Scenario Input'!$AD$15/100)) -> 45.91065713 | F25: =E25*(1+('Scenario Input'!$AG$15/100)) -> 46.88311867 | G25: =F25*(1+('Scenario Input'!$AJ$15/100)) -> 47.90479131 | H25: =G25*(1+('Scenario Input'!$AM$15/100)) -> 48.97605664 | I25: =H25*(1+('Scenario Input'!$AP$15/100)) -> 50.40640671 | J25: =I25*(1+('Scenario Input'!$AS$15/100)) -> 51.87853027
A26: CalAm_HILL | C26: 97.04 | D26: =C26*(1+('Scenario Input'!$AA$15/100)) -> 101.4797724 | E26: =D26*(1+('Scenario Input'!$AD$15/100)) -> 105.0252279 | F26: =E26*(1+('Scenario Input'!$AG$15/100)) -> 107.2498311 | G26: =F26*(1+('Scenario Input'!$AJ$15/100)) -> 109.5870096 | H26: =G26*(1+('Scenario Input'!$AM$15/100)) -> 112.0376364 | I26: =H26*(1+('Scenario Input'!$AP$15/100)) -> 115.3097055 | J26: =I26*(1+('Scenario Input'!$AS$15/100)) -> 118.6773356
A27: CalAm_LKD | C27: 71.3 | D27: =C27*(1+('Scenario Input'!$AA$15/100)) -> 74.56211634 | E27: =D27*(1+('Scenario Input'!$AD$15/100)) -> 77.16713468 | F27: =E27*(1+('Scenario Input'!$AG$15/100)) -> 78.80165868 | G27: =F27*(1+('Scenario Input'!$AJ$15/100)) -> 80.51889722 | H27: =G27*(1+('Scenario Input'!$AM$15/100)) -> 82.31949172 | I27: =H27*(1+('Scenario Input'!$AP$15/100)) -> 84.72363975 | J27: =I27*(1+('Scenario Input'!$AS$15/100)) -> 87.19800114
A28: CalAm_MEAD | C28: 31.85 | D28: =C28*(1+('Scenario Input'!$AA$15/100)) -> 33.30720064 | E28: =D28*(1+('Scenario Input'!$AD$15/100)) -> 34.47087293 | F28: =E28*(1+('Scenario Input'!$AG$15/100)) -> 35.20102145 | G28: =F28*(1+('Scenario Input'!$AJ$15/100)) -> 35.96811889 | H28: =G28*(1+('Scenario Input'!$AM$15/100)) -> 36.77245177 | I28: =H28*(1+('Scenario Input'!$AP$15/100)) -> 37.84639447 | J28: =I28*(1+('Scenario Input'!$AS$15/100)) -> 38.95170177
A29: CalAm_MON | C29: 114.86 | D29: =C29*(1+('Scenario Input'!$AA$15/100)) -> 120.1150727 | E29: =D29*(1+('Scenario Input'!$AD$15/100)) -> 124.3116001 | F29: =E29*(1+('Scenario Input'!$AG$15/100)) -> 126.9447197 | G29: =F29*(1+('Scenario Input'!$AJ$15/100)) -> 129.7110874 | H29: =G29*(1+('Scenario Input'!$AM$15/100)) -> 132.6117366 | I29: =H29*(1+('Scenario Input'!$AP$15/100)) -> 136.4846741 | J29: =I29*(1+('Scenario Input'!$AS$15/100)) -> 140.470721
A30: CalAm_RIO | C30: 39.12 | D30: =C30*(1+('Scenario Input'!$AA$15/100)) -> 40.90981755 | E30: =D30*(1+('Scenario Input'!$AD$15/100)) -> 42.33910671 | F30: =E30*(1+('Scenario Input'!$AG$15/100)) -> 43.23591708 | G30: =F30*(1+('Scenario Input'!$AJ$15/100)) -> 44.17811023 | H30: =G30*(1+('Scenario Input'!$AM$15/100)) -> 45.16603809 | I30: =H30*(1+('Scenario Input'!$AP$15/100)) -> 46.48511623 | J30: =I30*(1+('Scenario Input'!$AS$15/100)) -> 47.84271815
A31: CalAm_Sac | C31: 37.73 | D31: =C31*(1+('Scenario Input'!$AA$15/100)) -> 39.4562223 | E31: =D31*(1+('Scenario Input'!$AD$15/100)) -> 40.83472639 | F31: =E31*(1+('Scenario Input'!$AG$15/100)) -> 41.69967156 | G31: =F31*(1+('Scenario Input'!$AJ$15/100)) -> 42.60838699 | H31: =G31*(1+('Scenario Input'!$AM$15/100)) -> 43.5612121 | I31: =H31*(1+('Scenario Input'!$AP$15/100)) -> 44.83342115 | J31: =I31*(1+('Scenario Input'!$AS$15/100)) -> 46.14278517
A32: CalAm_SAN | C32: 49.36 | D32: =C32*(1+('Scenario Input'!$AA$15/100)) -> 51.61831785 | E32: =D32*(1+('Scenario Input'!$AD$15/100)) -> 53.42173587 | F32: =E32*(1+('Scenario Input'!$AG$15/100)) -> 54.55329415 | G32: =F32*(1+('Scenario Input'!$AJ$15/100)) -> 55.74211454 | H32: =G32*(1+('Scenario Input'!$AM$15/100)) -> 56.98864111 | I32: =H32*(1+('Scenario Input'!$AP$15/100)) -> 58.65299941 | J32: =I32*(1+('Scenario Input'!$AS$15/100)) -> 60.36596544
A33: CalAm_SM | C33: 31.96 | D33: =C33*(1+('Scenario Input'!$AA$15/100)) -> 33.42223336 | E33: =D33*(1+('Scenario Input'!$AD$15/100)) -> 34.58992461 | F33: =E33*(1+('Scenario Input'!$AG$15/100)) -> 35.32259483 | G33: =F33*(1+('Scenario Input'!$AJ$15/100)) -> 36.09234159 | H33: =G33*(1+('Scenario Input'!$AM$15/100)) -> 36.89945239 | I33: =H33*(1+('Scenario Input'!$AP$15/100)) -> 37.97710416 | J33: =I33*(1+('Scenario Input'!$AS$15/100)) -> 39.08622884
A34: CalAm_VEN | C34: 41.77 | D34: =C34*(1+('Scenario Input'!$AA$15/100)) -> 43.6810603 | E34: =D34*(1+('Scenario Input'!$AD$15/100)) -> 45.20716992 | F34: =E34*(1+('Scenario Input'!$AG$15/100)) -> 46.16473048 | G34: =F34*(1+('Scenario Input'!$AJ$15/100)) -> 47.17074807 | H34: =G34*(1+('Scenario Input'!$AM$15/100)) -> 48.22559844 | I34: =H34*(1+('Scenario Input'!$AP$15/100)) -> 49.63403131 | J34: =I34*(1+('Scenario Input'!$AS$15/100)) -> 51.08359758
A35: GreatOaks | C35: 33.33 | D35: =C35*(1+('Scenario Input'!$AA$15/100)) -> 34.85491357 | E35: =D35*(1+('Scenario Input'!$AD$15/100)) -> 36.07265917 | F35: =E35*(1+('Scenario Input'!$AG$15/100)) -> 36.8367361 | G35: =F35*(1+('Scenario Input'!$AJ$15/100)) -> 37.63947888 | H35: =G35*(1+('Scenario Input'!$AM$15/100)) -> 38.48118736 | I35: =H35*(1+('Scenario Input'!$AP$15/100)) -> 39.60503384 | J35: =I35*(1+('Scenario Input'!$AS$15/100)) -> 40.76170235
A36: GSWC_ArdenCordova | C36: 26.6 | D36: =C36*(1+('Scenario Input'!$AA$15/100)) -> 27.81700273 | E36: =D36*(1+('Scenario Input'!$AD$15/100)) -> 28.7888609 | F36: =E36*(1+('Scenario Input'!$AG$15/100)) -> 29.39865527 | G36: =F36*(1+('Scenario Input'!$AJ$15/100)) -> 30.03930808 | H36: =G36*(1+('Scenario Input'!$AM$15/100)) -> 30.71105862 | I36: =H36*(1+('Scenario Input'!$AP$15/100)) -> 31.6079778 | J36: =I36*(1+('Scenario Input'!$AS$15/100)) -> 32.53109159
A37: GSWC_BayPoint | C37: 64.51 | D37: =C37*(1+('Scenario Input'!$AA$15/100)) -> 67.46146038 | E37: =D37*(1+('Scenario Input'!$AD$15/100)) -> 69.81839913 | F37: =E37*(1+('Scenario Input'!$AG$15/100)) -> 71.2972651 | G37: =F37*(1+('Scenario Input'!$AJ$15/100)) -> 72.85096858 | H37: =G37*(1+('Scenario Input'!$AM$15/100)) -> 74.48008991 | I37: =H37*(1+('Scenario Input'!$AP$15/100)) -> 76.65528752 | J37: =I37*(1+('Scenario Input'!$AS$15/100)) -> 78.89401197
A38: GSWC_ClearLake | C38: 98 | D38: =C38*(1+('Scenario Input'!$AA$15/100)) -> 102.4836943 | E38: =D38*(1+('Scenario Input'!$AD$15/100)) -> 106.0642244 | F38: =E38*(1+('Scenario Input'!$AG$15/100)) -> 108.3108352 | G38: =F38*(1+('Scenario Input'!$AJ$15/100)) -> 110.671135 | H38: =G38*(1+('Scenario Input'!$AM$15/100)) -> 113.1460054 | I38: =H38*(1+('Scenario Input'!$AP$15/100)) -> 116.4504445 | J38: =I38*(1+('Scenario Input'!$AS$15/100)) -> 119.8513901
A39: GSWC_LosOsos | C39: 96.72 | D39: =C39*(1+('Scenario Input'!$AA$15/100)) -> 101.1451317 | E39: =D39*(1+('Scenario Input'!$AD$15/100)) -> 104.6788957 | F39: =E39*(1+('Scenario Input'!$AG$15/100)) -> 106.8961631 | G39: =F39*(1+('Scenario Input'!$AJ$15/100)) -> 109.2256345 | H39: =G39*(1+('Scenario Input'!$AM$15/100)) -> 111.6681801 | I39: =H39*(1+('Scenario Input'!$AP$15/100)) -> 114.9294591 | J39: =I39*(1+('Scenario Input'!$AS$15/100)) -> 118.2859841
A40: GSWC_SantaMaria | C40: 40.34 | D40: =C40*(1+('Scenario Input'!$AA$15/100)) -> 42.18563497 | E40: =D40*(1+('Scenario Input'!$AD$15/100)) -> 43.65949808 | F40: =E40*(1+('Scenario Input'!$AG$15/100)) -> 44.58427646 | G40: =F40*(1+('Scenario Input'!$AJ$15/100)) -> 45.55585293 | H40: =G40*(1+('Scenario Input'!$AM$15/100)) -> 46.57459041 | I40: =H40*(1+('Scenario Input'!$AP$15/100)) -> 47.93480543 | J40: =I40*(1+('Scenario Input'!$AS$15/100)) -> 49.33474566
A41: GSWC_SimiValley | C41: 44.77 | D41: =C41*(1+('Scenario Input'!$AA$15/100)) -> 46.81831625 | E41: =D41*(1+('Scenario Input'!$AD$15/100)) -> 48.45403394 | F41: =E41*(1+('Scenario Input'!$AG$15/100)) -> 49.48036829 | G41: =F41*(1+('Scenario Input'!$AJ$15/100)) -> 50.55863995 | H41: =G41*(1+('Scenario Input'!$AM$15/100)) -> 51.68925167 | I41: =H41*(1+('Scenario Input'!$AP$15/100)) -> 53.19884084 | J41: =I41*(1+('Scenario Input'!$AS$15/100)) -> 54.75251768
A42: GSWC_Region2 | C42: 48.09 | D42: =C42*(1+('Scenario Input'!$AA$15/100)) -> 50.29021283 | E42: =D42*(1+('Scenario Input'!$AD$15/100)) -> 52.04723011 | F42: =E42*(1+('Scenario Input'!$AG$15/100)) -> 53.14967414 | G42: =F42*(1+('Scenario Input'!$AJ$15/100)) -> 54.30790698 | H42: =G42*(1+('Scenario Input'!$AM$15/100)) -> 55.52236124 | I42: =H42*(1+('Scenario Input'!$AP$15/100)) -> 57.14389671 | J42: =I42*(1+('Scenario Input'!$AS$15/100)) -> 58.81278927
A43: GSWC_Region3 | C43: 40.67 | D43: =C43*(1+('Scenario Input'!$AA$15/100)) -> 42.53073312 | E43: =D43*(1+('Scenario Input'!$AD$15/100)) -> 44.01665312 | F43: =E43*(1+('Scenario Input'!$AG$15/100)) -> 44.94899662 | G43: =F43*(1+('Scenario Input'!$AJ$15/100)) -> 45.92852104 | H43: =G43*(1+('Scenario Input'!$AM$15/100)) -> 46.95559226 | I43: =H43*(1+('Scenario Input'!$AP$15/100)) -> 48.32693448 | J43: =I43*(1+('Scenario Input'!$AS$15/100)) -> 49.73832688
A44: LU_AV | C44: 66.82 | D44: =C44*(1+('Scenario Input'!$AA$15/100)) -> 69.87714746 | E44: =D44*(1+('Scenario Input'!$AD$15/100)) -> 72.31848442 | F44: =E44*(1+('Scenario Input'!$AG$15/100)) -> 73.85030622 | G44: =F44*(1+('Scenario Input'!$AJ$15/100)) -> 75.45964534 | H44: =G44*(1+('Scenario Input'!$AM$15/100)) -> 77.1471029 | I44: =H44*(1+('Scenario Input'!$AP$15/100)) -> 79.40019086 | J44: =I44*(1+('Scenario Input'!$AS$15/100)) -> 81.71908045
A45: LU_MesaCrest | C45: 51.27 | D45: =C45*(1+('Scenario Input'!$AA$15/100)) -> 53.61570414 | E45: =D45*(1+('Scenario Input'!$AD$15/100)) -> 55.48890596 | F45: =E45*(1+('Scenario Input'!$AG$15/100)) -> 56.66425022 | G45: =F45*(1+('Scenario Input'!$AJ$15/100)) -> 57.89907238 | H45: =G45*(1+('Scenario Input'!$AM$15/100)) -> 59.19383367 | I45: =H45*(1+('Scenario Input'!$AP$15/100)) -> 60.92259481 | J45: =I45*(1+('Scenario Input'!$AS$15/100)) -> 62.70184458
A46: LU_Park | C46: 80.15 | D46: =C46*(1+('Scenario Input'!$AA$15/100)) -> 83.81702139 | E46: =D46*(1+('Scenario Input'!$AD$15/100)) -> 86.74538352 | F46: =E46*(1+('Scenario Input'!$AG$15/100)) -> 88.58279023 | G46: =F46*(1+('Scenario Input'!$AJ$15/100)) -> 90.5131783 | H46: =G46*(1+('Scenario Input'!$AM$15/100)) -> 92.53726874 | I46: =H46*(1+('Scenario Input'!$AP$15/100)) -> 95.23982785 | J46: =I46*(1+('Scenario Input'!$AS$15/100)) -> 98.02131544
A47: LU_Yermo | C47: 42.63 | D47: =C47*(1+('Scenario Input'!$AA$15/100)) -> 44.58040701 | E47: =D47*(1+('Scenario Input'!$AD$15/100)) -> 46.13793761 | F47: =E47*(1+('Scenario Input'!$AG$15/100)) -> 47.11521332 | G47: =F47*(1+('Scenario Input'!$AJ$15/100)) -> 48.14194374 | H47: =G47*(1+('Scenario Input'!$AM$15/100)) -> 49.21851237 | I47: =H47*(1+('Scenario Input'!$AP$15/100)) -> 50.65594337 | J47: =I47*(1+('Scenario Input'!$AS$15/100)) -> 52.13535468
A48: SWS_SJH | C48: 43.33 | D48: =C48*(1+('Scenario Input'!$AA$15/100)) -> 45.3124334 | E48: =D48*(1+('Scenario Input'!$AD$15/100)) -> 46.89553921 | F48: =E48*(1+('Scenario Input'!$AG$15/100)) -> 47.88886214 | G48: =F48*(1+('Scenario Input'!$AJ$15/100)) -> 48.93245185 | H48: =G48*(1+('Scenario Input'!$AM$15/100)) -> 50.02669812 | I48: =H48*(1+('Scenario Input'!$AP$15/100)) -> 51.48773226 | J48: =I48*(1+('Scenario Input'!$AS$15/100)) -> 52.99143603
A49: SWS_WLM | C49: 42.13 | D49: =C49*(1+('Scenario Input'!$AA$15/100)) -> 44.05753102 | E49: =D49*(1+('Scenario Input'!$AD$15/100)) -> 45.59679361 | F49: =E49*(1+('Scenario Input'!$AG$15/100)) -> 46.56260702 | G49: =F49*(1+('Scenario Input'!$AJ$15/100)) -> 47.57729509 | H49: =G49*(1+('Scenario Input'!$AM$15/100)) -> 48.64123683 | I49: =H49*(1+('Scenario Input'!$AP$15/100)) -> 50.06180845 | J49: =I49*(1+('Scenario Input'!$AS$15/100)) -> 51.52386799
A50: SanJoseWater | C50: 99.12 | D50: =C50*(1+('Scenario Input'!$AA$15/100)) -> 103.6549365 | E50: =D50*(1+('Scenario Input'!$AD$15/100)) -> 107.2763869 | F50: =E50*(1+('Scenario Input'!$AG$15/100)) -> 109.5486733 | G50: =F50*(1+('Scenario Input'!$AJ$15/100)) -> 111.935948 | H50: =G50*(1+('Scenario Input'!$AM$15/100)) -> 114.4391027 | I50: =H50*(1+('Scenario Input'!$AP$15/100)) -> 117.7813068 | J50: =I50*(1+('Scenario Input'!$AS$15/100)) -> 121.2211202
A51: SGVWC_Fontana | C51: 43.69 | D51: =C51*(1+('Scenario Input'!$AA$15/100)) -> 45.68890411 | E51: =D51*(1+('Scenario Input'!$AD$15/100)) -> 47.28516289 | F51: =E51*(1+('Scenario Input'!$AG$15/100)) -> 48.28673868 | G51: =F51*(1+('Scenario Input'!$AJ$15/100)) -> 49.33899887 | H51: =G51*(1+('Scenario Input'!$AM$15/100)) -> 50.44233651 | I51: =H51*(1+('Scenario Input'!$AP$15/100)) -> 51.91550941 | J51: =I51*(1+('Scenario Input'!$AS$15/100)) -> 53.43170645
A52: SGVWC_LA | C52: 46.32 | D52: =C52*(1+('Scenario Input'!$AA$15/100)) -> 48.43923182 | E52: =D52*(1+('Scenario Input'!$AD$15/100)) -> 50.13158034 | F52: =E52*(1+('Scenario Input'!$AG$15/100)) -> 51.19344783 | G52: =F52*(1+('Scenario Input'!$AJ$15/100)) -> 52.30905076 | H52: =G52*(1+('Scenario Input'!$AM$15/100)) -> 53.47880584 | I52: =H52*(1+('Scenario Input'!$AP$15/100)) -> 55.04065909 | J52: =I52*(1+('Scenario Input'!$AS$15/100)) -> 56.6481264
A53: CA5400670 | B53: TRIPLE R MUTUAL WATER CO | C53: 76 | D53: =C53*(1+('Scenario Input'!$AA$15/100)) -> 79.47715066 | E53: =D53*(1+('Scenario Input'!$AD$15/100)) -> 82.2538883 | F53: =E53*(1+('Scenario Input'!$AG$15/100)) -> 83.99615792 | G53: =F53*(1+('Scenario Input'!$AJ$15/100)) -> 85.82659452 | H53: =G53*(1+('Scenario Input'!$AM$15/100)) -> 87.74588177 | I53: =H53*(1+('Scenario Input'!$AP$15/100)) -> 90.30850801 | J53: =I53*(1+('Scenario Input'!$AS$15/100)) -> 92.94597597
A54: CA5400536 | B54: KINGS RIVER ESTATES MUTUAL WATER COMPANY | C54: 41.67 | D54: =C54*(1+('Scenario Input'!$AA$15/100)) -> 43.57648511 | E54: =D54*(1+('Scenario Input'!$AD$15/100)) -> 45.09894112 | F54: =E54*(1+('Scenario Input'!$AG$15/100)) -> 46.05420922 | G54: =F54*(1+('Scenario Input'!$AJ$15/100)) -> 47.05781834 | H54: =G54*(1+('Scenario Input'!$AM$15/100)) -> 48.11014334 | I54: =H54*(1+('Scenario Input'!$AP$15/100)) -> 49.51520432 | J54: =I54*(1+('Scenario Input'!$AS$15/100)) -> 50.96130024
A55: CA5310002 | B55: TRINITY CO. W.W. DIST #1 | C55: 37.44 | D55: =C55*(1+('Scenario Input'!$AA$15/100)) -> 39.15295422 | E55: =D55*(1+('Scenario Input'!$AD$15/100)) -> 40.52086287 | F55: =E55*(1+('Scenario Input'!$AG$15/100)) -> 41.3791599 | G55: =F55*(1+('Scenario Input'!$AJ$15/100)) -> 42.28089077 | H55: =G55*(1+('Scenario Input'!$AM$15/100)) -> 43.22639228 | I55: =H55*(1+('Scenario Input'!$AP$15/100)) -> 44.48882289 | J55: =I55*(1+('Scenario Input'!$AS$15/100)) -> 45.7881229
A56: CA3010008 | B56: EASTSIDE WATER ASSOCIATION | C56: 45 | D56: =C56*(1+('Scenario Input'!$AA$15/100)) -> 47.05883921 | E56: =D56*(1+('Scenario Input'!$AD$15/100)) -> 48.70296018 | F56: =E56*(1+('Scenario Input'!$AG$15/100)) -> 49.73456719 | G56: =F56*(1+('Scenario Input'!$AJ$15/100)) -> 50.81837833 | H56: =G56*(1+('Scenario Input'!$AM$15/100)) -> 51.95479842 | I56: =H56*(1+('Scenario Input'!$AP$15/100)) -> 53.4721429 | J56: =I56*(1+('Scenario Input'!$AS$15/100)) -> 55.03380156
A57: CA3010101 | B57: SANTA MARGARITA WATER DISTRICT | C57: 71.73 | D57: =C57*(1+('Scenario Input'!$AA$15/100)) -> 75.0117897 | E57: =D57*(1+('Scenario Input'!$AD$15/100)) -> 77.63251852 | F57: =E57*(1+('Scenario Input'!$AG$15/100)) -> 79.2769001 | G57: =F57*(1+('Scenario Input'!$AJ$15/100)) -> 81.00449506 | H57: =G57*(1+('Scenario Input'!$AM$15/100)) -> 82.81594868 | I57: =H57*(1+('Scenario Input'!$AP$15/100)) -> 85.23459578 | J57: =I57*(1+('Scenario Input'!$AS$15/100)) -> 87.72387968
A58: CA5610058 | B58: CRESTVIEW MUTUAL WATER CO | C58: 27.25 | D58: =C58*(1+('Scenario Input'!$AA$15/100)) -> 28.49674152 | E58: =D58*(1+('Scenario Input'!$AD$15/100)) -> 29.49234811 | F58: =E58*(1+('Scenario Input'!$AG$15/100)) -> 30.11704347 | G58: =F58*(1+('Scenario Input'!$AJ$15/100)) -> 30.77335132 | H58: =G58*(1+('Scenario Input'!$AM$15/100)) -> 31.46151682 | I58: =H58*(1+('Scenario Input'!$AP$15/100)) -> 32.3803532 | J58: =I58*(1+('Scenario Input'!$AS$15/100)) -> 33.32602428
A59: CA4110023 | B59: CITY OF SAN BRUNO | C59: 49.02 | D59: =C59*(1+('Scenario Input'!$AA$15/100)) -> 51.26276218 | E59: =D59*(1+('Scenario Input'!$AD$15/100)) -> 53.05375795 | F59: =E59*(1+('Scenario Input'!$AG$15/100)) -> 54.17752186 | G59: =F59*(1+('Scenario Input'!$AJ$15/100)) -> 55.35815346 | H59: =G59*(1+('Scenario Input'!$AM$15/100)) -> 56.59609374 | I59: =H59*(1+('Scenario Input'!$AP$15/100)) -> 58.24898766 | J59: =I59*(1+('Scenario Input'!$AS$15/100)) -> 59.9501545
A60: CA3400172 | B60: TOKAY PARK WATER CO | C60: 30 | D60: =C60*(1+('Scenario Input'!$AA$15/100)) -> 31.37255947 | E60: =D60*(1+('Scenario Input'!$AD$15/100)) -> 32.46864012 | F60: =E60*(1+('Scenario Input'!$AG$15/100)) -> 33.15637813 | G60: =F60*(1+('Scenario Input'!$AJ$15/100)) -> 33.87891889 | H60: =G60*(1+('Scenario Input'!$AM$15/100)) -> 34.63653228 | I60: =H60*(1+('Scenario Input'!$AP$15/100)) -> 35.64809527 | J60: =I60*(1+('Scenario Input'!$AS$15/100)) -> 36.68920104
A61: CA5210001 | B61: CITY OF CORNING | C61: 17.27 | D61: =C61*(1+('Scenario Input'!$AA$15/100)) -> 18.06013674 | E61: =D61*(1+('Scenario Input'!$AD$15/100)) -> 18.69111383 | F61: =E61*(1+('Scenario Input'!$AG$15/100)) -> 19.08702168 | G61: =F61*(1+('Scenario Input'!$AJ$15/100)) -> 19.50296431 | H61: =G61*(1+('Scenario Input'!$AM$15/100)) -> 19.93909708 | I61: =H61*(1+('Scenario Input'!$AP$15/100)) -> 20.52142017 | J61: =I61*(1+('Scenario Input'!$AS$15/100)) -> 21.12075006
A62: CA2300507 | B62: CALPELLA COUNTY WATER DISTRICT | C62: 45.62 | D62: =C62*(1+('Scenario Input'!$AA$15/100)) -> 47.70720544 | E62: =D62*(1+('Scenario Input'!$AD$15/100)) -> 49.37397874 | F62: =E62*(1+('Scenario Input'!$AG$15/100)) -> 50.41979901 | G62: =F62*(1+('Scenario Input'!$AJ$15/100)) -> 51.51854266 | H62: =G62*(1+('Scenario Input'!$AM$15/100)) -> 52.67062009 | I62: =H62*(1+('Scenario Input'!$AP$15/100)) -> 54.2088702 | J62: =I62*(1+('Scenario Input'!$AS$15/100)) -> 55.79204505
A63: CA3110001 | B63: NORTH TAHOE PUD - MAIN | C63: 45.65 | D63: =C63*(1+('Scenario Input'!$AA$15/100)) -> 47.738578 | E63: =D63*(1+('Scenario Input'!$AD$15/100)) -> 49.40644738 | F63: =E63*(1+('Scenario Input'!$AG$15/100)) -> 50.45295538 | G63: =F63*(1+('Scenario Input'!$AJ$15/100)) -> 51.55242157 | H63: =G63*(1+('Scenario Input'!$AM$15/100)) -> 52.70525662 | I63: =H63*(1+('Scenario Input'!$AP$15/100)) -> 54.2445183 | J63: =I63*(1+('Scenario Input'!$AS$15/100)) -> 55.82873425
A64: CA3010017 | B64: LAGUNA BEACH COUNTY WD | C64: 66.86 | D64: =C64*(1+('Scenario Input'!$AA$15/100)) -> 69.91897754 | E64: =D64*(1+('Scenario Input'!$AD$15/100)) -> 72.36177594 | F64: =E64*(1+('Scenario Input'!$AG$15/100)) -> 73.89451472 | G64: =F64*(1+('Scenario Input'!$AJ$15/100)) -> 75.50481723 | H64: =G64*(1+('Scenario Input'!$AM$15/100)) -> 77.19328494 | I64: =H64*(1+('Scenario Input'!$AP$15/100)) -> 79.44772165 | J64: =I64*(1+('Scenario Input'!$AS$15/100)) -> 81.76799938
A65: CA1910146 | B65: SANTA MONICA-CITY, WATER DIVISION | C65: 31.06 | D65: =C65*(1+('Scenario Input'!$AA$15/100)) -> 32.48105657 | E65: =D65*(1+('Scenario Input'!$AD$15/100)) -> 33.6158654 | F65: =E65*(1+('Scenario Input'!$AG$15/100)) -> 34.32790349 | G65: =F65*(1+('Scenario Input'!$AJ$15/100)) -> 35.07597402 | H65: =G65*(1+('Scenario Input'!$AM$15/100)) -> 35.86035642 | I65: =H65*(1+('Scenario Input'!$AP$15/100)) -> 36.9076613 | J65: =I65*(1+('Scenario Input'!$AS$15/100)) -> 37.98555281
A66: CA3710005 | B66: CARLSBAD MWD | C66: 49.26 | D66: =C66*(1+('Scenario Input'!$AA$15/100)) -> 51.51374265 | E66: =D66*(1+('Scenario Input'!$AD$15/100)) -> 53.31350707 | F66: =E66*(1+('Scenario Input'!$AG$15/100)) -> 54.44277289 | G66: =F66*(1+('Scenario Input'!$AJ$15/100)) -> 55.62918481 | H66: =G66*(1+('Scenario Input'!$AM$15/100)) -> 56.873186 | I66: =H66*(1+('Scenario Input'!$AP$15/100)) -> 58.53417243 | J66: =I66*(1+('Scenario Input'!$AS$15/100)) -> 60.24366811
A67: CA3500825 | B67: UNION HEIGHTS MWC | C67: 1.4 | D67: =C67*(1+('Scenario Input'!$AA$15/100)) -> 1.464052775 | E67: =D67*(1+('Scenario Input'!$AD$15/100)) -> 1.515203206 | F67: =E67*(1+('Scenario Input'!$AG$15/100)) -> 1.547297646 | G67: =F67*(1+('Scenario Input'!$AJ$15/100)) -> 1.581016215 | H67: =G67*(1+('Scenario Input'!$AM$15/100)) -> 1.616371506 | I67: =H67*(1+('Scenario Input'!$AP$15/100)) -> 1.663577779 | J67: =I67*(1+('Scenario Input'!$AS$15/100)) -> 1.712162715
A68: CA4700638 | B68: OAK VALLEY ACRES P.O.A. | C68: 40 | D68: =C68*(1+('Scenario Input'!$AA$15/100)) -> 41.8300793 | E68: =D68*(1+('Scenario Input'!$AD$15/100)) -> 43.29152016 | F68: =E68*(1+('Scenario Input'!$AG$15/100)) -> 44.20850417 | G68: =F68*(1+('Scenario Input'!$AJ$15/100)) -> 45.17189185 | H68: =G68*(1+('Scenario Input'!$AM$15/100)) -> 46.18204304 | I68: =H68*(1+('Scenario Input'!$AP$15/100)) -> 47.53079369 | J68: =I68*(1+('Scenario Input'!$AS$15/100)) -> 48.91893472
A69: CA3500904 | B69: HOLLISTER RANCH ESTATES | C69: 200 | D69: =C69*(1+('Scenario Input'!$AA$15/100)) -> 209.1503965 | E69: =D69*(1+('Scenario Input'!$AD$15/100)) -> 216.4576008 | F69: =E69*(1+('Scenario Input'!$AG$15/100)) -> 221.0425209 | G69: =F69*(1+('Scenario Input'!$AJ$15/100)) -> 225.8594593 | H69: =G69*(1+('Scenario Input'!$AM$15/100)) -> 230.9102152 | I69: =H69*(1+('Scenario Input'!$AP$15/100)) -> 237.6539684 | J69: =I69*(1+('Scenario Input'!$AS$15/100)) -> 244.5946736
A70: CA3500923 | B70: FAIRVIEW ROAD WATER SYSTEM | C70: 175 | D70: =C70*(1+('Scenario Input'!$AA$15/100)) -> 183.0065969 | E70: =D70*(1+('Scenario Input'!$AD$15/100)) -> 189.4004007 | F70: =E70*(1+('Scenario Input'!$AG$15/100)) -> 193.4122057 | G70: =F70*(1+('Scenario Input'!$AJ$15/100)) -> 197.6270268 | H70: =G70*(1+('Scenario Input'!$AM$15/100)) -> 202.0464383 | I70: =H70*(1+('Scenario Input'!$AP$15/100)) -> 207.9472224 | J70: =I70*(1+('Scenario Input'!$AS$15/100)) -> 214.0203394
A71: CA3500911 | B71: CREEKBRIDGE MUTUAL WATER COMPANY | C71: 132.69 | D71: =C71*(1+('Scenario Input'!$AA$15/100)) -> 138.7608305 | E71: =D71*(1+('Scenario Input'!$AD$15/100)) -> 143.6087952 | F71: =E71*(1+('Scenario Input'!$AG$15/100)) -> 146.6506605 | G71: =F71*(1+('Scenario Input'!$AJ$15/100)) -> 149.8464582 | H71: =G71*(1+('Scenario Input'!$AM$15/100)) -> 153.1973823 | I71: =H71*(1+('Scenario Input'!$AP$15/100)) -> 157.6715254 | J71: =I71*(1+('Scenario Input'!$AS$15/100)) -> 162.2763362
A72: CA2702007 | B72: VIERRA ESTATES WS | C72: 64.93 | D72: =C72*(1+('Scenario Input'!$AA$15/100)) -> 67.90067622 | E72: =D72*(1+('Scenario Input'!$AD$15/100)) -> 70.2729601 | F72: =E72*(1+('Scenario Input'!$AG$15/100)) -> 71.76145439 | G72: =F72*(1+('Scenario Input'!$AJ$15/100)) -> 73.32527345 | H72: =G72*(1+('Scenario Input'!$AM$15/100)) -> 74.96500136 | I72: =H72*(1+('Scenario Input'!$AP$15/100)) -> 77.15436085 | J72: =I72*(1+('Scenario Input'!$AS$15/100)) -> 79.40766078
A73: CA1700563 | B73: COBB AREA CWD - MT. HANNAH | C73: 65.34 | D73: =C73*(1+('Scenario Input'!$AA$15/100)) -> 68.32943453 | E73: =D73*(1+('Scenario Input'!$AD$15/100)) -> 70.71669818 | F73: =E73*(1+('Scenario Input'!$AG$15/100)) -> 72.21459156 | G73: =F73*(1+('Scenario Input'!$AJ$15/100)) -> 73.78828534 | H73: =G73*(1+('Scenario Input'!$AM$15/100)) -> 75.4383673 | I73: =H73*(1+('Scenario Input'!$AP$15/100)) -> 77.64155149 | J73: =I73*(1+('Scenario Input'!$AS$15/100)) -> 79.90907986
A74: CA1200587 | B74: BRICELAND C.S.D. | C74: 34.33 | D74: =C74*(1+('Scenario Input'!$AA$15/100)) -> 35.90066556 | E74: =D74*(1+('Scenario Input'!$AD$15/100)) -> 37.15494718 | F74: =E74*(1+('Scenario Input'!$AG$15/100)) -> 37.9419487 | G74: =F74*(1+('Scenario Input'!$AJ$15/100)) -> 38.76877618 | H74: =G74*(1+('Scenario Input'!$AM$15/100)) -> 39.63573844 | I74: =H74*(1+('Scenario Input'!$AP$15/100)) -> 40.79330368 | J74: =I74*(1+('Scenario Input'!$AS$15/100)) -> 41.98467572
A75: CA1502564 | B75: SIERRA MEADOWS | C75: 39 | D75: =C75*(1+('Scenario Input'!$AA$15/100)) -> 40.78432731 | E75: =D75*(1+('Scenario Input'!$AD$15/100)) -> 42.20923215 | F75: =E75*(1+('Scenario Input'!$AG$15/100)) -> 43.10329157 | G75: =F75*(1+('Scenario Input'!$AJ$15/100)) -> 44.04259455 | H75: =G75*(1+('Scenario Input'!$AM$15/100)) -> 45.02749196 | I75: =H75*(1+('Scenario Input'!$AP$15/100)) -> 46.34252385 | J75: =I75*(1+('Scenario Input'!$AS$15/100)) -> 47.69596135
A76: CA1610006 | B76: STRATFORD PUD | C76: 33 | D76: =C76*(1+('Scenario Input'!$AA$15/100)) -> 34.50981542 | E76: =D76*(1+('Scenario Input'!$AD$15/100)) -> 35.71550413 | F76: =E76*(1+('Scenario Input'!$AG$15/100)) -> 36.47201594 | G76: =F76*(1+('Scenario Input'!$AJ$15/100)) -> 37.26681078 | H76: =G76*(1+('Scenario Input'!$AM$15/100)) -> 38.10018551 | I76: =H76*(1+('Scenario Input'!$AP$15/100)) -> 39.21290479 | J76: =I76*(1+('Scenario Input'!$AS$15/100)) -> 40.35812114
A77: CA1900801 | B77: COLORADO MUTUAL WATER COMPANY | C77: 87.5 | D77: =C77*(1+('Scenario Input'!$AA$15/100)) -> 91.50329846 | E77: =D77*(1+('Scenario Input'!$AD$15/100)) -> 94.70020034 | F77: =E77*(1+('Scenario Input'!$AG$15/100)) -> 96.70610287 | G77: =F77*(1+('Scenario Input'!$AJ$15/100)) -> 98.81351342 | H77: =G77*(1+('Scenario Input'!$AM$15/100)) -> 101.0232191 | I77: =H77*(1+('Scenario Input'!$AP$15/100)) -> 103.9736112 | J77: =I77*(1+('Scenario Input'!$AS$15/100)) -> 107.0101697
A78: CA1710011 | B78: BUCKINGHAM PARK WATER DISTRICT | C78: 90.35 | D78: =C78*(1+('Scenario Input'!$AA$15/100)) -> 94.48369161 | E78: =D78*(1+('Scenario Input'!$AD$15/100)) -> 97.78472116 | F78: =E78*(1+('Scenario Input'!$AG$15/100)) -> 99.85595879 | G78: =F78*(1+('Scenario Input'!$AJ$15/100)) -> 102.0320107 | H78: =G78*(1+('Scenario Input'!$AM$15/100)) -> 104.3136897 | I78: =H78*(1+('Scenario Input'!$AP$15/100)) -> 107.3601802 | J78: =I78*(1+('Scenario Input'!$AS$15/100)) -> 110.4956438
A79: CA2710018 | B79: SEASIDE MUNICIPAL WATER SYSTEM | C79: 54.8 | D79: =C79*(1+('Scenario Input'!$AA$15/100)) -> 57.30720863 | E79: =D79*(1+('Scenario Input'!$AD$15/100)) -> 59.30938262 | F79: =E79*(1+('Scenario Input'!$AG$15/100)) -> 60.56565071 | G79: =F79*(1+('Scenario Input'!$AJ$15/100)) -> 61.88549184 | H79: =G79*(1+('Scenario Input'!$AM$15/100)) -> 63.26939896 | I79: =H79*(1+('Scenario Input'!$AP$15/100)) -> 65.11718735 | J79: =I79*(1+('Scenario Input'!$AS$15/100)) -> 67.01894056
A80: CA1510027 | B80: DESERT LAKE COMM SERV DIST | C80: 33.5 | D80: =C80*(1+('Scenario Input'!$AA$15/100)) -> 35.03269141 | E80: =D80*(1+('Scenario Input'!$AD$15/100)) -> 36.25664813 | F80: =E80*(1+('Scenario Input'!$AG$15/100)) -> 37.02462224 | G80: =F80*(1+('Scenario Input'!$AJ$15/100)) -> 37.83145943 | H80: =G80*(1+('Scenario Input'!$AM$15/100)) -> 38.67746105 | I80: =H80*(1+('Scenario Input'!$AP$15/100)) -> 39.80703971 | J80: =I80*(1+('Scenario Input'!$AS$15/100)) -> 40.96960783
A81: CA0707572 | B81: BETHEL ISLAND MUTUAL WATER CO | C81: 30 | D81: =C81*(1+('Scenario Input'!$AA$15/100)) -> 31.37255947 | E81: =D81*(1+('Scenario Input'!$AD$15/100)) -> 32.46864012 | F81: =E81*(1+('Scenario Input'!$AG$15/100)) -> 33.15637813 | G81: =F81*(1+('Scenario Input'!$AJ$15/100)) -> 33.87891889 | H81: =G81*(1+('Scenario Input'!$AM$15/100)) -> 34.63653228 | I81: =H81*(1+('Scenario Input'!$AP$15/100)) -> 35.64809527 | J81: =I81*(1+('Scenario Input'!$AS$15/100)) -> 36.68920104
A82: CA1000041 | B82: FCWWD #38/SKY HARBOUR | C82: 98.2 | D82: =C82*(1+('Scenario Input'!$AA$15/100)) -> 102.6928447 | E82: =D82*(1+('Scenario Input'!$AD$15/100)) -> 106.280682 | F82: =E82*(1+('Scenario Input'!$AG$15/100)) -> 108.5318777 | G82: =F82*(1+('Scenario Input'!$AJ$15/100)) -> 110.8969945 | H82: =G82*(1+('Scenario Input'!$AM$15/100)) -> 113.3769157 | I82: =H82*(1+('Scenario Input'!$AP$15/100)) -> 116.6880985 | J82: =I82*(1+('Scenario Input'!$AS$15/100)) -> 120.0959847
A83: CA5401038 | B83: AKIN WATER CO | C83: 80 | D83: =C83*(1+('Scenario Input'!$AA$15/100)) -> 83.66015859 | E83: =D83*(1+('Scenario Input'!$AD$15/100)) -> 86.58304031 | F83: =E83*(1+('Scenario Input'!$AG$15/100)) -> 88.41700834 | G83: =F83*(1+('Scenario Input'!$AJ$15/100)) -> 90.3437837 | H83: =G83*(1+('Scenario Input'!$AM$15/100)) -> 92.36408608 | I83: =H83*(1+('Scenario Input'!$AP$15/100)) -> 95.06158738 | J83: =I83*(1+('Scenario Input'!$AS$15/100)) -> 97.83786944
A84: CA1900055 | B84: BLUE SKIES TRAILOR PARK | C84: 65 | D84: =C84*(1+('Scenario Input'!$AA$15/100)) -> 67.97387885 | E84: =D84*(1+('Scenario Input'!$AD$15/100)) -> 70.34872026 | F84: =E84*(1+('Scenario Input'!$AG$15/100)) -> 71.83881928 | G84: =F84*(1+('Scenario Input'!$AJ$15/100)) -> 73.40432426 | H84: =G84*(1+('Scenario Input'!$AM$15/100)) -> 75.04581994 | I84: =H84*(1+('Scenario Input'!$AP$15/100)) -> 77.23753974 | J84: =I84*(1+('Scenario Input'!$AS$15/100)) -> 79.49326892
A85: CA1000042 | B85: FCWWD #40 / SHAVER SPRINGS | C85: 77.83 | D85: =C85*(1+('Scenario Input'!$AA$15/100)) -> 81.39087679 | E85: =D85*(1+('Scenario Input'!$AD$15/100)) -> 84.23447535 | F85: =E85*(1+('Scenario Input'!$AG$15/100)) -> 86.01869699 | G85: =F85*(1+('Scenario Input'!$AJ$15/100)) -> 87.89320857 | H85: =G85*(1+('Scenario Input'!$AM$15/100)) -> 89.85871024 | I85: =H85*(1+('Scenario Input'!$AP$15/100)) -> 92.48304182 | J85: =I85*(1+('Scenario Input'!$AS$15/100)) -> 95.18401723
A86: CA4310007 | B86: CITY OF MOUNTAIN VIEW | C86: 25.92 | D86: =C86*(1+('Scenario Input'!$AA$15/100)) -> 27.10589138 | E86: =D86*(1+('Scenario Input'!$AD$15/100)) -> 28.05290506 | F86: =E86*(1+('Scenario Input'!$AG$15/100)) -> 28.6471107 | G86: =F86*(1+('Scenario Input'!$AJ$15/100)) -> 29.27138592 | H86: =G86*(1+('Scenario Input'!$AM$15/100)) -> 29.92596389 | I86: =H86*(1+('Scenario Input'!$AP$15/100)) -> 30.79995431 | J86: =I86*(1+('Scenario Input'!$AS$15/100)) -> 31.6994697
A87: CA0300037 | B87: JACKSON VALLEY IRRIGATION DISTRICT | C87: 68.57 | D87: =C87*(1+('Scenario Input'!$AA$15/100)) -> 71.70721343 | E87: =D87*(1+('Scenario Input'!$AD$15/100)) -> 74.21248843 | F87: =E87*(1+('Scenario Input'!$AG$15/100)) -> 75.78442827 | G87: =F87*(1+('Scenario Input'!$AJ$15/100)) -> 77.43591561 | H87: =G87*(1+('Scenario Input'!$AM$15/100)) -> 79.16756728 | I87: =H87*(1+('Scenario Input'!$AP$15/100)) -> 81.47966308 | J87: =I87*(1+('Scenario Input'!$AS$15/100)) -> 83.85928384
A88: CA3301169 | B88: MURRIETA PALMS MOBILE HOME PARK | C88: 18 | D88: =C88*(1+('Scenario Input'!$AA$15/100)) -> 18.82353568 | E88: =D88*(1+('Scenario Input'!$AD$15/100)) -> 19.48118407 | F88: =E88*(1+('Scenario Input'!$AG$15/100)) -> 19.89382688 | G88: =F88*(1+('Scenario Input'!$AJ$15/100)) -> 20.32735133 | H88: =G88*(1+('Scenario Input'!$AM$15/100)) -> 20.78191937 | I88: =H88*(1+('Scenario Input'!$AP$15/100)) -> 21.38885716 | J88: =I88*(1+('Scenario Input'!$AS$15/100)) -> 22.01352062
A89: CA3610022 | B89: DWP - FAWNSKIN | C89: 46.5 | D89: =C89*(1+('Scenario Input'!$AA$15/100)) -> 48.62746718 | E89: =D89*(1+('Scenario Input'!$AD$15/100)) -> 50.32639218 | F89: =E89*(1+('Scenario Input'!$AG$15/100)) -> 51.3923861 | G89: =F89*(1+('Scenario Input'!$AJ$15/100)) -> 52.51232428 | H89: =G89*(1+('Scenario Input'!$AM$15/100)) -> 53.68662503 | I89: =H89*(1+('Scenario Input'!$AP$15/100)) -> 55.25454766 | J89: =I89*(1+('Scenario Input'!$AS$15/100)) -> 56.86826161
A90: CA1910244 | B90: GREEN VALLEY CWD | C90: 53 | D90: =C90*(1+('Scenario Input'!$AA$15/100)) -> 55.42485507 | E90: =D90*(1+('Scenario Input'!$AD$15/100)) -> 57.36126421 | F90: =E90*(1+('Scenario Input'!$AG$15/100)) -> 58.57626803 | G90: =F90*(1+('Scenario Input'!$AJ$15/100)) -> 59.8527567 | H90: =G90*(1+('Scenario Input'!$AM$15/100)) -> 61.19120703 | I90: =H90*(1+('Scenario Input'!$AP$15/100)) -> 62.97830164 | J90: =I90*(1+('Scenario Input'!$AS$15/100)) -> 64.8175885
A91: CA3600114 | B91: CSA 70 W-3 HACIENDA | C91: 70.87 | D91: =C91*(1+('Scenario Input'!$AA$15/100)) -> 74.11244299 | E91: =D91*(1+('Scenario Input'!$AD$15/100)) -> 76.70175084 | F91: =E91*(1+('Scenario Input'!$AG$15/100)) -> 78.32641726 | G91: =F91*(1+('Scenario Input'!$AJ$15/100)) -> 80.03329939 | H91: =G91*(1+('Scenario Input'!$AM$15/100)) -> 81.82303475 | I91: =H91*(1+('Scenario Input'!$AP$15/100)) -> 84.21268372 | J91: =I91*(1+('Scenario Input'!$AS$15/100)) -> 86.67212259
A92: CA2700586 | B92: GABILAN WC | C92: 72.44 | D92: =C92*(1+('Scenario Input'!$AA$15/100)) -> 75.7542736 | E92: =D92*(1+('Scenario Input'!$AD$15/100)) -> 78.400943 | F92: =E92*(1+('Scenario Input'!$AG$15/100)) -> 80.06160105 | G92: =F92*(1+('Scenario Input'!$AJ$15/100)) -> 81.80629614 | H92: =G92*(1+('Scenario Input'!$AM$15/100)) -> 83.63567994 | I92: =H92*(1+('Scenario Input'!$AP$15/100)) -> 86.07826737 | J92: =I92*(1+('Scenario Input'!$AS$15/100)) -> 88.59219078
A93: CA2702608 | B93: THIMIO MWC | C93: 100 | D93: =C93*(1+('Scenario Input'!$AA$15/100)) -> 104.5751982 | E93: =D93*(1+('Scenario Input'!$AD$15/100)) -> 108.2288004 | F93: =E93*(1+('Scenario Input'!$AG$15/100)) -> 110.5212604 | G93: =F93*(1+('Scenario Input'!$AJ$15/100)) -> 112.9297296 | H93: =G93*(1+('Scenario Input'!$AM$15/100)) -> 115.4551076 | I93: =H93*(1+('Scenario Input'!$AP$15/100)) -> 118.8269842 | J93: =I93*(1+('Scenario Input'!$AS$15/100)) -> 122.2973368
A94: CA1900913 | B94: LILY OF THE VALLEY MOBILE VILLAGE | C94: 47.98 | D94: =C94*(1+('Scenario Input'!$AA$15/100)) -> 50.17518011 | E94: =D94*(1+('Scenario Input'!$AD$15/100)) -> 51.92817843 | F94: =E94*(1+('Scenario Input'!$AG$15/100)) -> 53.02810075 | G94: =F94*(1+('Scenario Input'!$AJ$15/100)) -> 54.18368428 | H94: =G94*(1+('Scenario Input'!$AM$15/100)) -> 55.39536063 | I94: =H94*(1+('Scenario Input'!$AP$15/100)) -> 57.01318703 | J94: =I94*(1+('Scenario Input'!$AS$15/100)) -> 58.67826219
A95: CA5500064 | B95: MULLER MUTUAL WATER COMPANY | C95: 36 | D95: =C95*(1+('Scenario Input'!$AA$15/100)) -> 37.64707137 | E95: =D95*(1+('Scenario Input'!$AD$15/100)) -> 38.96236814 | F95: =E95*(1+('Scenario Input'!$AG$15/100)) -> 39.78765375 | G95: =F95*(1+('Scenario Input'!$AJ$15/100)) -> 40.65470267 | H95: =G95*(1+('Scenario Input'!$AM$15/100)) -> 41.56383874 | I95: =H95*(1+('Scenario Input'!$AP$15/100)) -> 42.77771432 | J95: =I95*(1+('Scenario Input'!$AS$15/100)) -> 44.02704125
A96: CA3700866 | B96: DEL DIOS MUTUAL WATER COMPANY | C96: 14.2 | D96: =C96*(1+('Scenario Input'!$AA$15/100)) -> 14.84967815 | E96: =D96*(1+('Scenario Input'!$AD$15/100)) -> 15.36848966 | F96: =E96*(1+('Scenario Input'!$AG$15/100)) -> 15.69401898 | G96: =F96*(1+('Scenario Input'!$AJ$15/100)) -> 16.03602161 | H96: =G96*(1+('Scenario Input'!$AM$15/100)) -> 16.39462528 | I96: =H96*(1+('Scenario Input'!$AP$15/100)) -> 16.87343176 | J96: =I96*(1+('Scenario Input'!$AS$15/100)) -> 17.36622183
A97: CA1400005 | B97: OWENS VALLEY WATER COMPANY | C97: 78.43 | D97: =C97*(1+('Scenario Input'!$AA$15/100)) -> 82.01832798 | E97: =D97*(1+('Scenario Input'!$AD$15/100)) -> 84.88384815 | F97: =E97*(1+('Scenario Input'!$AG$15/100)) -> 86.68182455 | G97: =F97*(1+('Scenario Input'!$AJ$15/100)) -> 88.57078695 | H97: =G97*(1+('Scenario Input'!$AM$15/100)) -> 90.55144089 | I97: =H97*(1+('Scenario Input'!$AP$15/100)) -> 93.19600372 | J97: =I97*(1+('Scenario Input'!$AS$15/100)) -> 95.91780125
A98: CA3610057 | B98: RIVERSIDE HIGHLAND WATER COMPANY | C98: 24.38 | D98: =C98*(1+('Scenario Input'!$AA$15/100)) -> 25.49543333 | E98: =D98*(1+('Scenario Input'!$AD$15/100)) -> 26.38618154 | F98: =E98*(1+('Scenario Input'!$AG$15/100)) -> 26.94508329 | G98: =F98*(1+('Scenario Input'!$AJ$15/100)) -> 27.53226808 | H98: =G98*(1+('Scenario Input'!$AM$15/100)) -> 28.14795523 | I98: =H98*(1+('Scenario Input'!$AP$15/100)) -> 28.97001875 | J98: =I98*(1+('Scenario Input'!$AS$15/100)) -> 29.81609071
A99: CA3410011 | B99: GALT, CITY OF | C99: 24.2 | D99: =C99*(1+('Scenario Input'!$AA$15/100)) -> 25.30719797 | E99: =D99*(1+('Scenario Input'!$AD$15/100)) -> 26.1913697 | F99: =E99*(1+('Scenario Input'!$AG$15/100)) -> 26.74614502 | G99: =F99*(1+('Scenario Input'!$AJ$15/100)) -> 27.32899457 | H99: =G99*(1+('Scenario Input'!$AM$15/100)) -> 27.94013604 | I99: =H99*(1+('Scenario Input'!$AP$15/100)) -> 28.75613018 | J99: =I99*(1+('Scenario Input'!$AS$15/100)) -> 29.5959555
A100: CA1610003 | B100: HANFORD, CITY OF | C100: 8.04 | D100: =C100*(1+('Scenario Input'!$AA$15/100)) -> 8.407845938 | E100: =D100*(1+('Scenario Input'!$AD$15/100)) -> 8.701595552 | F100: =E100*(1+('Scenario Input'!$AG$15/100)) -> 8.885909338 | G100: =F100*(1+('Scenario Input'!$AJ$15/100)) -> 9.079550262 | H100: =G100*(1+('Scenario Input'!$AM$15/100)) -> 9.282590651 | I100: =H100*(1+('Scenario Input'!$AP$15/100)) -> 9.553689531 | J100: =I100*(1+('Scenario Input'!$AS$15/100)) -> 9.832705878
A101: CA4400585 | B101: RIDGEVIEW ESTATES MWC | C101: 166.67 | D101: =C101*(1+('Scenario Input'!$AA$15/100)) -> 174.2954829 | E101: =D101*(1+('Scenario Input'!$AD$15/100)) -> 180.3849416 | F101: =E101*(1+('Scenario Input'!$AG$15/100)) -> 184.2057848 | G101: =F101*(1+('Scenario Input'!$AJ$15/100)) -> 188.2199804 | H101: =G101*(1+('Scenario Input'!$AM$15/100)) -> 192.4290278 | I101: =H101*(1+('Scenario Input'!$AP$15/100)) -> 198.0489346 | J101: =I101*(1+('Scenario Input'!$AS$15/100)) -> 203.8329712
A102: CA4400502 | B102: TROUT GULCH MUTUAL WATER COMPANY | C102: 117.07 | D102: =C102*(1+('Scenario Input'!$AA$15/100)) -> 122.4261846 | E102: =D102*(1+('Scenario Input'!$AD$15/100)) -> 126.7034566 | F102: =E102*(1+('Scenario Input'!$AG$15/100)) -> 129.3872396 | G102: =F102*(1+('Scenario Input'!$AJ$15/100)) -> 132.2068345 | H102: =G102*(1+('Scenario Input'!$AM$15/100)) -> 135.1632945 | I102: =H102*(1+('Scenario Input'!$AP$15/100)) -> 139.1107504 | J102: =I102*(1+('Scenario Input'!$AS$15/100)) -> 143.1734922
A103: CA3110011 | B103: TAHOE CITY PUD - MCKINNEY/QUAIL | C103: 255.1 | D103: =C103*(1+('Scenario Input'!$AA$15/100)) -> 266.7713307 | E103: =D103*(1+('Scenario Input'!$AD$15/100)) -> 276.0916698 | F103: =E103*(1+('Scenario Input'!$AG$15/100)) -> 281.9397353 | G103: =F103*(1+('Scenario Input'!$AJ$15/100)) -> 288.0837403 | H103: =G103*(1+('Scenario Input'!$AM$15/100)) -> 294.5259795 | I103: =H103*(1+('Scenario Input'!$AP$15/100)) -> 303.1276367 | J103: =I103*(1+('Scenario Input'!$AS$15/100)) -> 311.9805062
A104: CA3600258 | B104: SKY FOREST MWC | C104: 87 | D104: =C104*(1+('Scenario Input'!$AA$15/100)) -> 90.98042247 | E104: =D104*(1+('Scenario Input'!$AD$15/100)) -> 94.15905634 | F104: =E104*(1+('Scenario Input'!$AG$15/100)) -> 96.15349657 | G104: =F104*(1+('Scenario Input'!$AJ$15/100)) -> 98.24886478 | H104: =G104*(1+('Scenario Input'!$AM$15/100)) -> 100.4459436 | I104: =H104*(1+('Scenario Input'!$AP$15/100)) -> 103.3794763 | J104: =I104*(1+('Scenario Input'!$AS$15/100)) -> 106.398683
A105: CA5410026 | B105: POPLAR COMM SERVICE DIST | C105: 30 | D105: =C105*(1+('Scenario Input'!$AA$15/100)) -> 31.37255947 | E105: =D105*(1+('Scenario Input'!$AD$15/100)) -> 32.46864012 | F105: =E105*(1+('Scenario Input'!$AG$15/100)) -> 33.15637813 | G105: =F105*(1+('Scenario Input'!$AJ$15/100)) -> 33.87891889 | H105: =G105*(1+('Scenario Input'!$AM$15/100)) -> 34.63653228 | I105: =H105*(1+('Scenario Input'!$AP$15/100)) -> 35.64809527 | J105: =I105*(1+('Scenario Input'!$AS$15/100)) -> 36.68920104
A106: CA3600283 | B106: DEPARTMENT OF WATER AND POWER | C106: 46.5 | D106: =C106*(1+('Scenario Input'!$AA$15/100)) -> 48.62746718 | E106: =D106*(1+('Scenario Input'!$AD$15/100)) -> 50.32639218 | F106: =E106*(1+('Scenario Input'!$AG$15/100)) -> 51.3923861 | G106: =F106*(1+('Scenario Input'!$AJ$15/100)) -> 52.51232428 | H106: =G106*(1+('Scenario Input'!$AM$15/100)) -> 53.68662503 | I106: =H106*(1+('Scenario Input'!$AP$15/100)) -> 55.25454766 | J106: =I106*(1+('Scenario Input'!$AS$15/100)) -> 56.86826161
A107: CA4500195 | B107: STARLITE PINES MUTUAL WATER CO INC | C107: 48.67 | D107: =C107*(1+('Scenario Input'!$AA$15/100)) -> 50.89674898 | E107: =D107*(1+('Scenario Input'!$AD$15/100)) -> 52.67495715 | F107: =E107*(1+('Scenario Input'!$AG$15/100)) -> 53.79069745 | G107: =F107*(1+('Scenario Input'!$AJ$15/100)) -> 54.96289941 | H107: =G107*(1+('Scenario Input'!$AM$15/100)) -> 56.19200087 | I107: =H107*(1+('Scenario Input'!$AP$15/100)) -> 57.83309322 | J107: =I107*(1+('Scenario Input'!$AS$15/100)) -> 59.52211382
A108: CA1910165 | B108: VALLEY VIEW MUTUAL WATER CO. | C108: 38.02 | D108: =C108*(1+('Scenario Input'!$AA$15/100)) -> 39.75949037 | E108: =D108*(1+('Scenario Input'!$AD$15/100)) -> 41.14858991 | F108: =E108*(1+('Scenario Input'!$AG$15/100)) -> 42.02018321 | G108: =F108*(1+('Scenario Input'!$AJ$15/100)) -> 42.9358832 | H108: =G108*(1+('Scenario Input'!$AM$15/100)) -> 43.89603191 | I108: =H108*(1+('Scenario Input'!$AP$15/100)) -> 45.1780194 | J108: =I108*(1+('Scenario Input'!$AS$15/100)) -> 46.49744745
A109: CA3200150 | B109: HAMILTON BRANCH MWC | C109: 20 | D109: =C109*(1+('Scenario Input'!$AA$15/100)) -> 20.91503965 | E109: =D109*(1+('Scenario Input'!$AD$15/100)) -> 21.64576008 | F109: =E109*(1+('Scenario Input'!$AG$15/100)) -> 22.10425209 | G109: =F109*(1+('Scenario Input'!$AJ$15/100)) -> 22.58594593 | H109: =G109*(1+('Scenario Input'!$AM$15/100)) -> 23.09102152 | I109: =H109*(1+('Scenario Input'!$AP$15/100)) -> 23.76539684 | J109: =I109*(1+('Scenario Input'!$AS$15/100)) -> 24.45946736
A110: CA5400523 | B110: EL MONTE VILLAGE MHP | C110: 12.09 | D110: =C110*(1+('Scenario Input'!$AA$15/100)) -> 12.64314147 | E110: =D110*(1+('Scenario Input'!$AD$15/100)) -> 13.08486197 | F110: =E110*(1+('Scenario Input'!$AG$15/100)) -> 13.36202039 | G110: =F110*(1+('Scenario Input'!$AJ$15/100)) -> 13.65320431 | H110: =G110*(1+('Scenario Input'!$AM$15/100)) -> 13.95852251 | I110: =H110*(1+('Scenario Input'!$AP$15/100)) -> 14.36618239 | J110: =I110*(1+('Scenario Input'!$AS$15/100)) -> 14.78574802
A111: CA0400091 | B111: DEL ORO WATER COMPANY - BUZZTAIL DIST. | C111: 88 | D111: =C111*(1+('Scenario Input'!$AA$15/100)) -> 92.02617445 | E111: =D111*(1+('Scenario Input'!$AD$15/100)) -> 95.24134435 | F111: =E111*(1+('Scenario Input'!$AG$15/100)) -> 97.25870917 | G111: =F111*(1+('Scenario Input'!$AJ$15/100)) -> 99.37816207 | H111: =G111*(1+('Scenario Input'!$AM$15/100)) -> 101.6004947 | I111: =H111*(1+('Scenario Input'!$AP$15/100)) -> 104.5677461 | J111: =I111*(1+('Scenario Input'!$AS$15/100)) -> 107.6216564
A112: CA3500509 | B112: TRES PINOS CWD | C112: 30 | D112: =C112*(1+('Scenario Input'!$AA$15/100)) -> 31.37255947 | E112: =D112*(1+('Scenario Input'!$AD$15/100)) -> 32.46864012 | F112: =E112*(1+('Scenario Input'!$AG$15/100)) -> 33.15637813 | G112: =F112*(1+('Scenario Input'!$AJ$15/100)) -> 33.87891889 | H112: =G112*(1+('Scenario Input'!$AM$15/100)) -> 34.63653228 | I112: =H112*(1+('Scenario Input'!$AP$15/100)) -> 35.64809527 | J112: =I112*(1+('Scenario Input'!$AS$15/100)) -> 36.68920104
A113: CA2701929 | B113: COUNTRY MEADOWS MWC | C113: 38.43 | D113: =C113*(1+('Scenario Input'!$AA$15/100)) -> 40.18824868 | E113: =D113*(1+('Scenario Input'!$AD$15/100)) -> 41.59232799 | F113: =E113*(1+('Scenario Input'!$AG$15/100)) -> 42.47332038 | G113: =F113*(1+('Scenario Input'!$AJ$15/100)) -> 43.3988951 | H113: =G113*(1+('Scenario Input'!$AM$15/100)) -> 44.36939785 | I113: =H113*(1+('Scenario Input'!$AP$15/100)) -> 45.66521004 | J113: =I113*(1+('Scenario Input'!$AS$15/100)) -> 46.99886653
A114: CA2801080 | B114: MILTON ROAD WATER COMPANY | C114: 86.67 | D114: =C114*(1+('Scenario Input'!$AA$15/100)) -> 90.63532431 | E114: =D114*(1+('Scenario Input'!$AD$15/100)) -> 93.8019013 | F114: =E114*(1+('Scenario Input'!$AG$15/100)) -> 95.78877641 | G114: =F114*(1+('Scenario Input'!$AJ$15/100)) -> 97.87619667 | H114: =G114*(1+('Scenario Input'!$AM$15/100)) -> 100.0649418 | I114: =H114*(1+('Scenario Input'!$AP$15/100)) -> 102.9873472 | J114: =I114*(1+('Scenario Input'!$AS$15/100)) -> 105.9951018
A115: CA3010097 | B115: MIDWAY CITY MUTUAL WC | C115: 40 | D115: =C115*(1+('Scenario Input'!$AA$15/100)) -> 41.8300793 | E115: =D115*(1+('Scenario Input'!$AD$15/100)) -> 43.29152016 | F115: =E115*(1+('Scenario Input'!$AG$15/100)) -> 44.20850417 | G115: =F115*(1+('Scenario Input'!$AJ$15/100)) -> 45.17189185 | H115: =G115*(1+('Scenario Input'!$AM$15/100)) -> 46.18204304 | I115: =H115*(1+('Scenario Input'!$AP$15/100)) -> 47.53079369 | J115: =I115*(1+('Scenario Input'!$AS$15/100)) -> 48.91893472
A116: CA4900630 | B116: AUSTIN CREEK MUTUAL (SPRINGHILL) | C116: 18 | D116: =C116*(1+('Scenario Input'!$AA$15/100)) -> 18.82353568 | E116: =D116*(1+('Scenario Input'!$AD$15/100)) -> 19.48118407 | F116: =E116*(1+('Scenario Input'!$AG$15/100)) -> 19.89382688 | G116: =F116*(1+('Scenario Input'!$AJ$15/100)) -> 20.32735133 | H116: =G116*(1+('Scenario Input'!$AM$15/100)) -> 20.78191937 | I116: =H116*(1+('Scenario Input'!$AP$15/100)) -> 21.38885716 | J116: =I116*(1+('Scenario Input'!$AS$15/100)) -> 22.01352062
A117: CA1010053 | B117: SHAVER LAKE HEIGHTS MWC | C117: 26.04 | D117: =C117*(1+('Scenario Input'!$AA$15/100)) -> 27.23138162 | E117: =D117*(1+('Scenario Input'!$AD$15/100)) -> 28.18277962 | F117: =E117*(1+('Scenario Input'!$AG$15/100)) -> 28.77973621 | G117: =F117*(1+('Scenario Input'!$AJ$15/100)) -> 29.40690159 | H117: =G117*(1+('Scenario Input'!$AM$15/100)) -> 30.06451002 | I117: =H117*(1+('Scenario Input'!$AP$15/100)) -> 30.94254669 | J117: =I117*(1+('Scenario Input'!$AS$15/100)) -> 31.8462265
A118: CA4810012 | B118: SID - QUAIL CANYON | C118: 119.16 | D118: =C118*(1+('Scenario Input'!$AA$15/100)) -> 124.6118062 | E118: =D118*(1+('Scenario Input'!$AD$15/100)) -> 128.9654385 | F118: =E118*(1+('Scenario Input'!$AG$15/100)) -> 131.6971339 | G118: =F118*(1+('Scenario Input'!$AJ$15/100)) -> 134.5670658 | H118: =G118*(1+('Scenario Input'!$AM$15/100)) -> 137.5763062 | I118: =H118*(1+('Scenario Input'!$AP$15/100)) -> 141.5942344 | J118: =I118*(1+('Scenario Input'!$AS$15/100)) -> 145.7295065
A119: CA4200837 | B119: RANCHO YNECITA | C119: 229 | D119: =C119*(1+('Scenario Input'!$AA$15/100)) -> 239.477204 | E119: =D119*(1+('Scenario Input'!$AD$15/100)) -> 247.8439529 | F119: =E119*(1+('Scenario Input'!$AG$15/100)) -> 253.0936864 | G119: =F119*(1+('Scenario Input'!$AJ$15/100)) -> 258.6090808 | H119: =G119*(1+('Scenario Input'!$AM$15/100)) -> 264.3921964 | I119: =H119*(1+('Scenario Input'!$AP$15/100)) -> 272.1137939 | J119: =I119*(1+('Scenario Input'!$AS$15/100)) -> 280.0609013
A120: CA0710006 | B120: CITY OF MARTINEZ | C120: 49.88 | D120: =C120*(1+('Scenario Input'!$AA$15/100)) -> 52.16210888 | E120: =D120*(1+('Scenario Input'!$AD$15/100)) -> 53.98452564 | F120: =E120*(1+('Scenario Input'!$AG$15/100)) -> 55.1280047 | G120: =F120*(1+('Scenario Input'!$AJ$15/100)) -> 56.32934914 | H120: =G120*(1+('Scenario Input'!$AM$15/100)) -> 57.58900767 | I120: =H120*(1+('Scenario Input'!$AP$15/100)) -> 59.27089973 | J120: =I120*(1+('Scenario Input'!$AS$15/100)) -> 61.00191159
A121: CA3601045 | B121: BEAR VALLEY MHP | C121: 2.52 | D121: =C121*(1+('Scenario Input'!$AA$15/100)) -> 2.635294996 | E121: =D121*(1+('Scenario Input'!$AD$15/100)) -> 2.72736577 | F121: =E121*(1+('Scenario Input'!$AG$15/100)) -> 2.785135763 | G121: =F121*(1+('Scenario Input'!$AJ$15/100)) -> 2.845829187 | H121: =G121*(1+('Scenario Input'!$AM$15/100)) -> 2.909468711 | I121: =H121*(1+('Scenario Input'!$AP$15/100)) -> 2.994440002 | J121: =I121*(1+('Scenario Input'!$AS$15/100)) -> 3.081892887
A122: CA2810013 | B122: BERRYESSA HIGHLANDS | C122: 57.14 | D122: =C122*(1+('Scenario Input'!$AA$15/100)) -> 59.75426827 | E122: =D122*(1+('Scenario Input'!$AD$15/100)) -> 61.84193654 | F122: =E122*(1+('Scenario Input'!$AG$15/100)) -> 63.15184821 | G122: =F122*(1+('Scenario Input'!$AJ$15/100)) -> 64.52804751 | H122: =G122*(1+('Scenario Input'!$AM$15/100)) -> 65.97104848 | I122: =H122*(1+('Scenario Input'!$AP$15/100)) -> 67.89773878 | J122: =I122*(1+('Scenario Input'!$AS$15/100)) -> 69.88069825
A123: CA4900562 | B123: DIAMOND A MUTUAL WATER COMPANY | C123: 61.67 | D123: =C123*(1+('Scenario Input'!$AA$15/100)) -> 64.49152475 | E123: =D123*(1+('Scenario Input'!$AD$15/100)) -> 66.7447012 | F123: =E123*(1+('Scenario Input'!$AG$15/100)) -> 68.1584613 | G123: =F123*(1+('Scenario Input'!$AJ$15/100)) -> 69.64376426 | H123: =G123*(1+('Scenario Input'!$AM$15/100)) -> 71.20116486 | I123: =H123*(1+('Scenario Input'!$AP$15/100)) -> 73.28060117 | J123: =I123*(1+('Scenario Input'!$AS$15/100)) -> 75.4207676
A124: CA4010025 | B124: SLO CWD NO. 10 - CAYUCOS WTP | C124: 0.12 | D124: =C124*(1+('Scenario Input'!$AA$15/100)) -> 0.1254902379 | E124: =D124*(1+('Scenario Input'!$AD$15/100)) -> 0.1298745605 | F124: =E124*(1+('Scenario Input'!$AG$15/100)) -> 0.1326255125 | G124: =F124*(1+('Scenario Input'!$AJ$15/100)) -> 0.1355156756 | H124: =G124*(1+('Scenario Input'!$AM$15/100)) -> 0.1385461291 | I124: =H124*(1+('Scenario Input'!$AP$15/100)) -> 0.1425923811 | J124: =I124*(1+('Scenario Input'!$AS$15/100)) -> 0.1467568042
A125: CA3710010 | B125: HELIX WATER DISTRICT | C125: 40.03 | D125: =C125*(1+('Scenario Input'!$AA$15/100)) -> 41.86145185 | E125: =D125*(1+('Scenario Input'!$AD$15/100)) -> 43.3239888 | F125: =E125*(1+('Scenario Input'!$AG$15/100)) -> 44.24166055 | G125: =F125*(1+('Scenario Input'!$AJ$15/100)) -> 45.20577077 | H125: =G125*(1+('Scenario Input'!$AM$15/100)) -> 46.21667957 | I125: =H125*(1+('Scenario Input'!$AP$15/100)) -> 47.56644178 | J125: =I125*(1+('Scenario Input'!$AS$15/100)) -> 48.95562392
A126: CA5400710 | B126: BADGER HILL ESTATES | C126: 51.33167 | D126: =C126*(1+('Scenario Input'!$AA$15/100)) -> 53.68019566 | E126: =D126*(1+('Scenario Input'!$AD$15/100)) -> 55.55565066 | F126: =E126*(1+('Scenario Input'!$AG$15/100)) -> 56.73240868 | G126: =F126*(1+('Scenario Input'!$AJ$15/100)) -> 57.96871614 | H126: =G126*(1+('Scenario Input'!$AM$15/100)) -> 59.26503483 | I126: =H126*(1+('Scenario Input'!$AP$15/100)) -> 60.99587541 | J126: =I126*(1+('Scenario Input'!$AS$15/100)) -> 62.77726534
A127: CA1910025 | B127: LOS ANGELES CWWD 40, REG. 39-ROCK CREEK | C127: 41.23 | D127: =C127*(1+('Scenario Input'!$AA$15/100)) -> 43.11635423 | E127: =D127*(1+('Scenario Input'!$AD$15/100)) -> 44.6227344 | F127: =E127*(1+('Scenario Input'!$AG$15/100)) -> 45.56791567 | G127: =F127*(1+('Scenario Input'!$AJ$15/100)) -> 46.56092753 | H127: =G127*(1+('Scenario Input'!$AM$15/100)) -> 47.60214086 | I127: =H127*(1+('Scenario Input'!$AP$15/100)) -> 48.99236559 | J127: =I127*(1+('Scenario Input'!$AS$15/100)) -> 50.42319196
A128: CA1310002 | B128: CALEXICO, CITY OF | C128: 29.18 | D128: =C128*(1+('Scenario Input'!$AA$15/100)) -> 30.51504285 | E128: =D128*(1+('Scenario Input'!$AD$15/100)) -> 31.58116395 | F128: =E128*(1+('Scenario Input'!$AG$15/100)) -> 32.25010379 | G128: =F128*(1+('Scenario Input'!$AJ$15/100)) -> 32.95289511 | H128: =G128*(1+('Scenario Input'!$AM$15/100)) -> 33.6898004 | I128: =H128*(1+('Scenario Input'!$AP$15/100)) -> 34.673714 | J128: =I128*(1+('Scenario Input'!$AS$15/100)) -> 35.68636288
A129: CA1100616 | B129: ELK CREEK COMMUNITY S.D. | C129: 55 | D129: =C129*(1+('Scenario Input'!$AA$15/100)) -> 57.51635903 | E129: =D129*(1+('Scenario Input'!$AD$15/100)) -> 59.52584022 | F129: =E129*(1+('Scenario Input'!$AG$15/100)) -> 60.78669323 | G129: =F129*(1+('Scenario Input'!$AJ$15/100)) -> 62.1113513 | H129: =G129*(1+('Scenario Input'!$AM$15/100)) -> 63.50030918 | I129: =H129*(1+('Scenario Input'!$AP$15/100)) -> 65.35484132 | J129: =I129*(1+('Scenario Input'!$AS$15/100)) -> 67.26353524
A130: CA1010017 | B130: FCWWD #41/SHAVER LAKE | C130: 36.07 | D130: =C130*(1+('Scenario Input'!$AA$15/100)) -> 37.720274 | E130: =D130*(1+('Scenario Input'!$AD$15/100)) -> 39.0381283 | F130: =E130*(1+('Scenario Input'!$AG$15/100)) -> 39.86501864 | G130: =F130*(1+('Scenario Input'!$AJ$15/100)) -> 40.73375348 | H130: =G130*(1+('Scenario Input'!$AM$15/100)) -> 41.64465731 | I130: =H130*(1+('Scenario Input'!$AP$15/100)) -> 42.86089321 | J130: =I130*(1+('Scenario Input'!$AS$15/100)) -> 44.11264938
A131: CA0110008 | B131: CITY OF PLEASANTON | C131: 20.61 | D131: =C131*(1+('Scenario Input'!$AA$15/100)) -> 21.55294836 | E131: =D131*(1+('Scenario Input'!$AD$15/100)) -> 22.30595576 | F131: =E131*(1+('Scenario Input'!$AG$15/100)) -> 22.77843177 | G131: =F131*(1+('Scenario Input'!$AJ$15/100)) -> 23.27481728 | H131: =G131*(1+('Scenario Input'!$AM$15/100)) -> 23.79529768 | I131: =H131*(1+('Scenario Input'!$AP$15/100)) -> 24.49024145 | J131: =I131*(1+('Scenario Input'!$AS$15/100)) -> 25.20548111
A132: CA4300771 | B132: NEW AVENUE MUTUAL WATER COMPANY | C132: 76 | D132: =C132*(1+('Scenario Input'!$AA$15/100)) -> 79.47715066 | E132: =D132*(1+('Scenario Input'!$AD$15/100)) -> 82.2538883 | F132: =E132*(1+('Scenario Input'!$AG$15/100)) -> 83.99615792 | G132: =F132*(1+('Scenario Input'!$AJ$15/100)) -> 85.82659452 | H132: =G132*(1+('Scenario Input'!$AM$15/100)) -> 87.74588177 | I132: =H132*(1+('Scenario Input'!$AP$15/100)) -> 90.30850801 | J132: =I132*(1+('Scenario Input'!$AS$15/100)) -> 92.94597597
A133: CA1010028 | B133: RIVERDALE PUBLIC UTILITY DISTRICT | C133: 32 | D133: =C133*(1+('Scenario Input'!$AA$15/100)) -> 33.46406344 | E133: =D133*(1+('Scenario Input'!$AD$15/100)) -> 34.63321613 | F133: =E133*(1+('Scenario Input'!$AG$15/100)) -> 35.36680334 | G133: =F133*(1+('Scenario Input'!$AJ$15/100)) -> 36.13751348 | H133: =G133*(1+('Scenario Input'!$AM$15/100)) -> 36.94563443 | I133: =H133*(1+('Scenario Input'!$AP$15/100)) -> 38.02463495 | J133: =I133*(1+('Scenario Input'!$AS$15/100)) -> 39.13514777
A134: CA1200701 | B134: ORICK C.S.D. | C134: 252 | D134: =C134*(1+('Scenario Input'!$AA$15/100)) -> 263.5294996 | E134: =D134*(1+('Scenario Input'!$AD$15/100)) -> 272.736577 | F134: =E134*(1+('Scenario Input'!$AG$15/100)) -> 278.5135763 | G134: =F134*(1+('Scenario Input'!$AJ$15/100)) -> 284.5829187 | H134: =G134*(1+('Scenario Input'!$AM$15/100)) -> 290.9468711 | I134: =H134*(1+('Scenario Input'!$AP$15/100)) -> 299.4440002 | J134: =I134*(1+('Scenario Input'!$AS$15/100)) -> 308.1892887
A135: CA0610003 | B135: MAXWELL PUBLIC UTILITY DISTRICT | C135: 62.65 | D135: =C135*(1+('Scenario Input'!$AA$15/100)) -> 65.5163617 | E135: =D135*(1+('Scenario Input'!$AD$15/100)) -> 67.80534345 | F135: =E135*(1+('Scenario Input'!$AG$15/100)) -> 69.24156966 | G135: =F135*(1+('Scenario Input'!$AJ$15/100)) -> 70.75047561 | H135: =G135*(1+('Scenario Input'!$AM$15/100)) -> 72.33262491 | I135: =H135*(1+('Scenario Input'!$AP$15/100)) -> 74.44510561 | J135: =I135*(1+('Scenario Input'!$AS$15/100)) -> 76.6192815
A136: CA0510010 | B136: VALLEY SPRINGS PUD | C136: 30.5 | D136: =C136*(1+('Scenario Input'!$AA$15/100)) -> 31.89543546 | E136: =D136*(1+('Scenario Input'!$AD$15/100)) -> 33.00978412 | F136: =E136*(1+('Scenario Input'!$AG$15/100)) -> 33.70898443 | G136: =F136*(1+('Scenario Input'!$AJ$15/100)) -> 34.44356754 | H136: =G136*(1+('Scenario Input'!$AM$15/100)) -> 35.21380782 | I136: =H136*(1+('Scenario Input'!$AP$15/100)) -> 36.24223019 | J136: =I136*(1+('Scenario Input'!$AS$15/100)) -> 37.30068772
A137: CA1810001 | B137: CITY OF SUSANVILLE | C137: 27.79 | D137: =C137*(1+('Scenario Input'!$AA$15/100)) -> 29.06144759 | E137: =D137*(1+('Scenario Input'!$AD$15/100)) -> 30.07678363 | F137: =E137*(1+('Scenario Input'!$AG$15/100)) -> 30.71385827 | G137: =F137*(1+('Scenario Input'!$AJ$15/100)) -> 31.38317186 | H137: =G137*(1+('Scenario Input'!$AM$15/100)) -> 32.0849744 | I137: =H137*(1+('Scenario Input'!$AP$15/100)) -> 33.02201891 | J137: =I137*(1+('Scenario Input'!$AS$15/100)) -> 33.9864299
A138: CA1910090 | B138: MONROVIA-CITY, WATER DEPT. | C138: 65.07 | D138: =C138*(1+('Scenario Input'!$AA$15/100)) -> 68.04708149 | E138: =D138*(1+('Scenario Input'!$AD$15/100)) -> 70.42448042 | F138: =E138*(1+('Scenario Input'!$AG$15/100)) -> 71.91618416 | G138: =F138*(1+('Scenario Input'!$AJ$15/100)) -> 73.48337507 | H138: =G138*(1+('Scenario Input'!$AM$15/100)) -> 75.12663851 | I138: =H138*(1+('Scenario Input'!$AP$15/100)) -> 77.32071863 | J138: =I138*(1+('Scenario Input'!$AS$15/100)) -> 79.57887705
A139: CA1910108 | B139: CITY OF BELL GARDENS | C139: 28.66 | D139: =C139*(1+('Scenario Input'!$AA$15/100)) -> 29.97125182 | E139: =D139*(1+('Scenario Input'!$AD$15/100)) -> 31.01837419 | F139: =E139*(1+('Scenario Input'!$AG$15/100)) -> 31.67539324 | G139: =F139*(1+('Scenario Input'!$AJ$15/100)) -> 32.36566051 | H139: =G139*(1+('Scenario Input'!$AM$15/100)) -> 33.08943384 | I139: =H139*(1+('Scenario Input'!$AP$15/100)) -> 34.05581368 | J139: =I139*(1+('Scenario Input'!$AS$15/100)) -> 35.05041673
A140: CA1000471 | B140: FCSA #39 A&B | C140: 68.39 | D140: =C140*(1+('Scenario Input'!$AA$15/100)) -> 71.51897808 | E140: =D140*(1+('Scenario Input'!$AD$15/100)) -> 74.01767659 | F140: =E140*(1+('Scenario Input'!$AG$15/100)) -> 75.58549001 | G140: =F140*(1+('Scenario Input'!$AJ$15/100)) -> 77.23264209 | H140: =G140*(1+('Scenario Input'!$AM$15/100)) -> 78.95974809 | I140: =H140*(1+('Scenario Input'!$AP$15/100)) -> 81.26577451 | J140: =I140*(1+('Scenario Input'!$AS$15/100)) -> 83.63914864
A141: CA3610017 | B141: HAVASU WC | C141: 125.23 | D141: =C141*(1+('Scenario Input'!$AA$15/100)) -> 130.9595208 | E141: =D141*(1+('Scenario Input'!$AD$15/100)) -> 135.5349267 | F141: =E141*(1+('Scenario Input'!$AG$15/100)) -> 138.4057744 | G141: =F141*(1+('Scenario Input'!$AJ$15/100)) -> 141.4219004 | H141: =G141*(1+('Scenario Input'!$AM$15/100)) -> 144.5844312 | I141: =H141*(1+('Scenario Input'!$AP$15/100)) -> 148.8070323 | J141: =I141*(1+('Scenario Input'!$AS$15/100)) -> 153.1529549
A142: CA3600107 | B142: FOREST PARK MWC | C142: 20.83 | D142: =C142*(1+('Scenario Input'!$AA$15/100)) -> 21.78301379 | E142: =D142*(1+('Scenario Input'!$AD$15/100)) -> 22.54405912 | F142: =E142*(1+('Scenario Input'!$AG$15/100)) -> 23.02157855 | G142: =F142*(1+('Scenario Input'!$AJ$15/100)) -> 23.52326268 | H142: =G142*(1+('Scenario Input'!$AM$15/100)) -> 24.04929891 | I142: =H142*(1+('Scenario Input'!$AP$15/100)) -> 24.75166081 | J142: =I142*(1+('Scenario Input'!$AS$15/100)) -> 25.47453525
A143: CA3610082 | B143: SAN ANTONIO CANYON MSC | C143: 85 | D143: =C143*(1+('Scenario Input'!$AA$15/100)) -> 88.8889185 | E143: =D143*(1+('Scenario Input'!$AD$15/100)) -> 91.99448033 | F143: =E143*(1+('Scenario Input'!$AG$15/100)) -> 93.94307136 | G143: =F143*(1+('Scenario Input'!$AJ$15/100)) -> 95.99027018 | H143: =G143*(1+('Scenario Input'!$AM$15/100)) -> 98.13684146 | I143: =H143*(1+('Scenario Input'!$AP$15/100)) -> 101.0029366 | J143: =I143*(1+('Scenario Input'!$AS$15/100)) -> 103.9527363
A144: CA1910063 | B144: LINCOLN AVENUE WATER CO. | C144: 53.45 | D144: =C144*(1+('Scenario Input'!$AA$15/100)) -> 55.89544346 | E144: =D144*(1+('Scenario Input'!$AD$15/100)) -> 57.84829381 | F144: =E144*(1+('Scenario Input'!$AG$15/100)) -> 59.0736137 | G144: =F144*(1+('Scenario Input'!$AJ$15/100)) -> 60.36094049 | H144: =G144*(1+('Scenario Input'!$AM$15/100)) -> 61.71075501 | I144: =H144*(1+('Scenario Input'!$AP$15/100)) -> 63.51302307 | J144: =I144*(1+('Scenario Input'!$AS$15/100)) -> 65.36792652
A145: CA3310040 | B145: FERN VALLEY WD | C145: 66.13 | D145: =C145*(1+('Scenario Input'!$AA$15/100)) -> 69.15557859 | E145: =D145*(1+('Scenario Input'!$AD$15/100)) -> 71.5717057 | F145: =E145*(1+('Scenario Input'!$AG$15/100)) -> 73.08770952 | G145: =F145*(1+('Scenario Input'!$AJ$15/100)) -> 74.6804302 | H145: =G145*(1+('Scenario Input'!$AM$15/100)) -> 76.35046265 | I145: =H145*(1+('Scenario Input'!$AP$15/100)) -> 78.58028466 | J145: =I145*(1+('Scenario Input'!$AS$15/100)) -> 80.87522882
A146: CA3610023 | B146: GREEN VALLEY MWC | C146: 64.66 | D146: =C146*(1+('Scenario Input'!$AA$15/100)) -> 67.61832318 | E146: =D146*(1+('Scenario Input'!$AD$15/100)) -> 69.98074233 | F146: =E146*(1+('Scenario Input'!$AG$15/100)) -> 71.46304699 | G146: =F146*(1+('Scenario Input'!$AJ$15/100)) -> 73.02036318 | H146: =G146*(1+('Scenario Input'!$AM$15/100)) -> 74.65327257 | I146: =H146*(1+('Scenario Input'!$AP$15/100)) -> 76.833528 | J146: =I146*(1+('Scenario Input'!$AS$15/100)) -> 79.07745797
A147: CA2710023 | B147: TASCO SPRECKELS WATER COMPANY | C147: 84.06 | D147: =C147*(1+('Scenario Input'!$AA$15/100)) -> 87.90591164 | E147: =D147*(1+('Scenario Input'!$AD$15/100)) -> 90.97712961 | F147: =E147*(1+('Scenario Input'!$AG$15/100)) -> 92.90417151 | G147: =F147*(1+('Scenario Input'!$AJ$15/100)) -> 94.92873072 | H147: =G147*(1+('Scenario Input'!$AM$15/100)) -> 97.05156345 | I147: =H147*(1+('Scenario Input'!$AP$15/100)) -> 99.88596294 | J147: =I147*(1+('Scenario Input'!$AS$15/100)) -> 102.8031413
A148: CA3610033 | B148: MT BALDY HOMEOWNERS ASSN. | C148: 90 | D148: =C148*(1+('Scenario Input'!$AA$15/100)) -> 94.11767841 | E148: =D148*(1+('Scenario Input'!$AD$15/100)) -> 97.40592035 | F148: =E148*(1+('Scenario Input'!$AG$15/100)) -> 99.46913438 | G148: =F148*(1+('Scenario Input'!$AJ$15/100)) -> 101.6367567 | H148: =G148*(1+('Scenario Input'!$AM$15/100)) -> 103.9095968 | I148: =H148*(1+('Scenario Input'!$AP$15/100)) -> 106.9442858 | J148: =I148*(1+('Scenario Input'!$AS$15/100)) -> 110.0676031
A149: CA3600071 | B149: CHAMISAL MWC | C149: 58 | D149: =C149*(1+('Scenario Input'!$AA$15/100)) -> 60.65361498 | E149: =D149*(1+('Scenario Input'!$AD$15/100)) -> 62.77270423 | F149: =E149*(1+('Scenario Input'!$AG$15/100)) -> 64.10233105 | G149: =F149*(1+('Scenario Input'!$AJ$15/100)) -> 65.49924318 | H149: =G149*(1+('Scenario Input'!$AM$15/100)) -> 66.96396241 | I149: =H149*(1+('Scenario Input'!$AP$15/100)) -> 68.91965085 | J149: =I149*(1+('Scenario Input'!$AS$15/100)) -> 70.93245534
A150: CA1910159 | B150: TRACT 180 MUTUAL WATER CO. | C150: 36.86 | D150: =C150*(1+('Scenario Input'!$AA$15/100)) -> 38.54641807 | E150: =D150*(1+('Scenario Input'!$AD$15/100)) -> 39.89313582 | F150: =E150*(1+('Scenario Input'!$AG$15/100)) -> 40.73813659 | G150: =F150*(1+('Scenario Input'!$AJ$15/100)) -> 41.62589834 | H150: =G150*(1+('Scenario Input'!$AM$15/100)) -> 42.55675266 | I150: =H150*(1+('Scenario Input'!$AP$15/100)) -> 43.79962638 | J150: =I150*(1+('Scenario Input'!$AS$15/100)) -> 45.07879834
A151: CA3310036 | B151: WESTERN MWD - MURRIETA DIVISION | C151: 95.55 | D151: =C151*(1+('Scenario Input'!$AA$15/100)) -> 99.92160192 | E151: =D151*(1+('Scenario Input'!$AD$15/100)) -> 103.4126188 | F151: =E151*(1+('Scenario Input'!$AG$15/100)) -> 105.6030643 | G151: =F151*(1+('Scenario Input'!$AJ$15/100)) -> 107.9043567 | H151: =G151*(1+('Scenario Input'!$AM$15/100)) -> 110.3173553 | I151: =H151*(1+('Scenario Input'!$AP$15/100)) -> 113.5391834 | J151: =I151*(1+('Scenario Input'!$AS$15/100)) -> 116.8551053
A152: CA3600301 | B152: STRAWBERRY LODGE MWC | C152: 45 | D152: =C152*(1+('Scenario Input'!$AA$15/100)) -> 47.05883921 | E152: =D152*(1+('Scenario Input'!$AD$15/100)) -> 48.70296018 | F152: =E152*(1+('Scenario Input'!$AG$15/100)) -> 49.73456719 | G152: =F152*(1+('Scenario Input'!$AJ$15/100)) -> 50.81837833 | H152: =G152*(1+('Scenario Input'!$AM$15/100)) -> 51.95479842 | I152: =H152*(1+('Scenario Input'!$AP$15/100)) -> 53.4721429 | J152: =I152*(1+('Scenario Input'!$AS$15/100)) -> 55.03380156
A153: CA3710019 | B153: RAMONA MUNICIPAL WD | C153: 115.66 | D153: =C153*(1+('Scenario Input'!$AA$15/100)) -> 120.9516743 | E153: =D153*(1+('Scenario Input'!$AD$15/100)) -> 125.1774305 | F153: =E153*(1+('Scenario Input'!$AG$15/100)) -> 127.8288898 | G153: =F153*(1+('Scenario Input'!$AJ$15/100)) -> 130.6145253 | H153: =G153*(1+('Scenario Input'!$AM$15/100)) -> 133.5353774 | I153: =H153*(1+('Scenario Input'!$AP$15/100)) -> 137.4352899 | J153: =I153*(1+('Scenario Input'!$AS$15/100)) -> 141.4490997
A154: CA2910003 | B154: TRUCKEE-DONNER PUD, MAIN | C154: 70.68 | D154: =C154*(1+('Scenario Input'!$AA$15/100)) -> 73.91375011 | E154: =D154*(1+('Scenario Input'!$AD$15/100)) -> 76.49611612 | F154: =E154*(1+('Scenario Input'!$AG$15/100)) -> 78.11642687 | G154: =F154*(1+('Scenario Input'!$AJ$15/100)) -> 79.8187329 | H154: =G154*(1+('Scenario Input'!$AM$15/100)) -> 81.60367005 | I154: =H154*(1+('Scenario Input'!$AP$15/100)) -> 83.98691245 | J154: =I154*(1+('Scenario Input'!$AS$15/100)) -> 86.43975765
A155: CA4300563 | B155: MT. PLEASANT WATER USERS ASSOCIATION | C155: 234 | D155: =C155*(1+('Scenario Input'!$AA$15/100)) -> 244.7059639 | E155: =D155*(1+('Scenario Input'!$AD$15/100)) -> 253.2553929 | F155: =E155*(1+('Scenario Input'!$AG$15/100)) -> 258.6197494 | G155: =F155*(1+('Scenario Input'!$AJ$15/100)) -> 264.2555673 | H155: =G155*(1+('Scenario Input'!$AM$15/100)) -> 270.1649518 | I155: =H155*(1+('Scenario Input'!$AP$15/100)) -> 278.0551431 | J155: =I155*(1+('Scenario Input'!$AS$15/100)) -> 286.1757681
A156: CA4300526 | B156: OAKMONT WATER SYSTEM | C156: 112.22 | D156: =C156*(1+('Scenario Input'!$AA$15/100)) -> 117.3542875 | E156: =D156*(1+('Scenario Input'!$AD$15/100)) -> 121.4543598 | F156: =E156*(1+('Scenario Input'!$AG$15/100)) -> 124.0269584 | G156: =F156*(1+('Scenario Input'!$AJ$15/100)) -> 126.7297426 | H156: =G156*(1+('Scenario Input'!$AM$15/100)) -> 129.5637217 | I156: =H156*(1+('Scenario Input'!$AP$15/100)) -> 133.3476417 | J156: =I156*(1+('Scenario Input'!$AS$15/100)) -> 137.2420714
A157: CA4900665 | B157: RUSSIAN RIVER MUTUAL WATER CO. | C157: 54.17 | D157: =C157*(1+('Scenario Input'!$AA$15/100)) -> 56.64838489 | E157: =D157*(1+('Scenario Input'!$AD$15/100)) -> 58.62754117 | F157: =E157*(1+('Scenario Input'!$AG$15/100)) -> 59.86936677 | G157: =F157*(1+('Scenario Input'!$AJ$15/100)) -> 61.17403454 | H157: =G157*(1+('Scenario Input'!$AM$15/100)) -> 62.54203179 | I157: =H157*(1+('Scenario Input'!$AP$15/100)) -> 64.36857735 | J157: =I157*(1+('Scenario Input'!$AS$15/100)) -> 66.24846734
A158: CA0901217 | B158: BEAR STATE WATER WORKS | C158: 4.17 | D158: =C158*(1+('Scenario Input'!$AA$15/100)) -> 4.360785767 | E158: =D158*(1+('Scenario Input'!$AD$15/100)) -> 4.513140976 | F158: =E158*(1+('Scenario Input'!$AG$15/100)) -> 4.60873656 | G158: =F158*(1+('Scenario Input'!$AJ$15/100)) -> 4.709169725 | H158: =G158*(1+('Scenario Input'!$AM$15/100)) -> 4.814477987 | I158: =H158*(1+('Scenario Input'!$AP$15/100)) -> 4.955085242 | J158: =I158*(1+('Scenario Input'!$AS$15/100)) -> 5.099798944
A159: CA1500466 | B159: A.F.P. MUTUAL WATER COMPANY | C159: 30.25 | D159: =C159*(1+('Scenario Input'!$AA$15/100)) -> 31.63399747 | E159: =D159*(1+('Scenario Input'!$AD$15/100)) -> 32.73921212 | F159: =E159*(1+('Scenario Input'!$AG$15/100)) -> 33.43268128 | G159: =F159*(1+('Scenario Input'!$AJ$15/100)) -> 34.16124321 | H159: =G159*(1+('Scenario Input'!$AM$15/100)) -> 34.92517005 | I159: =H159*(1+('Scenario Input'!$AP$15/100)) -> 35.94516273 | J159: =I159*(1+('Scenario Input'!$AS$15/100)) -> 36.99494438
A160: CA5410015 | B160: TULARE, CITY OF | C160: 32.54 | D160: =C160*(1+('Scenario Input'!$AA$15/100)) -> 34.02876951 | E160: =D160*(1+('Scenario Input'!$AD$15/100)) -> 35.21765165 | F160: =E160*(1+('Scenario Input'!$AG$15/100)) -> 35.96361814 | G160: =F160*(1+('Scenario Input'!$AJ$15/100)) -> 36.74733402 | H160: =G160*(1+('Scenario Input'!$AM$15/100)) -> 37.56909201 | I160: =H160*(1+('Scenario Input'!$AP$15/100)) -> 38.66630067 | J160: =I160*(1+('Scenario Input'!$AS$15/100)) -> 39.79555339
A161: CA4710008 | B161: MT. SHASTA, CITY OF | C161: 66.55 | D161: =C161*(1+('Scenario Input'!$AA$15/100)) -> 69.59479443 | E161: =D161*(1+('Scenario Input'!$AD$15/100)) -> 72.02626666 | F161: =E161*(1+('Scenario Input'!$AG$15/100)) -> 73.55189881 | G161: =F161*(1+('Scenario Input'!$AJ$15/100)) -> 75.15473507 | H161: =G161*(1+('Scenario Input'!$AM$15/100)) -> 76.83537411 | I161: =H161*(1+('Scenario Input'!$AP$15/100)) -> 79.079358 | J161: =I161*(1+('Scenario Input'!$AS$15/100)) -> 81.38887764
A162: CA3600345 | B162: WEST END MWC | C162: 66.25 | D162: =C162*(1+('Scenario Input'!$AA$15/100)) -> 69.28106883 | E162: =D162*(1+('Scenario Input'!$AD$15/100)) -> 71.70158026 | F162: =E162*(1+('Scenario Input'!$AG$15/100)) -> 73.22033503 | G162: =F162*(1+('Scenario Input'!$AJ$15/100)) -> 74.81594588 | H162: =G162*(1+('Scenario Input'!$AM$15/100)) -> 76.48900878 | I162: =H162*(1+('Scenario Input'!$AP$15/100)) -> 78.72287705 | J162: =I162*(1+('Scenario Input'!$AS$15/100)) -> 81.02198563
A163: CA1010044 | B163: HURON, CITY OF | C163: 32.99 | D163: =C163*(1+('Scenario Input'!$AA$15/100)) -> 34.4993579 | E163: =D163*(1+('Scenario Input'!$AD$15/100)) -> 35.70468125 | F163: =E163*(1+('Scenario Input'!$AG$15/100)) -> 36.46096381 | G163: =F163*(1+('Scenario Input'!$AJ$15/100)) -> 37.2555178 | H163: =G163*(1+('Scenario Input'!$AM$15/100)) -> 38.08864 | I163: =H163*(1+('Scenario Input'!$AP$15/100)) -> 39.20102209 | J163: =I163*(1+('Scenario Input'!$AS$15/100)) -> 40.34589141
A164: CA2000538 | B164: CEDAR VALLEY MUTUAL WATER CO | C164: 30 | D164: =C164*(1+('Scenario Input'!$AA$15/100)) -> 31.37255947 | E164: =D164*(1+('Scenario Input'!$AD$15/100)) -> 32.46864012 | F164: =E164*(1+('Scenario Input'!$AG$15/100)) -> 33.15637813 | G164: =F164*(1+('Scenario Input'!$AJ$15/100)) -> 33.87891889 | H164: =G164*(1+('Scenario Input'!$AM$15/100)) -> 34.63653228 | I164: =H164*(1+('Scenario Input'!$AP$15/100)) -> 35.64809527 | J164: =I164*(1+('Scenario Input'!$AS$15/100)) -> 36.68920104
A165: CA2710011 | B165: SOLEDAD, CITY OF | C165: 122.23 | D165: =C165*(1+('Scenario Input'!$AA$15/100)) -> 127.8222648 | E165: =D165*(1+('Scenario Input'!$AD$15/100)) -> 132.2880627 | F165: =E165*(1+('Scenario Input'!$AG$15/100)) -> 135.0901366 | G165: =F165*(1+('Scenario Input'!$AJ$15/100)) -> 138.0340085 | H165: =G165*(1+('Scenario Input'!$AM$15/100)) -> 141.120778 | I165: =H165*(1+('Scenario Input'!$AP$15/100)) -> 145.2422228 | J165: =I165*(1+('Scenario Input'!$AS$15/100)) -> 149.4840348
A166: CA2701515 | B166: MOSS LANDING HARBOR WS | C166: 50.76 | D166: =C166*(1+('Scenario Input'!$AA$15/100)) -> 53.08237063 | E166: =D166*(1+('Scenario Input'!$AD$15/100)) -> 54.93693908 | F166: =E166*(1+('Scenario Input'!$AG$15/100)) -> 56.10059179 | G166: =F166*(1+('Scenario Input'!$AJ$15/100)) -> 57.32313076 | H166: =G166*(1+('Scenario Input'!$AM$15/100)) -> 58.60501262 | I166: =H166*(1+('Scenario Input'!$AP$15/100)) -> 60.31657719 | J166: =I166*(1+('Scenario Input'!$AS$15/100)) -> 62.07812816
A167: CA3901092 | B167: SAN JOAQUIN WATER WORKS #2 | C167: 66.98333333 | D167: =C167*(1+('Scenario Input'!$AA$15/100)) -> 70.04795362 | E167: =D167*(1+('Scenario Input'!$AD$15/100)) -> 72.49525813 | F167: =E167*(1+('Scenario Input'!$AG$15/100)) -> 74.03082428 | G167: =F167*(1+('Scenario Input'!$AJ$15/100)) -> 75.64409723 | H167: =G167*(1+('Scenario Input'!$AM$15/100)) -> 77.33567957 | I167: =H167*(1+('Scenario Input'!$AP$15/100)) -> 79.59427493 | J167: =I167*(1+('Scenario Input'!$AS$15/100)) -> 81.91883276
A168: CA1210016 | B168: MCKINLEYVILLE C.S.D. | C168: 84.11 | D168: =C168*(1+('Scenario Input'!$AA$15/100)) -> 87.95819924 | E168: =D168*(1+('Scenario Input'!$AD$15/100)) -> 91.03124401 | F168: =E168*(1+('Scenario Input'!$AG$15/100)) -> 92.95943214 | G168: =F168*(1+('Scenario Input'!$AJ$15/100)) -> 94.98519559 | H168: =G168*(1+('Scenario Input'!$AM$15/100)) -> 97.109291 | I168: =H168*(1+('Scenario Input'!$AP$15/100)) -> 99.94537643 | J168: =I168*(1+('Scenario Input'!$AS$15/100)) -> 102.86429
A169: CA2400128 | B169: COUNTRY CLUB COUNTY WD | C169: 66.67 | D169: =C169*(1+('Scenario Input'!$AA$15/100)) -> 69.72028467 | E169: =D169*(1+('Scenario Input'!$AD$15/100)) -> 72.15614122 | F169: =E169*(1+('Scenario Input'!$AG$15/100)) -> 73.68452433 | G169: =F169*(1+('Scenario Input'!$AJ$15/100)) -> 75.29025074 | H169: =G169*(1+('Scenario Input'!$AM$15/100)) -> 76.97392024 | I169: =H169*(1+('Scenario Input'!$AP$15/100)) -> 79.22195038 | J169: =I169*(1+('Scenario Input'!$AS$15/100)) -> 81.53563444
A170: CA2110003 | B170: NORTH MARIN WATER DISTRICT | C170: 41.4 | D170: =C170*(1+('Scenario Input'!$AA$15/100)) -> 43.29413207 | E170: =D170*(1+('Scenario Input'!$AD$15/100)) -> 44.80672336 | F170: =E170*(1+('Scenario Input'!$AG$15/100)) -> 45.75580182 | G170: =F170*(1+('Scenario Input'!$AJ$15/100)) -> 46.75290807 | H170: =G170*(1+('Scenario Input'!$AM$15/100)) -> 47.79841455 | I170: =H170*(1+('Scenario Input'!$AP$15/100)) -> 49.19437147 | J170: =I170*(1+('Scenario Input'!$AS$15/100)) -> 50.63109743
A171: CA2210901 | B171: MPWD-COULTERVILLE CSA 1 | C171: 75.27 | D171: =C171*(1+('Scenario Input'!$AA$15/100)) -> 78.71375171 | E171: =D171*(1+('Scenario Input'!$AD$15/100)) -> 81.46381806 | F171: =E171*(1+('Scenario Input'!$AG$15/100)) -> 83.18935272 | G171: =F171*(1+('Scenario Input'!$AJ$15/100)) -> 85.00220749 | H171: =G171*(1+('Scenario Input'!$AM$15/100)) -> 86.90305949 | I171: =H171*(1+('Scenario Input'!$AP$15/100)) -> 89.44107102 | J171: =I171*(1+('Scenario Input'!$AS$15/100)) -> 92.05320541
A172: CA4300543 | B172: WEST SAN MARTIN WATER WORKS INC | C172: 39.42 | D172: =C172*(1+('Scenario Input'!$AA$15/100)) -> 41.22354315 | E172: =D172*(1+('Scenario Input'!$AD$15/100)) -> 42.66379312 | F172: =E172*(1+('Scenario Input'!$AG$15/100)) -> 43.56748086 | G172: =F172*(1+('Scenario Input'!$AJ$15/100)) -> 44.51689942 | H172: =G172*(1+('Scenario Input'!$AM$15/100)) -> 45.51240342 | I172: =H172*(1+('Scenario Input'!$AP$15/100)) -> 46.84159718 | J172: =I172*(1+('Scenario Input'!$AS$15/100)) -> 48.20961017
A173: CA4110025 | B173: NORTH COAST COUNTY WATER DIST | C173: 47.33 | D173: =C173*(1+('Scenario Input'!$AA$15/100)) -> 49.49544133 | E173: =D173*(1+('Scenario Input'!$AD$15/100)) -> 51.22469123 | F173: =E173*(1+('Scenario Input'!$AG$15/100)) -> 52.30971256 | G173: =F173*(1+('Scenario Input'!$AJ$15/100)) -> 53.44964103 | H173: =G173*(1+('Scenario Input'!$AM$15/100)) -> 54.64490243 | I173: =H173*(1+('Scenario Input'!$AP$15/100)) -> 56.24081163 | J173: =I173*(1+('Scenario Input'!$AS$15/100)) -> 57.88332951
A174: CA1910061 | B174: LAS FLORES WATER CO. | C174: 25.62 | D174: =C174*(1+('Scenario Input'!$AA$15/100)) -> 26.79216579 | E174: =D174*(1+('Scenario Input'!$AD$15/100)) -> 27.72821866 | F174: =E174*(1+('Scenario Input'!$AG$15/100)) -> 28.31554692 | G174: =F174*(1+('Scenario Input'!$AJ$15/100)) -> 28.93259673 | H174: =G174*(1+('Scenario Input'!$AM$15/100)) -> 29.57959857 | I174: =H174*(1+('Scenario Input'!$AP$15/100)) -> 30.44347336 | J174: =I174*(1+('Scenario Input'!$AS$15/100)) -> 31.33257769
A175: CA0210001 | B175: LAKE ALPINE WATER COMPANY | C175: 135.25 | D175: =C175*(1+('Scenario Input'!$AA$15/100)) -> 141.4379556 | E175: =D175*(1+('Scenario Input'!$AD$15/100)) -> 146.3794525 | F175: =E175*(1+('Scenario Input'!$AG$15/100)) -> 149.4800047 | G175: =F175*(1+('Scenario Input'!$AJ$15/100)) -> 152.7374593 | H175: =G175*(1+('Scenario Input'!$AM$15/100)) -> 156.153033 | I175: =H175*(1+('Scenario Input'!$AP$15/100)) -> 160.7134962 | J175: =I175*(1+('Scenario Input'!$AS$15/100)) -> 165.407148
A176: CA0800825 | B176: JED SMITH HOMEOWNERS ASSN. | C176: 60 | D176: =C176*(1+('Scenario Input'!$AA$15/100)) -> 62.74511894 | E176: =D176*(1+('Scenario Input'!$AD$15/100)) -> 64.93728024 | F176: =E176*(1+('Scenario Input'!$AG$15/100)) -> 66.31275626 | G176: =F176*(1+('Scenario Input'!$AJ$15/100)) -> 67.75783778 | H176: =G176*(1+('Scenario Input'!$AM$15/100)) -> 69.27306456 | I176: =H176*(1+('Scenario Input'!$AP$15/100)) -> 71.29619053 | J176: =I176*(1+('Scenario Input'!$AS$15/100)) -> 73.37840208
A177: CA2700674 | B177: PARADISE LAKE MUTUAL WATER CO. | C177: 100 | D177: =C177*(1+('Scenario Input'!$AA$15/100)) -> 104.5751982 | E177: =D177*(1+('Scenario Input'!$AD$15/100)) -> 108.2288004 | F177: =E177*(1+('Scenario Input'!$AG$15/100)) -> 110.5212604 | G177: =F177*(1+('Scenario Input'!$AJ$15/100)) -> 112.9297296 | H177: =G177*(1+('Scenario Input'!$AM$15/100)) -> 115.4551076 | I177: =H177*(1+('Scenario Input'!$AP$15/100)) -> 118.8269842 | J177: =I177*(1+('Scenario Input'!$AS$15/100)) -> 122.2973368
A178: CA0910003 | B178: PLACERVILLE, CITY OF - MAIN | C178: 28.92 | D178: =C178*(1+('Scenario Input'!$AA$15/100)) -> 30.24314733 | E178: =D178*(1+('Scenario Input'!$AD$15/100)) -> 31.29976907 | F178: =E178*(1+('Scenario Input'!$AG$15/100)) -> 31.96274852 | G178: =F178*(1+('Scenario Input'!$AJ$15/100)) -> 32.65927781 | H178: =G178*(1+('Scenario Input'!$AM$15/100)) -> 33.38961712 | I178: =H178*(1+('Scenario Input'!$AP$15/100)) -> 34.36476384 | J178: =I178*(1+('Scenario Input'!$AS$15/100)) -> 35.3683898
A179: CA1800503 | B179: SUSAN RIVER PARK WATER CO. | C179: 115.1 | D179: =C179*(1+('Scenario Input'!$AA$15/100)) -> 120.3660532 | E179: =D179*(1+('Scenario Input'!$AD$15/100)) -> 124.5713493 | F179: =E179*(1+('Scenario Input'!$AG$15/100)) -> 127.2099708 | G179: =F179*(1+('Scenario Input'!$AJ$15/100)) -> 129.9821188 | H179: =G179*(1+('Scenario Input'!$AM$15/100)) -> 132.8888288 | I179: =H179*(1+('Scenario Input'!$AP$15/100)) -> 136.7698588 | J179: =I179*(1+('Scenario Input'!$AS$15/100)) -> 140.7642347
A180: CA5200014 | B180: WILSON ACRES MUTUAL WATER | C180: 30 | D180: =C180*(1+('Scenario Input'!$AA$15/100)) -> 31.37255947 | E180: =D180*(1+('Scenario Input'!$AD$15/100)) -> 32.46864012 | F180: =E180*(1+('Scenario Input'!$AG$15/100)) -> 33.15637813 | G180: =F180*(1+('Scenario Input'!$AJ$15/100)) -> 33.87891889 | H180: =G180*(1+('Scenario Input'!$AM$15/100)) -> 34.63653228 | I180: =H180*(1+('Scenario Input'!$AP$15/100)) -> 35.64809527 | J180: =I180*(1+('Scenario Input'!$AS$15/100)) -> 36.68920104
A181: CA3710041 | B181: MAJESTIC PINES COMMUNITY SD | C181: 80.9 | D181: =C181*(1+('Scenario Input'!$AA$15/100)) -> 84.60133537 | E181: =D181*(1+('Scenario Input'!$AD$15/100)) -> 87.55709952 | F181: =E181*(1+('Scenario Input'!$AG$15/100)) -> 89.41169968 | G181: =F181*(1+('Scenario Input'!$AJ$15/100)) -> 91.36015127 | H181: =G181*(1+('Scenario Input'!$AM$15/100)) -> 93.40318205 | I181: =H181*(1+('Scenario Input'!$AP$15/100)) -> 96.13103023 | J181: =I181*(1+('Scenario Input'!$AS$15/100)) -> 98.93854547
A182: CA1900075 | B182: BLEICH FLATS MUTUAL | C182: 52.39 | D182: =C182*(1+('Scenario Input'!$AA$15/100)) -> 54.78694636 | E182: =D182*(1+('Scenario Input'!$AD$15/100)) -> 56.70106853 | F182: =E182*(1+('Scenario Input'!$AG$15/100)) -> 57.90208834 | G182: =F182*(1+('Scenario Input'!$AJ$15/100)) -> 59.16388535 | H182: =G182*(1+('Scenario Input'!$AM$15/100)) -> 60.48693087 | I182: =H182*(1+('Scenario Input'!$AP$15/100)) -> 62.25345703 | J182: =I182*(1+('Scenario Input'!$AS$15/100)) -> 64.07157475
A183: CA3200509 | B183: CLIO PUBLIC UTILITY DISTRICT | C183: 35 | D183: =C183*(1+('Scenario Input'!$AA$15/100)) -> 36.60131938 | E183: =D183*(1+('Scenario Input'!$AD$15/100)) -> 37.88008014 | F183: =E183*(1+('Scenario Input'!$AG$15/100)) -> 38.68244115 | G183: =F183*(1+('Scenario Input'!$AJ$15/100)) -> 39.52540537 | H183: =G183*(1+('Scenario Input'!$AM$15/100)) -> 40.40928766 | I183: =H183*(1+('Scenario Input'!$AP$15/100)) -> 41.58944448 | J183: =I183*(1+('Scenario Input'!$AS$15/100)) -> 42.80406788
A184: CA1910001 | B184: CITY OF ALHAMBRA | C184: 48.58 | D184: =C184*(1+('Scenario Input'!$AA$15/100)) -> 50.8026313 | E184: =D184*(1+('Scenario Input'!$AD$15/100)) -> 52.57755123 | F184: =E184*(1+('Scenario Input'!$AG$15/100)) -> 53.69122831 | G184: =F184*(1+('Scenario Input'!$AJ$15/100)) -> 54.86126265 | H184: =G184*(1+('Scenario Input'!$AM$15/100)) -> 56.08809127 | I184: =H184*(1+('Scenario Input'!$AP$15/100)) -> 57.72614893 | J184: =I184*(1+('Scenario Input'!$AS$15/100)) -> 59.41204622
A185: CA0202503 | B185: WOODFORDS MUTUAL WATER COMPANY | C185: 29.17 | D185: =C185*(1+('Scenario Input'!$AA$15/100)) -> 30.50458533 | E185: =D185*(1+('Scenario Input'!$AD$15/100)) -> 31.57034107 | F185: =E185*(1+('Scenario Input'!$AG$15/100)) -> 32.23905167 | G185: =F185*(1+('Scenario Input'!$AJ$15/100)) -> 32.94160213 | H185: =G185*(1+('Scenario Input'!$AM$15/100)) -> 33.67825489 | I185: =H185*(1+('Scenario Input'!$AP$15/100)) -> 34.6618313 | J185: =I185*(1+('Scenario Input'!$AS$15/100)) -> 35.67413314
A186: CA4000705 | B186: LAGUNA NEGRA MUTUAL WATER CO. | C186: 0 | D186: =C186*(1+('Scenario Input'!$AA$15/100)) -> 0 | E186: =D186*(1+('Scenario Input'!$AD$15/100)) -> 0 | F186: =E186*(1+('Scenario Input'!$AG$15/100)) -> 0 | G186: =F186*(1+('Scenario Input'!$AJ$15/100)) -> 0 | H186: =G186*(1+('Scenario Input'!$AM$15/100)) -> 0 | I186: =H186*(1+('Scenario Input'!$AP$15/100)) -> 0 | J186: =I186*(1+('Scenario Input'!$AS$15/100)) -> 0
A187: CA3400103 | B187: B & W RESORT MARINA | C187: 10 | D187: =C187*(1+('Scenario Input'!$AA$15/100)) -> 10.45751982 | E187: =D187*(1+('Scenario Input'!$AD$15/100)) -> 10.82288004 | F187: =E187*(1+('Scenario Input'!$AG$15/100)) -> 11.05212604 | G187: =F187*(1+('Scenario Input'!$AJ$15/100)) -> 11.29297296 | H187: =G187*(1+('Scenario Input'!$AM$15/100)) -> 11.54551076 | I187: =H187*(1+('Scenario Input'!$AP$15/100)) -> 11.88269842 | J187: =I187*(1+('Scenario Input'!$AS$15/100)) -> 12.22973368
A188: CA5403212 | B188: MONSON WATER SYSTEM | C188: 45.85 | D188: =C188*(1+('Scenario Input'!$AA$15/100)) -> 47.94772839 | E188: =D188*(1+('Scenario Input'!$AD$15/100)) -> 49.62290498 | F188: =E188*(1+('Scenario Input'!$AG$15/100)) -> 50.67399791 | G188: =F188*(1+('Scenario Input'!$AJ$15/100)) -> 51.77828103 | H188: =G188*(1+('Scenario Input'!$AM$15/100)) -> 52.93616683 | I188: =H188*(1+('Scenario Input'!$AP$15/100)) -> 54.48217226 | J188: =I188*(1+('Scenario Input'!$AS$15/100)) -> 56.07332892
A189: CA4210009 | B189: CUYAMA COMMUNITY SERVICES DISTRICT | C189: 106.12 | D189: =C189*(1+('Scenario Input'!$AA$15/100)) -> 110.9752004 | E189: =D189*(1+('Scenario Input'!$AD$15/100)) -> 114.852403 | F189: =E189*(1+('Scenario Input'!$AG$15/100)) -> 117.2851616 | G189: =F189*(1+('Scenario Input'!$AJ$15/100)) -> 119.8410291 | H189: =G189*(1+('Scenario Input'!$AM$15/100)) -> 122.5209602 | I189: =H189*(1+('Scenario Input'!$AP$15/100)) -> 126.0991957 | J189: =I189*(1+('Scenario Input'!$AS$15/100)) -> 129.7819338
A190: CA1910140 | B190: RUBIO CANON LAND & WATER ASSOCIATION | C190: 46.5 | D190: =C190*(1+('Scenario Input'!$AA$15/100)) -> 48.62746718 | E190: =D190*(1+('Scenario Input'!$AD$15/100)) -> 50.32639218 | F190: =E190*(1+('Scenario Input'!$AG$15/100)) -> 51.3923861 | G190: =F190*(1+('Scenario Input'!$AJ$15/100)) -> 52.51232428 | H190: =G190*(1+('Scenario Input'!$AM$15/100)) -> 53.68662503 | I190: =H190*(1+('Scenario Input'!$AP$15/100)) -> 55.25454766 | J190: =I190*(1+('Scenario Input'!$AS$15/100)) -> 56.86826161
A191: CA2000757 | B191: MD 63 MEADOW SPRINGS RANCH | C191: 95.18 | D191: =C191*(1+('Scenario Input'!$AA$15/100)) -> 99.53467368 | E191: =D191*(1+('Scenario Input'!$AD$15/100)) -> 103.0121722 | F191: =E191*(1+('Scenario Input'!$AG$15/100)) -> 105.1941357 | G191: =F191*(1+('Scenario Input'!$AJ$15/100)) -> 107.4865167 | H191: =G191*(1+('Scenario Input'!$AM$15/100)) -> 109.8901714 | I191: =H191*(1+('Scenario Input'!$AP$15/100)) -> 113.0995236 | J191: =I191*(1+('Scenario Input'!$AS$15/100)) -> 116.4026052
A192: CA4110005 | B192: GUADALUPE VALLEY MID | C192: 28.86 | D192: =C192*(1+('Scenario Input'!$AA$15/100)) -> 30.18040221 | E192: =D192*(1+('Scenario Input'!$AD$15/100)) -> 31.23483179 | F192: =E192*(1+('Scenario Input'!$AG$15/100)) -> 31.89643576 | G192: =F192*(1+('Scenario Input'!$AJ$15/100)) -> 32.59151997 | H192: =G192*(1+('Scenario Input'!$AM$15/100)) -> 33.32034405 | I192: =H192*(1+('Scenario Input'!$AP$15/100)) -> 34.29346765 | J192: =I192*(1+('Scenario Input'!$AS$15/100)) -> 35.2950114
A193: CA4200703 | B193: EL CAPITAN MUTUAL WATER COMPANY | C193: 14.1 | D193: =C193*(1+('Scenario Input'!$AA$15/100)) -> 14.74510295 | E193: =D193*(1+('Scenario Input'!$AD$15/100)) -> 15.26026086 | F193: =E193*(1+('Scenario Input'!$AG$15/100)) -> 15.58349772 | G193: =F193*(1+('Scenario Input'!$AJ$15/100)) -> 15.92309188 | H193: =G193*(1+('Scenario Input'!$AM$15/100)) -> 16.27917017 | I193: =H193*(1+('Scenario Input'!$AP$15/100)) -> 16.75460478 | J193: =I193*(1+('Scenario Input'!$AS$15/100)) -> 17.24392449
A194: CA3200134 | B194: BLAIRSDEN WATER USERS ASSN | C194: 31.5 | D194: =C194*(1+('Scenario Input'!$AA$15/100)) -> 32.94118745 | E194: =D194*(1+('Scenario Input'!$AD$15/100)) -> 34.09207212 | F194: =E194*(1+('Scenario Input'!$AG$15/100)) -> 34.81419703 | G194: =F194*(1+('Scenario Input'!$AJ$15/100)) -> 35.57286483 | H194: =G194*(1+('Scenario Input'!$AM$15/100)) -> 36.36835889 | I194: =H194*(1+('Scenario Input'!$AP$15/100)) -> 37.43050003 | J194: =I194*(1+('Scenario Input'!$AS$15/100)) -> 38.52366109
A195: CA2310010 | B195: HOPLAND PUBLIC UTILITY DISTRICT | C195: 24.5 | D195: =C195*(1+('Scenario Input'!$AA$15/100)) -> 25.62092357 | E195: =D195*(1+('Scenario Input'!$AD$15/100)) -> 26.5160561 | F195: =E195*(1+('Scenario Input'!$AG$15/100)) -> 27.0777088 | G195: =F195*(1+('Scenario Input'!$AJ$15/100)) -> 27.66778376 | H195: =G195*(1+('Scenario Input'!$AM$15/100)) -> 28.28650136 | I195: =H195*(1+('Scenario Input'!$AP$15/100)) -> 29.11261113 | J195: =I195*(1+('Scenario Input'!$AS$15/100)) -> 29.96284752
A196: CA1410006 | B196: BIG PINE CSD | C196: 22.7 | D196: =C196*(1+('Scenario Input'!$AA$15/100)) -> 23.73857 | E196: =D196*(1+('Scenario Input'!$AD$15/100)) -> 24.56793769 | F196: =E196*(1+('Scenario Input'!$AG$15/100)) -> 25.08832612 | G196: =F196*(1+('Scenario Input'!$AJ$15/100)) -> 25.63504863 | H196: =G196*(1+('Scenario Input'!$AM$15/100)) -> 26.20830942 | I196: =H196*(1+('Scenario Input'!$AP$15/100)) -> 26.97372542 | J196: =I196*(1+('Scenario Input'!$AS$15/100)) -> 27.76149545
A197: CA4700551 | B197: COPCO LAKE MWC | C197: 41.67 | D197: =C197*(1+('Scenario Input'!$AA$15/100)) -> 43.57648511 | E197: =D197*(1+('Scenario Input'!$AD$15/100)) -> 45.09894112 | F197: =E197*(1+('Scenario Input'!$AG$15/100)) -> 46.05420922 | G197: =F197*(1+('Scenario Input'!$AJ$15/100)) -> 47.05781834 | H197: =G197*(1+('Scenario Input'!$AM$15/100)) -> 48.11014334 | I197: =H197*(1+('Scenario Input'!$AP$15/100)) -> 49.51520432 | J197: =I197*(1+('Scenario Input'!$AS$15/100)) -> 50.96130024
A198: CA4400599 | B198: SUNSET BEACH MUTUAL WATER CO | C198: 60 | D198: =C198*(1+('Scenario Input'!$AA$15/100)) -> 62.74511894 | E198: =D198*(1+('Scenario Input'!$AD$15/100)) -> 64.93728024 | F198: =E198*(1+('Scenario Input'!$AG$15/100)) -> 66.31275626 | G198: =F198*(1+('Scenario Input'!$AJ$15/100)) -> 67.75783778 | H198: =G198*(1+('Scenario Input'!$AM$15/100)) -> 69.27306456 | I198: =H198*(1+('Scenario Input'!$AP$15/100)) -> 71.29619053 | J198: =I198*(1+('Scenario Input'!$AS$15/100)) -> 73.37840208
A199: CA5401026 | B199: DEER MEADOW MUTUAL WATER COMPANY | C199: 50 | D199: =C199*(1+('Scenario Input'!$AA$15/100)) -> 52.28759912 | E199: =D199*(1+('Scenario Input'!$AD$15/100)) -> 54.1144002 | F199: =E199*(1+('Scenario Input'!$AG$15/100)) -> 55.26063021 | G199: =F199*(1+('Scenario Input'!$AJ$15/100)) -> 56.46486481 | H199: =G199*(1+('Scenario Input'!$AM$15/100)) -> 57.7275538 | I199: =H199*(1+('Scenario Input'!$AP$15/100)) -> 59.41349211 | J199: =I199*(1+('Scenario Input'!$AS$15/100)) -> 61.1486684
A200: CA3110019 | B200: SQUAW VALLEY MWC | C200: 58.66 | D200: =C200*(1+('Scenario Input'!$AA$15/100)) -> 61.34381129 | E200: =D200*(1+('Scenario Input'!$AD$15/100)) -> 63.48701431 | F200: =E200*(1+('Scenario Input'!$AG$15/100)) -> 64.83177137 | G200: =F200*(1+('Scenario Input'!$AJ$15/100)) -> 66.2445794 | H200: =G200*(1+('Scenario Input'!$AM$15/100)) -> 67.72596612 | I200: =H200*(1+('Scenario Input'!$AP$15/100)) -> 69.70390894 | J200: =I200*(1+('Scenario Input'!$AS$15/100)) -> 71.73961776
... 925 more rows

Sheet Comm Input
A1: Communications Provider ID | B1: Communication Provider Names (Broadband, Voice) | C1: 2020 Essential Usage Bill ($/month) | D1: 2021 Essential Usage Bill ($/month) | E1: 2022 Essential Usage Bill ($/month) | F1: 2023 Essential Usage Bill ($/month) | G1: 2024 Essential Usage Bill ($/month) | H1: 2025 Essential Usage Bill ($/month) | I1: 2026 Essential Usage Bill ($/month) | J1: 2027 Essential Usage Bill ($/month)
A2: 1 | B2: , AT&T California | C2: 27 | D2: =C2*(1+('Scenario Input'!$AA$15/100)) -> 28.23530352 | E2: =D2*(1+('Scenario Input'!$AD$15/100)) -> 29.22177611 | F2: =E2*(1+('Scenario Input'!$AG$15/100)) -> 29.84074031 | G2: =F2*(1+('Scenario Input'!$AJ$15/100)) -> 30.491027 | H2: =G2*(1+('Scenario Input'!$AM$15/100)) -> 31.17287905 | I2: =H2*(1+('Scenario Input'!$AP$15/100)) -> 32.08328574 | J2: =I2*(1+('Scenario Input'!$AS$15/100)) -> 33.02028094
A3: 2 | B3: , Cal-Ore | C3: 25 | D3: =C3*(1+('Scenario Input'!$AA$15/100)) -> 26.14379956 | E3: =D3*(1+('Scenario Input'!$AD$15/100)) -> 27.0572001 | F3: =E3*(1+('Scenario Input'!$AG$15/100)) -> 27.63031511 | G3: =F3*(1+('Scenario Input'!$AJ$15/100)) -> 28.23243241 | H3: =G3*(1+('Scenario Input'!$AM$15/100)) -> 28.8637769 | I3: =H3*(1+('Scenario Input'!$AP$15/100)) -> 29.70674605 | J3: =I3*(1+('Scenario Input'!$AS$15/100)) -> 30.5743342
A4: 3 | B4: , Calaveras | C4: 25 | D4: =C4*(1+('Scenario Input'!$AA$15/100)) -> 26.14379956 | E4: =D4*(1+('Scenario Input'!$AD$15/100)) -> 27.0572001 | F4: =E4*(1+('Scenario Input'!$AG$15/100)) -> 27.63031511 | G4: =F4*(1+('Scenario Input'!$AJ$15/100)) -> 28.23243241 | H4: =G4*(1+('Scenario Input'!$AM$15/100)) -> 28.8637769 | I4: =H4*(1+('Scenario Input'!$AP$15/100)) -> 29.70674605 | J4: =I4*(1+('Scenario Input'!$AS$15/100)) -> 30.5743342
A5: 4 | B5: , Frontier - Citizens | C5: 25 | D5: =C5*(1+('Scenario Input'!$AA$15/100)) -> 26.14379956 | E5: =D5*(1+('Scenario Input'!$AD$15/100)) -> 27.0572001 | F5: =E5*(1+('Scenario Input'!$AG$15/100)) -> 27.63031511 | G5: =F5*(1+('Scenario Input'!$AJ$15/100)) -> 28.23243241 | H5: =G5*(1+('Scenario Input'!$AM$15/100)) -> 28.8637769 | I5: =H5*(1+('Scenario Input'!$AP$15/100)) -> 29.70674605 | J5: =I5*(1+('Scenario Input'!$AS$15/100)) -> 30.5743342
A6: 5 | B6: , Frontier - Citizens | C6: 25 | D6: =C6*(1+('Scenario Input'!$AA$15/100)) -> 26.14379956 | E6: =D6*(1+('Scenario Input'!$AD$15/100)) -> 27.0572001 | F6: =E6*(1+('Scenario Input'!$AG$15/100)) -> 27.63031511 | G6: =F6*(1+('Scenario Input'!$AJ$15/100)) -> 28.23243241 | H6: =G6*(1+('Scenario Input'!$AM$15/100)) -> 28.8637769 | I6: =H6*(1+('Scenario Input'!$AP$15/100)) -> 29.70674605 | J6: =I6*(1+('Scenario Input'!$AS$15/100)) -> 30.5743342
A7: 6 | B7: , Frontier - Citizens | C7: 25 | D7: =C7*(1+('Scenario Input'!$AA$15/100)) -> 26.14379956 | E7: =D7*(1+('Scenario Input'!$AD$15/100)) -> 27.0572001 | F7: =E7*(1+('Scenario Input'!$AG$15/100)) -> 27.63031511 | G7: =F7*(1+('Scenario Input'!$AJ$15/100)) -> 28.23243241 | H7: =G7*(1+('Scenario Input'!$AM$15/100)) -> 28.8637769 | I7: =H7*(1+('Scenario Input'!$AP$15/100)) -> 29.70674605 | J7: =I7*(1+('Scenario Input'!$AS$15/100)) -> 30.5743342
A8: 7 | B8: , Ducor | C8: 25 | D8: =C8*(1+('Scenario Input'!$AA$15/100)) -> 26.14379956 | E8: =D8*(1+('Scenario Input'!$AD$15/100)) -> 27.0572001 | F8: =E8*(1+('Scenario Input'!$AG$15/100)) -> 27.63031511 | G8: =F8*(1+('Scenario Input'!$AJ$15/100)) -> 28.23243241 | H8: =G8*(1+('Scenario Input'!$AM$15/100)) -> 28.8637769 | I8: =H8*(1+('Scenario Input'!$AP$15/100)) -> 29.70674605 | J8: =I8*(1+('Scenario Input'!$AS$15/100)) -> 30.5743342
A9: 8 | B9: , Foresthill | C9: 25 | D9: =C9*(1+('Scenario Input'!$AA$15/100)) -> 26.14379956 | E9: =D9*(1+('Scenario Input'!$AD$15/100)) -> 27.0572001 | F9: =E9*(1+('Scenario Input'!$AG$15/100)) -> 27.63031511 | G9: =F9*(1+('Scenario Input'!$AJ$15/100)) -> 28.23243241 | H9: =G9*(1+('Scenario Input'!$AM$15/100)) -> 28.8637769 | I9: =H9*(1+('Scenario Input'!$AP$15/100)) -> 29.70674605 | J9: =I9*(1+('Scenario Input'!$AS$15/100)) -> 30.5743342
A10: 9 | B10: , Frontier | C10: 22.25 | D10: =C10*(1+('Scenario Input'!$AA$15/100)) -> 23.26798161 | E10: =D10*(1+('Scenario Input'!$AD$15/100)) -> 24.08090809 | F10: =E10*(1+('Scenario Input'!$AG$15/100)) -> 24.59098044 | G10: =F10*(1+('Scenario Input'!$AJ$15/100)) -> 25.12686484 | H10: =G10*(1+('Scenario Input'!$AM$15/100)) -> 25.68876144 | I10: =H10*(1+('Scenario Input'!$AP$15/100)) -> 26.43900399 | J10: =I10*(1+('Scenario Input'!$AS$15/100)) -> 27.21115744
A11: 10 | B11: , TDS Telecom - HV | C11: 16.85 | D11: =C11*(1+('Scenario Input'!$AA$15/100)) -> 17.6209209 | E11: =D11*(1+('Scenario Input'!$AD$15/100)) -> 18.23655287 | F11: =E11*(1+('Scenario Input'!$AG$15/100)) -> 18.62283238 | G11: =F11*(1+('Scenario Input'!$AJ$15/100)) -> 19.02865944 | H11: =G11*(1+('Scenario Input'!$AM$15/100)) -> 19.45418563 | I11: =H11*(1+('Scenario Input'!$AP$15/100)) -> 20.02234684 | J11: =I11*(1+('Scenario Input'!$AS$15/100)) -> 20.60710125
A12: 11 | B12: , TDS Telecom - Horn | C12: 16.05 | D12: =C12*(1+('Scenario Input'!$AA$15/100)) -> 16.78431932 | E12: =D12*(1+('Scenario Input'!$AD$15/100)) -> 17.37072246 | F12: =E12*(1+('Scenario Input'!$AG$15/100)) -> 17.7386623 | G12: =F12*(1+('Scenario Input'!$AJ$15/100)) -> 18.12522161 | H12: =G12*(1+('Scenario Input'!$AM$15/100)) -> 18.53054477 | I12: =H12*(1+('Scenario Input'!$AP$15/100)) -> 19.07173097 | J12: =I12*(1+('Scenario Input'!$AS$15/100)) -> 19.62872256
A13: 12 | B13: , Kerman | C13: 22.58 | D13: =C13*(1+('Scenario Input'!$AA$15/100)) -> 23.61307976 | E13: =D13*(1+('Scenario Input'!$AD$15/100)) -> 24.43806313 | F13: =E13*(1+('Scenario Input'!$AG$15/100)) -> 24.9557006 | G13: =F13*(1+('Scenario Input'!$AJ$15/100)) -> 25.49953295 | H13: =G13*(1+('Scenario Input'!$AM$15/100)) -> 26.0697633 | I13: =H13*(1+('Scenario Input'!$AP$15/100)) -> 26.83113304 | J13: =I13*(1+('Scenario Input'!$AS$15/100)) -> 27.61473865
A14: 13 | B14: , | C14: 0 | D14: =C14*(1+('Scenario Input'!$AA$15/100)) -> 0 | E14: =D14*(1+('Scenario Input'!$AD$15/100)) -> 0 | F14: =E14*(1+('Scenario Input'!$AG$15/100)) -> 0 | G14: =F14*(1+('Scenario Input'!$AJ$15/100)) -> 0 | H14: =G14*(1+('Scenario Input'!$AM$15/100)) -> 0 | I14: =H14*(1+('Scenario Input'!$AP$15/100)) -> 0 | J14: =I14*(1+('Scenario Input'!$AS$15/100)) -> 0
A15: 14 | B15: , Pinnacles | C15: 24 | D15: =C15*(1+('Scenario Input'!$AA$15/100)) -> 25.09804758 | E15: =D15*(1+('Scenario Input'!$AD$15/100)) -> 25.97491209 | F15: =E15*(1+('Scenario Input'!$AG$15/100)) -> 26.5251025 | G15: =F15*(1+('Scenario Input'!$AJ$15/100)) -> 27.10313511 | H15: =G15*(1+('Scenario Input'!$AM$15/100)) -> 27.70922582 | I15: =H15*(1+('Scenario Input'!$AP$15/100)) -> 28.51847621 | J15: =I15*(1+('Scenario Input'!$AS$15/100)) -> 29.35136083
A16: 15 | B16: , Ponderosa | C16: 25 | D16: =C16*(1+('Scenario Input'!$AA$15/100)) -> 26.14379956 | E16: =D16*(1+('Scenario Input'!$AD$15/100)) -> 27.0572001 | F16: =E16*(1+('Scenario Input'!$AG$15/100)) -> 27.63031511 | G16: =F16*(1+('Scenario Input'!$AJ$15/100)) -> 28.23243241 | H16: =G16*(1+('Scenario Input'!$AM$15/100)) -> 28.8637769 | I16: =H16*(1+('Scenario Input'!$AP$15/100)) -> 29.70674605 | J16: =I16*(1+('Scenario Input'!$AS$15/100)) -> 30.5743342
A17: 16 | B17: , Sierra | C17: 25 | D17: =C17*(1+('Scenario Input'!$AA$15/100)) -> 26.14379956 | E17: =D17*(1+('Scenario Input'!$AD$15/100)) -> 27.0572001 | F17: =E17*(1+('Scenario Input'!$AG$15/100)) -> 27.63031511 | G17: =F17*(1+('Scenario Input'!$AJ$15/100)) -> 28.23243241 | H17: =G17*(1+('Scenario Input'!$AM$15/100)) -> 28.8637769 | I17: =H17*(1+('Scenario Input'!$AP$15/100)) -> 29.70674605 | J17: =I17*(1+('Scenario Input'!$AS$15/100)) -> 30.5743342
A18: 17 | B18: , Siskiyou | C18: 24 | D18: =C18*(1+('Scenario Input'!$AA$15/100)) -> 25.09804758 | E18: =D18*(1+('Scenario Input'!$AD$15/100)) -> 25.97491209 | F18: =E18*(1+('Scenario Input'!$AG$15/100)) -> 26.5251025 | G18: =F18*(1+('Scenario Input'!$AJ$15/100)) -> 27.10313511 | H18: =G18*(1+('Scenario Input'!$AM$15/100)) -> 27.70922582 | I18: =H18*(1+('Scenario Input'!$AP$15/100)) -> 28.51847621 | J18: =I18*(1+('Scenario Input'!$AS$15/100)) -> 29.35136083
A19: 18 | B19: , Surewest | C19: 23.22 | D19: =C19*(1+('Scenario Input'!$AA$15/100)) -> 24.28236103 | E19: =D19*(1+('Scenario Input'!$AD$15/100)) -> 25.13072745 | F19: =E19*(1+('Scenario Input'!$AG$15/100)) -> 25.66303667 | G19: =F19*(1+('Scenario Input'!$AJ$15/100)) -> 26.22228322 | H19: =G19*(1+('Scenario Input'!$AM$15/100)) -> 26.80867598 | I19: =H19*(1+('Scenario Input'!$AP$15/100)) -> 27.59162574 | J19: =I19*(1+('Scenario Input'!$AS$15/100)) -> 28.3974416
A20: 19 | B20: , TDS Telecom | C20: 16.05 | D20: =C20*(1+('Scenario Input'!$AA$15/100)) -> 16.78431932 | E20: =D20*(1+('Scenario Input'!$AD$15/100)) -> 17.37072246 | F20: =E20*(1+('Scenario Input'!$AG$15/100)) -> 17.7386623 | G20: =F20*(1+('Scenario Input'!$AJ$15/100)) -> 18.12522161 | H20: =G20*(1+('Scenario Input'!$AM$15/100)) -> 18.53054477 | I20: =H20*(1+('Scenario Input'!$AP$15/100)) -> 19.07173097 | J20: =I20*(1+('Scenario Input'!$AS$15/100)) -> 19.62872256
A21: 20 | B21: , Frontier | C21: 22.25 | D21: =C21*(1+('Scenario Input'!$AA$15/100)) -> 23.26798161 | E21: =D21*(1+('Scenario Input'!$AD$15/100)) -> 24.08090809 | F21: =E21*(1+('Scenario Input'!$AG$15/100)) -> 24.59098044 | G21: =F21*(1+('Scenario Input'!$AJ$15/100)) -> 25.12686484 | H21: =G21*(1+('Scenario Input'!$AM$15/100)) -> 25.68876144 | I21: =H21*(1+('Scenario Input'!$AP$15/100)) -> 26.43900399 | J21: =I21*(1+('Scenario Input'!$AS$15/100)) -> 27.21115744
A22: 21 | B22: , Frontier | C22: 22.25 | D22: =C22*(1+('Scenario Input'!$AA$15/100)) -> 23.26798161 | E22: =D22*(1+('Scenario Input'!$AD$15/100)) -> 24.08090809 | F22: =E22*(1+('Scenario Input'!$AG$15/100)) -> 24.59098044 | G22: =F22*(1+('Scenario Input'!$AJ$15/100)) -> 25.12686484 | H22: =G22*(1+('Scenario Input'!$AM$15/100)) -> 25.68876144 | I22: =H22*(1+('Scenario Input'!$AP$15/100)) -> 26.43900399 | J22: =I22*(1+('Scenario Input'!$AS$15/100)) -> 27.21115744
A23: 22 | B23: , Volcano | C23: 24 | D23: =C23*(1+('Scenario Input'!$AA$15/100)) -> 25.09804758 | E23: =D23*(1+('Scenario Input'!$AD$15/100)) -> 25.97491209 | F23: =E23*(1+('Scenario Input'!$AG$15/100)) -> 26.5251025 | G23: =F23*(1+('Scenario Input'!$AJ$15/100)) -> 27.10313511 | H23: =G23*(1+('Scenario Input'!$AM$15/100)) -> 27.70922582 | I23: =H23*(1+('Scenario Input'!$AP$15/100)) -> 28.51847621 | J23: =I23*(1+('Scenario Input'!$AS$15/100)) -> 29.35136083
A24: 23 | B24: , TDS Telecom | C24: 16.05 | D24: =C24*(1+('Scenario Input'!$AA$15/100)) -> 16.78431932 | E24: =D24*(1+('Scenario Input'!$AD$15/100)) -> 17.37072246 | F24: =E24*(1+('Scenario Input'!$AG$15/100)) -> 17.7386623 | G24: =F24*(1+('Scenario Input'!$AJ$15/100)) -> 18.12522161 | H24: =G24*(1+('Scenario Input'!$AM$15/100)) -> 18.53054477 | I24: =H24*(1+('Scenario Input'!$AP$15/100)) -> 19.07173097 | J24: =I24*(1+('Scenario Input'!$AS$15/100)) -> 19.62872256
A25: 24 | B25: 101Netlink, AT&T California | C25: 102 | D25: =C25*(1+('Scenario Input'!$AA$15/100)) -> 106.6667022 | E25: =D25*(1+('Scenario Input'!$AD$15/100)) -> 110.3933764 | F25: =E25*(1+('Scenario Input'!$AG$15/100)) -> 112.7316856 | G25: =F25*(1+('Scenario Input'!$AJ$15/100)) -> 115.1883242 | H25: =G25*(1+('Scenario Input'!$AM$15/100)) -> 117.7642098 | I25: =H25*(1+('Scenario Input'!$AP$15/100)) -> 121.2035239 | J25: =I25*(1+('Scenario Input'!$AS$15/100)) -> 124.7432835
A26: 25 | B26: 101Netlink, Frontier - Citizens | C26: 100 | D26: =C26*(1+('Scenario Input'!$AA$15/100)) -> 104.5751982 | E26: =D26*(1+('Scenario Input'!$AD$15/100)) -> 108.2288004 | F26: =E26*(1+('Scenario Input'!$AG$15/100)) -> 110.5212604 | G26: =F26*(1+('Scenario Input'!$AJ$15/100)) -> 112.9297296 | H26: =G26*(1+('Scenario Input'!$AM$15/100)) -> 115.4551076 | I26: =H26*(1+('Scenario Input'!$AP$15/100)) -> 118.8269842 | J26: =I26*(1+('Scenario Input'!$AS$15/100)) -> 122.2973368
A27: 26 | B27: 101Netlink, | C27: 75 | D27: =C27*(1+('Scenario Input'!$AA$15/100)) -> 78.43139868 | E27: =D27*(1+('Scenario Input'!$AD$15/100)) -> 81.1716003 | F27: =E27*(1+('Scenario Input'!$AG$15/100)) -> 82.89094532 | G27: =F27*(1+('Scenario Input'!$AJ$15/100)) -> 84.69729722 | H27: =G27*(1+('Scenario Input'!$AM$15/100)) -> 86.5913307 | I27: =H27*(1+('Scenario Input'!$AP$15/100)) -> 89.12023816 | J27: =I27*(1+('Scenario Input'!$AS$15/100)) -> 91.7230026
A28: 27 | B28: 101Netlink, Frontier | C28: 97.25 | D28: =C28*(1+('Scenario Input'!$AA$15/100)) -> 101.6993803 | E28: =D28*(1+('Scenario Input'!$AD$15/100)) -> 105.2525084 | F28: =E28*(1+('Scenario Input'!$AG$15/100)) -> 107.4819258 | G28: =F28*(1+('Scenario Input'!$AJ$15/100)) -> 109.8241621 | H28: =G28*(1+('Scenario Input'!$AM$15/100)) -> 112.2800921 | I28: =H28*(1+('Scenario Input'!$AP$15/100)) -> 115.5592422 | J28: =I28*(1+('Scenario Input'!$AS$15/100)) -> 118.93416
A29: 28 | B29: Aan Chuuphan, | C29: 204 | D29: =C29*(1+('Scenario Input'!$AA$15/100)) -> 213.3334044 | E29: =D29*(1+('Scenario Input'!$AD$15/100)) -> 220.7867528 | F29: =E29*(1+('Scenario Input'!$AG$15/100)) -> 225.4633713 | G29: =F29*(1+('Scenario Input'!$AJ$15/100)) -> 230.3766484 | H29: =G29*(1+('Scenario Input'!$AM$15/100)) -> 235.5284195 | I29: =H29*(1+('Scenario Input'!$AP$15/100)) -> 242.4070478 | J29: =I29*(1+('Scenario Input'!$AS$15/100)) -> 249.4865671
A30: 29 | B30: Aan Chuuphan, Frontier | C30: 226.25 | D30: =C30*(1+('Scenario Input'!$AA$15/100)) -> 236.601386 | E30: =D30*(1+('Scenario Input'!$AD$15/100)) -> 244.8676609 | F30: =E30*(1+('Scenario Input'!$AG$15/100)) -> 250.0543517 | G30: =F30*(1+('Scenario Input'!$AJ$15/100)) -> 255.5035133 | H30: =G30*(1+('Scenario Input'!$AM$15/100)) -> 261.2171809 | I30: =H30*(1+('Scenario Input'!$AP$15/100)) -> 268.8460518 | J30: =I30*(1+('Scenario Input'!$AS$15/100)) -> 276.6977245
A31: 30 | B31: AeroSurf, AT&T California | C31: 126.95 | D31: =C31*(1+('Scenario Input'!$AA$15/100)) -> 132.7582142 | E31: =D31*(1+('Scenario Input'!$AD$15/100)) -> 137.3964621 | F31: =E31*(1+('Scenario Input'!$AG$15/100)) -> 140.3067401 | G31: =F31*(1+('Scenario Input'!$AJ$15/100)) -> 143.3642918 | H31: =G31*(1+('Scenario Input'!$AM$15/100)) -> 146.5702591 | I31: =H31*(1+('Scenario Input'!$AP$15/100)) -> 150.8508565 | J31: =I31*(1+('Scenario Input'!$AS$15/100)) -> 155.2564691
A32: 31 | B32: AeroSurf, Frontier | C32: 122.2 | D32: =C32*(1+('Scenario Input'!$AA$15/100)) -> 127.7908922 | E32: =D32*(1+('Scenario Input'!$AD$15/100)) -> 132.2555941 | F32: =E32*(1+('Scenario Input'!$AG$15/100)) -> 135.0569802 | G32: =F32*(1+('Scenario Input'!$AJ$15/100)) -> 138.0001296 | H32: =G32*(1+('Scenario Input'!$AM$15/100)) -> 141.0861415 | I32: =H32*(1+('Scenario Input'!$AP$15/100)) -> 145.2065747 | J32: =I32*(1+('Scenario Input'!$AS$15/100)) -> 149.4473456
A33: 32 | B33: AFES Network Services LLC, AT&T California | C33: 827 | D33: =C33*(1+('Scenario Input'!$AA$15/100)) -> 864.8368894 | E33: =D33*(1+('Scenario Input'!$AD$15/100)) -> 895.0521793 | F33: =E33*(1+('Scenario Input'!$AG$15/100)) -> 914.0108237 | G33: =F33*(1+('Scenario Input'!$AJ$15/100)) -> 933.928864 | H33: =G33*(1+('Scenario Input'!$AM$15/100)) -> 954.8137398 | I33: =H33*(1+('Scenario Input'!$AP$15/100)) -> 982.6991595 | J33: =I33*(1+('Scenario Input'!$AS$15/100)) -> 1011.398975
A34: 33 | B34: AFES Network Services LLC, Frontier - Citizens | C34: 825 | D34: =C34*(1+('Scenario Input'!$AA$15/100)) -> 862.7453855 | E34: =D34*(1+('Scenario Input'!$AD$15/100)) -> 892.8876032 | F34: =E34*(1+('Scenario Input'!$AG$15/100)) -> 911.8003985 | G34: =F34*(1+('Scenario Input'!$AJ$15/100)) -> 931.6702694 | H34: =G34*(1+('Scenario Input'!$AM$15/100)) -> 952.5046377 | I34: =H34*(1+('Scenario Input'!$AP$15/100)) -> 980.3226198 | J34: =I34*(1+('Scenario Input'!$AS$15/100)) -> 1008.953029
A35: 34 | B35: AFES Network Services LLC, | C35: 800 | D35: =C35*(1+('Scenario Input'!$AA$15/100)) -> 836.6015859 | E35: =D35*(1+('Scenario Input'!$AD$15/100)) -> 865.8304031 | F35: =E35*(1+('Scenario Input'!$AG$15/100)) -> 884.1700834 | G35: =F35*(1+('Scenario Input'!$AJ$15/100)) -> 903.437837 | H35: =G35*(1+('Scenario Input'!$AM$15/100)) -> 923.6408608 | I35: =H35*(1+('Scenario Input'!$AP$15/100)) -> 950.6158738 | J35: =I35*(1+('Scenario Input'!$AS$15/100)) -> 978.3786944
A36: 35 | B36: AFES Network Services LLC, Frontier | C36: 822.25 | D36: =C36*(1+('Scenario Input'!$AA$15/100)) -> 859.8695675 | E36: =D36*(1+('Scenario Input'!$AD$15/100)) -> 889.9113112 | F36: =E36*(1+('Scenario Input'!$AG$15/100)) -> 908.7610639 | G36: =F36*(1+('Scenario Input'!$AJ$15/100)) -> 928.5647019 | H36: =G36*(1+('Scenario Input'!$AM$15/100)) -> 949.3296222 | I36: =H36*(1+('Scenario Input'!$AP$15/100)) -> 977.0548777 | J36: =I36*(1+('Scenario Input'!$AS$15/100)) -> 1005.589852
A37: 36 | B37: Antelecom Inc., AT&T California | C37: 90.95 | D37: =C37*(1+('Scenario Input'!$AA$15/100)) -> 95.1111428 | E37: =D37*(1+('Scenario Input'!$AD$15/100)) -> 98.43409396 | F37: =E37*(1+('Scenario Input'!$AG$15/100)) -> 100.5190864 | G37: =F37*(1+('Scenario Input'!$AJ$15/100)) -> 102.7095891 | H37: =G37*(1+('Scenario Input'!$AM$15/100)) -> 105.0064204 | I37: =H37*(1+('Scenario Input'!$AP$15/100)) -> 108.0731421 | J37: =I37*(1+('Scenario Input'!$AS$15/100)) -> 111.2294278
A38: 37 | B38: Antelecom Inc., Frontier | C38: 86.2 | D38: =C38*(1+('Scenario Input'!$AA$15/100)) -> 90.14382088 | E38: =D38*(1+('Scenario Input'!$AD$15/100)) -> 93.29322594 | F38: =E38*(1+('Scenario Input'!$AG$15/100)) -> 95.26932649 | G38: =F38*(1+('Scenario Input'!$AJ$15/100)) -> 97.34542694 | H38: =G38*(1+('Scenario Input'!$AM$15/100)) -> 99.52230275 | I38: =H38*(1+('Scenario Input'!$AP$15/100)) -> 102.4288604 | J38: =I38*(1+('Scenario Input'!$AS$15/100)) -> 105.4203043
A39: 38 | B39: Applied Technology Group Inc, AT&T California | C39: 379 | D39: =C39*(1+('Scenario Input'!$AA$15/100)) -> 396.3400013 | E39: =D39*(1+('Scenario Input'!$AD$15/100)) -> 410.1871535 | F39: =E39*(1+('Scenario Input'!$AG$15/100)) -> 418.875577 | G39: =F39*(1+('Scenario Input'!$AJ$15/100)) -> 428.0036753 | H39: =G39*(1+('Scenario Input'!$AM$15/100)) -> 437.5748578 | I39: =H39*(1+('Scenario Input'!$AP$15/100)) -> 450.3542702 | J39: =I39*(1+('Scenario Input'!$AS$15/100)) -> 463.5069065
A40: 39 | B40: Applied Technology Group Inc, | C40: 352 | D40: =C40*(1+('Scenario Input'!$AA$15/100)) -> 368.1046978 | E40: =D40*(1+('Scenario Input'!$AD$15/100)) -> 380.9653774 | F40: =E40*(1+('Scenario Input'!$AG$15/100)) -> 389.0348367 | G40: =F40*(1+('Scenario Input'!$AJ$15/100)) -> 397.5126483 | H40: =G40*(1+('Scenario Input'!$AM$15/100)) -> 406.4019787 | I40: =H40*(1+('Scenario Input'!$AP$15/100)) -> 418.2709845 | J40: =I40*(1+('Scenario Input'!$AS$15/100)) -> 430.4866255
A41: 40 | B41: Applied Technology Group Inc, Frontier | C41: 374.25 | D41: =C41*(1+('Scenario Input'!$AA$15/100)) -> 391.3726794 | E41: =D41*(1+('Scenario Input'!$AD$15/100)) -> 405.0462855 | F41: =E41*(1+('Scenario Input'!$AG$15/100)) -> 413.6258171 | G41: =F41*(1+('Scenario Input'!$AJ$15/100)) -> 422.6395131 | H41: =G41*(1+('Scenario Input'!$AM$15/100)) -> 432.0907402 | I41: =H41*(1+('Scenario Input'!$AP$15/100)) -> 444.7099884 | J41: =I41*(1+('Scenario Input'!$AS$15/100)) -> 457.697783
A42: 41 | B42: AT&T Service, Inc., AT&T California | C42: 82 | D42: =C42*(1+('Scenario Input'!$AA$15/100)) -> 85.75166256 | E42: =D42*(1+('Scenario Input'!$AD$15/100)) -> 88.74761632 | F42: =E42*(1+('Scenario Input'!$AG$15/100)) -> 90.62743355 | G42: =F42*(1+('Scenario Input'!$AJ$15/100)) -> 92.60237829 | H42: =G42*(1+('Scenario Input'!$AM$15/100)) -> 94.67318823 | I42: =H42*(1+('Scenario Input'!$AP$15/100)) -> 97.43812706 | J42: =I42*(1+('Scenario Input'!$AS$15/100)) -> 100.2838162
A43: 42 | B43: AT&T Service, Inc., Calaveras | C43: 80 | D43: =C43*(1+('Scenario Input'!$AA$15/100)) -> 83.66015859 | E43: =D43*(1+('Scenario Input'!$AD$15/100)) -> 86.58304031 | F43: =E43*(1+('Scenario Input'!$AG$15/100)) -> 88.41700834 | G43: =F43*(1+('Scenario Input'!$AJ$15/100)) -> 90.3437837 | H43: =G43*(1+('Scenario Input'!$AM$15/100)) -> 92.36408608 | I43: =H43*(1+('Scenario Input'!$AP$15/100)) -> 95.06158738 | J43: =I43*(1+('Scenario Input'!$AS$15/100)) -> 97.83786944
A44: 43 | B44: AT&T Service, Inc., Frontier - Citizens | C44: 80 | D44: =C44*(1+('Scenario Input'!$AA$15/100)) -> 83.66015859 | E44: =D44*(1+('Scenario Input'!$AD$15/100)) -> 86.58304031 | F44: =E44*(1+('Scenario Input'!$AG$15/100)) -> 88.41700834 | G44: =F44*(1+('Scenario Input'!$AJ$15/100)) -> 90.3437837 | H44: =G44*(1+('Scenario Input'!$AM$15/100)) -> 92.36408608 | I44: =H44*(1+('Scenario Input'!$AP$15/100)) -> 95.06158738 | J44: =I44*(1+('Scenario Input'!$AS$15/100)) -> 97.83786944
A45: 44 | B45: AT&T Service, Inc., Frontier - Citizens | C45: 80 | D45: =C45*(1+('Scenario Input'!$AA$15/100)) -> 83.66015859 | E45: =D45*(1+('Scenario Input'!$AD$15/100)) -> 86.58304031 | F45: =E45*(1+('Scenario Input'!$AG$15/100)) -> 88.41700834 | G45: =F45*(1+('Scenario Input'!$AJ$15/100)) -> 90.3437837 | H45: =G45*(1+('Scenario Input'!$AM$15/100)) -> 92.36408608 | I45: =H45*(1+('Scenario Input'!$AP$15/100)) -> 95.06158738 | J45: =I45*(1+('Scenario Input'!$AS$15/100)) -> 97.83786944
A46: 45 | B46: AT&T Service, Inc., Frontier - Citizens | C46: 80 | D46: =C46*(1+('Scenario Input'!$AA$15/100)) -> 83.66015859 | E46: =D46*(1+('Scenario Input'!$AD$15/100)) -> 86.58304031 | F46: =E46*(1+('Scenario Input'!$AG$15/100)) -> 88.41700834 | G46: =F46*(1+('Scenario Input'!$AJ$15/100)) -> 90.3437837 | H46: =G46*(1+('Scenario Input'!$AM$15/100)) -> 92.36408608 | I46: =H46*(1+('Scenario Input'!$AP$15/100)) -> 95.06158738 | J46: =I46*(1+('Scenario Input'!$AS$15/100)) -> 97.83786944
A47: 46 | B47: AT&T Service, Inc., Ducor | C47: 80 | D47: =C47*(1+('Scenario Input'!$AA$15/100)) -> 83.66015859 | E47: =D47*(1+('Scenario Input'!$AD$15/100)) -> 86.58304031 | F47: =E47*(1+('Scenario Input'!$AG$15/100)) -> 88.41700834 | G47: =F47*(1+('Scenario Input'!$AJ$15/100)) -> 90.3437837 | H47: =G47*(1+('Scenario Input'!$AM$15/100)) -> 92.36408608 | I47: =H47*(1+('Scenario Input'!$AP$15/100)) -> 95.06158738 | J47: =I47*(1+('Scenario Input'!$AS$15/100)) -> 97.83786944
A48: 47 | B48: AT&T Service, Inc., Frontier | C48: 77.25 | D48: =C48*(1+('Scenario Input'!$AA$15/100)) -> 80.78434064 | E48: =D48*(1+('Scenario Input'!$AD$15/100)) -> 83.6067483 | F48: =E48*(1+('Scenario Input'!$AG$15/100)) -> 85.37767368 | G48: =F48*(1+('Scenario Input'!$AJ$15/100)) -> 87.23821614 | H48: =G48*(1+('Scenario Input'!$AM$15/100)) -> 89.18907062 | I48: =H48*(1+('Scenario Input'!$AP$15/100)) -> 91.79384531 | J48: =I48*(1+('Scenario Input'!$AS$15/100)) -> 94.47469268
A49: 48 | B49: AT&T Service, Inc., TDS Telecom - HV | C49: 71.85 | D49: =C49*(1+('Scenario Input'!$AA$15/100)) -> 75.13727993 | E49: =D49*(1+('Scenario Input'!$AD$15/100)) -> 77.76239308 | F49: =E49*(1+('Scenario Input'!$AG$15/100)) -> 79.40952562 | G49: =F49*(1+('Scenario Input'!$AJ$15/100)) -> 81.14001074 | H49: =G49*(1+('Scenario Input'!$AM$15/100)) -> 82.95449481 | I49: =H49*(1+('Scenario Input'!$AP$15/100)) -> 85.37718816 | J49: =I49*(1+('Scenario Input'!$AS$15/100)) -> 87.87063649
A50: 49 | B50: AT&T Service, Inc., TDS Telecom - Horn | C50: 71.05 | D50: =C50*(1+('Scenario Input'!$AA$15/100)) -> 74.30067835 | E50: =D50*(1+('Scenario Input'!$AD$15/100)) -> 76.89656268 | F50: =E50*(1+('Scenario Input'!$AG$15/100)) -> 78.52535553 | G50: =F50*(1+('Scenario Input'!$AJ$15/100)) -> 80.2365729 | H50: =G50*(1+('Scenario Input'!$AM$15/100)) -> 82.03085395 | I50: =H50*(1+('Scenario Input'!$AP$15/100)) -> 84.42657229 | J50: =I50*(1+('Scenario Input'!$AS$15/100)) -> 86.89225779
A51: 50 | B51: AT&T Service, Inc., | C51: 55 | D51: =C51*(1+('Scenario Input'!$AA$15/100)) -> 57.51635903 | E51: =D51*(1+('Scenario Input'!$AD$15/100)) -> 59.52584022 | F51: =E51*(1+('Scenario Input'!$AG$15/100)) -> 60.78669323 | G51: =F51*(1+('Scenario Input'!$AJ$15/100)) -> 62.1113513 | H51: =G51*(1+('Scenario Input'!$AM$15/100)) -> 63.50030918 | I51: =H51*(1+('Scenario Input'!$AP$15/100)) -> 65.35484132 | J51: =I51*(1+('Scenario Input'!$AS$15/100)) -> 67.26353524
A52: 51 | B52: AT&T Service, Inc., Ponderosa | C52: 80 | D52: =C52*(1+('Scenario Input'!$AA$15/100)) -> 83.66015859 | E52: =D52*(1+('Scenario Input'!$AD$15/100)) -> 86.58304031 | F52: =E52*(1+('Scenario Input'!$AG$15/100)) -> 88.41700834 | G52: =F52*(1+('Scenario Input'!$AJ$15/100)) -> 90.3437837 | H52: =G52*(1+('Scenario Input'!$AM$15/100)) -> 92.36408608 | I52: =H52*(1+('Scenario Input'!$AP$15/100)) -> 95.06158738 | J52: =I52*(1+('Scenario Input'!$AS$15/100)) -> 97.83786944
A53: 52 | B53: AT&T Service, Inc., Siskiyou | C53: 79 | D53: =C53*(1+('Scenario Input'!$AA$15/100)) -> 82.61440661 | E53: =D53*(1+('Scenario Input'!$AD$15/100)) -> 85.50075231 | F53: =E53*(1+('Scenario Input'!$AG$15/100)) -> 87.31179574 | G53: =F53*(1+('Scenario Input'!$AJ$15/100)) -> 89.21448641 | H53: =G53*(1+('Scenario Input'!$AM$15/100)) -> 91.209535 | I53: =H53*(1+('Scenario Input'!$AP$15/100)) -> 93.87331753 | J53: =I53*(1+('Scenario Input'!$AS$15/100)) -> 96.61489607
A54: 53 | B54: AT&T Service, Inc., Surewest | C54: 78.22 | D54: =C54*(1+('Scenario Input'!$AA$15/100)) -> 81.79872006 | E54: =D54*(1+('Scenario Input'!$AD$15/100)) -> 84.65656767 | F54: =E54*(1+('Scenario Input'!$AG$15/100)) -> 86.44972991 | G54: =F54*(1+('Scenario Input'!$AJ$15/100)) -> 88.33363451 | H54: =G54*(1+('Scenario Input'!$AM$15/100)) -> 90.30898516 | I54: =H54*(1+('Scenario Input'!$AP$15/100)) -> 92.94646706 | J54: =I54*(1+('Scenario Input'!$AS$15/100)) -> 95.66097684
A55: 54 | B55: AT&T Service, Inc., Frontier | C55: 77.25 | D55: =C55*(1+('Scenario Input'!$AA$15/100)) -> 80.78434064 | E55: =D55*(1+('Scenario Input'!$AD$15/100)) -> 83.6067483 | F55: =E55*(1+('Scenario Input'!$AG$15/100)) -> 85.37767368 | G55: =F55*(1+('Scenario Input'!$AJ$15/100)) -> 87.23821614 | H55: =G55*(1+('Scenario Input'!$AM$15/100)) -> 89.18907062 | I55: =H55*(1+('Scenario Input'!$AP$15/100)) -> 91.79384531 | J55: =I55*(1+('Scenario Input'!$AS$15/100)) -> 94.47469268
A56: 55 | B56: AT&T Service, Inc., Volcano | C56: 79 | D56: =C56*(1+('Scenario Input'!$AA$15/100)) -> 82.61440661 | E56: =D56*(1+('Scenario Input'!$AD$15/100)) -> 85.50075231 | F56: =E56*(1+('Scenario Input'!$AG$15/100)) -> 87.31179574 | G56: =F56*(1+('Scenario Input'!$AJ$15/100)) -> 89.21448641 | H56: =G56*(1+('Scenario Input'!$AM$15/100)) -> 91.209535 | I56: =H56*(1+('Scenario Input'!$AP$15/100)) -> 93.87331753 | J56: =I56*(1+('Scenario Input'!$AS$15/100)) -> 96.61489607
A57: 56 | B57: AVISP, AT&T California | C57: 577 | D57: =C57*(1+('Scenario Input'!$AA$15/100)) -> 603.3988938 | E57: =D57*(1+('Scenario Input'!$AD$15/100)) -> 624.4801783 | F57: =E57*(1+('Scenario Input'!$AG$15/100)) -> 637.7076727 | G57: =F57*(1+('Scenario Input'!$AJ$15/100)) -> 651.6045399 | H57: =G57*(1+('Scenario Input'!$AM$15/100)) -> 666.1759708 | I57: =H57*(1+('Scenario Input'!$AP$15/100)) -> 685.6316989 | J57: =I57*(1+('Scenario Input'!$AS$15/100)) -> 705.6556333
A58: 57 | B58: AVISP, | C58: 550 | D58: =C58*(1+('Scenario Input'!$AA$15/100)) -> 575.1635903 | E58: =D58*(1+('Scenario Input'!$AD$15/100)) -> 595.2584022 | F58: =E58*(1+('Scenario Input'!$AG$15/100)) -> 607.8669323 | G58: =F58*(1+('Scenario Input'!$AJ$15/100)) -> 621.113513 | H58: =G58*(1+('Scenario Input'!$AM$15/100)) -> 635.0030918 | I58: =H58*(1+('Scenario Input'!$AP$15/100)) -> 653.5484132 | J58: =I58*(1+('Scenario Input'!$AS$15/100)) -> 672.6353524
A59: 58 | B59: Ayera Technologies Inc, AT&T California | C59: 106 | D59: =C59*(1+('Scenario Input'!$AA$15/100)) -> 110.8497101 | E59: =D59*(1+('Scenario Input'!$AD$15/100)) -> 114.7225284 | F59: =E59*(1+('Scenario Input'!$AG$15/100)) -> 117.1525361 | G59: =F59*(1+('Scenario Input'!$AJ$15/100)) -> 119.7055134 | H59: =G59*(1+('Scenario Input'!$AM$15/100)) -> 122.3824141 | I59: =H59*(1+('Scenario Input'!$AP$15/100)) -> 125.9566033 | J59: =I59*(1+('Scenario Input'!$AS$15/100)) -> 129.635177
A60: 59 | B60: Ayera Technologies Inc, Frontier | C60: 101.25 | D60: =C60*(1+('Scenario Input'!$AA$15/100)) -> 105.8823882 | E60: =D60*(1+('Scenario Input'!$AD$15/100)) -> 109.5816604 | F60: =E60*(1+('Scenario Input'!$AG$15/100)) -> 111.9027762 | G60: =F60*(1+('Scenario Input'!$AJ$15/100)) -> 114.3413512 | H60: =G60*(1+('Scenario Input'!$AM$15/100)) -> 116.8982964 | I60: =H60*(1+('Scenario Input'!$AP$15/100)) -> 120.3123215 | J60: =I60*(1+('Scenario Input'!$AS$15/100)) -> 123.8260535
A61: 60 | B61: Ayera Technologies Inc, Frontier | C61: 101.25 | D61: =C61*(1+('Scenario Input'!$AA$15/100)) -> 105.8823882 | E61: =D61*(1+('Scenario Input'!$AD$15/100)) -> 109.5816604 | F61: =E61*(1+('Scenario Input'!$AG$15/100)) -> 111.9027762 | G61: =F61*(1+('Scenario Input'!$AJ$15/100)) -> 114.3413512 | H61: =G61*(1+('Scenario Input'!$AM$15/100)) -> 116.8982964 | I61: =H61*(1+('Scenario Input'!$AP$15/100)) -> 120.3123215 | J61: =I61*(1+('Scenario Input'!$AS$15/100)) -> 123.8260535
A62: 61 | B62: Cal-Ore Communications Inc., 12, AT&T California | C62: 96.95 | D62: =C62*(1+('Scenario Input'!$AA$15/100)) -> 101.3856547 | E62: =D62*(1+('Scenario Input'!$AD$15/100)) -> 104.927822 | F62: =E62*(1+('Scenario Input'!$AG$15/100)) -> 107.150362 | G62: =F62*(1+('Scenario Input'!$AJ$15/100)) -> 109.4853729 | H62: =G62*(1+('Scenario Input'!$AM$15/100)) -> 111.9337268 | I62: =H62*(1+('Scenario Input'!$AP$15/100)) -> 115.2027612 | J62: =I62*(1+('Scenario Input'!$AS$15/100)) -> 118.567268
A63: 62 | B63: Cal-Ore Communications Inc., 12, Cal-Ore | C63: 94.95 | D63: =C63*(1+('Scenario Input'!$AA$15/100)) -> 99.29415073 | E63: =D63*(1+('Scenario Input'!$AD$15/100)) -> 102.763246 | F63: =E63*(1+('Scenario Input'!$AG$15/100)) -> 104.9399368 | G63: =F63*(1+('Scenario Input'!$AJ$15/100)) -> 107.2267783 | H63: =G63*(1+('Scenario Input'!$AM$15/100)) -> 109.6246247 | I63: =H63*(1+('Scenario Input'!$AP$15/100)) -> 112.8262215 | J63: =I63*(1+('Scenario Input'!$AS$15/100)) -> 116.1213213
A64: 63 | B64: Cal-Ore Communications Inc., 12, | C64: 69.95 | D64: =C64*(1+('Scenario Input'!$AA$15/100)) -> 73.15035117 | E64: =D64*(1+('Scenario Input'!$AD$15/100)) -> 75.70604588 | F64: =E64*(1+('Scenario Input'!$AG$15/100)) -> 77.30962167 | G64: =F64*(1+('Scenario Input'!$AJ$15/100)) -> 78.99434587 | H64: =G64*(1+('Scenario Input'!$AM$15/100)) -> 80.76084776 | I64: =H64*(1+('Scenario Input'!$AP$15/100)) -> 83.11947546 | J64: =I64*(1+('Scenario Input'!$AS$15/100)) -> 85.54698709
A65: 64 | B65: Cal-Ore Communications Inc., 50, AT&T California | C65: 116.95 | D65: =C65*(1+('Scenario Input'!$AA$15/100)) -> 122.3006943 | E65: =D65*(1+('Scenario Input'!$AD$15/100)) -> 126.5735821 | F65: =E65*(1+('Scenario Input'!$AG$15/100)) -> 129.2546141 | G65: =F65*(1+('Scenario Input'!$AJ$15/100)) -> 132.0713188 | H65: =G65*(1+('Scenario Input'!$AM$15/100)) -> 135.0247483 | I65: =H65*(1+('Scenario Input'!$AP$15/100)) -> 138.968158 | J65: =I65*(1+('Scenario Input'!$AS$15/100)) -> 143.0267354
A66: 65 | B66: Cal-Ore Communications Inc., 50, Cal-Ore | C66: 114.95 | D66: =C66*(1+('Scenario Input'!$AA$15/100)) -> 120.2091904 | E66: =D66*(1+('Scenario Input'!$AD$15/100)) -> 124.4090061 | F66: =E66*(1+('Scenario Input'!$AG$15/100)) -> 127.0441889 | G66: =F66*(1+('Scenario Input'!$AJ$15/100)) -> 129.8127242 | H66: =G66*(1+('Scenario Input'!$AM$15/100)) -> 132.7156462 | I66: =H66*(1+('Scenario Input'!$AP$15/100)) -> 136.5916184 | J66: =I66*(1+('Scenario Input'!$AS$15/100)) -> 140.5807886
A67: 66 | B67: Cal-Ore Communications Inc., 50, | C67: 89.95 | D67: =C67*(1+('Scenario Input'!$AA$15/100)) -> 94.06539082 | E67: =D67*(1+('Scenario Input'!$AD$15/100)) -> 97.35180595 | F67: =E67*(1+('Scenario Input'!$AG$15/100)) -> 99.41387375 | G67: =F67*(1+('Scenario Input'!$AJ$15/100)) -> 101.5802918 | H67: =G67*(1+('Scenario Input'!$AM$15/100)) -> 103.8518693 | I67: =H67*(1+('Scenario Input'!$AP$15/100)) -> 106.8848723 | J67: =I67*(1+('Scenario Input'!$AS$15/100)) -> 110.0064544
A68: 67 | B68: California Broadband Services, AT&T California | C68: 156.95 | D68: =C68*(1+('Scenario Input'!$AA$15/100)) -> 164.1307736 | E68: =D68*(1+('Scenario Input'!$AD$15/100)) -> 169.8651022 | F68: =E68*(1+('Scenario Input'!$AG$15/100)) -> 173.4631182 | G68: =F68*(1+('Scenario Input'!$AJ$15/100)) -> 177.2432107 | H68: =G68*(1+('Scenario Input'!$AM$15/100)) -> 181.2067914 | I68: =H68*(1+('Scenario Input'!$AP$15/100)) -> 186.4989517 | J68: =I68*(1+('Scenario Input'!$AS$15/100)) -> 191.9456701
A69: 68 | B69: California Broadband Services, Frontier - Citizens | C69: 154.95 | D69: =C69*(1+('Scenario Input'!$AA$15/100)) -> 162.0392697 | E69: =D69*(1+('Scenario Input'!$AD$15/100)) -> 167.7005262 | F69: =E69*(1+('Scenario Input'!$AG$15/100)) -> 171.252693 | G69: =F69*(1+('Scenario Input'!$AJ$15/100)) -> 174.9846161 | H69: =G69*(1+('Scenario Input'!$AM$15/100)) -> 178.8976892 | I69: =H69*(1+('Scenario Input'!$AP$15/100)) -> 184.122412 | J69: =I69*(1+('Scenario Input'!$AS$15/100)) -> 189.4997234
A70: 69 | B70: California Broadband Services, Frontier | C70: 152.2 | D70: =C70*(1+('Scenario Input'!$AA$15/100)) -> 159.1634517 | E70: =D70*(1+('Scenario Input'!$AD$15/100)) -> 164.7242342 | F70: =E70*(1+('Scenario Input'!$AG$15/100)) -> 168.2133584 | G70: =F70*(1+('Scenario Input'!$AJ$15/100)) -> 171.8790485 | H70: =G70*(1+('Scenario Input'!$AM$15/100)) -> 175.7226738 | I70: =H70*(1+('Scenario Input'!$AP$15/100)) -> 180.85467 | J70: =I70*(1+('Scenario Input'!$AS$15/100)) -> 186.1365466
A71: 70 | B71: CalNeva Broadband, AT&T California | C71: 76.95 | D71: =C71*(1+('Scenario Input'!$AA$15/100)) -> 80.47061504 | E71: =D71*(1+('Scenario Input'!$AD$15/100)) -> 83.2820619 | F71: =E71*(1+('Scenario Input'!$AG$15/100)) -> 85.0461099 | G71: =F71*(1+('Scenario Input'!$AJ$15/100)) -> 86.89942695 | H71: =G71*(1+('Scenario Input'!$AM$15/100)) -> 88.8427053 | I71: =H71*(1+('Scenario Input'!$AP$15/100)) -> 91.43736436 | J71: =I71*(1+('Scenario Input'!$AS$15/100)) -> 94.10780066
A72: 71 | B72: CalNeva Broadband, | C72: 49.95 | D72: =C72*(1+('Scenario Input'!$AA$15/100)) -> 52.23531152 | E72: =D72*(1+('Scenario Input'!$AD$15/100)) -> 54.0602858 | F72: =E72*(1+('Scenario Input'!$AG$15/100)) -> 55.20536958 | G72: =F72*(1+('Scenario Input'!$AJ$15/100)) -> 56.40839995 | H72: =G72*(1+('Scenario Input'!$AM$15/100)) -> 57.66982625 | I72: =H72*(1+('Scenario Input'!$AP$15/100)) -> 59.35407862 | J72: =I72*(1+('Scenario Input'!$AS$15/100)) -> 61.08751973
A73: 72 | B73: CalNeva Broadband, Frontier | C73: 72.2 | D73: =C73*(1+('Scenario Input'!$AA$15/100)) -> 75.50329313 | E73: =D73*(1+('Scenario Input'!$AD$15/100)) -> 78.14119388 | F73: =E73*(1+('Scenario Input'!$AG$15/100)) -> 79.79635003 | G73: =F73*(1+('Scenario Input'!$AJ$15/100)) -> 81.53526479 | H73: =G73*(1+('Scenario Input'!$AM$15/100)) -> 83.35858769 | I73: =H73*(1+('Scenario Input'!$AP$15/100)) -> 85.79308261 | J73: =I73*(1+('Scenario Input'!$AS$15/100)) -> 88.29867717
A74: 73 | B74: Catalina Broadband Solutions, | C74: 79.95 | D74: =C74*(1+('Scenario Input'!$AA$15/100)) -> 83.60787099 | E74: =D74*(1+('Scenario Input'!$AD$15/100)) -> 86.52892591 | F74: =E74*(1+('Scenario Input'!$AG$15/100)) -> 88.36174771 | G74: =F74*(1+('Scenario Input'!$AJ$15/100)) -> 90.28731884 | H74: =G74*(1+('Scenario Input'!$AM$15/100)) -> 92.30635852 | I74: =H74*(1+('Scenario Input'!$AP$15/100)) -> 95.00217388 | J74: =I74*(1+('Scenario Input'!$AS$15/100)) -> 97.77672077
A75: 74 | B75: Central Coast Internet, AT&T California | C75: 186.95 | D75: =C75*(1+('Scenario Input'!$AA$15/100)) -> 195.5033331 | E75: =D75*(1+('Scenario Input'!$AD$15/100)) -> 202.3337423 | F75: =E75*(1+('Scenario Input'!$AG$15/100)) -> 206.6194964 | G75: =F75*(1+('Scenario Input'!$AJ$15/100)) -> 211.1221295 | H75: =G75*(1+('Scenario Input'!$AM$15/100)) -> 215.8433237 | I75: =H75*(1+('Scenario Input'!$AP$15/100)) -> 222.147047 | J75: =I75*(1+('Scenario Input'!$AS$15/100)) -> 228.6348711
A76: 75 | B76: Central Coast Internet, | C76: 159.95 | D76: =C76*(1+('Scenario Input'!$AA$15/100)) -> 167.2680296 | E76: =D76*(1+('Scenario Input'!$AD$15/100)) -> 173.1119662 | F76: =E76*(1+('Scenario Input'!$AG$15/100)) -> 176.7787561 | G76: =F76*(1+('Scenario Input'!$AJ$15/100)) -> 180.6311025 | H76: =G76*(1+('Scenario Input'!$AM$15/100)) -> 184.6704446 | I76: =H76*(1+('Scenario Input'!$AP$15/100)) -> 190.0637613 | J76: =I76*(1+('Scenario Input'!$AS$15/100)) -> 195.6145902
A77: 76 | B77: Charter Communications Inc, AT&T California | C77: 44.99 | D77: =C77*(1+('Scenario Input'!$AA$15/100)) -> 47.04838169 | E77: =D77*(1+('Scenario Input'!$AD$15/100)) -> 48.6921373 | F77: =E77*(1+('Scenario Input'!$AG$15/100)) -> 49.72351507 | G77: =F77*(1+('Scenario Input'!$AJ$15/100)) -> 50.80708536 | H77: =G77*(1+('Scenario Input'!$AM$15/100)) -> 51.94325291 | I77: =H77*(1+('Scenario Input'!$AP$15/100)) -> 53.4602602 | J77: =I77*(1+('Scenario Input'!$AS$15/100)) -> 55.02157182
A78: 77 | B78: Charter Communications Inc, Frontier | C78: 40.24 | D78: =C78*(1+('Scenario Input'!$AA$15/100)) -> 42.08105977 | E78: =D78*(1+('Scenario Input'!$AD$15/100)) -> 43.55126928 | F78: =E78*(1+('Scenario Input'!$AG$15/100)) -> 44.4737552 | G78: =F78*(1+('Scenario Input'!$AJ$15/100)) -> 45.4429232 | H78: =G78*(1+('Scenario Input'!$AM$15/100)) -> 46.4591353 | I78: =H78*(1+('Scenario Input'!$AP$15/100)) -> 47.81597845 | J78: =I78*(1+('Scenario Input'!$AS$15/100)) -> 49.21244833
A79: 78 | B79: Charter Communications Inc, TDS Telecom - HV | C79: 34.84 | D79: =C79*(1+('Scenario Input'!$AA$15/100)) -> 36.43399907 | E79: =D79*(1+('Scenario Input'!$AD$15/100)) -> 37.70691406 | F79: =E79*(1+('Scenario Input'!$AG$15/100)) -> 38.50560713 | G79: =F79*(1+('Scenario Input'!$AJ$15/100)) -> 39.3447178 | H79: =G79*(1+('Scenario Input'!$AM$15/100)) -> 40.22455949 | I79: =H79*(1+('Scenario Input'!$AP$15/100)) -> 41.3993213 | J79: =I79*(1+('Scenario Input'!$AS$15/100)) -> 42.60839214
A80: 79 | B80: Charter Communications Inc, | C80: 17.99 | D80: =C80*(1+('Scenario Input'!$AA$15/100)) -> 18.81307816 | E80: =D80*(1+('Scenario Input'!$AD$15/100)) -> 19.47036119 | F80: =E80*(1+('Scenario Input'!$AG$15/100)) -> 19.88277475 | G80: =F80*(1+('Scenario Input'!$AJ$15/100)) -> 20.31605836 | H80: =G80*(1+('Scenario Input'!$AM$15/100)) -> 20.77037386 | I80: =H80*(1+('Scenario Input'!$AP$15/100)) -> 21.37697446 | J80: =I80*(1+('Scenario Input'!$AS$15/100)) -> 22.00129089
A81: 80 | B81: Charter Communications Inc, Frontier | C81: 40.24 | D81: =C81*(1+('Scenario Input'!$AA$15/100)) -> 42.08105977 | E81: =D81*(1+('Scenario Input'!$AD$15/100)) -> 43.55126928 | F81: =E81*(1+('Scenario Input'!$AG$15/100)) -> 44.4737552 | G81: =F81*(1+('Scenario Input'!$AJ$15/100)) -> 45.4429232 | H81: =G81*(1+('Scenario Input'!$AM$15/100)) -> 46.4591353 | I81: =H81*(1+('Scenario Input'!$AP$15/100)) -> 47.81597845 | J81: =I81*(1+('Scenario Input'!$AS$15/100)) -> 49.21244833
A82: 81 | B82: Charter Communications Inc, Frontier | C82: 40.24 | D82: =C82*(1+('Scenario Input'!$AA$15/100)) -> 42.08105977 | E82: =D82*(1+('Scenario Input'!$AD$15/100)) -> 43.55126928 | F82: =E82*(1+('Scenario Input'!$AG$15/100)) -> 44.4737552 | G82: =F82*(1+('Scenario Input'!$AJ$15/100)) -> 45.4429232 | H82: =G82*(1+('Scenario Input'!$AM$15/100)) -> 46.4591353 | I82: =H82*(1+('Scenario Input'!$AP$15/100)) -> 47.81597845 | J82: =I82*(1+('Scenario Input'!$AS$15/100)) -> 49.21244833
A83: 82 | B83: Charter Communications Inc, Volcano | C83: 41.99 | D83: =C83*(1+('Scenario Input'!$AA$15/100)) -> 43.91112574 | E83: =D83*(1+('Scenario Input'!$AD$15/100)) -> 45.44527329 | F83: =E83*(1+('Scenario Input'!$AG$15/100)) -> 46.40787725 | G83: =F83*(1+('Scenario Input'!$AJ$15/100)) -> 47.41919347 | H83: =G83*(1+('Scenario Input'!$AM$15/100)) -> 48.47959968 | I83: =H83*(1+('Scenario Input'!$AP$15/100)) -> 49.89545067 | J83: =I83*(1+('Scenario Input'!$AS$15/100)) -> 51.35265172
A84: 83 | B84: Charter Communications Inc, TDS Telecom | C84: 34.04 | D84: =C84*(1+('Scenario Input'!$AA$15/100)) -> 35.59739748 | E84: =D84*(1+('Scenario Input'!$AD$15/100)) -> 36.84108365 | F84: =E84*(1+('Scenario Input'!$AG$15/100)) -> 37.62143705 | G84: =F84*(1+('Scenario Input'!$AJ$15/100)) -> 38.44127997 | H84: =G84*(1+('Scenario Input'!$AM$15/100)) -> 39.30091863 | I84: =H84*(1+('Scenario Input'!$AP$15/100)) -> 40.44870543 | J84: =I84*(1+('Scenario Input'!$AS$15/100)) -> 41.63001345
A85: 84 | B85: City of Lompoc (LompocNet), Frontier | C85: 58.24 | D85: =C85*(1+('Scenario Input'!$AA$15/100)) -> 60.90459545 | E85: =D85*(1+('Scenario Input'!$AD$15/100)) -> 63.03245335 | F85: =E85*(1+('Scenario Input'!$AG$15/100)) -> 64.36758207 | G85: =F85*(1+('Scenario Input'!$AJ$15/100)) -> 65.77027453 | H85: =G85*(1+('Scenario Input'!$AM$15/100)) -> 67.24105467 | I85: =H85*(1+('Scenario Input'!$AP$15/100)) -> 69.20483561 | J85: =I85*(1+('Scenario Input'!$AS$15/100)) -> 71.22596895
A86: 85 | B86: ColfaxNet, AT&T California | C86: 177 | D86: =C86*(1+('Scenario Input'!$AA$15/100)) -> 185.0981009 | E86: =D86*(1+('Scenario Input'!$AD$15/100)) -> 191.5649767 | F86: =E86*(1+('Scenario Input'!$AG$15/100)) -> 195.622631 | G86: =F86*(1+('Scenario Input'!$AJ$15/100)) -> 199.8856214 | H86: =G86*(1+('Scenario Input'!$AM$15/100)) -> 204.3555404 | I86: =H86*(1+('Scenario Input'!$AP$15/100)) -> 210.3237621 | J86: =I86*(1+('Scenario Input'!$AS$15/100)) -> 216.4662861
A87: 86 | B87: ColfaxNet, Foresthill | C87: 175 | D87: =C87*(1+('Scenario Input'!$AA$15/100)) -> 183.0065969 | E87: =D87*(1+('Scenario Input'!$AD$15/100)) -> 189.4004007 | F87: =E87*(1+('Scenario Input'!$AG$15/100)) -> 193.4122057 | G87: =F87*(1+('Scenario Input'!$AJ$15/100)) -> 197.6270268 | H87: =G87*(1+('Scenario Input'!$AM$15/100)) -> 202.0464383 | I87: =H87*(1+('Scenario Input'!$AP$15/100)) -> 207.9472224 | J87: =I87*(1+('Scenario Input'!$AS$15/100)) -> 214.0203394
A88: 87 | B88: ColfaxNet, | C88: 150 | D88: =C88*(1+('Scenario Input'!$AA$15/100)) -> 156.8627974 | E88: =D88*(1+('Scenario Input'!$AD$15/100)) -> 162.3432006 | F88: =E88*(1+('Scenario Input'!$AG$15/100)) -> 165.7818906 | G88: =F88*(1+('Scenario Input'!$AJ$15/100)) -> 169.3945944 | H88: =G88*(1+('Scenario Input'!$AM$15/100)) -> 173.1826614 | I88: =H88*(1+('Scenario Input'!$AP$15/100)) -> 178.2404763 | J88: =I88*(1+('Scenario Input'!$AS$15/100)) -> 183.4460052
A89: 88 | B89: ColfaxNet, Frontier | C89: 172.25 | D89: =C89*(1+('Scenario Input'!$AA$15/100)) -> 180.130779 | E89: =D89*(1+('Scenario Input'!$AD$15/100)) -> 186.4241087 | F89: =E89*(1+('Scenario Input'!$AG$15/100)) -> 190.3728711 | G89: =F89*(1+('Scenario Input'!$AJ$15/100)) -> 194.5214593 | H89: =G89*(1+('Scenario Input'!$AM$15/100)) -> 198.8714228 | I89: =H89*(1+('Scenario Input'!$AP$15/100)) -> 204.6794803 | J89: =I89*(1+('Scenario Input'!$AS$15/100)) -> 210.6571626
A90: 89 | B90: Com-Pair Services, AT&T California | C90: 177 | D90: =C90*(1+('Scenario Input'!$AA$15/100)) -> 185.0981009 | E90: =D90*(1+('Scenario Input'!$AD$15/100)) -> 191.5649767 | F90: =E90*(1+('Scenario Input'!$AG$15/100)) -> 195.622631 | G90: =F90*(1+('Scenario Input'!$AJ$15/100)) -> 199.8856214 | H90: =G90*(1+('Scenario Input'!$AM$15/100)) -> 204.3555404 | I90: =H90*(1+('Scenario Input'!$AP$15/100)) -> 210.3237621 | J90: =I90*(1+('Scenario Input'!$AS$15/100)) -> 216.4662861
A91: 90 | B91: Com-Pair Services, Frontier - Citizens | C91: 175 | D91: =C91*(1+('Scenario Input'!$AA$15/100)) -> 183.0065969 | E91: =D91*(1+('Scenario Input'!$AD$15/100)) -> 189.4004007 | F91: =E91*(1+('Scenario Input'!$AG$15/100)) -> 193.4122057 | G91: =F91*(1+('Scenario Input'!$AJ$15/100)) -> 197.6270268 | H91: =G91*(1+('Scenario Input'!$AM$15/100)) -> 202.0464383 | I91: =H91*(1+('Scenario Input'!$AP$15/100)) -> 207.9472224 | J91: =I91*(1+('Scenario Input'!$AS$15/100)) -> 214.0203394
A92: 91 | B92: Com-Pair Services, Frontier - Citizens | C92: 175 | D92: =C92*(1+('Scenario Input'!$AA$15/100)) -> 183.0065969 | E92: =D92*(1+('Scenario Input'!$AD$15/100)) -> 189.4004007 | F92: =E92*(1+('Scenario Input'!$AG$15/100)) -> 193.4122057 | G92: =F92*(1+('Scenario Input'!$AJ$15/100)) -> 197.6270268 | H92: =G92*(1+('Scenario Input'!$AM$15/100)) -> 202.0464383 | I92: =H92*(1+('Scenario Input'!$AP$15/100)) -> 207.9472224 | J92: =I92*(1+('Scenario Input'!$AS$15/100)) -> 214.0203394
A93: 92 | B93: Com-Pair Services, Ducor | C93: 175 | D93: =C93*(1+('Scenario Input'!$AA$15/100)) -> 183.0065969 | E93: =D93*(1+('Scenario Input'!$AD$15/100)) -> 189.4004007 | F93: =E93*(1+('Scenario Input'!$AG$15/100)) -> 193.4122057 | G93: =F93*(1+('Scenario Input'!$AJ$15/100)) -> 197.6270268 | H93: =G93*(1+('Scenario Input'!$AM$15/100)) -> 202.0464383 | I93: =H93*(1+('Scenario Input'!$AP$15/100)) -> 207.9472224 | J93: =I93*(1+('Scenario Input'!$AS$15/100)) -> 214.0203394
A94: 93 | B94: Com-Pair Services, TDS Telecom - HV | C94: 166.85 | D94: =C94*(1+('Scenario Input'!$AA$15/100)) -> 174.4837183 | E94: =D94*(1+('Scenario Input'!$AD$15/100)) -> 180.5797535 | F94: =E94*(1+('Scenario Input'!$AG$15/100)) -> 184.404723 | G94: =F94*(1+('Scenario Input'!$AJ$15/100)) -> 188.4232539 | H94: =G94*(1+('Scenario Input'!$AM$15/100)) -> 192.636847 | I94: =H94*(1+('Scenario Input'!$AP$15/100)) -> 198.2628232 | J94: =I94*(1+('Scenario Input'!$AS$15/100)) -> 204.0531064
A95: 94 | B95: Com-Pair Services, | C95: 150 | D95: =C95*(1+('Scenario Input'!$AA$15/100)) -> 156.8627974 | E95: =D95*(1+('Scenario Input'!$AD$15/100)) -> 162.3432006 | F95: =E95*(1+('Scenario Input'!$AG$15/100)) -> 165.7818906 | G95: =F95*(1+('Scenario Input'!$AJ$15/100)) -> 169.3945944 | H95: =G95*(1+('Scenario Input'!$AM$15/100)) -> 173.1826614 | I95: =H95*(1+('Scenario Input'!$AP$15/100)) -> 178.2404763 | J95: =I95*(1+('Scenario Input'!$AS$15/100)) -> 183.4460052
A96: 95 | B96: Com-Pair Services, Frontier | C96: 172.25 | D96: =C96*(1+('Scenario Input'!$AA$15/100)) -> 180.130779 | E96: =D96*(1+('Scenario Input'!$AD$15/100)) -> 186.4241087 | F96: =E96*(1+('Scenario Input'!$AG$15/100)) -> 190.3728711 | G96: =F96*(1+('Scenario Input'!$AJ$15/100)) -> 194.5214593 | H96: =G96*(1+('Scenario Input'!$AM$15/100)) -> 198.8714228 | I96: =H96*(1+('Scenario Input'!$AP$15/100)) -> 204.6794803 | J96: =I96*(1+('Scenario Input'!$AS$15/100)) -> 210.6571626
A97: 96 | B97: Comcast, AT&T California | C97: 77 | D97: =C97*(1+('Scenario Input'!$AA$15/100)) -> 80.52290264 | E97: =D97*(1+('Scenario Input'!$AD$15/100)) -> 83.3361763 | F97: =E97*(1+('Scenario Input'!$AG$15/100)) -> 85.10137053 | G97: =F97*(1+('Scenario Input'!$AJ$15/100)) -> 86.95589181 | H97: =G97*(1+('Scenario Input'!$AM$15/100)) -> 88.90043285 | I97: =H97*(1+('Scenario Input'!$AP$15/100)) -> 91.49677785 | J97: =I97*(1+('Scenario Input'!$AS$15/100)) -> 94.16894933
A98: 97 | B98: Comcast, Calaveras | C98: 75 | D98: =C98*(1+('Scenario Input'!$AA$15/100)) -> 78.43139868 | E98: =D98*(1+('Scenario Input'!$AD$15/100)) -> 81.1716003 | F98: =E98*(1+('Scenario Input'!$AG$15/100)) -> 82.89094532 | G98: =F98*(1+('Scenario Input'!$AJ$15/100)) -> 84.69729722 | H98: =G98*(1+('Scenario Input'!$AM$15/100)) -> 86.5913307 | I98: =H98*(1+('Scenario Input'!$AP$15/100)) -> 89.12023816 | J98: =I98*(1+('Scenario Input'!$AS$15/100)) -> 91.7230026
A99: 98 | B99: Comcast, Frontier - Citizens | C99: 75 | D99: =C99*(1+('Scenario Input'!$AA$15/100)) -> 78.43139868 | E99: =D99*(1+('Scenario Input'!$AD$15/100)) -> 81.1716003 | F99: =E99*(1+('Scenario Input'!$AG$15/100)) -> 82.89094532 | G99: =F99*(1+('Scenario Input'!$AJ$15/100)) -> 84.69729722 | H99: =G99*(1+('Scenario Input'!$AM$15/100)) -> 86.5913307 | I99: =H99*(1+('Scenario Input'!$AP$15/100)) -> 89.12023816 | J99: =I99*(1+('Scenario Input'!$AS$15/100)) -> 91.7230026
A100: 99 | B100: Comcast, Frontier - Citizens | C100: 75 | D100: =C100*(1+('Scenario Input'!$AA$15/100)) -> 78.43139868 | E100: =D100*(1+('Scenario Input'!$AD$15/100)) -> 81.1716003 | F100: =E100*(1+('Scenario Input'!$AG$15/100)) -> 82.89094532 | G100: =F100*(1+('Scenario Input'!$AJ$15/100)) -> 84.69729722 | H100: =G100*(1+('Scenario Input'!$AM$15/100)) -> 86.5913307 | I100: =H100*(1+('Scenario Input'!$AP$15/100)) -> 89.12023816 | J100: =I100*(1+('Scenario Input'!$AS$15/100)) -> 91.7230026
A101: 100 | B101: Comcast, Frontier - Citizens | C101: 75 | D101: =C101*(1+('Scenario Input'!$AA$15/100)) -> 78.43139868 | E101: =D101*(1+('Scenario Input'!$AD$15/100)) -> 81.1716003 | F101: =E101*(1+('Scenario Input'!$AG$15/100)) -> 82.89094532 | G101: =F101*(1+('Scenario Input'!$AJ$15/100)) -> 84.69729722 | H101: =G101*(1+('Scenario Input'!$AM$15/100)) -> 86.5913307 | I101: =H101*(1+('Scenario Input'!$AP$15/100)) -> 89.12023816 | J101: =I101*(1+('Scenario Input'!$AS$15/100)) -> 91.7230026
A102: 101 | B102: Comcast, Frontier | C102: 72.25 | D102: =C102*(1+('Scenario Input'!$AA$15/100)) -> 75.55558073 | E102: =D102*(1+('Scenario Input'!$AD$15/100)) -> 78.19530828 | F102: =E102*(1+('Scenario Input'!$AG$15/100)) -> 79.85161066 | G102: =F102*(1+('Scenario Input'!$AJ$15/100)) -> 81.59172966 | H102: =G102*(1+('Scenario Input'!$AM$15/100)) -> 83.41631524 | I102: =H102*(1+('Scenario Input'!$AP$15/100)) -> 85.8524961 | J102: =I102*(1+('Scenario Input'!$AS$15/100)) -> 88.35982584
A103: 102 | B103: Comcast, Kerman | C103: 72.58 | D103: =C103*(1+('Scenario Input'!$AA$15/100)) -> 75.90067888 | E103: =D103*(1+('Scenario Input'!$AD$15/100)) -> 78.55246333 | F103: =E103*(1+('Scenario Input'!$AG$15/100)) -> 80.21633082 | G103: =F103*(1+('Scenario Input'!$AJ$15/100)) -> 81.96439776 | H103: =G103*(1+('Scenario Input'!$AM$15/100)) -> 83.79731709 | I103: =H103*(1+('Scenario Input'!$AP$15/100)) -> 86.24462515 | J103: =I103*(1+('Scenario Input'!$AS$15/100)) -> 88.76340705
A104: 103 | B104: Comcast, | C104: 50 | D104: =C104*(1+('Scenario Input'!$AA$15/100)) -> 52.28759912 | E104: =D104*(1+('Scenario Input'!$AD$15/100)) -> 54.1144002 | F104: =E104*(1+('Scenario Input'!$AG$15/100)) -> 55.26063021 | G104: =F104*(1+('Scenario Input'!$AJ$15/100)) -> 56.46486481 | H104: =G104*(1+('Scenario Input'!$AM$15/100)) -> 57.7275538 | I104: =H104*(1+('Scenario Input'!$AP$15/100)) -> 59.41349211 | J104: =I104*(1+('Scenario Input'!$AS$15/100)) -> 61.1486684
A105: 104 | B105: Comcast, Ponderosa | C105: 75 | D105: =C105*(1+('Scenario Input'!$AA$15/100)) -> 78.43139868 | E105: =D105*(1+('Scenario Input'!$AD$15/100)) -> 81.1716003 | F105: =E105*(1+('Scenario Input'!$AG$15/100)) -> 82.89094532 | G105: =F105*(1+('Scenario Input'!$AJ$15/100)) -> 84.69729722 | H105: =G105*(1+('Scenario Input'!$AM$15/100)) -> 86.5913307 | I105: =H105*(1+('Scenario Input'!$AP$15/100)) -> 89.12023816 | J105: =I105*(1+('Scenario Input'!$AS$15/100)) -> 91.7230026
A106: 105 | B106: Comcast, Sierra | C106: 75 | D106: =C106*(1+('Scenario Input'!$AA$15/100)) -> 78.43139868 | E106: =D106*(1+('Scenario Input'!$AD$15/100)) -> 81.1716003 | F106: =E106*(1+('Scenario Input'!$AG$15/100)) -> 82.89094532 | G106: =F106*(1+('Scenario Input'!$AJ$15/100)) -> 84.69729722 | H106: =G106*(1+('Scenario Input'!$AM$15/100)) -> 86.5913307 | I106: =H106*(1+('Scenario Input'!$AP$15/100)) -> 89.12023816 | J106: =I106*(1+('Scenario Input'!$AS$15/100)) -> 91.7230026
A107: 106 | B107: Comcast, Siskiyou | C107: 74 | D107: =C107*(1+('Scenario Input'!$AA$15/100)) -> 77.3856467 | E107: =D107*(1+('Scenario Input'!$AD$15/100)) -> 80.08931229 | F107: =E107*(1+('Scenario Input'!$AG$15/100)) -> 81.78573272 | G107: =F107*(1+('Scenario Input'!$AJ$15/100)) -> 83.56799992 | H107: =G107*(1+('Scenario Input'!$AM$15/100)) -> 85.43677962 | I107: =H107*(1+('Scenario Input'!$AP$15/100)) -> 87.93196832 | J107: =I107*(1+('Scenario Input'!$AS$15/100)) -> 90.50002923
A108: 107 | B108: Comcast, Surewest | C108: 73.22 | D108: =C108*(1+('Scenario Input'!$AA$15/100)) -> 76.56996015 | E108: =D108*(1+('Scenario Input'!$AD$15/100)) -> 79.24512765 | F108: =E108*(1+('Scenario Input'!$AG$15/100)) -> 80.92366688 | G108: =F108*(1+('Scenario Input'!$AJ$15/100)) -> 82.68714803 | H108: =G108*(1+('Scenario Input'!$AM$15/100)) -> 84.53622978 | I108: =H108*(1+('Scenario Input'!$AP$15/100)) -> 87.00511785 | J108: =I108*(1+('Scenario Input'!$AS$15/100)) -> 89.54611
A109: 108 | B109: Comcast, Frontier | C109: 72.25 | D109: =C109*(1+('Scenario Input'!$AA$15/100)) -> 75.55558073 | E109: =D109*(1+('Scenario Input'!$AD$15/100)) -> 78.19530828 | F109: =E109*(1+('Scenario Input'!$AG$15/100)) -> 79.85161066 | G109: =F109*(1+('Scenario Input'!$AJ$15/100)) -> 81.59172966 | H109: =G109*(1+('Scenario Input'!$AM$15/100)) -> 83.41631524 | I109: =H109*(1+('Scenario Input'!$AP$15/100)) -> 85.8524961 | J109: =I109*(1+('Scenario Input'!$AS$15/100)) -> 88.35982584
A110: 109 | B110: Comcast, Volcano | C110: 74 | D110: =C110*(1+('Scenario Input'!$AA$15/100)) -> 77.3856467 | E110: =D110*(1+('Scenario Input'!$AD$15/100)) -> 80.08931229 | F110: =E110*(1+('Scenario Input'!$AG$15/100)) -> 81.78573272 | G110: =F110*(1+('Scenario Input'!$AJ$15/100)) -> 83.56799992 | H110: =G110*(1+('Scenario Input'!$AM$15/100)) -> 85.43677962 | I110: =H110*(1+('Scenario Input'!$AP$15/100)) -> 87.93196832 | J110: =I110*(1+('Scenario Input'!$AS$15/100)) -> 90.50002923
A111: 110 | B111: Comcast, TDS Telecom | C111: 66.05 | D111: =C111*(1+('Scenario Input'!$AA$15/100)) -> 69.07191844 | E111: =D111*(1+('Scenario Input'!$AD$15/100)) -> 71.48512266 | F111: =E111*(1+('Scenario Input'!$AG$15/100)) -> 72.99929251 | G111: =F111*(1+('Scenario Input'!$AJ$15/100)) -> 74.59008642 | H111: =G111*(1+('Scenario Input'!$AM$15/100)) -> 76.25809857 | I111: =H111*(1+('Scenario Input'!$AP$15/100)) -> 78.48522308 | J111: =I111*(1+('Scenario Input'!$AS$15/100)) -> 80.77739095
A112: 111 | B112: Conifer Communications, AT&T California | C112: 151.95 | D112: =C112*(1+('Scenario Input'!$AA$15/100)) -> 158.9020137 | E112: =D112*(1+('Scenario Input'!$AD$15/100)) -> 164.4536622 | F112: =E112*(1+('Scenario Input'!$AG$15/100)) -> 167.9370552 | G112: =F112*(1+('Scenario Input'!$AJ$15/100)) -> 171.5967242 | H112: =G112*(1+('Scenario Input'!$AM$15/100)) -> 175.434036 | I112: =H112*(1+('Scenario Input'!$AP$15/100)) -> 180.5576025 | J112: =I112*(1+('Scenario Input'!$AS$15/100)) -> 185.8308033
A113: 112 | B113: Conifer Communications, Calaveras | C113: 149.95 | D113: =C113*(1+('Scenario Input'!$AA$15/100)) -> 156.8105098 | E113: =D113*(1+('Scenario Input'!$AD$15/100)) -> 162.2890862 | F113: =E113*(1+('Scenario Input'!$AG$15/100)) -> 165.72663 | G113: =F113*(1+('Scenario Input'!$AJ$15/100)) -> 169.3381296 | H113: =G113*(1+('Scenario Input'!$AM$15/100)) -> 173.1249338 | I113: =H113*(1+('Scenario Input'!$AP$15/100)) -> 178.1810628 | J113: =I113*(1+('Scenario Input'!$AS$15/100)) -> 183.3848565
A114: 113 | B114: Conifer Communications, Frontier - Citizens | C114: 149.95 | D114: =C114*(1+('Scenario Input'!$AA$15/100)) -> 156.8105098 | E114: =D114*(1+('Scenario Input'!$AD$15/100)) -> 162.2890862 | F114: =E114*(1+('Scenario Input'!$AG$15/100)) -> 165.72663 | G114: =F114*(1+('Scenario Input'!$AJ$15/100)) -> 169.3381296 | H114: =G114*(1+('Scenario Input'!$AM$15/100)) -> 173.1249338 | I114: =H114*(1+('Scenario Input'!$AP$15/100)) -> 178.1810628 | J114: =I114*(1+('Scenario Input'!$AS$15/100)) -> 183.3848565
A115: 114 | B115: Conifer Communications, TDS Telecom - Horn | C115: 141 | D115: =C115*(1+('Scenario Input'!$AA$15/100)) -> 147.4510295 | E115: =D115*(1+('Scenario Input'!$AD$15/100)) -> 152.6026086 | F115: =E115*(1+('Scenario Input'!$AG$15/100)) -> 155.8349772 | G115: =F115*(1+('Scenario Input'!$AJ$15/100)) -> 159.2309188 | H115: =G115*(1+('Scenario Input'!$AM$15/100)) -> 162.7917017 | I115: =H115*(1+('Scenario Input'!$AP$15/100)) -> 167.5460478 | J115: =I115*(1+('Scenario Input'!$AS$15/100)) -> 172.4392449
A116: 115 | B116: Conifer Communications, | C116: 124.95 | D116: =C116*(1+('Scenario Input'!$AA$15/100)) -> 130.6667102 | E116: =D116*(1+('Scenario Input'!$AD$15/100)) -> 135.2318861 | F116: =E116*(1+('Scenario Input'!$AG$15/100)) -> 138.0963149 | G116: =F116*(1+('Scenario Input'!$AJ$15/100)) -> 141.1056972 | H116: =G116*(1+('Scenario Input'!$AM$15/100)) -> 144.2611569 | I116: =H116*(1+('Scenario Input'!$AP$15/100)) -> 148.4743168 | J116: =I116*(1+('Scenario Input'!$AS$15/100)) -> 152.8105223
A117: 116 | B117: Conifer Communications, Sierra | C117: 149.95 | D117: =C117*(1+('Scenario Input'!$AA$15/100)) -> 156.8105098 | E117: =D117*(1+('Scenario Input'!$AD$15/100)) -> 162.2890862 | F117: =E117*(1+('Scenario Input'!$AG$15/100)) -> 165.72663 | G117: =F117*(1+('Scenario Input'!$AJ$15/100)) -> 169.3381296 | H117: =G117*(1+('Scenario Input'!$AM$15/100)) -> 173.1249338 | I117: =H117*(1+('Scenario Input'!$AP$15/100)) -> 178.1810628 | J117: =I117*(1+('Scenario Input'!$AS$15/100)) -> 183.3848565
A118: 117 | B118: Conifer Communications, Frontier | C118: 147.2 | D118: =C118*(1+('Scenario Input'!$AA$15/100)) -> 153.9346918 | E118: =D118*(1+('Scenario Input'!$AD$15/100)) -> 159.3127942 | F118: =E118*(1+('Scenario Input'!$AG$15/100)) -> 162.6872953 | G118: =F118*(1+('Scenario Input'!$AJ$15/100)) -> 166.232562 | H118: =G118*(1+('Scenario Input'!$AM$15/100)) -> 169.9499184 | I118: =H118*(1+('Scenario Input'!$AP$15/100)) -> 174.9133208 | J118: =I118*(1+('Scenario Input'!$AS$15/100)) -> 180.0216798
A119: 118 | B119: ConnectAnza, | C119: 20 | D119: =C119*(1+('Scenario Input'!$AA$15/100)) -> 20.91503965 | E119: =D119*(1+('Scenario Input'!$AD$15/100)) -> 21.64576008 | F119: =E119*(1+('Scenario Input'!$AG$15/100)) -> 22.10425209 | G119: =F119*(1+('Scenario Input'!$AJ$15/100)) -> 22.58594593 | H119: =G119*(1+('Scenario Input'!$AM$15/100)) -> 23.09102152 | I119: =H119*(1+('Scenario Input'!$AP$15/100)) -> 23.76539684 | J119: =I119*(1+('Scenario Input'!$AS$15/100)) -> 24.45946736
A120: 119 | B120: ConnectAnza, Frontier | C120: 42.25 | D120: =C120*(1+('Scenario Input'!$AA$15/100)) -> 44.18302126 | E120: =D120*(1+('Scenario Input'!$AD$15/100)) -> 45.72666817 | F120: =E120*(1+('Scenario Input'!$AG$15/100)) -> 46.69523253 | G120: =F120*(1+('Scenario Input'!$AJ$15/100)) -> 47.71281077 | H120: =G120*(1+('Scenario Input'!$AM$15/100)) -> 48.77978296 | I120: =H120*(1+('Scenario Input'!$AP$15/100)) -> 50.20440083 | J120: =I120*(1+('Scenario Input'!$AS$15/100)) -> 51.6706248
A121: 120 | B121: ConnectTo Communications, AT&T California | C121: 51.99 | D121: =C121*(1+('Scenario Input'!$AA$15/100)) -> 54.36864556 | E121: =D121*(1+('Scenario Input'!$AD$15/100)) -> 56.26815332 | F121: =E121*(1+('Scenario Input'!$AG$15/100)) -> 57.4600033 | G121: =F121*(1+('Scenario Input'!$AJ$15/100)) -> 58.71216643 | H121: =G121*(1+('Scenario Input'!$AM$15/100)) -> 60.02511044 | I121: =H121*(1+('Scenario Input'!$AP$15/100)) -> 61.7781491 | J121: =I121*(1+('Scenario Input'!$AS$15/100)) -> 63.5823854
A122: 121 | B122: Consolidated Communications, AT&T California | C122: 97.95 | D122: =C122*(1+('Scenario Input'!$AA$15/100)) -> 102.4314067 | E122: =D122*(1+('Scenario Input'!$AD$15/100)) -> 106.01011 | F122: =E122*(1+('Scenario Input'!$AG$15/100)) -> 108.2555746 | G122: =F122*(1+('Scenario Input'!$AJ$15/100)) -> 110.6146702 | H122: =G122*(1+('Scenario Input'!$AM$15/100)) -> 113.0882779 | I122: =H122*(1+('Scenario Input'!$AP$15/100)) -> 116.391031 | J122: =I122*(1+('Scenario Input'!$AS$15/100)) -> 119.7902414
A123: 122 | B123: Consolidated Communications, Frontier - Citizens | C123: 95.95 | D123: =C123*(1+('Scenario Input'!$AA$15/100)) -> 100.3399027 | E123: =D123*(1+('Scenario Input'!$AD$15/100)) -> 103.845534 | F123: =E123*(1+('Scenario Input'!$AG$15/100)) -> 106.0451494 | G123: =F123*(1+('Scenario Input'!$AJ$15/100)) -> 108.3560756 | H123: =G123*(1+('Scenario Input'!$AM$15/100)) -> 110.7791757 | I123: =H123*(1+('Scenario Input'!$AP$15/100)) -> 114.0144914 | J123: =I123*(1+('Scenario Input'!$AS$15/100)) -> 117.3442947
A124: 123 | B124: Consolidated Communications, Surewest | C124: 94.17 | D124: =C124*(1+('Scenario Input'!$AA$15/100)) -> 98.47846418 | E124: =D124*(1+('Scenario Input'!$AD$15/100)) -> 101.9190613 | F124: =E124*(1+('Scenario Input'!$AG$15/100)) -> 104.0778709 | G124: =F124*(1+('Scenario Input'!$AJ$15/100)) -> 106.3459264 | H124: =G124*(1+('Scenario Input'!$AM$15/100)) -> 108.7240748 | I124: =H124*(1+('Scenario Input'!$AP$15/100)) -> 111.899371 | J124: =I124*(1+('Scenario Input'!$AS$15/100)) -> 115.1674021
A125: 124 | B125: Consolidated Smart Broadband Systems, LLC, AT&T California | C125: 51.99 | D125: =C125*(1+('Scenario Input'!$AA$15/100)) -> 54.36864556 | E125: =D125*(1+('Scenario Input'!$AD$15/100)) -> 56.26815332 | F125: =E125*(1+('Scenario Input'!$AG$15/100)) -> 57.4600033 | G125: =F125*(1+('Scenario Input'!$AJ$15/100)) -> 58.71216643 | H125: =G125*(1+('Scenario Input'!$AM$15/100)) -> 60.02511044 | I125: =H125*(1+('Scenario Input'!$AP$15/100)) -> 61.7781491 | J125: =I125*(1+('Scenario Input'!$AS$15/100)) -> 63.5823854
A126: 125 | B126: Consolidated Smart Broadband Systems, LLC, Frontier | C126: 47.24 | D126: =C126*(1+('Scenario Input'!$AA$15/100)) -> 49.40132365 | E126: =D126*(1+('Scenario Input'!$AD$15/100)) -> 51.12728531 | F126: =E126*(1+('Scenario Input'!$AG$15/100)) -> 52.21024343 | G126: =F126*(1+('Scenario Input'!$AJ$15/100)) -> 53.34800428 | H126: =G126*(1+('Scenario Input'!$AM$15/100)) -> 54.54099283 | I126: =H126*(1+('Scenario Input'!$AP$15/100)) -> 56.13386735 | J126: =I126*(1+('Scenario Input'!$AS$15/100)) -> 57.7732619
A127: 126 | B127: Cox Communications, AT&T California | C127: 71.99 | D127: =C127*(1+('Scenario Input'!$AA$15/100)) -> 75.28368521 | E127: =D127*(1+('Scenario Input'!$AD$15/100)) -> 77.9139134 | F127: =E127*(1+('Scenario Input'!$AG$15/100)) -> 79.56425538 | G127: =F127*(1+('Scenario Input'!$AJ$15/100)) -> 81.29811236 | H127: =G127*(1+('Scenario Input'!$AM$15/100)) -> 83.11613196 | I127: =H127*(1+('Scenario Input'!$AP$15/100)) -> 85.54354594 | J127: =I127*(1+('Scenario Input'!$AS$15/100)) -> 88.04185276
A128: 127 | B128: Cox Communications, | C128: 44.99 | D128: =C128*(1+('Scenario Input'!$AA$15/100)) -> 47.04838169 | E128: =D128*(1+('Scenario Input'!$AD$15/100)) -> 48.6921373 | F128: =E128*(1+('Scenario Input'!$AG$15/100)) -> 49.72351507 | G128: =F128*(1+('Scenario Input'!$AJ$15/100)) -> 50.80708536 | H128: =G128*(1+('Scenario Input'!$AM$15/100)) -> 51.94325291 | I128: =H128*(1+('Scenario Input'!$AP$15/100)) -> 53.4602602 | J128: =I128*(1+('Scenario Input'!$AS$15/100)) -> 55.02157182
A129: 128 | B129: Cox Communications, Frontier | C129: 67.24 | D129: =C129*(1+('Scenario Input'!$AA$15/100)) -> 70.3163633 | E129: =D129*(1+('Scenario Input'!$AD$15/100)) -> 72.77304538 | F129: =E129*(1+('Scenario Input'!$AG$15/100)) -> 74.31449551 | G129: =F129*(1+('Scenario Input'!$AJ$15/100)) -> 75.9339502 | H129: =G129*(1+('Scenario Input'!$AM$15/100)) -> 77.63201435 | I129: =H129*(1+('Scenario Input'!$AP$15/100)) -> 79.89926419 | J129: =I129*(1+('Scenario Input'!$AS$15/100)) -> 82.23272926
A130: 129 | B130: Cruzio, AT&T California | C130: 101.95 | D130: =C130*(1+('Scenario Input'!$AA$15/100)) -> 106.6144146 | E130: =D130*(1+('Scenario Input'!$AD$15/100)) -> 110.339262 | F130: =E130*(1+('Scenario Input'!$AG$15/100)) -> 112.676425 | G130: =F130*(1+('Scenario Input'!$AJ$15/100)) -> 115.1318594 | H130: =G130*(1+('Scenario Input'!$AM$15/100)) -> 117.7064822 | I130: =H130*(1+('Scenario Input'!$AP$15/100)) -> 121.1441104 | J130: =I130*(1+('Scenario Input'!$AS$15/100)) -> 124.6821349
A131: 130 | B131: DigitalPath, Inc., AT&T California | C131: 88 | D131: =C131*(1+('Scenario Input'!$AA$15/100)) -> 92.02617445 | E131: =D131*(1+('Scenario Input'!$AD$15/100)) -> 95.24134435 | F131: =E131*(1+('Scenario Input'!$AG$15/100)) -> 97.25870917 | G131: =F131*(1+('Scenario Input'!$AJ$15/100)) -> 99.37816207 | H131: =G131*(1+('Scenario Input'!$AM$15/100)) -> 101.6004947 | I131: =H131*(1+('Scenario Input'!$AP$15/100)) -> 104.5677461 | J131: =I131*(1+('Scenario Input'!$AS$15/100)) -> 107.6216564
A132: 131 | B132: DigitalPath, Inc., Frontier - Citizens | C132: 86 | D132: =C132*(1+('Scenario Input'!$AA$15/100)) -> 89.93467048 | E132: =D132*(1+('Scenario Input'!$AD$15/100)) -> 93.07676834 | F132: =E132*(1+('Scenario Input'!$AG$15/100)) -> 95.04828397 | G132: =F132*(1+('Scenario Input'!$AJ$15/100)) -> 97.11956748 | H132: =G132*(1+('Scenario Input'!$AM$15/100)) -> 99.29139253 | I132: =H132*(1+('Scenario Input'!$AP$15/100)) -> 102.1912064 | J132: =I132*(1+('Scenario Input'!$AS$15/100)) -> 105.1757096
A133: 132 | B133: DigitalPath, Inc., Frontier - Citizens | C133: 86 | D133: =C133*(1+('Scenario Input'!$AA$15/100)) -> 89.93467048 | E133: =D133*(1+('Scenario Input'!$AD$15/100)) -> 93.07676834 | F133: =E133*(1+('Scenario Input'!$AG$15/100)) -> 95.04828397 | G133: =F133*(1+('Scenario Input'!$AJ$15/100)) -> 97.11956748 | H133: =G133*(1+('Scenario Input'!$AM$15/100)) -> 99.29139253 | I133: =H133*(1+('Scenario Input'!$AP$15/100)) -> 102.1912064 | J133: =I133*(1+('Scenario Input'!$AS$15/100)) -> 105.1757096
A134: 133 | B134: DigitalPath, Inc., Frontier - Citizens | C134: 86 | D134: =C134*(1+('Scenario Input'!$AA$15/100)) -> 89.93467048 | E134: =D134*(1+('Scenario Input'!$AD$15/100)) -> 93.07676834 | F134: =E134*(1+('Scenario Input'!$AG$15/100)) -> 95.04828397 | G134: =F134*(1+('Scenario Input'!$AJ$15/100)) -> 97.11956748 | H134: =G134*(1+('Scenario Input'!$AM$15/100)) -> 99.29139253 | I134: =H134*(1+('Scenario Input'!$AP$15/100)) -> 102.1912064 | J134: =I134*(1+('Scenario Input'!$AS$15/100)) -> 105.1757096
A135: 134 | B135: DigitalPath, Inc., Ducor | C135: 86 | D135: =C135*(1+('Scenario Input'!$AA$15/100)) -> 89.93467048 | E135: =D135*(1+('Scenario Input'!$AD$15/100)) -> 93.07676834 | F135: =E135*(1+('Scenario Input'!$AG$15/100)) -> 95.04828397 | G135: =F135*(1+('Scenario Input'!$AJ$15/100)) -> 97.11956748 | H135: =G135*(1+('Scenario Input'!$AM$15/100)) -> 99.29139253 | I135: =H135*(1+('Scenario Input'!$AP$15/100)) -> 102.1912064 | J135: =I135*(1+('Scenario Input'!$AS$15/100)) -> 105.1757096
A136: 135 | B136: DigitalPath, Inc., TDS Telecom - HV | C136: 77.85 | D136: =C136*(1+('Scenario Input'!$AA$15/100)) -> 81.41179183 | E136: =D136*(1+('Scenario Input'!$AD$15/100)) -> 84.25612111 | F136: =E136*(1+('Scenario Input'!$AG$15/100)) -> 86.04080124 | G136: =F136*(1+('Scenario Input'!$AJ$15/100)) -> 87.91579451 | H136: =G136*(1+('Scenario Input'!$AM$15/100)) -> 89.88180127 | I136: =H136*(1+('Scenario Input'!$AP$15/100)) -> 92.50680722 | J136: =I136*(1+('Scenario Input'!$AS$15/100)) -> 95.2084767
A137: 136 | B137: DigitalPath, Inc., | C137: 61 | D137: =C137*(1+('Scenario Input'!$AA$15/100)) -> 63.79087093 | E137: =D137*(1+('Scenario Input'!$AD$15/100)) -> 66.01956824 | F137: =E137*(1+('Scenario Input'!$AG$15/100)) -> 67.41796886 | G137: =F137*(1+('Scenario Input'!$AJ$15/100)) -> 68.88713507 | H137: =G137*(1+('Scenario Input'!$AM$15/100)) -> 70.42761563 | I137: =H137*(1+('Scenario Input'!$AP$15/100)) -> 72.48446037 | J137: =I137*(1+('Scenario Input'!$AS$15/100)) -> 74.60137545
A138: 137 | B138: DigitalPath, Inc., Surewest | C138: 84.22 | D138: =C138*(1+('Scenario Input'!$AA$15/100)) -> 88.07323196 | E138: =D138*(1+('Scenario Input'!$AD$15/100)) -> 91.15029569 | F138: =E138*(1+('Scenario Input'!$AG$15/100)) -> 93.08100553 | G138: =F138*(1+('Scenario Input'!$AJ$15/100)) -> 95.10941829 | H138: =G138*(1+('Scenario Input'!$AM$15/100)) -> 97.23629162 | I138: =H138*(1+('Scenario Input'!$AP$15/100)) -> 100.0760861 | J138: =I138*(1+('Scenario Input'!$AS$15/100)) -> 102.998817
A139: 138 | B139: DigitalPath, Inc., Frontier | C139: 83.25 | D139: =C139*(1+('Scenario Input'!$AA$15/100)) -> 87.05885253 | E139: =D139*(1+('Scenario Input'!$AD$15/100)) -> 90.10047633 | F139: =E139*(1+('Scenario Input'!$AG$15/100)) -> 92.0089493 | G139: =F139*(1+('Scenario Input'!$AJ$15/100)) -> 94.01399991 | H139: =G139*(1+('Scenario Input'!$AM$15/100)) -> 96.11637708 | I139: =H139*(1+('Scenario Input'!$AP$15/100)) -> 98.92346436 | J139: =I139*(1+('Scenario Input'!$AS$15/100)) -> 101.8125329
A140: 139 | B140: Dillon Beach Internet Service, AT&T California | C140: 87 | D140: =C140*(1+('Scenario Input'!$AA$15/100)) -> 90.98042247 | E140: =D140*(1+('Scenario Input'!$AD$15/100)) -> 94.15905634 | F140: =E140*(1+('Scenario Input'!$AG$15/100)) -> 96.15349657 | G140: =F140*(1+('Scenario Input'!$AJ$15/100)) -> 98.24886478 | H140: =G140*(1+('Scenario Input'!$AM$15/100)) -> 100.4459436 | I140: =H140*(1+('Scenario Input'!$AP$15/100)) -> 103.3794763 | J140: =I140*(1+('Scenario Input'!$AS$15/100)) -> 106.398683
A141: 140 | B141: Dillon Beach Internet Service, | C141: 60 | D141: =C141*(1+('Scenario Input'!$AA$15/100)) -> 62.74511894 | E141: =D141*(1+('Scenario Input'!$AD$15/100)) -> 64.93728024 | F141: =E141*(1+('Scenario Input'!$AG$15/100)) -> 66.31275626 | G141: =F141*(1+('Scenario Input'!$AJ$15/100)) -> 67.75783778 | H141: =G141*(1+('Scenario Input'!$AM$15/100)) -> 69.27306456 | I141: =H141*(1+('Scenario Input'!$AP$15/100)) -> 71.29619053 | J141: =I141*(1+('Scenario Input'!$AS$15/100)) -> 73.37840208
A142: 141 | B142: DM-Tech Internet, AT&T California | C142: 136.95 | D142: =C142*(1+('Scenario Input'!$AA$15/100)) -> 143.215734 | E142: =D142*(1+('Scenario Input'!$AD$15/100)) -> 148.2193421 | F142: =E142*(1+('Scenario Input'!$AG$15/100)) -> 151.3588662 | G142: =F142*(1+('Scenario Input'!$AJ$15/100)) -> 154.6572647 | H142: =G142*(1+('Scenario Input'!$AM$15/100)) -> 158.1157699 | I142: =H142*(1+('Scenario Input'!$AP$15/100)) -> 162.7335549 | J142: =I142*(1+('Scenario Input'!$AS$15/100)) -> 167.4862027
A143: 142 | B143: DM-Tech Internet, Ducor | C143: 134.95 | D143: =C143*(1+('Scenario Input'!$AA$15/100)) -> 141.12423 | E143: =D143*(1+('Scenario Input'!$AD$15/100)) -> 146.0547661 | F143: =E143*(1+('Scenario Input'!$AG$15/100)) -> 149.1484409 | G143: =F143*(1+('Scenario Input'!$AJ$15/100)) -> 152.3986701 | H143: =G143*(1+('Scenario Input'!$AM$15/100)) -> 155.8066677 | I143: =H143*(1+('Scenario Input'!$AP$15/100)) -> 160.3570152 | J143: =I143*(1+('Scenario Input'!$AS$15/100)) -> 165.040256
A144: 143 | B144: DM-Tech Internet, | C144: 109.95 | D144: =C144*(1+('Scenario Input'!$AA$15/100)) -> 114.9804305 | E144: =D144*(1+('Scenario Input'!$AD$15/100)) -> 118.997566 | F144: =E144*(1+('Scenario Input'!$AG$15/100)) -> 121.5181258 | G144: =F144*(1+('Scenario Input'!$AJ$15/100)) -> 124.1662377 | H144: =G144*(1+('Scenario Input'!$AM$15/100)) -> 126.9428908 | I144: =H144*(1+('Scenario Input'!$AP$15/100)) -> 130.6502691 | J144: =I144*(1+('Scenario Input'!$AS$15/100)) -> 134.4659218
A145: 144 | B145: Ducor Telephone Company, AT&T California | C145: 106.95 | D145: =C145*(1+('Scenario Input'!$AA$15/100)) -> 111.8431745 | E145: =D145*(1+('Scenario Input'!$AD$15/100)) -> 115.750702 | F145: =E145*(1+('Scenario Input'!$AG$15/100)) -> 118.202488 | G145: =F145*(1+('Scenario Input'!$AJ$15/100)) -> 120.7783458 | H145: =G145*(1+('Scenario Input'!$AM$15/100)) -> 123.4792376 | I145: =H145*(1+('Scenario Input'!$AP$15/100)) -> 127.0854596 | J145: =I145*(1+('Scenario Input'!$AS$15/100)) -> 130.7970017
A146: 145 | B146: Ducor Telephone Company, Ducor | C146: 104.95 | D146: =C146*(1+('Scenario Input'!$AA$15/100)) -> 109.7516706 | E146: =D146*(1+('Scenario Input'!$AD$15/100)) -> 113.586126 | F146: =E146*(1+('Scenario Input'!$AG$15/100)) -> 115.9920628 | G146: =F146*(1+('Scenario Input'!$AJ$15/100)) -> 118.5197512 | H146: =G146*(1+('Scenario Input'!$AM$15/100)) -> 121.1701354 | I146: =H146*(1+('Scenario Input'!$AP$15/100)) -> 124.7089199 | J146: =I146*(1+('Scenario Input'!$AS$15/100)) -> 128.351055
A147: 146 | B147: Ducor Telephone Company, | C147: 79.95 | D147: =C147*(1+('Scenario Input'!$AA$15/100)) -> 83.60787099 | E147: =D147*(1+('Scenario Input'!$AD$15/100)) -> 86.52892591 | F147: =E147*(1+('Scenario Input'!$AG$15/100)) -> 88.36174771 | G147: =F147*(1+('Scenario Input'!$AJ$15/100)) -> 90.28731884 | H147: =G147*(1+('Scenario Input'!$AM$15/100)) -> 92.30635852 | I147: =H147*(1+('Scenario Input'!$AP$15/100)) -> 95.00217388 | J147: =I147*(1+('Scenario Input'!$AS$15/100)) -> 97.77672077
A148: 147 | B148: Ducor Telephone Company, Frontier | C148: 102.2 | D148: =C148*(1+('Scenario Input'!$AA$15/100)) -> 106.8758526 | E148: =D148*(1+('Scenario Input'!$AD$15/100)) -> 110.609834 | F148: =E148*(1+('Scenario Input'!$AG$15/100)) -> 112.9527282 | G148: =F148*(1+('Scenario Input'!$AJ$15/100)) -> 115.4141837 | H148: =G148*(1+('Scenario Input'!$AM$15/100)) -> 117.99512 | I148: =H148*(1+('Scenario Input'!$AP$15/100)) -> 121.4411779 | J148: =I148*(1+('Scenario Input'!$AS$15/100)) -> 124.9878782
A149: 148 | B149: Esparto Broadband, Inc., 42, AT&T California | C149: 68 | D149: =C149*(1+('Scenario Input'!$AA$15/100)) -> 71.1111348 | E149: =D149*(1+('Scenario Input'!$AD$15/100)) -> 73.59558427 | F149: =E149*(1+('Scenario Input'!$AG$15/100)) -> 75.15445709 | G149: =F149*(1+('Scenario Input'!$AJ$15/100)) -> 76.79221615 | H149: =G149*(1+('Scenario Input'!$AM$15/100)) -> 78.50947317 | I149: =H149*(1+('Scenario Input'!$AP$15/100)) -> 80.80234927 | J149: =I149*(1+('Scenario Input'!$AS$15/100)) -> 83.16218902
A150: 149 | B150: Esparto Broadband, Inc., 42, Frontier | C150: 63.25 | D150: =C150*(1+('Scenario Input'!$AA$15/100)) -> 66.14381289 | E150: =D150*(1+('Scenario Input'!$AD$15/100)) -> 68.45471625 | F150: =E150*(1+('Scenario Input'!$AG$15/100)) -> 69.90469722 | G150: =F150*(1+('Scenario Input'!$AJ$15/100)) -> 71.42805399 | H150: =G150*(1+('Scenario Input'!$AM$15/100)) -> 73.02535556 | I150: =H150*(1+('Scenario Input'!$AP$15/100)) -> 75.15806752 | J150: =I150*(1+('Scenario Input'!$AS$15/100)) -> 77.35306552
A151: 150 | B151: Esparto Broadband, Inc., 70, AT&T California | C151: 252 | D151: =C151*(1+('Scenario Input'!$AA$15/100)) -> 263.5294996 | E151: =D151*(1+('Scenario Input'!$AD$15/100)) -> 272.736577 | F151: =E151*(1+('Scenario Input'!$AG$15/100)) -> 278.5135763 | G151: =F151*(1+('Scenario Input'!$AJ$15/100)) -> 284.5829187 | H151: =G151*(1+('Scenario Input'!$AM$15/100)) -> 290.9468711 | I151: =H151*(1+('Scenario Input'!$AP$15/100)) -> 299.4440002 | J151: =I151*(1+('Scenario Input'!$AS$15/100)) -> 308.1892887
A152: 151 | B152: Esparto Broadband, Inc., 70, Frontier | C152: 247.25 | D152: =C152*(1+('Scenario Input'!$AA$15/100)) -> 258.5621776 | E152: =D152*(1+('Scenario Input'!$AD$15/100)) -> 267.595709 | F152: =E152*(1+('Scenario Input'!$AG$15/100)) -> 273.2638164 | G152: =F152*(1+('Scenario Input'!$AJ$15/100)) -> 279.2187565 | H152: =G152*(1+('Scenario Input'!$AM$15/100)) -> 285.4627535 | I152: =H152*(1+('Scenario Input'!$AP$15/100)) -> 293.7997185 | J152: =I152*(1+('Scenario Input'!$AS$15/100)) -> 302.3801652
A153: 152 | B153: Etheric Networks, Inc., AT&T California | C153: 126 | D153: =C153*(1+('Scenario Input'!$AA$15/100)) -> 131.7647498 | E153: =D153*(1+('Scenario Input'!$AD$15/100)) -> 136.3682885 | F153: =E153*(1+('Scenario Input'!$AG$15/100)) -> 139.2567881 | G153: =F153*(1+('Scenario Input'!$AJ$15/100)) -> 142.2914593 | H153: =G153*(1+('Scenario Input'!$AM$15/100)) -> 145.4734356 | I153: =H153*(1+('Scenario Input'!$AP$15/100)) -> 149.7220001 | J153: =I153*(1+('Scenario Input'!$AS$15/100)) -> 154.0946444
A154: 153 | B154: Etheric Networks, Inc., | C154: 99 | D154: =C154*(1+('Scenario Input'!$AA$15/100)) -> 103.5294463 | E154: =D154*(1+('Scenario Input'!$AD$15/100)) -> 107.1465124 | F154: =E154*(1+('Scenario Input'!$AG$15/100)) -> 109.4160478 | G154: =F154*(1+('Scenario Input'!$AJ$15/100)) -> 111.8004323 | H154: =G154*(1+('Scenario Input'!$AM$15/100)) -> 114.3005565 | I154: =H154*(1+('Scenario Input'!$AP$15/100)) -> 117.6387144 | J154: =I154*(1+('Scenario Input'!$AS$15/100)) -> 121.0743634
A155: 154 | B155: Etheric Networks, Inc., Frontier | C155: 121.25 | D155: =C155*(1+('Scenario Input'!$AA$15/100)) -> 126.7974279 | E155: =D155*(1+('Scenario Input'!$AD$15/100)) -> 131.2274205 | F155: =E155*(1+('Scenario Input'!$AG$15/100)) -> 134.0070283 | G155: =F155*(1+('Scenario Input'!$AJ$15/100)) -> 136.9272972 | H155: =G155*(1+('Scenario Input'!$AM$15/100)) -> 139.989318 | I155: =H155*(1+('Scenario Input'!$AP$15/100)) -> 144.0777184 | J155: =I155*(1+('Scenario Input'!$AS$15/100)) -> 148.2855209
A156: 155 | B156: FlashByte Digital, LLC, | C156: 99 | D156: =C156*(1+('Scenario Input'!$AA$15/100)) -> 103.5294463 | E156: =D156*(1+('Scenario Input'!$AD$15/100)) -> 107.1465124 | F156: =E156*(1+('Scenario Input'!$AG$15/100)) -> 109.4160478 | G156: =F156*(1+('Scenario Input'!$AJ$15/100)) -> 111.8004323 | H156: =G156*(1+('Scenario Input'!$AM$15/100)) -> 114.3005565 | I156: =H156*(1+('Scenario Input'!$AP$15/100)) -> 117.6387144 | J156: =I156*(1+('Scenario Input'!$AS$15/100)) -> 121.0743634
A157: 156 | B157: FlashByte Digital, LLC, Frontier | C157: 121.25 | D157: =C157*(1+('Scenario Input'!$AA$15/100)) -> 126.7974279 | E157: =D157*(1+('Scenario Input'!$AD$15/100)) -> 131.2274205 | F157: =E157*(1+('Scenario Input'!$AG$15/100)) -> 134.0070283 | G157: =F157*(1+('Scenario Input'!$AJ$15/100)) -> 136.9272972 | H157: =G157*(1+('Scenario Input'!$AM$15/100)) -> 139.989318 | I157: =H157*(1+('Scenario Input'!$AP$15/100)) -> 144.0777184 | J157: =I157*(1+('Scenario Input'!$AS$15/100)) -> 148.2855209
A158: 157 | B158: Fort Mojave Telecommunications Inc, Frontier - Citizens | C158: 84.95 | D158: =C158*(1+('Scenario Input'!$AA$15/100)) -> 88.8366309 | E158: =D158*(1+('Scenario Input'!$AD$15/100)) -> 91.94036593 | F158: =E158*(1+('Scenario Input'!$AG$15/100)) -> 93.88781073 | G158: =F158*(1+('Scenario Input'!$AJ$15/100)) -> 95.93380532 | H158: =G158*(1+('Scenario Input'!$AM$15/100)) -> 98.0791139 | I158: =H158*(1+('Scenario Input'!$AP$15/100)) -> 100.9435231 | J158: =I158*(1+('Scenario Input'!$AS$15/100)) -> 103.8915876
A159: 158 | B159: FractalVision, AT&T California | C159: 202 | D159: =C159*(1+('Scenario Input'!$AA$15/100)) -> 211.2419004 | E159: =D159*(1+('Scenario Input'!$AD$15/100)) -> 218.6221768 | F159: =E159*(1+('Scenario Input'!$AG$15/100)) -> 223.2529461 | G159: =F159*(1+('Scenario Input'!$AJ$15/100)) -> 228.1180538 | H159: =G159*(1+('Scenario Input'!$AM$15/100)) -> 233.2193173 | I159: =H159*(1+('Scenario Input'!$AP$15/100)) -> 240.0305081 | J159: =I159*(1+('Scenario Input'!$AS$15/100)) -> 247.0406203
A160: 159 | B160: FractalVision, Frontier | C160: 197.25 | D160: =C160*(1+('Scenario Input'!$AA$15/100)) -> 206.2745785 | E160: =D160*(1+('Scenario Input'!$AD$15/100)) -> 213.4813088 | F160: =E160*(1+('Scenario Input'!$AG$15/100)) -> 218.0031862 | G160: =F160*(1+('Scenario Input'!$AJ$15/100)) -> 222.7538917 | H160: =G160*(1+('Scenario Input'!$AM$15/100)) -> 227.7351997 | I160: =H160*(1+('Scenario Input'!$AP$15/100)) -> 234.3862264 | J160: =I160*(1+('Scenario Input'!$AS$15/100)) -> 241.2314968
A161: 160 | B161: Frontier Communications, AT&T California | C161: 82 | D161: =C161*(1+('Scenario Input'!$AA$15/100)) -> 85.75166256 | E161: =D161*(1+('Scenario Input'!$AD$15/100)) -> 88.74761632 | F161: =E161*(1+('Scenario Input'!$AG$15/100)) -> 90.62743355 | G161: =F161*(1+('Scenario Input'!$AJ$15/100)) -> 92.60237829 | H161: =G161*(1+('Scenario Input'!$AM$15/100)) -> 94.67318823 | I161: =H161*(1+('Scenario Input'!$AP$15/100)) -> 97.43812706 | J161: =I161*(1+('Scenario Input'!$AS$15/100)) -> 100.2838162
A162: 161 | B162: Frontier Communications, Frontier - Citizens | C162: 80 | D162: =C162*(1+('Scenario Input'!$AA$15/100)) -> 83.66015859 | E162: =D162*(1+('Scenario Input'!$AD$15/100)) -> 86.58304031 | F162: =E162*(1+('Scenario Input'!$AG$15/100)) -> 88.41700834 | G162: =F162*(1+('Scenario Input'!$AJ$15/100)) -> 90.3437837 | H162: =G162*(1+('Scenario Input'!$AM$15/100)) -> 92.36408608 | I162: =H162*(1+('Scenario Input'!$AP$15/100)) -> 95.06158738 | J162: =I162*(1+('Scenario Input'!$AS$15/100)) -> 97.83786944
A163: 162 | B163: Frontier Communications, Frontier - Citizens | C163: 80 | D163: =C163*(1+('Scenario Input'!$AA$15/100)) -> 83.66015859 | E163: =D163*(1+('Scenario Input'!$AD$15/100)) -> 86.58304031 | F163: =E163*(1+('Scenario Input'!$AG$15/100)) -> 88.41700834 | G163: =F163*(1+('Scenario Input'!$AJ$15/100)) -> 90.3437837 | H163: =G163*(1+('Scenario Input'!$AM$15/100)) -> 92.36408608 | I163: =H163*(1+('Scenario Input'!$AP$15/100)) -> 95.06158738 | J163: =I163*(1+('Scenario Input'!$AS$15/100)) -> 97.83786944
A164: 163 | B164: Frontier Communications, Frontier - Citizens | C164: 80 | D164: =C164*(1+('Scenario Input'!$AA$15/100)) -> 83.66015859 | E164: =D164*(1+('Scenario Input'!$AD$15/100)) -> 86.58304031 | F164: =E164*(1+('Scenario Input'!$AG$15/100)) -> 88.41700834 | G164: =F164*(1+('Scenario Input'!$AJ$15/100)) -> 90.3437837 | H164: =G164*(1+('Scenario Input'!$AM$15/100)) -> 92.36408608 | I164: =H164*(1+('Scenario Input'!$AP$15/100)) -> 95.06158738 | J164: =I164*(1+('Scenario Input'!$AS$15/100)) -> 97.83786944
A165: 164 | B165: Frontier Communications, Frontier | C165: 77.25 | D165: =C165*(1+('Scenario Input'!$AA$15/100)) -> 80.78434064 | E165: =D165*(1+('Scenario Input'!$AD$15/100)) -> 83.6067483 | F165: =E165*(1+('Scenario Input'!$AG$15/100)) -> 85.37767368 | G165: =F165*(1+('Scenario Input'!$AJ$15/100)) -> 87.23821614 | H165: =G165*(1+('Scenario Input'!$AM$15/100)) -> 89.18907062 | I165: =H165*(1+('Scenario Input'!$AP$15/100)) -> 91.79384531 | J165: =I165*(1+('Scenario Input'!$AS$15/100)) -> 94.47469268
A166: 165 | B166: Frontier Communications, | C166: 55 | D166: =C166*(1+('Scenario Input'!$AA$15/100)) -> 57.51635903 | E166: =D166*(1+('Scenario Input'!$AD$15/100)) -> 59.52584022 | F166: =E166*(1+('Scenario Input'!$AG$15/100)) -> 60.78669323 | G166: =F166*(1+('Scenario Input'!$AJ$15/100)) -> 62.1113513 | H166: =G166*(1+('Scenario Input'!$AM$15/100)) -> 63.50030918 | I166: =H166*(1+('Scenario Input'!$AP$15/100)) -> 65.35484132 | J166: =I166*(1+('Scenario Input'!$AS$15/100)) -> 67.26353524
A167: 166 | B167: Frontier Communications, Ponderosa | C167: 80 | D167: =C167*(1+('Scenario Input'!$AA$15/100)) -> 83.66015859 | E167: =D167*(1+('Scenario Input'!$AD$15/100)) -> 86.58304031 | F167: =E167*(1+('Scenario Input'!$AG$15/100)) -> 88.41700834 | G167: =F167*(1+('Scenario Input'!$AJ$15/100)) -> 90.3437837 | H167: =G167*(1+('Scenario Input'!$AM$15/100)) -> 92.36408608 | I167: =H167*(1+('Scenario Input'!$AP$15/100)) -> 95.06158738 | J167: =I167*(1+('Scenario Input'!$AS$15/100)) -> 97.83786944
A168: 167 | B168: Frontier Communications, Frontier | C168: 77.25 | D168: =C168*(1+('Scenario Input'!$AA$15/100)) -> 80.78434064 | E168: =D168*(1+('Scenario Input'!$AD$15/100)) -> 83.6067483 | F168: =E168*(1+('Scenario Input'!$AG$15/100)) -> 85.37767368 | G168: =F168*(1+('Scenario Input'!$AJ$15/100)) -> 87.23821614 | H168: =G168*(1+('Scenario Input'!$AM$15/100)) -> 89.18907062 | I168: =H168*(1+('Scenario Input'!$AP$15/100)) -> 91.79384531 | J168: =I168*(1+('Scenario Input'!$AS$15/100)) -> 94.47469268
A169: 168 | B169: Frontier Communications, Frontier | C169: 77.25 | D169: =C169*(1+('Scenario Input'!$AA$15/100)) -> 80.78434064 | E169: =D169*(1+('Scenario Input'!$AD$15/100)) -> 83.6067483 | F169: =E169*(1+('Scenario Input'!$AG$15/100)) -> 85.37767368 | G169: =F169*(1+('Scenario Input'!$AJ$15/100)) -> 87.23821614 | H169: =G169*(1+('Scenario Input'!$AM$15/100)) -> 89.18907062 | I169: =H169*(1+('Scenario Input'!$AP$15/100)) -> 91.79384531 | J169: =I169*(1+('Scenario Input'!$AS$15/100)) -> 94.47469268
A170: 169 | B170: Further Reach, AT&T California | C170: 127 | D170: =C170*(1+('Scenario Input'!$AA$15/100)) -> 132.8105018 | E170: =D170*(1+('Scenario Input'!$AD$15/100)) -> 137.4505765 | F170: =E170*(1+('Scenario Input'!$AG$15/100)) -> 140.3620007 | G170: =F170*(1+('Scenario Input'!$AJ$15/100)) -> 143.4207566 | H170: =G170*(1+('Scenario Input'!$AM$15/100)) -> 146.6279866 | I170: =H170*(1+('Scenario Input'!$AP$15/100)) -> 150.91027 | J170: =I170*(1+('Scenario Input'!$AS$15/100)) -> 155.3176177
A171: 170 | B171: Further Reach, | C171: 100 | D171: =C171*(1+('Scenario Input'!$AA$15/100)) -> 104.5751982 | E171: =D171*(1+('Scenario Input'!$AD$15/100)) -> 108.2288004 | F171: =E171*(1+('Scenario Input'!$AG$15/100)) -> 110.5212604 | G171: =F171*(1+('Scenario Input'!$AJ$15/100)) -> 112.9297296 | H171: =G171*(1+('Scenario Input'!$AM$15/100)) -> 115.4551076 | I171: =H171*(1+('Scenario Input'!$AP$15/100)) -> 118.8269842 | J171: =I171*(1+('Scenario Input'!$AS$15/100)) -> 122.2973368
A172: 171 | B172: Further Reach, Frontier | C172: 122.25 | D172: =C172*(1+('Scenario Input'!$AA$15/100)) -> 127.8431798 | E172: =D172*(1+('Scenario Input'!$AD$15/100)) -> 132.3097085 | F172: =E172*(1+('Scenario Input'!$AG$15/100)) -> 135.1122409 | G172: =F172*(1+('Scenario Input'!$AJ$15/100)) -> 138.0565945 | H172: =G172*(1+('Scenario Input'!$AM$15/100)) -> 141.143869 | I172: =H172*(1+('Scenario Input'!$AP$15/100)) -> 145.2659882 | J172: =I172*(1+('Scenario Input'!$AS$15/100)) -> 149.5084942
A173: 172 | B173: GeoLinks, 70, AT&T California | C173: 333.86 | D173: =C173*(1+('Scenario Input'!$AA$15/100)) -> 349.1347568 | E173: =D173*(1+('Scenario Input'!$AD$15/100)) -> 361.332673 | F173: =E173*(1+('Scenario Input'!$AG$15/100)) -> 368.9862801 | G173: =F173*(1+('Scenario Input'!$AJ$15/100)) -> 377.0271953 | H173: =G173*(1+('Scenario Input'!$AM$15/100)) -> 385.4584222 | I173: =H173*(1+('Scenario Input'!$AP$15/100)) -> 396.7157695 | J173: =I173*(1+('Scenario Input'!$AS$15/100)) -> 408.3018886
A174: 173 | B174: GeoLinks, 70, Frontier - Citizens | C174: 331.86 | D174: =C174*(1+('Scenario Input'!$AA$15/100)) -> 347.0432529 | E174: =D174*(1+('Scenario Input'!$AD$15/100)) -> 359.168097 | F174: =E174*(1+('Scenario Input'!$AG$15/100)) -> 366.7758548 | G174: =F174*(1+('Scenario Input'!$AJ$15/100)) -> 374.7686007 | H174: =G174*(1+('Scenario Input'!$AM$15/100)) -> 383.1493201 | I174: =H174*(1+('Scenario Input'!$AP$15/100)) -> 394.3392298 | J174: =I174*(1+('Scenario Input'!$AS$15/100)) -> 405.8559419
A175: 174 | B175: GeoLinks, 70, Frontier - Citizens | C175: 331.86 | D175: =C175*(1+('Scenario Input'!$AA$15/100)) -> 347.0432529 | E175: =D175*(1+('Scenario Input'!$AD$15/100)) -> 359.168097 | F175: =E175*(1+('Scenario Input'!$AG$15/100)) -> 366.7758548 | G175: =F175*(1+('Scenario Input'!$AJ$15/100)) -> 374.7686007 | H175: =G175*(1+('Scenario Input'!$AM$15/100)) -> 383.1493201 | I175: =H175*(1+('Scenario Input'!$AP$15/100)) -> 394.3392298 | J175: =I175*(1+('Scenario Input'!$AS$15/100)) -> 405.8559419
A176: 175 | B176: GeoLinks, 70, TDS Telecom - HV | C176: 323.71 | D176: =C176*(1+('Scenario Input'!$AA$15/100)) -> 338.5203742 | E176: =D176*(1+('Scenario Input'!$AD$15/100)) -> 350.3474498 | F176: =E176*(1+('Scenario Input'!$AG$15/100)) -> 357.7683721 | G176: =F176*(1+('Scenario Input'!$AJ$15/100)) -> 365.5648278 | H176: =G176*(1+('Scenario Input'!$AM$15/100)) -> 373.7397288 | I176: =H176*(1+('Scenario Input'!$AP$15/100)) -> 384.6548306 | J176: =I176*(1+('Scenario Input'!$AS$15/100)) -> 395.8887089
A177: 176 | B177: GeoLinks, 70, | C177: 306.86 | D177: =C177*(1+('Scenario Input'!$AA$15/100)) -> 320.8994533 | E177: =D177*(1+('Scenario Input'!$AD$15/100)) -> 332.1108969 | F177: =E177*(1+('Scenario Input'!$AG$15/100)) -> 339.1455397 | G177: =F177*(1+('Scenario Input'!$AJ$15/100)) -> 346.5361683 | H177: =G177*(1+('Scenario Input'!$AM$15/100)) -> 354.2855432 | I177: =H177*(1+('Scenario Input'!$AP$15/100)) -> 364.6324838 | J177: =I177*(1+('Scenario Input'!$AS$15/100)) -> 375.2816077
A178: 177 | B178: GeoLinks, 70, Ponderosa | C178: 331.86 | D178: =C178*(1+('Scenario Input'!$AA$15/100)) -> 347.0432529 | E178: =D178*(1+('Scenario Input'!$AD$15/100)) -> 359.168097 | F178: =E178*(1+('Scenario Input'!$AG$15/100)) -> 366.7758548 | G178: =F178*(1+('Scenario Input'!$AJ$15/100)) -> 374.7686007 | H178: =G178*(1+('Scenario Input'!$AM$15/100)) -> 383.1493201 | I178: =H178*(1+('Scenario Input'!$AP$15/100)) -> 394.3392298 | J178: =I178*(1+('Scenario Input'!$AS$15/100)) -> 405.8559419
A179: 178 | B179: GeoLinks, 70, Frontier | C179: 329.11 | D179: =C179*(1+('Scenario Input'!$AA$15/100)) -> 344.1674349 | E179: =D179*(1+('Scenario Input'!$AD$15/100)) -> 356.191805 | F179: =E179*(1+('Scenario Input'!$AG$15/100)) -> 363.7365202 | G179: =F179*(1+('Scenario Input'!$AJ$15/100)) -> 371.6630332 | H179: =G179*(1+('Scenario Input'!$AM$15/100)) -> 379.9743046 | I179: =H179*(1+('Scenario Input'!$AP$15/100)) -> 391.0714878 | J179: =I179*(1+('Scenario Input'!$AS$15/100)) -> 402.4927651
A180: 179 | B180: GeoLinks, 70, Frontier | C180: 329.11 | D180: =C180*(1+('Scenario Input'!$AA$15/100)) -> 344.1674349 | E180: =D180*(1+('Scenario Input'!$AD$15/100)) -> 356.191805 | F180: =E180*(1+('Scenario Input'!$AG$15/100)) -> 363.7365202 | G180: =F180*(1+('Scenario Input'!$AJ$15/100)) -> 371.6630332 | H180: =G180*(1+('Scenario Input'!$AM$15/100)) -> 379.9743046 | I180: =H180*(1+('Scenario Input'!$AP$15/100)) -> 391.0714878 | J180: =I180*(1+('Scenario Input'!$AS$15/100)) -> 402.4927651
